Workbook

Sheet Notes
A1: Scotland
A2: Ayrshire & Arran
A3: Borders
A4: Dumfries & Galloway
A5: Fife
A6: Forth Valley
A7: Golden Jubilee
A8: Grampian
A9: Greater Glasgow & Clyde
A10: Highland
A11: Lanarkshire
A12: Lothian
A13: Orkney
A14: Shetland
A15: Tayside
A16: Western Isles

Sheet CDI Data and Charts
B1: Scotland | K1: =CONCATENATE("Healthcare and community rates for ",B1) -> Healthcare and community rates for Scotland
L2: CDIHCAI | N2: CDICA
D3: Healthcare associated CDI | G3: Community associated CDI | L3: Healthcare associated CDI | N3: Community associated CDI
B4: Quarter Ending | C4: Cases | D4: Rate per 100 000 bed days | E4: 95% CI | F4: Cases | G4: Rate per 100 000 population | H4: 95% CI | L4: % change | N4: % change
B5: ='CDI data'!B8 -> 2014-12-19 | C5: ='CDI data'!D8 -> 321 | D5: ='CDI data'!E8 -> 18.752 | E5: =CONCATENATE("(",TEXT('CDI data'!F8,"0.0")," ,", TEXT('CDI data'!G8,"0.0"),")") -> (16.8 ,20.9) | F5: ='CDI data'!H8 -> 121 | G5: ='CDI data'!I8 -> 9.003 | H5: =IFERROR(CONCATENATE("(",TEXT('CDI data'!J8,"0.0")," ,", TEXT('CDI data'!K8,"0.0"),")"),"-") -> (7.5 ,10.8) | K5: This quarter compared to last (national only) | L5: =IFERROR(VLOOKUP(CONCATENATE(L2,$B$1),'quarter comp'!$A1:$H21,4,FALSE),"-") -> 34.18056675 | M5: =IFERROR(VLOOKUP(CONCATENATE(L2,$B$1),'quarter comp'!$A1:$H21,8,FALSE),"-") -> Significant | N5: =IFERROR(VLOOKUP(CONCATENATE(N2,$B$1),'quarter comp'!$A1:$H21,4,FALSE),"-") -> 2.127659574 | O5: =IFERROR(VLOOKUP(CONCATENATE(N2,$B$1),'quarter comp'!$A1:$H21,8,FALSE),"-") -> Non Significant
B6: ='CDI data'!B9 -> 2015-03-24 | C6: ='CDI data'!D9 -> 251 | D6: ='CDI data'!E9 -> 14.562 | E6: =CONCATENATE("(",TEXT('CDI data'!F9,"0.0")," ,", TEXT('CDI data'!G9,"0.0"),")") -> (12.8 ,16.5) | F6: ='CDI data'!H9 -> 92 | G6: ='CDI data'!I9 -> 6.972 | H6: =IFERROR(CONCATENATE("(",TEXT('CDI data'!J9,"0.0")," ,", TEXT('CDI data'!K9,"0.0"),")"),"-") -> (5.6 ,8.6) | K6: Year end compared to previous year end | L6: =IF(IFERROR(VLOOKUP(CONCATENATE(L2,$B$1),'year end comp'!$A$2:$Z$1086,4,FALSE),"-")=-100,"-",IFERROR(VLOOKUP(CONCATENATE(L2,$B$1),'year end comp'!$A$2:$Z$1086,4,FALSE),"-")) -> 6.275895448 | M6: =IF(IFERROR(VLOOKUP(CONCATENATE(L2,$B$1),'year end comp'!$A$2:$Z$1086,8,FALSE),"-")=0,"-",IFERROR(VLOOKUP(CONCATENATE(L2,$B$1),'year end comp'!$A$2:$Z$1086,8,FALSE),"-")) -> Non Significant | N6: =IFERROR(VLOOKUP(CONCATENATE(N2,$B$1),'year end comp'!$A$2:$Z$1086,4,FALSE),"-") -> 40.31620553 | O6: =IF(IFERROR(VLOOKUP(CONCATENATE(N2,$B$1),'year end comp'!$A$2:$Z$1086,8,FALSE),"-")=0,"-",IFERROR(VLOOKUP(CONCATENATE(N2,$B$1),'year end comp'!$A$2:$Z$1086,8,FALSE),"-")) -> Significant
B7: ='CDI data'!B10 -> 2015-06-24 | C7: ='CDI data'!D10 -> 308 | D7: ='CDI data'!E10 -> 18.538 | E7: =CONCATENATE("(",TEXT('CDI data'!F10,"0.0")," ,", TEXT('CDI data'!G10,"0.0"),")") -> (16.5 ,20.7) | F7: ='CDI data'!H10 -> 98 | G7: ='CDI data'!I10 -> 7.345 | H7: =IFERROR(CONCATENATE("(",TEXT('CDI data'!J10,"0.0")," ,", TEXT('CDI data'!K10,"0.0"),")"),"-") -> (6.0 ,9.0)
B8: ='CDI data'!B11 -> 2015-09-24 | C8: ='CDI data'!D11 -> 313 | D8: ='CDI data'!E11 -> 19.31 | E8: =CONCATENATE("(",TEXT('CDI data'!F11,"0.0")," ,", TEXT('CDI data'!G11,"0.0"),")") -> (17.2 ,21.6) | F8: ='CDI data'!H11 -> 131 | G8: ='CDI data'!I11 -> 9.711 | H8: =IFERROR(CONCATENATE("(",TEXT('CDI data'!J11,"0.0")," ,", TEXT('CDI data'!K11,"0.0"),")"),"-") -> (8.1 ,11.5)
B9: ='CDI data'!B12 -> 2015-12-24 | C9: ='CDI data'!D12 -> 367 | D9: ='CDI data'!E12 -> 22.349 | E9: =CONCATENATE("(",TEXT('CDI data'!F12,"0.0")," ,", TEXT('CDI data'!G12,"0.0"),")") -> (20.1 ,24.8) | F9: ='CDI data'!H12 -> 116 | G9: ='CDI data'!I12 -> 8.599 | H9: =IFERROR(CONCATENATE("(",TEXT('CDI data'!J12,"0.0")," ,", TEXT('CDI data'!K12,"0.0"),")"),"-") -> (7.1 ,10.3)
B10: ='CDI data'!B13 -> 2016-03-24 | C10: ='CDI data'!D13 -> 252 | D10: ='CDI data'!E13 -> 15.05 | E10: =CONCATENATE("(",TEXT('CDI data'!F13,"0.0")," ,", TEXT('CDI data'!G13,"0.0"),")") -> (13.2 ,17.0) | F10: ='CDI data'!H13 -> 97 | G10: ='CDI data'!I13 -> 7.258 | H10: =IFERROR(CONCATENATE("(",TEXT('CDI data'!J13,"0.0")," ,", TEXT('CDI data'!K13,"0.0"),")"),"-") -> (5.9 ,8.9)
B11: ='CDI data'!B14 -> 2016-06-24 | C11: ='CDI data'!D14 -> 250 | D11: ='CDI data'!E14 -> 15.575 | E11: =CONCATENATE("(",TEXT('CDI data'!F14,"0.0")," ,", TEXT('CDI data'!G14,"0.0"),")") -> (13.7 ,17.6) | F11: ='CDI data'!H14 -> 91 | G11: ='CDI data'!I14 -> 6.809 | H11: =IFERROR(CONCATENATE("(",TEXT('CDI data'!J14,"0.0")," ,", TEXT('CDI data'!K14,"0.0"),")"),"-") -> (5.5 ,8.4)
B12: ='CDI data'!B15 -> 2016-09-24 | C12: ='CDI data'!D15 -> 263 | D12: ='CDI data'!E15 -> 16.563 | E12: =CONCATENATE("(",TEXT('CDI data'!F15,"0.0")," ,", TEXT('CDI data'!G15,"0.0"),")") -> (14.6 ,18.7) | F12: ='CDI data'!H15 -> 119 | G12: ='CDI data'!I15 -> 8.808 | H12: =IFERROR(CONCATENATE("(",TEXT('CDI data'!J15,"0.0")," ,", TEXT('CDI data'!K15,"0.0"),")"),"-") -> (7.3 ,10.5)
B13: ='CDI data'!B16 -> 2016-12-24 | C13: ='CDI data'!D16 -> 233 | D13: ='CDI data'!E16 -> 14.639 | E13: =CONCATENATE("(",TEXT('CDI data'!F16,"0.0")," ,", TEXT('CDI data'!G16,"0.0"),")") -> (12.8 ,16.6) | F13: ='CDI data'!H16 -> 94 | G13: ='CDI data'!I16 -> 6.957 | H13: =IFERROR(CONCATENATE("(",TEXT('CDI data'!J16,"0.0")," ,", TEXT('CDI data'!K16,"0.0"),")"),"-") -> (5.6 ,8.5)
B14: ='CDI data'!B17 -> 2017-03-01 | C14: ='CDI data'!D17 -> 257 | D14: ='CDI data'!E17 -> 16.252 | E14: =CONCATENATE("(",TEXT('CDI data'!F17,"0.0")," ,", TEXT('CDI data'!G17,"0.0"),")") -> (14.3 ,18.4) | F14: ='CDI data'!H17 -> 74 | G14: ='CDI data'!I17 -> 5.568 | H14: =IFERROR(CONCATENATE("(",TEXT('CDI data'!J17,"0.0")," ,", TEXT('CDI data'!K17,"0.0"),")"),"-") -> (4.4 ,7.0)
B15: ='CDI data'!B18 -> 2017-06-01 | C15: ='CDI data'!D18 -> 237 | D15: ='CDI data'!E18 -> 15.285 | E15: =CONCATENATE("(",TEXT('CDI data'!F18,"0.0")," ,", TEXT('CDI data'!G18,"0.0"),")") -> (13.4 ,17.4) | F15: ='CDI data'!H18 -> 101 | G15: ='CDI data'!I18 -> 7.516 | H15: =IFERROR(CONCATENATE("(",TEXT('CDI data'!J18,"0.0")," ,", TEXT('CDI data'!K18,"0.0"),")"),"-") -> (6.1 ,9.1)
B16: ='CDI data'!B19 -> 2017-09-01 | C16: ='CDI data'!D19 -> 284 | D16: ='CDI data'!E19 -> 18.456 | E16: =CONCATENATE("(",TEXT('CDI data'!F19,"0.0")," ,", TEXT('CDI data'!G19,"0.0"),")") -> (16.4 ,20.7) | F16: ='CDI data'!H19 -> 107 | G16: ='CDI data'!I19 -> 7.876 | H16: =IFERROR(CONCATENATE("(",TEXT('CDI data'!J19,"0.0")," ,", TEXT('CDI data'!K19,"0.0"),")"),"-") -> (6.5 ,9.5)
B17: ='CDI data'!B20 -> 2017-12-01 | C17: ='CDI data'!D20 -> 234 | D17: ='CDI data'!E20 -> 14.857 | E17: =CONCATENATE("(",TEXT('CDI data'!F20,"0.0")," ,", TEXT('CDI data'!G20,"0.0"),")") -> (13.0 ,16.9) | F17: ='CDI data'!H20 -> 75 | G17: ='CDI data'!I20 -> 5.521 | H17: =IFERROR(CONCATENATE("(",TEXT('CDI data'!J20,"0.0")," ,", TEXT('CDI data'!K20,"0.0"),")"),"-") -> (4.3 ,6.9)
B18: ='CDI data'!B21 -> 2018-03-01 | C18: ='CDI data'!D21 -> 228 | D18: ='CDI data'!E21 -> 14.383 | E18: =CONCATENATE("(",TEXT('CDI data'!F21,"0.0")," ,", TEXT('CDI data'!G21,"0.0"),")") -> (12.6 ,16.4) | F18: ='CDI data'!H21 -> 86 | G18: ='CDI data'!I21 -> 6.466 | H18: =IFERROR(CONCATENATE("(",TEXT('CDI data'!J21,"0.0")," ,", TEXT('CDI data'!K21,"0.0"),")"),"-") -> (5.2 ,8.0)
B19: ='CDI data'!B22 -> 2018-06-01 | C19: ='CDI data'!D22 -> 244 | D19: ='CDI data'!E22 -> 15.996 | E19: =CONCATENATE("(",TEXT('CDI data'!F22,"0.0")," ,", TEXT('CDI data'!G22,"0.0"),")") -> (14.1 ,18.1) | F19: ='CDI data'!H22 -> 102 | G19: ='CDI data'!I22 -> 7.584 | H19: =IFERROR(CONCATENATE("(",TEXT('CDI data'!J22,"0.0")," ,", TEXT('CDI data'!K22,"0.0"),")"),"-") -> (6.2 ,9.2)
B20: ='CDI data'!B23 -> 2018-09-01 | C20: ='CDI data'!D23 -> 255 | D20: ='CDI data'!E23 -> 16.869 | E20: =CONCATENATE("(",TEXT('CDI data'!F23,"0.0")," ,", TEXT('CDI data'!G23,"0.0"),")") -> (14.9 ,19.1) | F20: ='CDI data'!H23 -> 92 | G20: ='CDI data'!I23 -> 6.766 | H20: =IFERROR(CONCATENATE("(",TEXT('CDI data'!J23,"0.0")," ,", TEXT('CDI data'!K23,"0.0"),")"),"-") -> (5.5 ,8.3)
B21: ='CDI data'!B24 -> 2018-12-01 | C21: ='CDI data'!D24 -> 220 | D21: ='CDI data'!E24 -> 14.453 | E21: =CONCATENATE("(",TEXT('CDI data'!F24,"0.0")," ,", TEXT('CDI data'!G24,"0.0"),")") -> (12.6 ,16.5) | F21: ='CDI data'!H24 -> 86 | G21: ='CDI data'!I24 -> 6.325 | H21: =IFERROR(CONCATENATE("(",TEXT('CDI data'!J24,"0.0")," ,", TEXT('CDI data'!K24,"0.0"),")"),"-") -> (5.1 ,7.8)
B22: ='CDI data'!B25 -> 2019-03-01 | C22: ='CDI data'!D25 -> 186 | D22: ='CDI data'!E25 -> 12.09 | E22: =CONCATENATE("(",TEXT('CDI data'!F25,"0.0")," ,", TEXT('CDI data'!G25,"0.0"),")") -> (10.4 ,14.0) | F22: ='CDI data'!H25 -> 50 | G22: ='CDI data'!I25 -> 3.745 | H22: =IFERROR(CONCATENATE("(",TEXT('CDI data'!J25,"0.0")," ,", TEXT('CDI data'!K25,"0.0"),")"),"-") -> (2.8 ,4.9)
B23: ='CDI data'!B26 -> 2019-06-01 | C23: ='CDI data'!D26 -> 184 | D23: ='CDI data'!E26 -> 12.215 | E23: =CONCATENATE("(",TEXT('CDI data'!F26,"0.0")," ,", TEXT('CDI data'!G26,"0.0"),")") -> (10.5 ,14.1) | F23: ='CDI data'!H26 -> 66 | G23: ='CDI data'!I26 -> 4.889 | H23: =IFERROR(CONCATENATE("(",TEXT('CDI data'!J26,"0.0")," ,", TEXT('CDI data'!K26,"0.0"),")"),"-") -> (3.8 ,6.2)
B24: ='CDI data'!B27 -> 2019-09-01 | C24: ='CDI data'!D27 -> 207 | D24: ='CDI data'!E27 -> 13.736 | E24: =CONCATENATE("(",TEXT('CDI data'!F27,"0.0")," ,", TEXT('CDI data'!G27,"0.0"),")") -> (11.9 ,15.7) | F24: ='CDI data'!H27 -> 72 | G24: ='CDI data'!I27 -> 5.276 | H24: =IFERROR(CONCATENATE("(",TEXT('CDI data'!J27,"0.0")," ,", TEXT('CDI data'!K27,"0.0"),")"),"-") -> (4.1 ,6.6)
B25: ='CDI data'!B28 -> 2019-12-01 | C25: ='CDI data'!D28 -> 231 | D25: ='CDI data'!E28 -> 15.084 | E25: =CONCATENATE("(",TEXT('CDI data'!F28,"0.0")," ,", TEXT('CDI data'!G28,"0.0"),")") -> (13.2 ,17.2) | F25: ='CDI data'!H28 -> 63 | G25: ='CDI data'!I28 -> 4.616 | H25: =IFERROR(CONCATENATE("(",TEXT('CDI data'!J28,"0.0")," ,", TEXT('CDI data'!K28,"0.0"),")"),"-") -> (3.5 ,5.9)
B26: ='CDI data'!B29 -> 2020-03-01 | C26: ='CDI data'!D29 -> 201 | D26: ='CDI data'!E29 -> 13.618 | E26: =CONCATENATE("(",TEXT('CDI data'!F29,"0.0")," ,", TEXT('CDI data'!G29,"0.0"),")") -> (11.8 ,15.6) | F26: ='CDI data'!H29 -> 46 | G26: ='CDI data'!I29 -> 3.418 | H26: =IFERROR(CONCATENATE("(",TEXT('CDI data'!J29,"0.0")," ,", TEXT('CDI data'!K29,"0.0"),")"),"-") -> (2.5 ,4.6)
B27: ='CDI data'!B30 -> 2020-06-01 | C27: ='CDI data'!D30 -> 166 | D27: ='CDI data'!E30 -> 15.357 | E27: =CONCATENATE("(",TEXT('CDI data'!F30,"0.0")," ,", TEXT('CDI data'!G30,"0.0"),")") -> (13.1 ,17.9) | F27: ='CDI data'!H30 -> 80 | G27: ='CDI data'!I30 -> 5.944 | H27: =IFERROR(CONCATENATE("(",TEXT('CDI data'!J30,"0.0")," ,", TEXT('CDI data'!K30,"0.0"),")"),"-") -> (4.7 ,7.4)
B28: ='CDI data'!B31 -> 2020-09-01 | C28: ='CDI data'!D31 -> 227 | D28: ='CDI data'!E31 -> 17.4082 | E28: =CONCATENATE("(",TEXT('CDI data'!F31,"0.0")," ,", TEXT('CDI data'!G31,"0.0"),")") -> (15.2 ,19.8) | F28: ='CDI data'!H31 -> 90 | G28: ='CDI data'!I31 -> 6.6144 | H28: =IFERROR(CONCATENATE("(",TEXT('CDI data'!J31,"0.0")," ,", TEXT('CDI data'!K31,"0.0"),")"),"-") -> (5.3 ,8.1)
B29: ='CDI data'!B32 -> 2020-12-31 | C29: ='CDI data'!D32 -> 222 | D29: ='CDI data'!E32 -> 16.3501 | E29: =CONCATENATE("(",TEXT('CDI data'!F32,"0.0")," ,", TEXT('CDI data'!G32,"0.0"),")") -> (14.3 ,18.6) | F29: ='CDI data'!H32 -> 56 | G29: ='CDI data'!I32 -> 4.1156 | H29: =IFERROR(CONCATENATE("(",TEXT('CDI data'!J32,"0.0")," ,", TEXT('CDI data'!K32,"0.0"),")"),"-") -> (3.1 ,5.3)
B30: ='CDI data'!B33 -> 2021-03-31 | C30: ='CDI data'!D33 -> 213 | D30: ='CDI data'!E33 -> 15.7562 | E30: =CONCATENATE("(",TEXT('CDI data'!F33,"0.0")," ,", TEXT('CDI data'!G33,"0.0"),")") -> (13.7 ,18.0) | F30: ='CDI data'!H33 -> 49 | G30: ='CDI data'!I33 -> 3.6675 | H30: =IFERROR(CONCATENATE("(",TEXT('CDI data'!J33,"0.0")," ,", TEXT('CDI data'!K33,"0.0"),")"),"-") -> (2.7 ,4.8)
B31: ='CDI data'!B34 -> 2021-06-30 | C31: ='CDI data'!D34 -> 203 | D31: ='CDI data'!E34 -> 14.5607 | E31: =CONCATENATE("(",TEXT('CDI data'!F34,"0.0")," ,", TEXT('CDI data'!G34,"0.0"),")") -> (12.6 ,16.7) | F31: ='CDI data'!H34 -> 74 | G31: ='CDI data'!I34 -> 5.4779 | H31: =IFERROR(CONCATENATE("(",TEXT('CDI data'!J34,"0.0")," ,", TEXT('CDI data'!K34,"0.0"),")"),"-") -> (4.3 ,6.9)
B32: ='CDI data'!B35 -> 2021-09-01 | C32: ='CDI data'!D35 -> 245 | D32: ='CDI data'!E35 -> 16.823 | E32: =CONCATENATE("(",TEXT('CDI data'!F35,"0.0")," ,", TEXT('CDI data'!G35,"0.0"),")") -> (14.8 ,19.1) | F32: ='CDI data'!H35 -> 87 | G32: ='CDI data'!I35 -> 6.3702 | H32: =IFERROR(CONCATENATE("(",TEXT('CDI data'!J35,"0.0")," ,", TEXT('CDI data'!K35,"0.0"),")"),"-") -> (5.1 ,7.9)
B33: ='CDI data'!B36 -> 2021-12-31 | C33: ='CDI data'!D36 -> 197 | D33: ='CDI data'!E36 -> 13.1878 | E33: =CONCATENATE("(",TEXT('CDI data'!F36,"0.0")," ,", TEXT('CDI data'!G36,"0.0"),")") -> (11.4 ,15.2) | F33: ='CDI data'!H36 -> 67 | G33: ='CDI data'!I36 -> 4.9058 | H33: =IFERROR(CONCATENATE("(",TEXT('CDI data'!J36,"0.0")," ,", TEXT('CDI data'!K36,"0.0"),")"),"-") -> (3.8 ,6.2)
B34: ='CDI data'!B37 -> 2022-03-31 | C34: ='CDI data'!D37 -> 187 | D34: ='CDI data'!E37 -> 12.6261 | E34: =CONCATENATE("(",TEXT('CDI data'!F37,"0.0")," ,", TEXT('CDI data'!G37,"0.0"),")") -> (10.9 ,14.6) | F34: ='CDI data'!H37 -> 43 | G34: ='CDI data'!I37 -> 3.2011 | H34: =IFERROR(CONCATENATE("(",TEXT('CDI data'!J37,"0.0")," ,", TEXT('CDI data'!K37,"0.0"),")"),"-") -> (2.3 ,4.3)
B35: ='CDI data'!B38 -> 2022-06-30 | C35: ='CDI data'!D38 -> 217 | D35: ='CDI data'!E38 -> 14.3109 | E35: =CONCATENATE("(",TEXT('CDI data'!F38,"0.0")," ,", TEXT('CDI data'!G38,"0.0"),")") -> (12.5 ,16.3) | F35: ='CDI data'!H38 -> 66 | G35: ='CDI data'!I38 -> 4.8594 | H35: =IFERROR(CONCATENATE("(",TEXT('CDI data'!J38,"0.0")," ,", TEXT('CDI data'!K38,"0.0"),")"),"-") -> (3.8 ,6.2)
B36: ='CDI data'!B39 -> 2022-09-30 | C36: ='CDI data'!D39 -> 202 | D36: ='CDI data'!E39 -> 13.0682 | E36: =CONCATENATE("(",TEXT('CDI data'!F39,"0.0")," ,", TEXT('CDI data'!G39,"0.0"),")") -> (11.3 ,15.0) | F36: ='CDI data'!H39 -> 82 | G36: ='CDI data'!I39 -> 5.9718 | H36: =IFERROR(CONCATENATE("(",TEXT('CDI data'!J39,"0.0")," ,", TEXT('CDI data'!K39,"0.0"),")"),"-") -> (4.7 ,7.4)
B37: ='CDI data'!B40 -> 2022-12-31 | C37: ='CDI data'!D40 -> 212 | D37: ='CDI data'!E40 -> 13.5113 | E37: =CONCATENATE("(",TEXT('CDI data'!F40,"0.0")," ,", TEXT('CDI data'!G40,"0.0"),")") -> (11.8 ,15.5) | F37: ='CDI data'!H40 -> 44 | G37: ='CDI data'!I40 -> 3.2044 | H37: =IFERROR(CONCATENATE("(",TEXT('CDI data'!J40,"0.0")," ,", TEXT('CDI data'!K40,"0.0"),")"),"-") -> (2.3 ,4.3)
B38: ='CDI data'!B41 -> 2023-03-31 | C38: ='CDI data'!D41 -> 211 | D38: ='CDI data'!E41 -> 13.4488 | E38: =CONCATENATE("(",TEXT('CDI data'!F41,"0.0")," ,", TEXT('CDI data'!G41,"0.0"),")") -> (11.7 ,15.4) | F38: ='CDI data'!H41 -> 57 | G38: ='CDI data'!I41 -> 4.2434 | H38: =IFERROR(CONCATENATE("(",TEXT('CDI data'!J41,"0.0")," ,", TEXT('CDI data'!K41,"0.0"),")"),"-") -> (3.2 ,5.5)
B39: ='CDI data'!B42 -> 2023-06-30 | C39: ='CDI data'!D42 -> 244 | D39: ='CDI data'!E42 -> 15.7963 | E39: =CONCATENATE("(",TEXT('CDI data'!F42,"0.0")," ,", TEXT('CDI data'!G42,"0.0"),")") -> (13.9 ,17.9) | F39: ='CDI data'!H42 -> 70 | G39: ='CDI data'!I42 -> 5.1539 | H39: =IFERROR(CONCATENATE("(",TEXT('CDI data'!J42,"0.0")," ,", TEXT('CDI data'!K42,"0.0"),")"),"-") -> (4.0 ,6.5)
B40: ='CDI data'!B43 -> 2023-09-30 | C40: ='CDI data'!D43 -> 239 | D40: ='CDI data'!E43 -> 15.542 | E40: =CONCATENATE("(",TEXT('CDI data'!F43,"0.0")," ,", TEXT('CDI data'!G43,"0.0"),")") -> (13.6 ,17.6) | F40: ='CDI data'!H43 -> 86 | G40: ='CDI data'!I43 -> 6.2631 | H40: =IFERROR(CONCATENATE("(",TEXT('CDI data'!J43,"0.0")," ,", TEXT('CDI data'!K43,"0.0"),")"),"-") -> (5.0 ,7.7)
B41: ='CDI data'!B44 -> 2023-12-31 | C41: ='CDI data'!D44 -> 223 | D41: ='CDI data'!E44 -> 14.2386 | E41: =CONCATENATE("(",TEXT('CDI data'!F44,"0.0")," ,", TEXT('CDI data'!G44,"0.0"),")") -> (12.4 ,16.2) | F41: ='CDI data'!H44 -> 79 | G41: ='CDI data'!I44 -> 5.7533 | H41: =IFERROR(CONCATENATE("(",TEXT('CDI data'!J44,"0.0")," ,", TEXT('CDI data'!K44,"0.0"),")"),"-") -> (4.6 ,7.2)
B42: ='CDI data'!B45 -> 2024-03-31 | C42: ='CDI data'!D45 -> 201 | D42: ='CDI data'!E45 -> 12.6359 | E42: =CONCATENATE("(",TEXT('CDI data'!F45,"0.0")," ,", TEXT('CDI data'!G45,"0.0"),")") -> (10.9 ,14.5) | F42: ='CDI data'!H45 -> 94 | G42: ='CDI data'!I45 -> 6.9399 | H42: =IFERROR(CONCATENATE("(",TEXT('CDI data'!J45,"0.0")," ,", TEXT('CDI data'!K45,"0.0"),")"),"-") -> (5.6 ,8.5)
B43: ='CDI data'!B46 -> 2024-06-30 | C43: ='CDI data'!D46 -> 264 | D43: ='CDI data'!E46 -> 16.9549 | E43: =CONCATENATE("(",TEXT('CDI data'!F46,"0.0")," ,", TEXT('CDI data'!G46,"0.0"),")") -> (15.0 ,19.1) | F43: ='CDI data'!H46 -> 96 | G43: ='CDI data'!I46 -> 7.0876 | H43: =IFERROR(CONCATENATE("(",TEXT('CDI data'!J46,"0.0")," ,", TEXT('CDI data'!K46,"0.0"),")"),"-") -> (5.7 ,8.7)

Sheet ECOLI Data and Charts
B1: Scotland | K1: =CONCATENATE("Healthcare and community rates for ",B1) -> Healthcare and community rates for Scotland
L2: ECBHCAI | N2: ECBCOM
D3: Healthcare associated ECB | G3: Community associated ECB | L3: Healthcare associated ECB | N3: Community associated ECB
B4: Quarter Ending | C4: Cases | D4: Rate per 100 000 bed days | E4: 95% CI | F4: Cases | G4: Rate per 100 000 Population | H4: 95% CI | L4: % change | N4: % change
B5: ='ECOLI data'!B8 -> 2016-09-24 | C5: ='ECOLI data'!D8 -> 581 | D5: ='ECOLI data'!E8 -> 36.589 | E5: =CONCATENATE("(",TEXT('ECOLI data'!F8,"0.0")," ,", TEXT('ECOLI data'!G8,"0.0"),")") -> (33.7 ,39.7) | F5: ='ECOLI data'!H8 -> 720 | G5: ='ECOLI data'!I8 -> 53.291 | H5: =IFERROR(CONCATENATE("(",TEXT('ECOLI data'!J8,"0.0")," ,", TEXT('ECOLI data'!K8,"0.0"),")"),"-") -> (49.5 ,57.3) | K5: This quarter compared to last (national only) | L5: =IFERROR(ROUND(VLOOKUP(CONCATENATE(L2,$B$1),'quarter comp'!$A1:$H21,4,FALSE),2),"-") -> 11.02 | M5: =IFERROR(VLOOKUP(CONCATENATE(L2,$B$1),'quarter comp'!$A1:$H21,8,FALSE),"-") -> Non Significant | N5: =IFERROR(ROUND(VLOOKUP(CONCATENATE(N2,$B$1),'quarter comp'!$A1:$H21,4,FALSE),2),"-") -> -2.78 | O5: =IFERROR(VLOOKUP(CONCATENATE(N2,$B$1),'quarter comp'!$A1:$H21,8,FALSE),"-") -> Non Significant
B6: ='ECOLI data'!B9 -> 2016-12-24 | C6: ='ECOLI data'!D9 -> 564 | D6: ='ECOLI data'!E9 -> 35.434 | E6: =CONCATENATE("(",TEXT('ECOLI data'!F9,"0.0")," ,", TEXT('ECOLI data'!G9,"0.0"),")") -> (32.6 ,38.5) | F6: ='ECOLI data'!H9 -> 631 | G6: ='ECOLI data'!I9 -> 46.704 | H6: =IFERROR(CONCATENATE("(",TEXT('ECOLI data'!J9,"0.0")," ,", TEXT('ECOLI data'!K9,"0.0"),")"),"-") -> (43.1 ,50.5) | K6: Year end compared to previous year end | L6: =ROUND(VLOOKUP(CONCATENATE(L2,$B$1),'year end comp'!$A$2:$Z$1086,4,FALSE),2) -> 0.72 | M6: =VLOOKUP(CONCATENATE(L2,$B$1),'year end comp'!$A$2:$Z$1086,8,FALSE) -> Non Significant | N6: =IFERROR(ROUND(VLOOKUP(CONCATENATE(N2,$B$1),'year end comp'!$A$2:$Z$1086,4,FALSE),2),"-") -> -2.9 | O6: =IFERROR(VLOOKUP(CONCATENATE(N2,$B$1),'year end comp'!$A$2:$Z$1086,8,FALSE),"-") -> Non Significant
B7: ='ECOLI data'!B10 -> 2017-03-01 | C7: ='ECOLI data'!D10 -> 547 | D7: ='ECOLI data'!E10 -> 34.591 | E7: =CONCATENATE("(",TEXT('ECOLI data'!F10,"0.0")," ,", TEXT('ECOLI data'!G10,"0.0"),")") -> (31.8 ,37.6) | F7: ='ECOLI data'!H10 -> 570 | G7: ='ECOLI data'!I10 -> 42.889 | H7: =IFERROR(CONCATENATE("(",TEXT('ECOLI data'!J10,"0.0")," ,", TEXT('ECOLI data'!K10,"0.0"),")"),"-") -> (39.4 ,46.6)
B8: ='ECOLI data'!B11 -> 2017-06-01 | C8: ='ECOLI data'!D11 -> 539 | D8: ='ECOLI data'!E11 -> 34.761 | E8: =CONCATENATE("(",TEXT('ECOLI data'!F11,"0.0")," ,", TEXT('ECOLI data'!G11,"0.0"),")") -> (31.9 ,37.8) | F8: ='ECOLI data'!H11 -> 657 | G8: ='ECOLI data'!I11 -> 48.892 | H8: =IFERROR(CONCATENATE("(",TEXT('ECOLI data'!J11,"0.0")," ,", TEXT('ECOLI data'!K11,"0.0"),")"),"-") -> (45.2 ,52.8)
B9: ='ECOLI data'!B12 -> 2017-09-01 | C9: ='ECOLI data'!D12 -> 585 | D9: ='ECOLI data'!E12 -> 38.016 | E9: =CONCATENATE("(",TEXT('ECOLI data'!F12,"0.0")," ,", TEXT('ECOLI data'!G12,"0.0"),")") -> (35.0 ,41.2) | F9: ='ECOLI data'!H12 -> 677 | G9: ='ECOLI data'!I12 -> 49.833 | H9: =IFERROR(CONCATENATE("(",TEXT('ECOLI data'!J12,"0.0")," ,", TEXT('ECOLI data'!K12,"0.0"),")"),"-") -> (46.1 ,53.7)
B10: ='ECOLI data'!B13 -> 2017-12-01 | C10: ='ECOLI data'!D13 -> 531 | D10: ='ECOLI data'!E13 -> 33.715 | E10: =CONCATENATE("(",TEXT('ECOLI data'!F13,"0.0")," ,", TEXT('ECOLI data'!G13,"0.0"),")") -> (30.9 ,36.7) | F10: ='ECOLI data'!H13 -> 656 | G10: ='ECOLI data'!I13 -> 48.287 | H10: =IFERROR(CONCATENATE("(",TEXT('ECOLI data'!J13,"0.0")," ,", TEXT('ECOLI data'!K13,"0.0"),")"),"-") -> (44.7 ,52.1)
B11: ='ECOLI data'!B14 -> 2018-03-01 | C11: ='ECOLI data'!D14 -> 524 | D11: ='ECOLI data'!E14 -> 33.055 | E11: =CONCATENATE("(",TEXT('ECOLI data'!F14,"0.0")," ,", TEXT('ECOLI data'!G14,"0.0"),")") -> (30.3 ,36.0) | F11: ='ECOLI data'!H14 -> 578 | G11: ='ECOLI data'!I14 -> 43.455 | H11: =IFERROR(CONCATENATE("(",TEXT('ECOLI data'!J14,"0.0")," ,", TEXT('ECOLI data'!K14,"0.0"),")"),"-") -> (40.0 ,47.1)
B12: ='ECOLI data'!B15 -> 2018-06-01 | C12: ='ECOLI data'!D15 -> 580 | D12: ='ECOLI data'!E15 -> 38.024 | E12: =CONCATENATE("(",TEXT('ECOLI data'!F15,"0.0")," ,", TEXT('ECOLI data'!G15,"0.0"),")") -> (35.0 ,41.2) | F12: ='ECOLI data'!H15 -> 598 | G12: ='ECOLI data'!I15 -> 44.465 | H12: =IFERROR(CONCATENATE("(",TEXT('ECOLI data'!J15,"0.0")," ,", TEXT('ECOLI data'!K15,"0.0"),")"),"-") -> (41.0 ,48.2)
B13: ='ECOLI data'!B16 -> 2018-09-01 | C13: ='ECOLI data'!D16 -> 606 | D13: ='ECOLI data'!E16 -> 40.089 | E13: =CONCATENATE("(",TEXT('ECOLI data'!F16,"0.0")," ,", TEXT('ECOLI data'!G16,"0.0"),")") -> (37.0 ,43.4) | F13: ='ECOLI data'!H16 -> 667 | G13: ='ECOLI data'!I16 -> 49.056 | H13: =IFERROR(CONCATENATE("(",TEXT('ECOLI data'!J16,"0.0")," ,", TEXT('ECOLI data'!K16,"0.0"),")"),"-") -> (45.4 ,52.9)
B14: ='ECOLI data'!B17 -> 2018-12-01 | C14: ='ECOLI data'!D17 -> 582 | D14: ='ECOLI data'!E17 -> 38.234 | E14: =CONCATENATE("(",TEXT('ECOLI data'!F17,"0.0")," ,", TEXT('ECOLI data'!G17,"0.0"),")") -> (35.2 ,41.5) | F14: ='ECOLI data'!H17 -> 603 | G14: ='ECOLI data'!I17 -> 44.349 | H14: =IFERROR(CONCATENATE("(",TEXT('ECOLI data'!J17,"0.0")," ,", TEXT('ECOLI data'!K17,"0.0"),")"),"-") -> (40.9 ,48.0)
B15: ='ECOLI data'!B18 -> 2019-03-01 | C15: ='ECOLI data'!D18 -> 573 | D15: ='ECOLI data'!E18 -> 37.244 | E15: =CONCATENATE("(",TEXT('ECOLI data'!F18,"0.0")," ,", TEXT('ECOLI data'!G18,"0.0"),")") -> (34.3 ,40.4) | F15: ='ECOLI data'!H18 -> 598 | G15: ='ECOLI data'!I18 -> 44.792 | H15: =IFERROR(CONCATENATE("(",TEXT('ECOLI data'!J18,"0.0")," ,", TEXT('ECOLI data'!K18,"0.0"),")"),"-") -> (41.3 ,48.5)
B16: ='ECOLI data'!B19 -> 2019-06-01 | C16: ='ECOLI data'!D19 -> 584 | D16: ='ECOLI data'!E19 -> 38.771 | E16: =CONCATENATE("(",TEXT('ECOLI data'!F19,"0.0")," ,", TEXT('ECOLI data'!G19,"0.0"),")") -> (35.7 ,42.0) | F16: ='ECOLI data'!H19 -> 604 | G16: ='ECOLI data'!I19 -> 44.744 | H16: =IFERROR(CONCATENATE("(",TEXT('ECOLI data'!J19,"0.0")," ,", TEXT('ECOLI data'!K19,"0.0"),")"),"-") -> (41.2 ,48.5)
B17: ='ECOLI data'!B20 -> 2019-09-01 | C17: ='ECOLI data'!D20 -> 608 | D17: ='ECOLI data'!E20 -> 40.346 | E17: =CONCATENATE("(",TEXT('ECOLI data'!F20,"0.0")," ,", TEXT('ECOLI data'!G20,"0.0"),")") -> (37.2 ,43.7) | F17: ='ECOLI data'!H20 -> 606 | G17: ='ECOLI data'!I20 -> 44.405 | H17: =IFERROR(CONCATENATE("(",TEXT('ECOLI data'!J20,"0.0")," ,", TEXT('ECOLI data'!K20,"0.0"),")"),"-") -> (40.9 ,48.1)
B18: ='ECOLI data'!B21 -> 2019-12-01 | C18: ='ECOLI data'!D21 -> 626 | D18: ='ECOLI data'!E21 -> 40.876 | E18: =CONCATENATE("(",TEXT('ECOLI data'!F21,"0.0")," ,", TEXT('ECOLI data'!G21,"0.0"),")") -> (37.7 ,44.2) | F18: ='ECOLI data'!H21 -> 568 | G18: ='ECOLI data'!I21 -> 41.62 | H18: =IFERROR(CONCATENATE("(",TEXT('ECOLI data'!J21,"0.0")," ,", TEXT('ECOLI data'!K21,"0.0"),")"),"-") -> (38.3 ,45.2)
B19: ='ECOLI data'!B22 -> 2020-03-01 | C19: ='ECOLI data'!D22 -> 538 | D19: ='ECOLI data'!E22 -> 36.451 | E19: =CONCATENATE("(",TEXT('ECOLI data'!F22,"0.0")," ,", TEXT('ECOLI data'!G22,"0.0"),")") -> (33.4 ,39.7) | F19: ='ECOLI data'!H22 -> 515 | G19: ='ECOLI data'!I22 -> 38.265 | H19: =IFERROR(CONCATENATE("(",TEXT('ECOLI data'!J22,"0.0")," ,", TEXT('ECOLI data'!K22,"0.0"),")"),"-") -> (35.0 ,41.7)
B20: ='ECOLI data'!B23 -> 2020-06-01 | C20: ='ECOLI data'!D23 -> 429 | D20: ='ECOLI data'!E23 -> 39.687 | E20: =CONCATENATE("(",TEXT('ECOLI data'!F23,"0.0")," ,", TEXT('ECOLI data'!G23,"0.0"),")") -> (36.0 ,43.6) | F20: ='ECOLI data'!H23 -> 488 | G20: ='ECOLI data'!I23 -> 36.259 | H20: =IFERROR(CONCATENATE("(",TEXT('ECOLI data'!J23,"0.0")," ,", TEXT('ECOLI data'!K23,"0.0"),")"),"-") -> (33.1 ,39.6)
B21: ='ECOLI data'!B24 -> 2020-09-01 | C21: ='ECOLI data'!D24 -> 547 | D21: ='ECOLI data'!E24 -> 41.9484 | E21: =CONCATENATE("(",TEXT('ECOLI data'!F24,"0.0")," ,", TEXT('ECOLI data'!G24,"0.0"),")") -> (38.5 ,45.6) | F21: ='ECOLI data'!H24 -> 614 | G21: ='ECOLI data'!I24 -> 45.1248 | H21: =IFERROR(CONCATENATE("(",TEXT('ECOLI data'!J24,"0.0")," ,", TEXT('ECOLI data'!K24,"0.0"),")"),"-") -> (41.6 ,48.8)
B22: ='ECOLI data'!B25 -> 2020-12-31 | C22: ='ECOLI data'!D25 -> 555 | D22: ='ECOLI data'!E25 -> 40.8752 | E22: =CONCATENATE("(",TEXT('ECOLI data'!F25,"0.0")," ,", TEXT('ECOLI data'!G25,"0.0"),")") -> (37.5 ,44.4) | F22: ='ECOLI data'!H25 -> 521 | G22: ='ECOLI data'!I25 -> 38.29 | H22: =IFERROR(CONCATENATE("(",TEXT('ECOLI data'!J25,"0.0")," ,", TEXT('ECOLI data'!K25,"0.0"),")"),"-") -> (35.1 ,41.7)
B23: ='ECOLI data'!B26 -> 2021-03-31 | C23: ='ECOLI data'!D26 -> 468 | D23: ='ECOLI data'!E26 -> 34.6193 | E23: =CONCATENATE("(",TEXT('ECOLI data'!F26,"0.0")," ,", TEXT('ECOLI data'!G26,"0.0"),")") -> (31.6 ,37.9) | F23: ='ECOLI data'!H26 -> 493 | G23: ='ECOLI data'!I26 -> 36.9 | H23: =IFERROR(CONCATENATE("(",TEXT('ECOLI data'!J26,"0.0")," ,", TEXT('ECOLI data'!K26,"0.0"),")"),"-") -> (33.7 ,40.3)
B24: ='ECOLI data'!B27 -> 2021-06-30 | C24: ='ECOLI data'!D27 -> 532 | D24: ='ECOLI data'!E27 -> 38.159 | E24: =CONCATENATE("(",TEXT('ECOLI data'!F27,"0.0")," ,", TEXT('ECOLI data'!G27,"0.0"),")") -> (35.0 ,41.5) | F24: ='ECOLI data'!H27 -> 570 | G24: ='ECOLI data'!I27 -> 42.1944 | H24: =IFERROR(CONCATENATE("(",TEXT('ECOLI data'!J27,"0.0")," ,", TEXT('ECOLI data'!K27,"0.0"),")"),"-") -> (38.8 ,45.8)
B25: ='ECOLI data'!B28 -> 2021-09-01 | C25: ='ECOLI data'!D28 -> 604 | D25: ='ECOLI data'!E28 -> 41.4739 | E25: =CONCATENATE("(",TEXT('ECOLI data'!F28,"0.0")," ,", TEXT('ECOLI data'!G28,"0.0"),")") -> (38.2 ,44.9) | F25: ='ECOLI data'!H28 -> 566 | G25: ='ECOLI data'!I28 -> 41.4429 | H25: =IFERROR(CONCATENATE("(",TEXT('ECOLI data'!J28,"0.0")," ,", TEXT('ECOLI data'!K28,"0.0"),")"),"-") -> (38.1 ,45.0)
B26: ='ECOLI data'!B29 -> 2021-12-01 | C26: ='ECOLI data'!D29 -> 509 | D26: ='ECOLI data'!E29 -> 34.074 | E26: =CONCATENATE("(",TEXT('ECOLI data'!F29,"0.0")," ,", TEXT('ECOLI data'!G29,"0.0"),")") -> (31.2 ,37.2) | F26: ='ECOLI data'!H29 -> 549 | G26: ='ECOLI data'!I29 -> 40.1982 | H26: =IFERROR(CONCATENATE("(",TEXT('ECOLI data'!J29,"0.0")," ,", TEXT('ECOLI data'!K29,"0.0"),")"),"-") -> (36.9 ,43.7)
B27: ='ECOLI data'!B30 -> 2022-03-01 | C27: ='ECOLI data'!D30 -> 452 | D27: ='ECOLI data'!E30 -> 30.5188 | E27: =CONCATENATE("(",TEXT('ECOLI data'!F30,"0.0")," ,", TEXT('ECOLI data'!G30,"0.0"),")") -> (27.8 ,33.5) | F27: ='ECOLI data'!H30 -> 528 | G27: ='ECOLI data'!I30 -> 39.3071 | H27: =IFERROR(CONCATENATE("(",TEXT('ECOLI data'!J30,"0.0")," ,", TEXT('ECOLI data'!K30,"0.0"),")"),"-") -> (36.0 ,42.8)
B28: ='ECOLI data'!B31 -> 2022-06-01 | C28: ='ECOLI data'!D31 -> 528 | D28: ='ECOLI data'!E31 -> 34.8209 | E28: =CONCATENATE("(",TEXT('ECOLI data'!F31,"0.0")," ,", TEXT('ECOLI data'!G31,"0.0"),")") -> (31.9 ,37.9) | F28: ='ECOLI data'!H31 -> 529 | G28: ='ECOLI data'!I31 -> 38.9488 | H28: =IFERROR(CONCATENATE("(",TEXT('ECOLI data'!J31,"0.0")," ,", TEXT('ECOLI data'!K31,"0.0"),")"),"-") -> (35.7 ,42.4)
B29: ='ECOLI data'!B32 -> 2022-09-30 | C29: ='ECOLI data'!D32 -> 560 | D29: ='ECOLI data'!E32 -> 36.2287 | E29: =CONCATENATE("(",TEXT('ECOLI data'!F32,"0.0")," ,", TEXT('ECOLI data'!G32,"0.0"),")") -> (33.3 ,39.4) | F29: ='ECOLI data'!H32 -> 577 | G29: ='ECOLI data'!I32 -> 42.0211 | H29: =IFERROR(CONCATENATE("(",TEXT('ECOLI data'!J32,"0.0")," ,", TEXT('ECOLI data'!K32,"0.0"),")"),"-") -> (38.7 ,45.6)
B30: ='ECOLI data'!B33 -> 2022-12-31 | C30: ='ECOLI data'!D33 -> 549 | D30: ='ECOLI data'!E33 -> 34.9893 | E30: =CONCATENATE("(",TEXT('ECOLI data'!F33,"0.0")," ,", TEXT('ECOLI data'!G33,"0.0"),")") -> (32.1 ,38.0) | F30: ='ECOLI data'!H33 -> 495 | G30: ='ECOLI data'!I33 -> 36.0493 | H30: =IFERROR(CONCATENATE("(",TEXT('ECOLI data'!J33,"0.0")," ,", TEXT('ECOLI data'!K33,"0.0"),")"),"-") -> (32.9 ,39.4)
B31: ='ECOLI data'!B34 -> 2023-03-31 | C31: ='ECOLI data'!D34 -> 588 | D31: ='ECOLI data'!E34 -> 37.4781 | E31: =CONCATENATE("(",TEXT('ECOLI data'!F34,"0.0")," ,", TEXT('ECOLI data'!G34,"0.0"),")") -> (34.5 ,40.6) | F31: ='ECOLI data'!H34 -> 497 | G31: ='ECOLI data'!I34 -> 36.9993 | H31: =IFERROR(CONCATENATE("(",TEXT('ECOLI data'!J34,"0.0")," ,", TEXT('ECOLI data'!K34,"0.0"),")"),"-") -> (33.8 ,40.4)
B32: ='ECOLI data'!B35 -> 2023-06-30 | C32: ='ECOLI data'!D35 -> 581 | D32: ='ECOLI data'!E35 -> 37.6134 | E32: =CONCATENATE("(",TEXT('ECOLI data'!F35,"0.0")," ,", TEXT('ECOLI data'!G35,"0.0"),")") -> (34.6 ,40.8) | F32: ='ECOLI data'!H35 -> 502 | G32: ='ECOLI data'!I35 -> 36.9609 | H32: =IFERROR(CONCATENATE("(",TEXT('ECOLI data'!J35,"0.0")," ,", TEXT('ECOLI data'!K35,"0.0"),")"),"-") -> (33.8 ,40.3)
B33: ='ECOLI data'!B36 -> 2023-09-30 | C33: ='ECOLI data'!D36 -> 580 | D33: ='ECOLI data'!E36 -> 37.7171 | E33: =CONCATENATE("(",TEXT('ECOLI data'!F36,"0.0")," ,", TEXT('ECOLI data'!G36,"0.0"),")") -> (34.7 ,40.9) | F33: ='ECOLI data'!H36 -> 575 | G33: ='ECOLI data'!I36 -> 41.8755 | H33: =IFERROR(CONCATENATE("(",TEXT('ECOLI data'!J36,"0.0")," ,", TEXT('ECOLI data'!K36,"0.0"),")"),"-") -> (38.5 ,45.4)
B34: ='ECOLI data'!B37 -> 2023-12-31 | C34: ='ECOLI data'!D37 -> 544 | D34: ='ECOLI data'!E37 -> 34.7345 | E34: =CONCATENATE("(",TEXT('ECOLI data'!F37,"0.0")," ,", TEXT('ECOLI data'!G37,"0.0"),")") -> (31.9 ,37.8) | F34: ='ECOLI data'!H37 -> 442 | G34: ='ECOLI data'!I37 -> 32.1895 | H34: =IFERROR(CONCATENATE("(",TEXT('ECOLI data'!J37,"0.0")," ,", TEXT('ECOLI data'!K37,"0.0"),")"),"-") -> (29.3 ,35.3)
B35: ='ECOLI data'!B38 -> 2024-03-31 | C35: ='ECOLI data'!D38 -> 565 | D35: ='ECOLI data'!E38 -> 35.5187 | E35: =CONCATENATE("(",TEXT('ECOLI data'!F38,"0.0")," ,", TEXT('ECOLI data'!G38,"0.0"),")") -> (32.6 ,38.6) | F35: ='ECOLI data'!H38 -> 504 | G35: ='ECOLI data'!I38 -> 37.2098 | H35: =IFERROR(CONCATENATE("(",TEXT('ECOLI data'!J38,"0.0")," ,", TEXT('ECOLI data'!K38,"0.0"),")"),"-") -> (34.0 ,40.6)
B36: ='ECOLI data'!B39 -> 2024-06-30 | C36: ='ECOLI data'!D39 -> 614 | D36: ='ECOLI data'!E39 -> 39.4329 | E36: =CONCATENATE("(",TEXT('ECOLI data'!F39,"0.0")," ,", TEXT('ECOLI data'!G39,"0.0"),")") -> (36.4 ,42.7) | F36: ='ECOLI data'!H39 -> 490 | G36: ='ECOLI data'!I39 -> 36.1762 | H36: =IFERROR(CONCATENATE("(",TEXT('ECOLI data'!J39,"0.0")," ,", TEXT('ECOLI data'!K39,"0.0"),")"),"-") -> (33.0 ,39.5)

Sheet SAB Data and Charts
B1: Scotland | J1: =CONCATENATE("Healthcare and community rates for ",B1) -> Healthcare and community rates for Scotland
K2: SABHCAI | M2: SABCAUN
D3: Healthcare associated SAB | G3: Community associated SAB | K3: Healthcare associated SAB infection | M3: Community associated SAB infection
B4: Quarter Ending | C4: Cases | D4: Rate per 100 000 bed days | E4: 95% CI | F4: Cases | G4: Rate per 100 000 population | H4: 95% CI | K4: % change | M4: % change
B5: ='SAB data'!B8 -> 2014-12-19 | C5: ='SAB data'!D8 -> 275 | D5: ='SAB data'!E8 -> 16.065 | E5: =CONCATENATE("(",TEXT('SAB data'!F8,"0.0")," ,", TEXT('SAB data'!G8,"0.0"),")") -> (14.2 ,18.1) | F5: ='SAB data'!H8 -> 119 | G5: ='SAB data'!I8 -> 8.854 | H5: =IFERROR(CONCATENATE("(",TEXT('SAB data'!J8,"0.0")," ,", TEXT('SAB data'!K8,"0.0"),")"),"-") -> (7.3 ,10.6) | J5: This quarter compared to last (national only) | K5: =IFERROR(ROUND(VLOOKUP(CONCATENATE(K2,$B$1),'quarter comp'!$A1:$H21,4,FALSE),2),"-") -> 1.78 | L5: =IFERROR(VLOOKUP(CONCATENATE(K2,$B$1),'quarter comp'!$A1:$H21,8,FALSE),"-") -> Non Significant | M5: =IFERROR(ROUND(VLOOKUP(CONCATENATE(M2,$B$1),'quarter comp'!$A1:$H21,4,FALSE),2),"-") -> -8.11 | N5: =IFERROR(VLOOKUP(CONCATENATE(M2,$B$1),'quarter comp'!$A1:$H21,8,FALSE),"-") -> Non Significant
B6: ='SAB data'!B9 -> 2015-03-24 | C6: ='SAB data'!D9 -> 263 | D6: ='SAB data'!E9 -> 15.258 | E6: =CONCATENATE("(",TEXT('SAB data'!F9,"0.0")," ,", TEXT('SAB data'!G9,"0.0"),")") -> (13.5 ,17.2) | F6: ='SAB data'!H9 -> 126 | G6: ='SAB data'!I9 -> 9.548 | H6: =IFERROR(CONCATENATE("(",TEXT('SAB data'!J9,"0.0")," ,", TEXT('SAB data'!K9,"0.0"),")"),"-") -> (8.0 ,11.4) | J6: Year end compared to previous year end | K6: =ROUND(VLOOKUP(CONCATENATE(K2,$B$1),'year end comp'!$A$2:$Z$1086,4,FALSE),2) -> -2.89 | L6: =VLOOKUP(CONCATENATE(K2,$B$1),'year end comp'!$A$2:$Z$1086,8,FALSE) -> Non Significant | M6: =IF(IFERROR(ROUND(VLOOKUP(CONCATENATE(M2,$B$1),'year end comp'!$A$2:$Z$1086,4,FALSE),2),"-")=-100,"-",IFERROR(ROUND(VLOOKUP(CONCATENATE(M2,$B$1),'year end comp'!$A$2:$Z$1086,4,FALSE),2),"-")) -> 6.86 | N6: =IF(IFERROR(VLOOKUP(CONCATENATE(M2,$B$1),'year end comp'!$A$2:$Z$1086,8,FALSE),"-")=0,"-",IFERROR(VLOOKUP(CONCATENATE(M2,$B$1),'year end comp'!$A$2:$Z$1086,8,FALSE),"-")) -> Non Significant
B7: ='SAB data'!B10 -> 2015-06-24 | C7: ='SAB data'!D10 -> 284 | D7: ='SAB data'!E10 -> 17.094 | E7: =CONCATENATE("(",TEXT('SAB data'!F10,"0.0")," ,", TEXT('SAB data'!G10,"0.0"),")") -> (15.2 ,19.2) | F7: ='SAB data'!H10 -> 131 | G7: ='SAB data'!I10 -> 9.818 | H7: =IFERROR(CONCATENATE("(",TEXT('SAB data'!J10,"0.0")," ,", TEXT('SAB data'!K10,"0.0"),")"),"-") -> (8.2 ,11.7)
B8: ='SAB data'!B11 -> 2015-09-24 | C8: ='SAB data'!D11 -> 275 | D8: ='SAB data'!E11 -> 16.966 | E8: =CONCATENATE("(",TEXT('SAB data'!F11,"0.0")," ,", TEXT('SAB data'!G11,"0.0"),")") -> (15.0 ,19.1) | F8: ='SAB data'!H11 -> 113 | G8: ='SAB data'!I11 -> 8.377 | H8: =IFERROR(CONCATENATE("(",TEXT('SAB data'!J11,"0.0")," ,", TEXT('SAB data'!K11,"0.0"),")"),"-") -> (6.9 ,10.1)
B9: ='SAB data'!B12 -> 2015-12-24 | C9: ='SAB data'!D12 -> 303 | D9: ='SAB data'!E12 -> 18.451 | E9: =CONCATENATE("(",TEXT('SAB data'!F12,"0.0")," ,", TEXT('SAB data'!G12,"0.0"),")") -> (16.4 ,20.7) | F9: ='SAB data'!H12 -> 104 | G9: ='SAB data'!I12 -> 7.71 | H9: =IFERROR(CONCATENATE("(",TEXT('SAB data'!J12,"0.0")," ,", TEXT('SAB data'!K12,"0.0"),")"),"-") -> (6.3 ,9.3)
B10: ='SAB data'!B13 -> 2016-03-24 | C10: ='SAB data'!D13 -> 279 | D10: ='SAB data'!E13 -> 16.662 | E10: =CONCATENATE("(",TEXT('SAB data'!F13,"0.0")," ,", TEXT('SAB data'!G13,"0.0"),")") -> (14.8 ,18.7) | F10: ='SAB data'!H13 -> 139 | G10: ='SAB data'!I13 -> 10.401 | H10: =IFERROR(CONCATENATE("(",TEXT('SAB data'!J13,"0.0")," ,", TEXT('SAB data'!K13,"0.0"),")"),"-") -> (8.7 ,12.3)
B11: ='SAB data'!B14 -> 2016-06-24 | C11: ='SAB data'!D14 -> 260 | D11: ='SAB data'!E14 -> 16.198 | E11: =CONCATENATE("(",TEXT('SAB data'!F14,"0.0")," ,", TEXT('SAB data'!G14,"0.0"),")") -> (14.3 ,18.3) | F11: ='SAB data'!H14 -> 121 | G11: ='SAB data'!I14 -> 9.054 | H11: =IFERROR(CONCATENATE("(",TEXT('SAB data'!J14,"0.0")," ,", TEXT('SAB data'!K14,"0.0"),")"),"-") -> (7.5 ,10.8)
B12: ='SAB data'!B15 -> 2016-09-24 | C12: ='SAB data'!D15 -> 273 | D12: ='SAB data'!E15 -> 17.193 | E12: =CONCATENATE("(",TEXT('SAB data'!F15,"0.0")," ,", TEXT('SAB data'!G15,"0.0"),")") -> (15.2 ,19.4) | F12: ='SAB data'!H15 -> 127 | G12: ='SAB data'!I15 -> 9.4 | H12: =IFERROR(CONCATENATE("(",TEXT('SAB data'!J15,"0.0")," ,", TEXT('SAB data'!K15,"0.0"),")"),"-") -> (7.8 ,11.2)
B13: ='SAB data'!B16 -> 2016-12-24 | C13: ='SAB data'!D16 -> 265 | D13: ='SAB data'!E16 -> 16.649 | E13: =CONCATENATE("(",TEXT('SAB data'!F16,"0.0")," ,", TEXT('SAB data'!G16,"0.0"),")") -> (14.7 ,18.8) | F13: ='SAB data'!H16 -> 135 | G13: ='SAB data'!I16 -> 9.992 | H13: =IFERROR(CONCATENATE("(",TEXT('SAB data'!J16,"0.0")," ,", TEXT('SAB data'!K16,"0.0"),")"),"-") -> (8.4 ,11.8)
B14: ='SAB data'!B17 -> 2017-03-01 | C14: ='SAB data'!D17 -> 259 | D14: ='SAB data'!E17 -> 16.379 | E14: =CONCATENATE("(",TEXT('SAB data'!F17,"0.0")," ,", TEXT('SAB data'!G17,"0.0"),")") -> (14.4 ,18.5) | F14: ='SAB data'!H17 -> 142 | G14: ='SAB data'!I17 -> 10.685 | H14: =IFERROR(CONCATENATE("(",TEXT('SAB data'!J17,"0.0")," ,", TEXT('SAB data'!K17,"0.0"),")"),"-") -> (9.0 ,12.6)
B15: ='SAB data'!B18 -> 2017-06-01 | C15: ='SAB data'!D18 -> 248 | D15: ='SAB data'!E18 -> 15.994 | E15: =CONCATENATE("(",TEXT('SAB data'!F18,"0.0")," ,", TEXT('SAB data'!G18,"0.0"),")") -> (14.1 ,18.1) | F15: ='SAB data'!H18 -> 126 | G15: ='SAB data'!I18 -> 9.377 | H15: =IFERROR(CONCATENATE("(",TEXT('SAB data'!J18,"0.0")," ,", TEXT('SAB data'!K18,"0.0"),")"),"-") -> (7.8 ,11.2)
B16: ='SAB data'!B19 -> 2017-09-01 | C16: ='SAB data'!D19 -> 278 | D16: ='SAB data'!E19 -> 18.066 | E16: =CONCATENATE("(",TEXT('SAB data'!F19,"0.0")," ,", TEXT('SAB data'!G19,"0.0"),")") -> (16.0 ,20.3) | F16: ='SAB data'!H19 -> 127 | G16: ='SAB data'!I19 -> 9.348 | H16: =IFERROR(CONCATENATE("(",TEXT('SAB data'!J19,"0.0")," ,", TEXT('SAB data'!K19,"0.0"),")"),"-") -> (7.8 ,11.1)
B17: ='SAB data'!B20 -> 2017-12-01 | C17: ='SAB data'!D20 -> 262 | D17: ='SAB data'!E20 -> 16.635 | E17: =CONCATENATE("(",TEXT('SAB data'!F20,"0.0")," ,", TEXT('SAB data'!G20,"0.0"),")") -> (14.7 ,18.8) | F17: ='SAB data'!H20 -> 132 | G17: ='SAB data'!I20 -> 9.716 | H17: =IFERROR(CONCATENATE("(",TEXT('SAB data'!J20,"0.0")," ,", TEXT('SAB data'!K20,"0.0"),")"),"-") -> (8.1 ,11.5)
B18: ='SAB data'!B21 -> 2018-03-01 | C18: ='SAB data'!D21 -> 296 | D18: ='SAB data'!E21 -> 18.672 | E18: =CONCATENATE("(",TEXT('SAB data'!F21,"0.0")," ,", TEXT('SAB data'!G21,"0.0"),")") -> (16.6 ,20.9) | F18: ='SAB data'!H21 -> 135 | G18: ='SAB data'!I21 -> 10.1496 | H18: =IFERROR(CONCATENATE("(",TEXT('SAB data'!J21,"0.0")," ,", TEXT('SAB data'!K21,"0.0"),")"),"-") -> (8.5 ,12.0)
B19: ='SAB data'!B22 -> 2018-06-01 | C19: ='SAB data'!D22 -> 264 | D19: ='SAB data'!E22 -> 17.308 | E19: =CONCATENATE("(",TEXT('SAB data'!F22,"0.0")," ,", TEXT('SAB data'!G22,"0.0"),")") -> (15.3 ,19.5) | F19: ='SAB data'!H22 -> 123 | G19: ='SAB data'!I22 -> 9.1458 | H19: =IFERROR(CONCATENATE("(",TEXT('SAB data'!J22,"0.0")," ,", TEXT('SAB data'!K22,"0.0"),")"),"-") -> (7.6 ,10.9)
B20: ='SAB data'!B23 -> 2018-09-01 | C20: ='SAB data'!D23 -> 253 | D20: ='SAB data'!E23 -> 16.737 | E20: =CONCATENATE("(",TEXT('SAB data'!F23,"0.0")," ,", TEXT('SAB data'!G23,"0.0"),")") -> (14.7 ,18.9) | F20: ='SAB data'!H23 -> 132 | G20: ='SAB data'!I23 -> 9.708 | H20: =IFERROR(CONCATENATE("(",TEXT('SAB data'!J23,"0.0")," ,", TEXT('SAB data'!K23,"0.0"),")"),"-") -> (8.1 ,11.5)
B21: ='SAB data'!B24 -> 2018-12-01 | C21: ='SAB data'!D24 -> 269 | D21: ='SAB data'!E24 -> 17.672 | E21: =CONCATENATE("(",TEXT('SAB data'!F24,"0.0")," ,", TEXT('SAB data'!G24,"0.0"),")") -> (15.6 ,19.9) | F21: ='SAB data'!H24 -> 113 | G21: ='SAB data'!I24 -> 8.311 | H21: =IFERROR(CONCATENATE("(",TEXT('SAB data'!J24,"0.0")," ,", TEXT('SAB data'!K24,"0.0"),")"),"-") -> (6.8 ,10.0)
B22: ='SAB data'!B25 -> 2019-03-01 | C22: ='SAB data'!D25 -> 240 | D22: ='SAB data'!E25 -> 15.6 | E22: =CONCATENATE("(",TEXT('SAB data'!F25,"0.0")," ,", TEXT('SAB data'!G25,"0.0"),")") -> (13.7 ,17.7) | F22: ='SAB data'!H25 -> 144 | G22: ='SAB data'!I25 -> 10.786 | H22: =IFERROR(CONCATENATE("(",TEXT('SAB data'!J25,"0.0")," ,", TEXT('SAB data'!K25,"0.0"),")"),"-") -> (9.1 ,12.7)
B23: ='SAB data'!B26 -> 2019-06-01 | C23: ='SAB data'!D26 -> 251 | D23: ='SAB data'!E26 -> 16.664 | E23: =CONCATENATE("(",TEXT('SAB data'!F26,"0.0")," ,", TEXT('SAB data'!G26,"0.0"),")") -> (14.7 ,18.9) | F23: ='SAB data'!H26 -> 133 | G23: ='SAB data'!I26 -> 9.853 | H23: =IFERROR(CONCATENATE("(",TEXT('SAB data'!J26,"0.0")," ,", TEXT('SAB data'!K26,"0.0"),")"),"-") -> (8.2 ,11.7)
B24: ='SAB data'!B27 -> 2019-09-01 | C24: ='SAB data'!D27 -> 264 | D24: ='SAB data'!E27 -> 17.519 | E24: =CONCATENATE("(",TEXT('SAB data'!F27,"0.0")," ,", TEXT('SAB data'!G27,"0.0"),")") -> (15.5 ,19.8) | F24: ='SAB data'!H27 -> 102 | G24: ='SAB data'!I27 -> 7.474 | H24: =IFERROR(CONCATENATE("(",TEXT('SAB data'!J27,"0.0")," ,", TEXT('SAB data'!K27,"0.0"),")"),"-") -> (6.1 ,9.1)
B25: ='SAB data'!B28 -> 2019-12-01 | C25: ='SAB data'!D28 -> 233 | D25: ='SAB data'!E28 -> 15.214 | E25: =CONCATENATE("(",TEXT('SAB data'!F28,"0.0")," ,", TEXT('SAB data'!G28,"0.0"),")") -> (13.3 ,17.3) | F25: ='SAB data'!H28 -> 132 | G25: ='SAB data'!I28 -> 9.672 | H25: =IFERROR(CONCATENATE("(",TEXT('SAB data'!J28,"0.0")," ,", TEXT('SAB data'!K28,"0.0"),")"),"-") -> (8.1 ,11.5)
B26: ='SAB data'!B29 -> 2020-03-01 | C26: ='SAB data'!D29 -> 241 | D26: ='SAB data'!E29 -> 16.328 | E26: =CONCATENATE("(",TEXT('SAB data'!F29,"0.0")," ,", TEXT('SAB data'!G29,"0.0"),")") -> (14.3 ,18.5) | F26: ='SAB data'!H29 -> 149 | G26: ='SAB data'!I29 -> 11.071 | H26: =IFERROR(CONCATENATE("(",TEXT('SAB data'!J29,"0.0")," ,", TEXT('SAB data'!K29,"0.0"),")"),"-") -> (9.4 ,13.0)
B27: ='SAB data'!B30 -> 2020-06-01 | C27: ='SAB data'!D30 -> 219 | D27: ='SAB data'!E30 -> 20.26 | E27: =CONCATENATE("(",TEXT('SAB data'!F30,"0.0")," ,", TEXT('SAB data'!G30,"0.0"),")") -> (17.7 ,23.1) | F27: ='SAB data'!H30 -> 132 | G27: ='SAB data'!I30 -> 9.808 | H27: =IFERROR(CONCATENATE("(",TEXT('SAB data'!J30,"0.0")," ,", TEXT('SAB data'!K30,"0.0"),")"),"-") -> (8.2 ,11.6)
B28: ='SAB data'!B31 -> 2020-09-01 | C28: ='SAB data'!D31 -> 224 | D28: ='SAB data'!E31 -> 17.1781 | E28: =CONCATENATE("(",TEXT('SAB data'!F31,"0.0")," ,", TEXT('SAB data'!G31,"0.0"),")") -> (15.0 ,19.6) | F28: ='SAB data'!H31 -> 149 | G28: ='SAB data'!I31 -> 10.9505 | H28: =IFERROR(CONCATENATE("(",TEXT('SAB data'!J31,"0.0")," ,", TEXT('SAB data'!K31,"0.0"),")"),"-") -> (9.3 ,12.9)
B29: ='SAB data'!B32 -> 2020-12-01 | C29: ='SAB data'!D32 -> 256 | D29: ='SAB data'!E32 -> 18.8541 | E29: =CONCATENATE("(",TEXT('SAB data'!F32,"0.0")," ,", TEXT('SAB data'!G32,"0.0"),")") -> (16.6 ,21.3) | F29: ='SAB data'!H32 -> 131 | G29: ='SAB data'!I32 -> 9.6276 | H29: =IFERROR(CONCATENATE("(",TEXT('SAB data'!J32,"0.0")," ,", TEXT('SAB data'!K32,"0.0"),")"),"-") -> (8.0 ,11.4)
B30: ='SAB data'!B33 -> 2021-03-31 | C30: ='SAB data'!D33 -> 248 | D30: ='SAB data'!E33 -> 18.3453 | E30: =CONCATENATE("(",TEXT('SAB data'!F33,"0.0")," ,", TEXT('SAB data'!G33,"0.0"),")") -> (16.1 ,20.8) | F30: ='SAB data'!H33 -> 140 | G30: ='SAB data'!I33 -> 10.4787 | H30: =IFERROR(CONCATENATE("(",TEXT('SAB data'!J33,"0.0")," ,", TEXT('SAB data'!K33,"0.0"),")"),"-") -> (8.8 ,12.4)
B31: ='SAB data'!B34 -> 2021-06-30 | C31: ='SAB data'!D34 -> 260 | D31: ='SAB data'!E34 -> 18.6491 | E31: =CONCATENATE("(",TEXT('SAB data'!F34,"0.0")," ,", TEXT('SAB data'!G34,"0.0"),")") -> (16.5 ,21.1) | F31: ='SAB data'!H34 -> 148 | G31: ='SAB data'!I34 -> 10.9558 | H31: =IFERROR(CONCATENATE("(",TEXT('SAB data'!J34,"0.0")," ,", TEXT('SAB data'!K34,"0.0"),")"),"-") -> (9.3 ,12.9)
B32: ='SAB data'!B35 -> 2021-09-30 | C32: ='SAB data'!D35 -> 268 | D32: ='SAB data'!E35 -> 18.4023 | E32: =CONCATENATE("(",TEXT('SAB data'!F35,"0.0")," ,", TEXT('SAB data'!G35,"0.0"),")") -> (16.3 ,20.7) | F32: ='SAB data'!H35 -> 132 | G32: ='SAB data'!I35 -> 9.6651 | H32: =IFERROR(CONCATENATE("(",TEXT('SAB data'!J35,"0.0")," ,", TEXT('SAB data'!K35,"0.0"),")"),"-") -> (8.1 ,11.5)
B33: ='SAB data'!B36 -> 2021-12-31 | C33: ='SAB data'!D36 -> 259 | D33: ='SAB data'!E36 -> 17.3383 | E33: =CONCATENATE("(",TEXT('SAB data'!F36,"0.0")," ,", TEXT('SAB data'!G36,"0.0"),")") -> (15.3 ,19.6) | F33: ='SAB data'!H36 -> 136 | G33: ='SAB data'!I36 -> 9.958 | H33: =IFERROR(CONCATENATE("(",TEXT('SAB data'!J36,"0.0")," ,", TEXT('SAB data'!K36,"0.0"),")"),"-") -> (8.4 ,11.8)
B34: ='SAB data'!B37 -> 2022-03-31 | C34: ='SAB data'!D37 -> 241 | D34: ='SAB data'!E37 -> 16.2722 | E34: =CONCATENATE("(",TEXT('SAB data'!F37,"0.0")," ,", TEXT('SAB data'!G37,"0.0"),")") -> (14.3 ,18.5) | F34: ='SAB data'!H37 -> 130 | G34: ='SAB data'!I37 -> 9.6779 | H34: =IFERROR(CONCATENATE("(",TEXT('SAB data'!J37,"0.0")," ,", TEXT('SAB data'!K37,"0.0"),")"),"-") -> (8.1 ,11.5)
B35: ='SAB data'!B38 -> 2022-06-30 | C35: ='SAB data'!D38 -> 262 | D35: ='SAB data'!E38 -> 17.2785 | E35: =CONCATENATE("(",TEXT('SAB data'!F38,"0.0")," ,", TEXT('SAB data'!G38,"0.0"),")") -> (15.2 ,19.5) | F35: ='SAB data'!H38 -> 139 | G35: ='SAB data'!I38 -> 10.2342 | H35: =IFERROR(CONCATENATE("(",TEXT('SAB data'!J38,"0.0")," ,", TEXT('SAB data'!K38,"0.0"),")"),"-") -> (8.6 ,12.1)
B36: ='SAB data'!B39 -> 2022-09-30 | C36: ='SAB data'!D39 -> 264 | D36: ='SAB data'!E39 -> 17.0792 | E36: =CONCATENATE("(",TEXT('SAB data'!F39,"0.0")," ,", TEXT('SAB data'!G39,"0.0"),")") -> (15.1 ,19.3) | F36: ='SAB data'!H39 -> 121 | G36: ='SAB data'!I39 -> 8.8121 | H36: =IFERROR(CONCATENATE("(",TEXT('SAB data'!J39,"0.0")," ,", TEXT('SAB data'!K39,"0.0"),")"),"-") -> (7.3 ,10.5)
B37: ='SAB data'!B40 -> 2022-12-31 | C37: ='SAB data'!D40 -> 302 | D37: ='SAB data'!E40 -> 19.2473 | E37: =CONCATENATE("(",TEXT('SAB data'!F40,"0.0")," ,", TEXT('SAB data'!G40,"0.0"),")") -> (17.1 ,21.5) | F37: ='SAB data'!H40 -> 131 | G37: ='SAB data'!I40 -> 9.5403 | H37: =IFERROR(CONCATENATE("(",TEXT('SAB data'!J40,"0.0")," ,", TEXT('SAB data'!K40,"0.0"),")"),"-") -> (8.0 ,11.3)
B38: ='SAB data'!B41 -> 2023-03-31 | C38: ='SAB data'!D41 -> 300 | D38: ='SAB data'!E41 -> 19.1215 | E38: =CONCATENATE("(",TEXT('SAB data'!F41,"0.0")," ,", TEXT('SAB data'!G41,"0.0"),")") -> (17.0 ,21.4) | F38: ='SAB data'!H41 -> 133 | G38: ='SAB data'!I41 -> 9.9012 | H38: =IFERROR(CONCATENATE("(",TEXT('SAB data'!J41,"0.0")," ,", TEXT('SAB data'!K41,"0.0"),")"),"-") -> (8.3 ,11.7)
B39: ='SAB data'!B42 -> 2023-06-30 | C39: ='SAB data'!D42 -> 283 | D39: ='SAB data'!E42 -> 18.3212 | E39: =CONCATENATE("(",TEXT('SAB data'!F42,"0.0")," ,", TEXT('SAB data'!G42,"0.0"),")") -> (16.2 ,20.6) | F39: ='SAB data'!H42 -> 140 | G39: ='SAB data'!I42 -> 10.3078 | H39: =IFERROR(CONCATENATE("(",TEXT('SAB data'!J42,"0.0")," ,", TEXT('SAB data'!K42,"0.0"),")"),"-") -> (8.7 ,12.2)
B40: ='SAB data'!B43 -> 2023-09-30 | C40: ='SAB data'!D43 -> 278 | D40: ='SAB data'!E43 -> 18.0782 | E40: =CONCATENATE("(",TEXT('SAB data'!F43,"0.0")," ,", TEXT('SAB data'!G43,"0.0"),")") -> (16.0 ,20.3) | F40: ='SAB data'!H43 -> 140 | G40: ='SAB data'!I43 -> 10.1958 | H40: =IFERROR(CONCATENATE("(",TEXT('SAB data'!J43,"0.0")," ,", TEXT('SAB data'!K43,"0.0"),")"),"-") -> (8.6 ,12.0)
B41: ='SAB data'!B44 -> 2023-12-31 | C41: ='SAB data'!D44 -> 301 | D41: ='SAB data'!E44 -> 19.2189 | E41: =CONCATENATE("(",TEXT('SAB data'!F44,"0.0")," ,", TEXT('SAB data'!G44,"0.0"),")") -> (17.1 ,21.5) | F41: ='SAB data'!H44 -> 137 | G41: ='SAB data'!I44 -> 9.9773 | H41: =IFERROR(CONCATENATE("(",TEXT('SAB data'!J44,"0.0")," ,", TEXT('SAB data'!K44,"0.0"),")"),"-") -> (8.4 ,11.8)
B42: ='SAB data'!B45 -> 2024-03-31 | C42: ='SAB data'!D45 -> 271 | D42: ='SAB data'!E45 -> 17.0364 | E42: =CONCATENATE("(",TEXT('SAB data'!F45,"0.0")," ,", TEXT('SAB data'!G45,"0.0"),")") -> (15.1 ,19.2) | F42: ='SAB data'!H45 -> 148 | G42: ='SAB data'!I45 -> 10.9267 | H42: =IFERROR(CONCATENATE("(",TEXT('SAB data'!J45,"0.0")," ,", TEXT('SAB data'!K45,"0.0"),")"),"-") -> (9.2 ,12.8)
B43: ='SAB data'!B46 -> 2024-06-30 | C43: ='SAB data'!D46 -> 270 | D43: ='SAB data'!E46 -> 17.3402 | E43: =CONCATENATE("(",TEXT('SAB data'!F46,"0.0")," ,", TEXT('SAB data'!G46,"0.0"),")") -> (15.3 ,19.5) | F43: ='SAB data'!H46 -> 136 | G43: ='SAB data'!I46 -> 10.0407 | H43: =IFERROR(CONCATENATE("(",TEXT('SAB data'!J46,"0.0")," ,", TEXT('SAB data'!K46,"0.0"),")"),"-") -> (8.4 ,11.9)

Sheet SSI Data and Charts
B1: Scotland | M1: =CONCATENATE("% SSI for ",B1) -> % SSI for Scotland
D3: Casesarean Section | H3: Hip Arthroplasty | N3: SSICSEC | P3: SSIHIP
B4: Quarter Ending | C4: SSI to day 10 | D4: Procedures | E4: SSI Incidence (%) | F4: 95% CI | G4: SSI inpatient & readmission to day 30 | H4: Procedures | I4: SSI Incidence (%) | J4: 95% CI | N4: % change | P4: % change
B5: ='SSI data'!B8 -> 2014-03-24 | C5: ='SSI data'!D8 -> 61 | D5: ='SSI data'!L8 -> 3998 | E5: ='SSI data'!E8 -> 1.526 | F5: =IFERROR(CONCATENATE("(",TEXT('SSI data'!F8,"0.0")," ,", TEXT('SSI data'!G8,"0.0"),")"),"-") -> (1.2 ,2.0) | G5: ='SSI data'!H8 -> 16 | H5: ='SSI data'!M8 -> 2106 | I5: ='SSI data'!I8 -> 0.76 | J5: =IFERROR(CONCATENATE("(",TEXT('SSI data'!J8,"0.0"),", ", TEXT('SSI data'!K8,"0.0"),")"),"-") -> (0.5, 1.2) | M5: Year end compared to previous year end | N5: =IFERROR(ROUND(VLOOKUP(CONCATENATE(N3,$B$1),'year end comp'!$A$2:$Z$1086,4,FALSE),2),"-") -> - | O5: =IF(IFERROR(VLOOKUP(CONCATENATE(N3,$B$1),'year end comp'!$A$2:$Z$1086,8,FALSE),"-")=0,"-",IFERROR(VLOOKUP(CONCATENATE(N3,$B$1),'year end comp'!$A$2:$Z$1086,8,FALSE),"-")) -> - | P5: =IFERROR(ROUND(VLOOKUP(CONCATENATE(P3,$B$1),'year end comp'!$A$2:$Z$1086,4,FALSE),2),"-") -> - | Q5: =IF(IFERROR(VLOOKUP(CONCATENATE(P3,$B$1),'year end comp'!$A$2:$Z$1086,8,FALSE),"-")=0,"-",IFERROR(VLOOKUP(CONCATENATE(P3,$B$1),'year end comp'!$A$2:$Z$1086,8,FALSE),"-")) -> -
B6: ='SSI data'!B9 -> 2014-06-27 | C6: ='SSI data'!D9 -> 58 | D6: ='SSI data'!L9 -> 4103 | E6: ='SSI data'!E9 -> 1.414 | F6: =IFERROR(CONCATENATE("(",TEXT('SSI data'!F9,"0.0")," ,", TEXT('SSI data'!G9,"0.0"),")"),"-") -> (1.1 ,1.8) | G6: ='SSI data'!H9 -> 13 | H6: ='SSI data'!M9 -> 2098 | I6: ='SSI data'!I9 -> 0.62 | J6: =IFERROR(CONCATENATE("(",TEXT('SSI data'!J9,"0.0")," ,", TEXT('SSI data'!K9,"0.0"),")"),"-") -> (0.4 ,1.1)
B7: ='SSI data'!B10 -> 2014-09-30 | C7: ='SSI data'!D10 -> 58 | D7: ='SSI data'!L10 -> 4563 | E7: ='SSI data'!E10 -> 1.271 | F7: =IFERROR(CONCATENATE("(",TEXT('SSI data'!F10,"0.0")," ,", TEXT('SSI data'!G10,"0.0"),")"),"-") -> (1.0 ,1.6) | G7: ='SSI data'!H10 -> 16 | H7: ='SSI data'!M10 -> 2125 | I7: ='SSI data'!I10 -> 0.753 | J7: =IFERROR(CONCATENATE("(",TEXT('SSI data'!J10,"0.0")," ,", TEXT('SSI data'!K10,"0.0"),")"),"-") -> (0.5 ,1.2)
B8: ='SSI data'!B11 -> 2014-12-19 | C8: ='SSI data'!D11 -> 61 | D8: ='SSI data'!L11 -> 4261 | E8: ='SSI data'!E11 -> 1.432 | F8: =IFERROR(CONCATENATE("(",TEXT('SSI data'!F11,"0.0")," ,", TEXT('SSI data'!G11,"0.0"),")"),"-") -> (1.1 ,1.8) | G8: ='SSI data'!H11 -> 12 | H8: ='SSI data'!M11 -> 1974 | I8: ='SSI data'!I11 -> 0.608 | J8: =IFERROR(CONCATENATE("(",TEXT('SSI data'!J11,"0.0")," ,", TEXT('SSI data'!K11,"0.0"),")"),"-") -> (0.3 ,1.1)
B9: ='SSI data'!B12 -> 2015-03-24 | C9: ='SSI data'!D12 -> 47 | D9: ='SSI data'!L12 -> 3966 | E9: ='SSI data'!E12 -> 1.185 | F9: =IFERROR(CONCATENATE("(",TEXT('SSI data'!F12,"0.0")," ,", TEXT('SSI data'!G12,"0.0"),")"),"-") -> (0.9 ,1.6) | G9: ='SSI data'!H12 -> 18 | H9: ='SSI data'!M12 -> 1959 | I9: ='SSI data'!I12 -> 0.919 | J9: =IFERROR(CONCATENATE("(",TEXT('SSI data'!J12,"0.0")," ,", TEXT('SSI data'!K12,"0.0"),")"),"-") -> (0.6 ,1.4)
B10: ='SSI data'!B13 -> 2015-06-24 | C10: ='SSI data'!D13 -> 56 | D10: ='SSI data'!L13 -> 4358 | E10: ='SSI data'!E13 -> 1.285 | F10: =IFERROR(CONCATENATE("(",TEXT('SSI data'!F13,"0.0")," ,", TEXT('SSI data'!G13,"0.0"),")"),"-") -> (1.0 ,1.7) | G10: ='SSI data'!H13 -> 18 | H10: ='SSI data'!M13 -> 2159 | I10: ='SSI data'!I13 -> 0.834 | J10: =IFERROR(CONCATENATE("(",TEXT('SSI data'!J13,"0.0")," ,", TEXT('SSI data'!K13,"0.0"),")"),"-") -> (0.5 ,1.3)
B11: ='SSI data'!B14 -> 2015-09-24 | C11: ='SSI data'!D14 -> 56 | D11: ='SSI data'!L14 -> 4511 | E11: ='SSI data'!E14 -> 1.241 | F11: =IFERROR(CONCATENATE("(",TEXT('SSI data'!F14,"0.0")," ,", TEXT('SSI data'!G14,"0.0"),")"),"-") -> (1.0 ,1.6) | G11: ='SSI data'!H14 -> 10 | H11: ='SSI data'!M14 -> 2135 | I11: ='SSI data'!I14 -> 0.468 | J11: =IFERROR(CONCATENATE("(",TEXT('SSI data'!J14,"0.0")," ,", TEXT('SSI data'!K14,"0.0"),")"),"-") -> (0.3 ,0.9)
B12: ='SSI data'!B15 -> 2015-12-24 | C12: ='SSI data'!D15 -> 60 | D12: ='SSI data'!L15 -> 4300 | E12: ='SSI data'!E15 -> 1.395 | F12: =IFERROR(CONCATENATE("(",TEXT('SSI data'!F15,"0.0")," ,", TEXT('SSI data'!G15,"0.0"),")"),"-") -> (1.1 ,1.8) | G12: ='SSI data'!H15 -> 15 | H12: ='SSI data'!M15 -> 2191 | I12: ='SSI data'!I15 -> 0.685 | J12: =IFERROR(CONCATENATE("(",TEXT('SSI data'!J15,"0.0")," ,", TEXT('SSI data'!K15,"0.0"),")"),"-") -> (0.4 ,1.1)
B13: ='SSI data'!B16 -> 2016-03-24 | C13: ='SSI data'!D16 -> 58 | D13: ='SSI data'!L16 -> 4023 | E13: ='SSI data'!E16 -> 1.442 | F13: =IFERROR(CONCATENATE("(",TEXT('SSI data'!F16,"0.0")," ,", TEXT('SSI data'!G16,"0.0"),")"),"-") -> (1.1 ,1.9) | G13: ='SSI data'!H16 -> 7 | H13: ='SSI data'!M16 -> 2173 | I13: ='SSI data'!I16 -> 0.322 | J13: =IFERROR(CONCATENATE("(",TEXT('SSI data'!J16,"0.0")," ,", TEXT('SSI data'!K16,"0.0"),")"),"-") -> (0.2 ,0.7)
B14: ='SSI data'!B17 -> 2016-06-24 | C14: ='SSI data'!D17 -> 78 | D14: ='SSI data'!L17 -> 4448 | E14: ='SSI data'!E17 -> 1.754 | F14: =IFERROR(CONCATENATE("(",TEXT('SSI data'!F17,"0.0")," ,", TEXT('SSI data'!G17,"0.0"),")"),"-") -> (1.4 ,2.2) | G14: ='SSI data'!H17 -> 17 | H14: ='SSI data'!M17 -> 2318 | I14: ='SSI data'!I17 -> 0.733 | J14: =IFERROR(CONCATENATE("(",TEXT('SSI data'!J17,"0.0")," ,", TEXT('SSI data'!K17,"0.0"),")"),"-") -> (0.5 ,1.2)
B15: ='SSI data'!B18 -> 2016-09-24 | C15: ='SSI data'!D18 -> 71 | D15: ='SSI data'!L18 -> 4446 | E15: ='SSI data'!E18 -> 1.597 | F15: =IFERROR(CONCATENATE("(",TEXT('SSI data'!F18,"0.0")," ,", TEXT('SSI data'!G18,"0.0"),")"),"-") -> (1.3 ,2.0) | G15: ='SSI data'!H18 -> 14 | H15: ='SSI data'!M18 -> 2153 | I15: ='SSI data'!I18 -> 0.65 | J15: =IFERROR(CONCATENATE("(",TEXT('SSI data'!J18,"0.0")," ,", TEXT('SSI data'!K18,"0.0"),")"),"-") -> (0.4 ,1.1)
B16: ='SSI data'!B19 -> 2016-12-24 | C16: ='SSI data'!D19 -> 51 | D16: ='SSI data'!L19 -> 4258 | E16: ='SSI data'!E19 -> 1.198 | F16: =IFERROR(CONCATENATE("(",TEXT('SSI data'!F19,"0.0")," ,", TEXT('SSI data'!G19,"0.0"),")"),"-") -> (0.9 ,1.6) | G16: ='SSI data'!H19 -> 17 | H16: ='SSI data'!M19 -> 2226 | I16: ='SSI data'!I19 -> 0.764 | J16: =IFERROR(CONCATENATE("(",TEXT('SSI data'!J19,"0.0")," ,", TEXT('SSI data'!K19,"0.0"),")"),"-") -> (0.5 ,1.2)
B17: ='SSI data'!B20 -> 2017-03-01 | C17: ='SSI data'!D20 -> 58 | D17: ='SSI data'!L20 -> 4047 | E17: ='SSI data'!E20 -> 1.433 | F17: =IFERROR(CONCATENATE("(",TEXT('SSI data'!F20,"0.0")," ,", TEXT('SSI data'!G20,"0.0"),")"),"-") -> (1.1 ,1.8) | G17: ='SSI data'!H20 -> 12 | H17: ='SSI data'!M20 -> 2164 | I17: ='SSI data'!I20 -> 0.555 | J17: =IFERROR(CONCATENATE("(",TEXT('SSI data'!J20,"0.0")," ,", TEXT('SSI data'!K20,"0.0"),")"),"-") -> (0.3 ,1.0)
B18: ='SSI data'!B21 -> 2017-06-01 | C18: ='SSI data'!D21 -> 51 | D18: ='SSI data'!L21 -> 4115 | E18: ='SSI data'!E21 -> 1.239 | F18: =IFERROR(CONCATENATE("(",TEXT('SSI data'!F21,"0.0")," ,", TEXT('SSI data'!G21,"0.0"),")"),"-") -> (0.9 ,1.6) | G18: ='SSI data'!H21 -> 19 | H18: ='SSI data'!M21 -> 2301 | I18: ='SSI data'!I21 -> 0.826 | J18: =IFERROR(CONCATENATE("(",TEXT('SSI data'!J21,"0.0")," ,", TEXT('SSI data'!K21,"0.0"),")"),"-") -> (0.5 ,1.3)
B19: ='SSI data'!B22 -> 2017-09-01 | C19: ='SSI data'!D22 -> 58 | D19: ='SSI data'!L22 -> 4514 | E19: ='SSI data'!E22 -> 1.285 | F19: =IFERROR(CONCATENATE("(",TEXT('SSI data'!F22,"0.0")," ,", TEXT('SSI data'!G22,"0.0"),")"),"-") -> (1.0 ,1.7) | G19: ='SSI data'!H22 -> 9 | H19: ='SSI data'!M22 -> 2077 | I19: ='SSI data'!I22 -> 0.433 | J19: =IFERROR(CONCATENATE("(",TEXT('SSI data'!J22,"0.0")," ,", TEXT('SSI data'!K22,"0.0"),")"),"-") -> (0.2 ,0.8)
B20: ='SSI data'!B23 -> 2017-12-01 | C20: ='SSI data'!D23 -> 66 | D20: ='SSI data'!L23 -> 4224 | E20: ='SSI data'!E23 -> 1.563 | F20: =IFERROR(CONCATENATE("(",TEXT('SSI data'!F23,"0.0")," ,", TEXT('SSI data'!G23,"0.0"),")"),"-") -> (1.2 ,2.0) | G20: ='SSI data'!H23 -> 16 | H20: ='SSI data'!M23 -> 2071 | I20: ='SSI data'!I23 -> 0.773 | J20: =IFERROR(CONCATENATE("(",TEXT('SSI data'!J23,"0.0")," ,", TEXT('SSI data'!K23,"0.0"),")"),"-") -> (0.5 ,1.3)
B21: ='SSI data'!B24 -> 2018-03-01 | C21: ='SSI data'!D24 -> 64 | D21: ='SSI data'!L24 -> 3975 | E21: ='SSI data'!E24 -> 1.61 | F21: =IFERROR(CONCATENATE("(",TEXT('SSI data'!F24,"0.0")," ,", TEXT('SSI data'!G24,"0.0"),")"),"-") -> (1.3 ,2.1) | G21: ='SSI data'!H24 -> 17 | H21: ='SSI data'!M24 -> 2008 | I21: ='SSI data'!I24 -> 0.847 | J21: =IFERROR(CONCATENATE("(",TEXT('SSI data'!J24,"0.0")," ,", TEXT('SSI data'!K24,"0.0"),")"),"-") -> (0.5 ,1.4)
B22: ='SSI data'!B25 -> 2018-06-01 | C22: ='SSI data'!D25 -> 61 | D22: ='SSI data'!L25 -> 4191 | E22: ='SSI data'!E25 -> 1.455 | F22: =IFERROR(CONCATENATE("(",TEXT('SSI data'!F25,"0.0")," ,", TEXT('SSI data'!G25,"0.0"),")"),"-") -> (1.1 ,1.9) | G22: ='SSI data'!H25 -> 18 | H22: ='SSI data'!M25 -> 2270 | I22: ='SSI data'!I25 -> 0.793 | J22: =IFERROR(CONCATENATE("(",TEXT('SSI data'!J25,"0.0")," ,", TEXT('SSI data'!K25,"0.0"),")"),"-") -> (0.5 ,1.3)
B23: ='SSI data'!B26 -> 2018-09-01 | C23: ='SSI data'!D26 -> 66 | D23: ='SSI data'!L26 -> 4293 | E23: ='SSI data'!E26 -> 1.537 | F23: =IFERROR(CONCATENATE("(",TEXT('SSI data'!F26,"0.0")," ,", TEXT('SSI data'!G26,"0.0"),")"),"-") -> (1.2 ,2.0) | G23: ='SSI data'!H26 -> 13 | H23: ='SSI data'!M26 -> 2155 | I23: ='SSI data'!I26 -> 0.603 | J23: =IFERROR(CONCATENATE("(",TEXT('SSI data'!J26,"0.0")," ,", TEXT('SSI data'!K26,"0.0"),")"),"-") -> (0.4 ,1.0)
B24: ='SSI data'!B27 -> 2018-12-01 | C24: ='SSI data'!D27 -> 59 | D24: ='SSI data'!L27 -> 4346 | E24: ='SSI data'!E27 -> 1.358 | F24: =IFERROR(CONCATENATE("(",TEXT('SSI data'!F27,"0.0")," ,", TEXT('SSI data'!G27,"0.0"),")"),"-") -> (1.1 ,1.7) | G24: ='SSI data'!H27 -> 16 | H24: ='SSI data'!M27 -> 2276 | I24: ='SSI data'!I27 -> 0.703 | J24: =IFERROR(CONCATENATE("(",TEXT('SSI data'!J27,"0.0")," ,", TEXT('SSI data'!K27,"0.0"),")"),"-") -> (0.4 ,1.1)
B25: ='SSI data'!B28 -> 2019-03-01 | C25: ='SSI data'!D28 -> 64 | D25: ='SSI data'!L28 -> 4051 | E25: ='SSI data'!E28 -> 1.58 | F25: =IFERROR(CONCATENATE("(",TEXT('SSI data'!F28,"0.0")," ,", TEXT('SSI data'!G28,"0.0"),")"),"-") -> (1.2 ,2.0) | G25: ='SSI data'!H28 -> 8 | H25: ='SSI data'!M28 -> 2146 | I25: ='SSI data'!I28 -> 0.373 | J25: =IFERROR(CONCATENATE("(",TEXT('SSI data'!J28,"0.0")," ,", TEXT('SSI data'!K28,"0.0"),")"),"-") -> (0.2 ,0.7)
B26: ='SSI data'!B29 -> 2019-06-01 | C26: ='SSI data'!D29 -> 43 | D26: ='SSI data'!L29 -> 4118 | E26: ='SSI data'!E29 -> 1.044 | F26: =IFERROR(CONCATENATE("(",TEXT('SSI data'!F29,"0.0")," ,", TEXT('SSI data'!G29,"0.0"),")"),"-") -> (0.8 ,1.4) | G26: ='SSI data'!H29 -> 10 | H26: ='SSI data'!M29 -> 2257 | I26: ='SSI data'!I29 -> 0.443 | J26: =IFERROR(CONCATENATE("(",TEXT('SSI data'!J29,"0.0")," ,", TEXT('SSI data'!K29,"0.0"),")"),"-") -> (0.2 ,0.8)
B27: ='SSI data'!B30 -> 2019-09-01 | C27: ='SSI data'!D30 -> 51 | D27: ='SSI data'!L30 -> 4408 | E27: ='SSI data'!E30 -> 1.157 | F27: =IFERROR(CONCATENATE("(",TEXT('SSI data'!F30,"0.0")," ,", TEXT('SSI data'!G30,"0.0"),")"),"-") -> (0.9 ,1.5) | G27: ='SSI data'!H30 -> 17 | H27: ='SSI data'!M30 -> 2121 | I27: ='SSI data'!I30 -> 0.802 | J27: =IFERROR(CONCATENATE("(",TEXT('SSI data'!J30,"0.0")," ,", TEXT('SSI data'!K30,"0.0"),")"),"-") -> (0.5 ,1.3)
B28: ='SSI data'!B31 -> 2019-12-01 | C28: ='SSI data'!D31 -> 35 | D28: ='SSI data'!L31 -> 4112 | E28: ='SSI data'!E31 -> 0.851 | F28: =IFERROR(CONCATENATE("(",TEXT('SSI data'!F31,"0.0")," ,", TEXT('SSI data'!G31,"0.0"),")"),"-") -> (0.6 ,1.2) | G28: ='SSI data'!H31 -> 17 | H28: ='SSI data'!M31 -> 2145 | I28: ='SSI data'!I31 -> 0.793 | J28: =IFERROR(CONCATENATE("(",TEXT('SSI data'!J31,"0.0")," ,", TEXT('SSI data'!K31,"0.0"),")"),"-") -> (0.5 ,1.3)
B29: ='SSI data'!B32 -> 2020-03-01 | C29: ='SSI data'!D32 -> - | D29: ='SSI data'!L32 -> - | E29: ='SSI data'!E32 -> - | F29: =IFERROR(CONCATENATE("(",TEXT('SSI data'!F32,"0.0")," ,", TEXT('SSI data'!G32,"0.0"),")"),"-") -> (- ,-) | G29: ='SSI data'!H32 -> - | H29: ='SSI data'!M32 -> - | I29: ='SSI data'!I32 -> - | J29: =IFERROR(CONCATENATE("(",TEXT('SSI data'!J32,"0.0")," ,", TEXT('SSI data'!K32,"0.0"),")"),"-") -> (- ,-)
B30: ='SSI data'!B33 -> 2020-06-01 | C30: ='SSI data'!D33 -> - | D30: ='SSI data'!L33 -> - | E30: ='SSI data'!E33 -> - | F30: =IFERROR(CONCATENATE("(",TEXT('SSI data'!F33,"0.0")," ,", TEXT('SSI data'!G33,"0.0"),")"),"-") -> (- ,-) | G30: ='SSI data'!H33 -> - | H30: ='SSI data'!M33 -> - | I30: ='SSI data'!I33 -> - | J30: =IFERROR(CONCATENATE("(",TEXT('SSI data'!J33,"0.0")," ,", TEXT('SSI data'!K33,"0.0"),")"),"-") -> (- ,-)
B31: ='SSI data'!B34 -> 2020-09-01 | C31: ='SSI data'!D34 -> - | D31: ='SSI data'!L34 -> - | E31: ='SSI data'!E34 -> - | F31: =IFERROR(CONCATENATE("(",TEXT('SSI data'!F34,"0.0")," ,", TEXT('SSI data'!G34,"0.0"),")"),"-") -> (- ,-) | G31: ='SSI data'!H34 -> - | H31: ='SSI data'!M34 -> - | I31: ='SSI data'!I34 -> - | J31: =IFERROR(CONCATENATE("(",TEXT('SSI data'!J34,"0.0")," ,", TEXT('SSI data'!K34,"0.0"),")"),"-") -> (- ,-)
B32: ='SSI data'!B35 -> 2020-12-31 | C32: ='SSI data'!D35 -> - | D32: ='SSI data'!L35 -> - | E32: ='SSI data'!E35 -> - | F32: =IFERROR(CONCATENATE("(",TEXT('SSI data'!F35,"0.0")," ,", TEXT('SSI data'!G35,"0.0"),")"),"-") -> (- ,-) | G32: ='SSI data'!H35 -> - | H32: ='SSI data'!M35 -> - | I32: ='SSI data'!I35 -> - | J32: =IFERROR(CONCATENATE("(",TEXT('SSI data'!J35,"0.0")," ,", TEXT('SSI data'!K35,"0.0"),")"),"-") -> (- ,-)
B33: ='SSI data'!B36 -> 2021-03-31 | C33: ='SSI data'!D36 -> - | D33: ='SSI data'!L36 -> - | E33: ='SSI data'!E36 -> - | F33: =IFERROR(CONCATENATE("(",TEXT('SSI data'!F36,"0.0")," ,", TEXT('SSI data'!G36,"0.0"),")"),"-") -> (- ,-) | G33: ='SSI data'!H36 -> - | H33: ='SSI data'!M36 -> - | I33: ='SSI data'!I36 -> - | J33: =IFERROR(CONCATENATE("(",TEXT('SSI data'!J36,"0.0")," ,", TEXT('SSI data'!K36,"0.0"),")"),"-") -> (- ,-)
B34: ='SSI data'!B37 -> 2021-06-30 | C34: ='SSI data'!D37 -> - | D34: ='SSI data'!L37 -> - | E34: ='SSI data'!E37 -> - | F34: =IFERROR(CONCATENATE("(",TEXT('SSI data'!F37,"0.0")," ,", TEXT('SSI data'!G37,"0.0"),")"),"-") -> (- ,-) | G34: ='SSI data'!H37 -> - | H34: ='SSI data'!M37 -> - | I34: ='SSI data'!I37 -> - | J34: =IFERROR(CONCATENATE("(",TEXT('SSI data'!J37,"0.0")," ,", TEXT('SSI data'!K37,"0.0"),")"),"-") -> (- ,-)
B35: ='SSI data'!B38 -> 2021-09-30 | C35: ='SSI data'!D38 -> - | D35: ='SSI data'!L38 -> - | E35: ='SSI data'!E38 -> - | F35: =IFERROR(CONCATENATE("(",TEXT('SSI data'!F38,"0.0")," ,", TEXT('SSI data'!G38,"0.0"),")"),"-") -> (- ,-) | G35: ='SSI data'!H38 -> - | H35: ='SSI data'!M38 -> - | I35: ='SSI data'!I38 -> - | J35: =IFERROR(CONCATENATE("(",TEXT('SSI data'!J38,"0.0")," ,", TEXT('SSI data'!K38,"0.0"),")"),"-") -> (- ,-)
B36: ='SSI data'!B39 -> 2021-12-31 | C36: ='SSI data'!D39 -> - | D36: ='SSI data'!L39 -> - | E36: ='SSI data'!E39 -> - | F36: =IFERROR(CONCATENATE("(",TEXT('SSI data'!F39,"0.0")," ,", TEXT('SSI data'!G39,"0.0"),")"),"-") -> (- ,-) | G36: ='SSI data'!H39 -> - | H36: ='SSI data'!M39 -> - | I36: ='SSI data'!I39 -> - | J36: =IFERROR(CONCATENATE("(",TEXT('SSI data'!J39,"0.0")," ,", TEXT('SSI data'!K39,"0.0"),")"),"-") -> (- ,-)
B37: ='SSI data'!B40 -> 2022-03-31 | C37: ='SSI data'!D40 -> - | D37: ='SSI data'!L40 -> - | E37: ='SSI data'!E40 -> - | F37: =IFERROR(CONCATENATE("(",TEXT('SSI data'!F40,"0.0")," ,", TEXT('SSI data'!G40,"0.0"),")"),"-") -> (- ,-) | G37: ='SSI data'!H40 -> - | H37: ='SSI data'!M40 -> - | I37: ='SSI data'!I40 -> - | J37: =IFERROR(CONCATENATE("(",TEXT('SSI data'!J40,"0.0")," ,", TEXT('SSI data'!K40,"0.0"),")"),"-") -> (- ,-)
B38: ='SSI data'!B41 -> 2022-06-30 | C38: ='SSI data'!D41 -> - | D38: ='SSI data'!L41 -> - | E38: ='SSI data'!E41 -> - | F38: =IFERROR(CONCATENATE("(",TEXT('SSI data'!F41,"0.0")," ,", TEXT('SSI data'!G41,"0.0"),")"),"-") -> (- ,-) | G38: ='SSI data'!H41 -> - | H38: ='SSI data'!M41 -> - | I38: ='SSI data'!I41 -> - | J38: =IFERROR(CONCATENATE("(",TEXT('SSI data'!J41,"0.0")," ,", TEXT('SSI data'!K41,"0.0"),")"),"-") -> (- ,-)
B39: ='SSI data'!B42 -> 2022-09-30 | C39: ='SSI data'!D42 -> - | D39: ='SSI data'!L42 -> - | E39: ='SSI data'!E42 -> - | F39: =IFERROR(CONCATENATE("(",TEXT('SSI data'!F42,"0.0")," ,", TEXT('SSI data'!G42,"0.0"),")"),"-") -> (- ,-) | G39: ='SSI data'!H42 -> - | H39: ='SSI data'!M42 -> - | I39: ='SSI data'!I42 -> - | J39: =IFERROR(CONCATENATE("(",TEXT('SSI data'!J42,"0.0")," ,", TEXT('SSI data'!K42,"0.0"),")"),"-") -> (- ,-)
B40: ='SSI data'!B43 -> 2022-12-31 | C40: ='SSI data'!D43 -> - | D40: ='SSI data'!L43 -> - | E40: ='SSI data'!E43 -> - | F40: =IFERROR(CONCATENATE("(",TEXT('SSI data'!F43,"0.0")," ,", TEXT('SSI data'!G43,"0.0"),")"),"-") -> (- ,-) | G40: ='SSI data'!H43 -> - | H40: ='SSI data'!M43 -> - | I40: ='SSI data'!I43 -> - | J40: =IFERROR(CONCATENATE("(",TEXT('SSI data'!J43,"0.0")," ,", TEXT('SSI data'!K43,"0.0"),")"),"-") -> (- ,-)
B41: ='SSI data'!B44 -> 2023-03-31 | C41: ='SSI data'!D44 -> - | D41: ='SSI data'!L44 -> - | E41: ='SSI data'!E44 -> - | F41: =IFERROR(CONCATENATE("(",TEXT('SSI data'!F44,"0.0")," ,", TEXT('SSI data'!G44,"0.0"),")"),"-") -> (- ,-) | G41: ='SSI data'!H44 -> - | H41: ='SSI data'!M44 -> - | I41: ='SSI data'!I44 -> - | J41: =IFERROR(CONCATENATE("(",TEXT('SSI data'!J44,"0.0")," ,", TEXT('SSI data'!K44,"0.0"),")"),"-") -> (- ,-)
B42: ='SSI data'!B45 -> 2023-06-30 | C42: ='SSI data'!D45 -> - | D42: ='SSI data'!L45 -> - | E42: ='SSI data'!E45 -> - | F42: =IFERROR(CONCATENATE("(",TEXT('SSI data'!F45,"0.0")," ,", TEXT('SSI data'!G45,"0.0"),")"),"-") -> (- ,-) | G42: ='SSI data'!H45 -> - | H42: ='SSI data'!M45 -> - | I42: ='SSI data'!I45 -> - | J42: =IFERROR(CONCATENATE("(",TEXT('SSI data'!J45,"0.0")," ,", TEXT('SSI data'!K45,"0.0"),")"),"-") -> (- ,-)
B43: ='SSI data'!B46 -> 2023-09-30 | C43: ='SSI data'!D46 -> - | D43: ='SSI data'!L46 -> - | E43: ='SSI data'!E46 -> - | F43: =IFERROR(CONCATENATE("(",TEXT('SSI data'!F46,"0.0")," ,", TEXT('SSI data'!G46,"0.0"),")"),"-") -> (- ,-) | G43: ='SSI data'!H46 -> - | H43: ='SSI data'!M46 -> - | I43: ='SSI data'!I46 -> - | J43: =IFERROR(CONCATENATE("(",TEXT('SSI data'!J46,"0.0")," ,", TEXT('SSI data'!K46,"0.0"),")"),"-") -> (- ,-)
B44: ='SSI data'!B47 -> 2023-12-31 | C44: ='SSI data'!D47 -> - | D44: ='SSI data'!L47 -> - | E44: ='SSI data'!E47 -> - | F44: =IFERROR(CONCATENATE("(",TEXT('SSI data'!F47,"0.0")," ,", TEXT('SSI data'!G47,"0.0"),")"),"-") -> (- ,-) | G44: ='SSI data'!H47 -> - | H44: ='SSI data'!M47 -> - | I44: ='SSI data'!I47 -> - | J44: =IFERROR(CONCATENATE("(",TEXT('SSI data'!J47,"0.0")," ,", TEXT('SSI data'!K47,"0.0"),")"),"-") -> (- ,-)
B45: ='SSI data'!B48 -> 2024-03-31 | C45: ='SSI data'!D48 -> - | D45: ='SSI data'!L48 -> - | E45: ='SSI data'!E48 -> - | F45: =IFERROR(CONCATENATE("(",TEXT('SSI data'!F48,"0.0")," ,", TEXT('SSI data'!G48,"0.0"),")"),"-") -> (- ,-) | G45: ='SSI data'!H48 -> - | H45: ='SSI data'!M48 -> - | I45: ='SSI data'!I48 -> - | J45: =IFERROR(CONCATENATE("(",TEXT('SSI data'!J48,"0.0")," ,", TEXT('SSI data'!K48,"0.0"),")"),"-") -> (- ,-)
B46: ='SSI data'!B49 -> 2024-06-30 | C46: ='SSI data'!D49 -> - | D46: ='SSI data'!L49 -> - | E46: ='SSI data'!E49 -> - | F46: =IFERROR(CONCATENATE("(",TEXT('SSI data'!F49,"0.0")," ,", TEXT('SSI data'!G49,"0.0"),")"),"-") -> (- ,-) | G46: ='SSI data'!H49 -> - | H46: ='SSI data'!M49 -> - | I46: ='SSI data'!I49 -> - | J46: =IFERROR(CONCATENATE("(",TEXT('SSI data'!J49,"0.0")," ,", TEXT('SSI data'!K49,"0.0"),")"),"-") -> (- ,-)

Sheet ECOLI data (hidden)
A1: Trend data | R1: u-chart data
A3: add a new line for current quarter
U4: change this
D5: ECBHCAI | E5: ECBHCAI | F5: ECBHCAI | G5: ECBHCAI | H5: ECBCOM | I5: ECBCOM | J5: ECBCOM | K5: ECBCOM | L5: ECBHCAI | M5: ECBCOM | T5: current quarter end | U5: 2024-06-30 | V5: 3 | W5: 4 | X5: 5 | Y5: 6 | AA5: 3 | AB5: 4 | AC5: 5 | AD5: 6
D6: 2 | E6: 4 | F6: 5 | G6: 6 | H6: 2 | I6: 4 | J6: 5 | K6: 6 | L6: 3 | M6: 3
C7: ref | D7: Healthcare associated Cases | E7: Healthcare associated rate | F7: Healthcare associated lower CI | G7: Healthcare associated upper CI | H7: Community associatedCases | I7: Community associatedrate | J7: Community associated lower CI | K7: Community associated upper CI | L7: ALL beds | M7: Pop | V7: ECBHCAI | AA7: ECBCOM
A8: 201603 | B8: 2016-09-24 | C8: =CONCATENATE(A8,'ECOLI Data and Charts'!B$1) -> 201603Scotland | D8: =VLOOKUP(CONCATENATE(D$5,$C8),'trend data'!$A$2:$O$11161,D$6,FALSE) -> 581 | E8: =ROUND(VLOOKUP(CONCATENATE(E$5,$C8),'trend data'!$A$2:$O$11161,E$6,FALSE),3) -> 36.589 | F8: =ROUND(VLOOKUP(CONCATENATE(F$5,$C8),'trend data'!$A$2:$O$11161,F$6,FALSE),3) -> 33.674 | G8: =ROUND(VLOOKUP(CONCATENATE(G$5,$C8),'trend data'!$A$2:$O$11161,G$6,FALSE),3) -> 39.689 | H8: =IFERROR(VLOOKUP(CONCATENATE(H$5,$C8),'trend data'!$A$2:$O$11161,H$6,FALSE),"-") -> 720 | I8: =IFERROR(ROUND(VLOOKUP(CONCATENATE(I$5,$C8),'trend data'!$A$2:$O$11161,I$6,FALSE),3),"-") -> 53.291 | J8: =IFERROR(ROUND(VLOOKUP(CONCATENATE(J$5,$C8),'trend data'!$A$2:$O$11161,J$6,FALSE),3),"-") -> 49.469 | K8: =IFERROR(ROUND(VLOOKUP(CONCATENATE(K$5,$C8),'trend data'!$A$2:$O$11161,K$6,FALSE),3),"-") -> 57.33 | L8: =VLOOKUP(CONCATENATE(L$5,$C8),'trend data'!$A$2:$O$11161,L$6,FALSE) -> 1587890 | M8: =ROUND(VLOOKUP(CONCATENATE(M$5,$C8),'trend data'!$A$2:$O$11161,M$6,FALSE),2) -> 1351067.76 | R8: change to last 12 quarters | V8: Healthcare associated rate | W8: Healthcare associated av rate | X8: Healthcare associated UWL 2sd | Y8: Healthcare associated UCL 3sd | AA8: Community associated rate | AB8: Community associated av rate | AC8: Community associated UWL 2sd | AD8: Community associated UCL 3 sd
A9: 201604 | B9: 2016-12-24 | C9: =CONCATENATE(A9,'ECOLI Data and Charts'!B$1) -> 201604Scotland | D9: =VLOOKUP(CONCATENATE(D$5,$C9),'trend data'!$A$2:$O$11161,D$6,FALSE) -> 564 | E9: =ROUND(VLOOKUP(CONCATENATE(E$5,$C9),'trend data'!$A$2:$O$11161,E$6,FALSE),3) -> 35.434 | F9: =ROUND(VLOOKUP(CONCATENATE(F$5,$C9),'trend data'!$A$2:$O$11161,F$6,FALSE),3) -> 32.57 | G9: =ROUND(VLOOKUP(CONCATENATE(G$5,$C9),'trend data'!$A$2:$O$11161,G$6,FALSE),3) -> 38.483 | H9: =IFERROR(VLOOKUP(CONCATENATE(H$5,$C9),'trend data'!$A$2:$O$11161,H$6,FALSE),"-") -> 631 | I9: =IFERROR(ROUND(VLOOKUP(CONCATENATE(I$5,$C9),'trend data'!$A$2:$O$11161,I$6,FALSE),3),"-") -> 46.704 | J9: =IFERROR(ROUND(VLOOKUP(CONCATENATE(J$5,$C9),'trend data'!$A$2:$O$11161,J$6,FALSE),3),"-") -> 43.13 | K9: =IFERROR(ROUND(VLOOKUP(CONCATENATE(K$5,$C9),'trend data'!$A$2:$O$11161,K$6,FALSE),3),"-") -> 50.494 | L9: =VLOOKUP(CONCATENATE(L$5,$C9),'trend data'!$A$2:$O$11161,L$6,FALSE) -> 1591683 | M9: =ROUND(VLOOKUP(CONCATENATE(M$5,$C9),'trend data'!$A$2:$O$11161,M$6,FALSE),2) -> 1351067.76 | R9: =YEAR(U9)&"0"&IF(MONTH(U9)<4,1,IF(MONTH(U9)<7,2,IF(MONTH(U9)<10,3,4))) -> 202103 | S9: =CONCATENATE(V$7,$R9,'ECOLI Data and Charts'!B$1) -> ECBHCAI202103Scotland | T9: 1 | U9: =U10-92 -> 2021-09-22 | V9: =ROUND(VLOOKUP($S9,'data for u-p-charts'!$A$2:$F$5000,V$5,FALSE),2) -> 41.47 | W9: =ROUND(VLOOKUP($S9,'data for u-p-charts'!$A$2:$F$5000,W$5,FALSE),2) -> 36.09 | X9: =ROUND(VLOOKUP($S9,'data for u-p-charts'!$A$2:$F$5000,X$5,FALSE),2) -> 39.24 | Y9: =ROUND(VLOOKUP($S9,'data for u-p-charts'!$A$2:$F$5000,Y$5,FALSE),2) -> 40.81 | Z9: =CONCATENATE(AA$7,$R9,'ECOLI Data and Charts'!$B$1) -> ECBCOM202103Scotland | AA9: =ROUND(VLOOKUP($Z9,'data for u-p-charts'!$A$2:$F$5000,AA$5,FALSE),2) -> 41.44 | AB9: =ROUND(VLOOKUP($Z9,'data for u-p-charts'!$A$2:$F$5000,AB$5,FALSE),2) -> 38.78 | AC9: =ROUND(VLOOKUP($Z9,'data for u-p-charts'!$A$2:$F$5000,AC$5,FALSE),2) -> 42.15 | AD9: =ROUND(VLOOKUP($Z9,'data for u-p-charts'!$A$2:$F$5000,AD$5,FALSE),2) -> 43.84
A10: 201701 | B10: 2017-03-01 | C10: =CONCATENATE(A10,'ECOLI Data and Charts'!B$1) -> 201701Scotland | D10: =VLOOKUP(CONCATENATE(D$5,$C10),'trend data'!$A$2:$O$11161,D$6,FALSE) -> 547 | E10: =ROUND(VLOOKUP(CONCATENATE(E$5,$C10),'trend data'!$A$2:$O$11161,E$6,FALSE),3) -> 34.591 | F10: =ROUND(VLOOKUP(CONCATENATE(F$5,$C10),'trend data'!$A$2:$O$11161,F$6,FALSE),3) -> 31.752 | G10: =ROUND(VLOOKUP(CONCATENATE(G$5,$C10),'trend data'!$A$2:$O$11161,G$6,FALSE),3) -> 37.615 | H10: =IFERROR(VLOOKUP(CONCATENATE(H$5,$C10),'trend data'!$A$2:$O$11161,H$6,FALSE),"-") -> 570 | I10: =IFERROR(ROUND(VLOOKUP(CONCATENATE(I$5,$C10),'trend data'!$A$2:$O$11161,I$6,FALSE),3),"-") -> 42.889 | J10: =IFERROR(ROUND(VLOOKUP(CONCATENATE(J$5,$C10),'trend data'!$A$2:$O$11161,J$6,FALSE),3),"-") -> 39.44 | K10: =IFERROR(ROUND(VLOOKUP(CONCATENATE(K$5,$C10),'trend data'!$A$2:$O$11161,K$6,FALSE),3),"-") -> 46.559 | L10: =VLOOKUP(CONCATENATE(L$5,$C10),'trend data'!$A$2:$O$11161,L$6,FALSE) -> 1581339 | M10: =ROUND(VLOOKUP(CONCATENATE(M$5,$C10),'trend data'!$A$2:$O$11161,M$6,FALSE),2) -> 1329016.44 | R10: =YEAR(U10)&"0"&IF(MONTH(U10)<4,1,IF(MONTH(U10)<7,2,IF(MONTH(U10)<10,3,4))) -> 202104 | S10: =CONCATENATE(V$7,R10,'ECOLI Data and Charts'!B$1) -> ECBHCAI202104Scotland | T10: 2 | U10: 2021-12-23 | V10: =ROUND(VLOOKUP($S10,'data for u-p-charts'!$A$2:$F$5000,V$5,FALSE),2) -> 34.07 | W10: =ROUND(VLOOKUP($S10,'data for u-p-charts'!$A$2:$F$5000,W$5,FALSE),2) -> 36.09 | X10: =ROUND(VLOOKUP($S10,'data for u-p-charts'!$A$2:$F$5000,X$5,FALSE),2) -> 39.2 | Y10: =ROUND(VLOOKUP($S10,'data for u-p-charts'!$A$2:$F$5000,Y$5,FALSE),2) -> 40.75 | Z10: =CONCATENATE(AA$7,$R10,'ECOLI Data and Charts'!$B$1) -> ECBCOM202104Scotland | AA10: =ROUND(VLOOKUP($Z10,'data for u-p-charts'!$A$2:$F$5000,AA$5,FALSE),2) -> 40.2 | AB10: =ROUND(VLOOKUP($Z10,'data for u-p-charts'!$A$2:$F$5000,AB$5,FALSE),2) -> 38.78 | AC10: =ROUND(VLOOKUP($Z10,'data for u-p-charts'!$A$2:$F$5000,AC$5,FALSE),2) -> 42.15 | AD10: =ROUND(VLOOKUP($Z10,'data for u-p-charts'!$A$2:$F$5000,AD$5,FALSE),2) -> 43.84
A11: 201702 | B11: 2017-06-01 | C11: =CONCATENATE(A11,'ECOLI Data and Charts'!B$1) -> 201702Scotland | D11: =VLOOKUP(CONCATENATE(D$5,$C11),'trend data'!$A$2:$O$11161,D$6,FALSE) -> 539 | E11: =ROUND(VLOOKUP(CONCATENATE(E$5,$C11),'trend data'!$A$2:$O$11161,E$6,FALSE),3) -> 34.761 | F11: =ROUND(VLOOKUP(CONCATENATE(F$5,$C11),'trend data'!$A$2:$O$11161,F$6,FALSE),3) -> 31.888 | G11: =ROUND(VLOOKUP(CONCATENATE(G$5,$C11),'trend data'!$A$2:$O$11161,G$6,FALSE),3) -> 37.824 | H11: =IFERROR(VLOOKUP(CONCATENATE(H$5,$C11),'trend data'!$A$2:$O$11161,H$6,FALSE),"-") -> 657 | I11: =IFERROR(ROUND(VLOOKUP(CONCATENATE(I$5,$C11),'trend data'!$A$2:$O$11161,I$6,FALSE),3),"-") -> 48.892 | J11: =IFERROR(ROUND(VLOOKUP(CONCATENATE(J$5,$C11),'trend data'!$A$2:$O$11161,J$6,FALSE),3),"-") -> 45.224 | K11: =IFERROR(ROUND(VLOOKUP(CONCATENATE(K$5,$C11),'trend data'!$A$2:$O$11161,K$6,FALSE),3),"-") -> 52.778 | L11: =VLOOKUP(CONCATENATE(L$5,$C11),'trend data'!$A$2:$O$11161,L$6,FALSE) -> 1550567 | M11: =ROUND(VLOOKUP(CONCATENATE(M$5,$C11),'trend data'!$A$2:$O$11161,M$6,FALSE),2) -> 1343783.29 | R11: =YEAR(U11)&"0"&IF(MONTH(U11)<4,1,IF(MONTH(U11)<7,2,IF(MONTH(U11)<10,3,4))) -> 202201 | S11: =CONCATENATE(V$7,R11,'ECOLI Data and Charts'!B$1) -> ECBHCAI202201Scotland | T11: 3 | U11: 2022-03-25 | V11: =ROUND(VLOOKUP($S11,'data for u-p-charts'!$A$2:$F$5000,V$5,FALSE),2) -> 30.52 | W11: =ROUND(VLOOKUP($S11,'data for u-p-charts'!$A$2:$F$5000,W$5,FALSE),2) -> 36.09 | X11: =ROUND(VLOOKUP($S11,'data for u-p-charts'!$A$2:$F$5000,X$5,FALSE),2) -> 39.21 | Y11: =ROUND(VLOOKUP($S11,'data for u-p-charts'!$A$2:$F$5000,Y$5,FALSE),2) -> 40.77 | Z11: =CONCATENATE(AA$7,$R11,'ECOLI Data and Charts'!$B$1) -> ECBCOM202201Scotland | AA11: =ROUND(VLOOKUP($Z11,'data for u-p-charts'!$A$2:$F$5000,AA$5,FALSE),2) -> 39.31 | AB11: =ROUND(VLOOKUP($Z11,'data for u-p-charts'!$A$2:$F$5000,AB$5,FALSE),2) -> 38.78 | AC11: =ROUND(VLOOKUP($Z11,'data for u-p-charts'!$A$2:$F$5000,AC$5,FALSE),2) -> 42.18 | AD11: =ROUND(VLOOKUP($Z11,'data for u-p-charts'!$A$2:$F$5000,AD$5,FALSE),2) -> 43.88
A12: 201703 | B12: 2017-09-01 | C12: =CONCATENATE(A12,'ECOLI Data and Charts'!B$1) -> 201703Scotland | D12: =VLOOKUP(CONCATENATE(D$5,$C12),'trend data'!$A$2:$O$11161,D$6,FALSE) -> 585 | E12: =ROUND(VLOOKUP(CONCATENATE(E$5,$C12),'trend data'!$A$2:$O$11161,E$6,FALSE),3) -> 38.016 | F12: =ROUND(VLOOKUP(CONCATENATE(F$5,$C12),'trend data'!$A$2:$O$11161,F$6,FALSE),3) -> 34.997 | G12: =ROUND(VLOOKUP(CONCATENATE(G$5,$C12),'trend data'!$A$2:$O$11161,G$6,FALSE),3) -> 41.225 | H12: =IFERROR(VLOOKUP(CONCATENATE(H$5,$C12),'trend data'!$A$2:$O$11161,H$6,FALSE),"-") -> 677 | I12: =IFERROR(ROUND(VLOOKUP(CONCATENATE(I$5,$C12),'trend data'!$A$2:$O$11161,I$6,FALSE),3),"-") -> 49.833 | J12: =IFERROR(ROUND(VLOOKUP(CONCATENATE(J$5,$C12),'trend data'!$A$2:$O$11161,J$6,FALSE),3),"-") -> 46.149 | K12: =IFERROR(ROUND(VLOOKUP(CONCATENATE(K$5,$C12),'trend data'!$A$2:$O$11161,K$6,FALSE),3),"-") -> 53.732 | L12: =VLOOKUP(CONCATENATE(L$5,$C12),'trend data'!$A$2:$O$11161,L$6,FALSE) -> 1538826 | M12: =ROUND(VLOOKUP(CONCATENATE(M$5,$C12),'trend data'!$A$2:$O$11161,M$6,FALSE),2) -> 1358550.14 | R12: 202202 | S12: =CONCATENATE(V$7,R12,'ECOLI Data and Charts'!B$1) -> ECBHCAI202202Scotland | T12: 4 | U12: 2022-06-25 | V12: =ROUND(VLOOKUP($S12,'data for u-p-charts'!$A$2:$F$5000,V$5,FALSE),2) -> 34.82 | W12: =ROUND(VLOOKUP($S12,'data for u-p-charts'!$A$2:$F$5000,W$5,FALSE),2) -> 36.09 | X12: =ROUND(VLOOKUP($S12,'data for u-p-charts'!$A$2:$F$5000,X$5,FALSE),2) -> 39.18 | Y12: =ROUND(VLOOKUP($S12,'data for u-p-charts'!$A$2:$F$5000,Y$5,FALSE),2) -> 40.72 | Z12: =CONCATENATE(AA$7,$R12,'ECOLI Data and Charts'!$B$1) -> ECBCOM202202Scotland | AA12: =ROUND(VLOOKUP($Z12,'data for u-p-charts'!$A$2:$F$5000,AA$5,FALSE),2) -> 38.95 | AB12: =ROUND(VLOOKUP($Z12,'data for u-p-charts'!$A$2:$F$5000,AB$5,FALSE),2) -> 38.78 | AC12: =ROUND(VLOOKUP($Z12,'data for u-p-charts'!$A$2:$F$5000,AC$5,FALSE),2) -> 42.16 | AD12: =ROUND(VLOOKUP($Z12,'data for u-p-charts'!$A$2:$F$5000,AD$5,FALSE),2) -> 43.85
A13: 201704 | B13: 2017-12-01 | C13: =CONCATENATE(A13,'ECOLI Data and Charts'!B$1) -> 201704Scotland | D13: =VLOOKUP(CONCATENATE(D$5,$C13),'trend data'!$A$2:$O$11161,D$6,FALSE) -> 531 | E13: =ROUND(VLOOKUP(CONCATENATE(E$5,$C13),'trend data'!$A$2:$O$11161,E$6,FALSE),3) -> 33.715 | F13: =ROUND(VLOOKUP(CONCATENATE(F$5,$C13),'trend data'!$A$2:$O$11161,F$6,FALSE),3) -> 30.908 | G13: =ROUND(VLOOKUP(CONCATENATE(G$5,$C13),'trend data'!$A$2:$O$11161,G$6,FALSE),3) -> 36.709 | H13: =IFERROR(VLOOKUP(CONCATENATE(H$5,$C13),'trend data'!$A$2:$O$11161,H$6,FALSE),"-") -> 656 | I13: =IFERROR(ROUND(VLOOKUP(CONCATENATE(I$5,$C13),'trend data'!$A$2:$O$11161,I$6,FALSE),3),"-") -> 48.287 | J13: =IFERROR(ROUND(VLOOKUP(CONCATENATE(J$5,$C13),'trend data'!$A$2:$O$11161,J$6,FALSE),3),"-") -> 44.662 | K13: =IFERROR(ROUND(VLOOKUP(CONCATENATE(K$5,$C13),'trend data'!$A$2:$O$11161,K$6,FALSE),3),"-") -> 52.128 | L13: =VLOOKUP(CONCATENATE(L$5,$C13),'trend data'!$A$2:$O$11161,L$6,FALSE) -> 1574967 | M13: =ROUND(VLOOKUP(CONCATENATE(M$5,$C13),'trend data'!$A$2:$O$11161,M$6,FALSE),2) -> 1358550.14 | R13: 202203 | S13: =CONCATENATE(V$7,R13,'ECOLI Data and Charts'!B$1) -> ECBHCAI202203Scotland | T13: 5 | U13: 2022-09-25 | V13: =ROUND(VLOOKUP($S13,'data for u-p-charts'!$A$2:$F$5000,V$5,FALSE),2) -> 36.23 | W13: =ROUND(VLOOKUP($S13,'data for u-p-charts'!$A$2:$F$5000,W$5,FALSE),2) -> 36.09 | X13: =ROUND(VLOOKUP($S13,'data for u-p-charts'!$A$2:$F$5000,X$5,FALSE),2) -> 39.15 | Y13: =ROUND(VLOOKUP($S13,'data for u-p-charts'!$A$2:$F$5000,Y$5,FALSE),2) -> 40.68 | Z13: =CONCATENATE(AA$7,$R13,'ECOLI Data and Charts'!$B$1) -> ECBCOM202203Scotland | AA13: =ROUND(VLOOKUP($Z13,'data for u-p-charts'!$A$2:$F$5000,AA$5,FALSE),2) -> 42.02 | AB13: =ROUND(VLOOKUP($Z13,'data for u-p-charts'!$A$2:$F$5000,AB$5,FALSE),2) -> 38.78 | AC13: =ROUND(VLOOKUP($Z13,'data for u-p-charts'!$A$2:$F$5000,AC$5,FALSE),2) -> 42.14 | AD13: =ROUND(VLOOKUP($Z13,'data for u-p-charts'!$A$2:$F$5000,AD$5,FALSE),2) -> 43.82
A14: 201801 | B14: 2018-03-01 | C14: =CONCATENATE(A14,'ECOLI Data and Charts'!B$1) -> 201801Scotland | D14: =IFERROR(VLOOKUP(CONCATENATE(D$5,$C14),'trend data'!$A$2:$O$11161,D$6,FALSE),"-") -> 524 | E14: =ROUND(VLOOKUP(CONCATENATE(E$5,$C14),'trend data'!$A$2:$O$11161,E$6,FALSE),3) -> 33.055 | F14: =ROUND(VLOOKUP(CONCATENATE(F$5,$C14),'trend data'!$A$2:$O$11161,F$6,FALSE),3) -> 30.285 | G14: =ROUND(VLOOKUP(CONCATENATE(G$5,$C14),'trend data'!$A$2:$O$11161,G$6,FALSE),3) -> 36.01 | H14: =IFERROR(VLOOKUP(CONCATENATE(H$5,$C14),'trend data'!$A$2:$O$11161,H$6,FALSE),"-") -> 578 | I14: =IFERROR(ROUND(VLOOKUP(CONCATENATE(I$5,$C14),'trend data'!$A$2:$O$11161,I$6,FALSE),3),"-") -> 43.455 | J14: =IFERROR(ROUND(VLOOKUP(CONCATENATE(J$5,$C14),'trend data'!$A$2:$O$11161,J$6,FALSE),3),"-") -> 39.984 | K14: =IFERROR(ROUND(VLOOKUP(CONCATENATE(K$5,$C14),'trend data'!$A$2:$O$11161,K$6,FALSE),3),"-") -> 47.147 | L14: =VLOOKUP(CONCATENATE(L$5,$C14),'trend data'!$A$2:$O$11161,L$6,FALSE) -> 1585233 | M14: =ROUND(VLOOKUP(CONCATENATE(M$5,$C14),'trend data'!$A$2:$O$11161,M$6,FALSE),2) -> 1330101.37 | R14: 202204 | S14: =CONCATENATE(V$7,R14,'ECOLI Data and Charts'!B$1) -> ECBHCAI202204Scotland | T14: 6 | U14: 2022-12-26 | V14: =ROUND(VLOOKUP($S14,'data for u-p-charts'!$A$2:$F$5000,V$5,FALSE),2) -> 34.99 | W14: =ROUND(VLOOKUP($S14,'data for u-p-charts'!$A$2:$F$5000,W$5,FALSE),2) -> 36.09 | X14: =ROUND(VLOOKUP($S14,'data for u-p-charts'!$A$2:$F$5000,X$5,FALSE),2) -> 39.12 | Y14: =ROUND(VLOOKUP($S14,'data for u-p-charts'!$A$2:$F$5000,Y$5,FALSE),2) -> 40.64 | Z14: =CONCATENATE(AA$7,$R14,'ECOLI Data and Charts'!$B$1) -> ECBCOM202204Scotland | AA14: =ROUND(VLOOKUP($Z14,'data for u-p-charts'!$A$2:$F$5000,AA$5,FALSE),2) -> 36.05 | AB14: =ROUND(VLOOKUP($Z14,'data for u-p-charts'!$A$2:$F$5000,AB$5,FALSE),2) -> 38.78 | AC14: =ROUND(VLOOKUP($Z14,'data for u-p-charts'!$A$2:$F$5000,AC$5,FALSE),2) -> 42.14 | AD14: =ROUND(VLOOKUP($Z14,'data for u-p-charts'!$A$2:$F$5000,AD$5,FALSE),2) -> 43.82
A15: 201802 | B15: 2018-06-01 | C15: =CONCATENATE(A15,'ECOLI Data and Charts'!B$1) -> 201802Scotland | D15: =IFERROR(VLOOKUP(CONCATENATE(D$5,$C15),'trend data'!$A$2:$O$11161,D$6,FALSE),"-") -> 580 | E15: =ROUND(VLOOKUP(CONCATENATE(E$5,$C15),'trend data'!$A$2:$O$11161,E$6,FALSE),3) -> 38.024 | F15: =ROUND(VLOOKUP(CONCATENATE(F$5,$C15),'trend data'!$A$2:$O$11161,F$6,FALSE),3) -> 34.992 | G15: =ROUND(VLOOKUP(CONCATENATE(G$5,$C15),'trend data'!$A$2:$O$11161,G$6,FALSE),3) -> 41.249 | H15: =IFERROR(VLOOKUP(CONCATENATE(H$5,$C15),'trend data'!$A$2:$O$11161,H$6,FALSE),"-") -> 598 | I15: =IFERROR(ROUND(VLOOKUP(CONCATENATE(I$5,$C15),'trend data'!$A$2:$O$11161,I$6,FALSE),3),"-") -> 44.465 | J15: =IFERROR(ROUND(VLOOKUP(CONCATENATE(J$5,$C15),'trend data'!$A$2:$O$11161,J$6,FALSE),3),"-") -> 40.972 | K15: =IFERROR(ROUND(VLOOKUP(CONCATENATE(K$5,$C15),'trend data'!$A$2:$O$11161,K$6,FALSE),3),"-") -> 48.176 | L15: =VLOOKUP(CONCATENATE(L$5,$C15),'trend data'!$A$2:$O$11161,L$6,FALSE) -> 1525345 | M15: =ROUND(VLOOKUP(CONCATENATE(M$5,$C15),'trend data'!$A$2:$O$11161,M$6,FALSE),2) -> 1344880.27 | R15: 202301 | S15: =CONCATENATE(V$7,R15,'ECOLI Data and Charts'!B$1) -> ECBHCAI202301Scotland | T15: 7 | U15: 2023-03-28 | V15: =ROUND(VLOOKUP($S15,'data for u-p-charts'!$A$2:$F$5000,V$5,FALSE),2) -> 37.48 | W15: =ROUND(VLOOKUP($S15,'data for u-p-charts'!$A$2:$F$5000,W$5,FALSE),2) -> 36.09 | X15: =ROUND(VLOOKUP($S15,'data for u-p-charts'!$A$2:$F$5000,X$5,FALSE),2) -> 39.12 | Y15: =ROUND(VLOOKUP($S15,'data for u-p-charts'!$A$2:$F$5000,Y$5,FALSE),2) -> 40.64 | Z15: =CONCATENATE(AA$7,$R15,'ECOLI Data and Charts'!$B$1) -> ECBCOM202301Scotland | AA15: =ROUND(VLOOKUP($Z15,'data for u-p-charts'!$A$2:$F$5000,AA$5,FALSE),2) -> 37 | AB15: =ROUND(VLOOKUP($Z15,'data for u-p-charts'!$A$2:$F$5000,AB$5,FALSE),2) -> 38.78 | AC15: =ROUND(VLOOKUP($Z15,'data for u-p-charts'!$A$2:$F$5000,AC$5,FALSE),2) -> 42.18 | AD15: =ROUND(VLOOKUP($Z15,'data for u-p-charts'!$A$2:$F$5000,AD$5,FALSE),2) -> 43.88
A16: 201803 | B16: 2018-09-01 | C16: =CONCATENATE(A16,'ECOLI Data and Charts'!B$1) -> 201803Scotland | D16: =IFERROR(VLOOKUP(CONCATENATE(D$5,$C16),'trend data'!$A$2:$O$11161,D$6,FALSE),"-") -> 606 | E16: =ROUND(VLOOKUP(CONCATENATE(E$5,$C16),'trend data'!$A$2:$O$11161,E$6,FALSE),3) -> 40.089 | F16: =ROUND(VLOOKUP(CONCATENATE(F$5,$C16),'trend data'!$A$2:$O$11161,F$6,FALSE),3) -> 36.961 | G16: =ROUND(VLOOKUP(CONCATENATE(G$5,$C16),'trend data'!$A$2:$O$11161,G$6,FALSE),3) -> 43.412 | H16: =IFERROR(VLOOKUP(CONCATENATE(H$5,$C16),'trend data'!$A$2:$O$11161,H$6,FALSE),"-") -> 667 | I16: =IFERROR(ROUND(VLOOKUP(CONCATENATE(I$5,$C16),'trend data'!$A$2:$O$11161,I$6,FALSE),3),"-") -> 49.056 | J16: =IFERROR(ROUND(VLOOKUP(CONCATENATE(J$5,$C16),'trend data'!$A$2:$O$11161,J$6,FALSE),3),"-") -> 45.404 | K16: =IFERROR(ROUND(VLOOKUP(CONCATENATE(K$5,$C16),'trend data'!$A$2:$O$11161,K$6,FALSE),3),"-") -> 52.925 | L16: =VLOOKUP(CONCATENATE(L$5,$C16),'trend data'!$A$2:$O$11161,L$6,FALSE) -> 1511620 | M16: =ROUND(VLOOKUP(CONCATENATE(M$5,$C16),'trend data'!$A$2:$O$11161,M$6,FALSE),2) -> 1359659.18 | R16: 202302 | S16: =CONCATENATE(V$7,R16,'ECOLI Data and Charts'!B$1) -> ECBHCAI202302Scotland | T16: 8 | U16: 2023-06-28 | V16: =ROUND(VLOOKUP($S16,'data for u-p-charts'!$A$2:$F$5000,V$5,FALSE),2) -> 37.61 | W16: =ROUND(VLOOKUP($S16,'data for u-p-charts'!$A$2:$F$5000,W$5,FALSE),2) -> 36.09 | X16: =ROUND(VLOOKUP($S16,'data for u-p-charts'!$A$2:$F$5000,X$5,FALSE),2) -> 39.15 | Y16: =ROUND(VLOOKUP($S16,'data for u-p-charts'!$A$2:$F$5000,Y$5,FALSE),2) -> 40.68 | Z16: =CONCATENATE(AA$7,$R16,'ECOLI Data and Charts'!$B$1) -> ECBCOM202302Scotland | AA16: =ROUND(VLOOKUP($Z16,'data for u-p-charts'!$A$2:$F$5000,AA$5,FALSE),2) -> 36.96 | AB16: =ROUND(VLOOKUP($Z16,'data for u-p-charts'!$A$2:$F$5000,AB$5,FALSE),2) -> 38.78 | AC16: =ROUND(VLOOKUP($Z16,'data for u-p-charts'!$A$2:$F$5000,AC$5,FALSE),2) -> 42.16 | AD16: =ROUND(VLOOKUP($Z16,'data for u-p-charts'!$A$2:$F$5000,AD$5,FALSE),2) -> 43.85
A17: 201804 | B17: 2018-12-01 | C17: =CONCATENATE(A17,'ECOLI Data and Charts'!B$1) -> 201804Scotland | D17: =IFERROR(VLOOKUP(CONCATENATE(D$5,$C17),'trend data'!$A$2:$O$11161,D$6,FALSE),"-") -> 582 | E17: =ROUND(VLOOKUP(CONCATENATE(E$5,$C17),'trend data'!$A$2:$O$11161,E$6,FALSE),3) -> 38.234 | F17: =ROUND(VLOOKUP(CONCATENATE(F$5,$C17),'trend data'!$A$2:$O$11161,F$6,FALSE),3) -> 35.19 | G17: =ROUND(VLOOKUP(CONCATENATE(G$5,$C17),'trend data'!$A$2:$O$11161,G$6,FALSE),3) -> 41.47 | H17: =IFERROR(VLOOKUP(CONCATENATE(H$5,$C17),'trend data'!$A$2:$O$11161,H$6,FALSE),"-") -> 603 | I17: =IFERROR(ROUND(VLOOKUP(CONCATENATE(I$5,$C17),'trend data'!$A$2:$O$11161,I$6,FALSE),3),"-") -> 44.349 | J17: =IFERROR(ROUND(VLOOKUP(CONCATENATE(J$5,$C17),'trend data'!$A$2:$O$11161,J$6,FALSE),3),"-") -> 40.88 | K17: =IFERROR(ROUND(VLOOKUP(CONCATENATE(K$5,$C17),'trend data'!$A$2:$O$11161,K$6,FALSE),3),"-") -> 48.035 | L17: =VLOOKUP(CONCATENATE(L$5,$C17),'trend data'!$A$2:$O$11161,L$6,FALSE) -> 1522217 | M17: =ROUND(VLOOKUP(CONCATENATE(M$5,$C17),'trend data'!$A$2:$O$11161,M$6,FALSE),2) -> 1359659.18 | R17: 202303 | S17: =CONCATENATE(V$7,R17,'ECOLI Data and Charts'!B$1) -> ECBHCAI202303Scotland | T17: 9 | U17: 2023-09-28 | V17: =ROUND(VLOOKUP($S17,'data for u-p-charts'!$A$2:$F$5000,V$5,FALSE),2) -> 37.72 | W17: =ROUND(VLOOKUP($S17,'data for u-p-charts'!$A$2:$F$5000,W$5,FALSE),2) -> 36.09 | X17: =ROUND(VLOOKUP($S17,'data for u-p-charts'!$A$2:$F$5000,X$5,FALSE),2) -> 39.16 | Y17: =ROUND(VLOOKUP($S17,'data for u-p-charts'!$A$2:$F$5000,Y$5,FALSE),2) -> 40.69 | Z17: =CONCATENATE(AA$7,$R17,'ECOLI Data and Charts'!$B$1) -> ECBCOM202303Scotland | AA17: =ROUND(VLOOKUP($Z17,'data for u-p-charts'!$A$2:$F$5000,AA$5,FALSE),2) -> 41.88 | AB17: =ROUND(VLOOKUP($Z17,'data for u-p-charts'!$A$2:$F$5000,AB$5,FALSE),2) -> 38.78 | AC17: =ROUND(VLOOKUP($Z17,'data for u-p-charts'!$A$2:$F$5000,AC$5,FALSE),2) -> 42.14 | AD17: =ROUND(VLOOKUP($Z17,'data for u-p-charts'!$A$2:$F$5000,AD$5,FALSE),2) -> 43.82
A18: 201901 | B18: 2019-03-01 | C18: =CONCATENATE(A18,'ECOLI Data and Charts'!B$1) -> 201901Scotland | D18: =IFERROR(VLOOKUP(CONCATENATE(D$5,$C18),'trend data'!$A$2:$O$11161,D$6,FALSE),"-") -> 573 | E18: =ROUND(VLOOKUP(CONCATENATE(E$5,$C18),'trend data'!$A$2:$O$11161,E$6,FALSE),3) -> 37.244 | F18: =ROUND(VLOOKUP(CONCATENATE(F$5,$C18),'trend data'!$A$2:$O$11161,F$6,FALSE),3) -> 34.256 | G18: =ROUND(VLOOKUP(CONCATENATE(G$5,$C18),'trend data'!$A$2:$O$11161,G$6,FALSE),3) -> 40.422 | H18: =IFERROR(VLOOKUP(CONCATENATE(H$5,$C18),'trend data'!$A$2:$O$11161,H$6,FALSE),"-") -> 598 | I18: =IFERROR(ROUND(VLOOKUP(CONCATENATE(I$5,$C18),'trend data'!$A$2:$O$11161,I$6,FALSE),3),"-") -> 44.792 | J18: =IFERROR(ROUND(VLOOKUP(CONCATENATE(J$5,$C18),'trend data'!$A$2:$O$11161,J$6,FALSE),3),"-") -> 41.273 | K18: =IFERROR(ROUND(VLOOKUP(CONCATENATE(K$5,$C18),'trend data'!$A$2:$O$11161,K$6,FALSE),3),"-") -> 48.531 | L18: =VLOOKUP(CONCATENATE(L$5,$C18),'trend data'!$A$2:$O$11161,L$6,FALSE) -> 1538510 | M18: =ROUND(VLOOKUP(CONCATENATE(M$5,$C18),'trend data'!$A$2:$O$11161,M$6,FALSE),2) -> 1335057.53 | R18: 202304 | S18: =CONCATENATE(V$7,R18,'ECOLI Data and Charts'!B$1) -> ECBHCAI202304Scotland | T18: 10 | U18: 2023-12-29 | V18: =ROUND(VLOOKUP($S18,'data for u-p-charts'!$A$2:$F$5000,V$5,FALSE),2) -> 34.73 | W18: =ROUND(VLOOKUP($S18,'data for u-p-charts'!$A$2:$F$5000,W$5,FALSE),2) -> 36.09 | X18: =ROUND(VLOOKUP($S18,'data for u-p-charts'!$A$2:$F$5000,X$5,FALSE),2) -> 39.13 | Y18: =ROUND(VLOOKUP($S18,'data for u-p-charts'!$A$2:$F$5000,Y$5,FALSE),2) -> 40.65 | Z18: =CONCATENATE(AA$7,$R18,'ECOLI Data and Charts'!$B$1) -> ECBCOM202304Scotland | AA18: =ROUND(VLOOKUP($Z18,'data for u-p-charts'!$A$2:$F$5000,AA$5,FALSE),2) -> 32.19 | AB18: =ROUND(VLOOKUP($Z18,'data for u-p-charts'!$A$2:$F$5000,AB$5,FALSE),2) -> 38.78 | AC18: =ROUND(VLOOKUP($Z18,'data for u-p-charts'!$A$2:$F$5000,AC$5,FALSE),2) -> 42.14 | AD18: =ROUND(VLOOKUP($Z18,'data for u-p-charts'!$A$2:$F$5000,AD$5,FALSE),2) -> 43.82
A19: 201902 | B19: 2019-06-01 | C19: =CONCATENATE(A19,'ECOLI Data and Charts'!B$1) -> 201902Scotland | D19: =IFERROR(VLOOKUP(CONCATENATE(D$5,$C19),'trend data'!$A$2:$O$11161,D$6,FALSE),"-") -> 584 | E19: =ROUND(VLOOKUP(CONCATENATE(E$5,$C19),'trend data'!$A$2:$O$11161,E$6,FALSE),3) -> 38.771 | F19: =ROUND(VLOOKUP(CONCATENATE(F$5,$C19),'trend data'!$A$2:$O$11161,F$6,FALSE),3) -> 35.69 | G19: =ROUND(VLOOKUP(CONCATENATE(G$5,$C19),'trend data'!$A$2:$O$11161,G$6,FALSE),3) -> 42.047 | H19: =IFERROR(VLOOKUP(CONCATENATE(H$5,$C19),'trend data'!$A$2:$O$11161,H$6,FALSE),"-") -> 604 | I19: =IFERROR(ROUND(VLOOKUP(CONCATENATE(I$5,$C19),'trend data'!$A$2:$O$11161,I$6,FALSE),3),"-") -> 44.744 | J19: =IFERROR(ROUND(VLOOKUP(CONCATENATE(J$5,$C19),'trend data'!$A$2:$O$11161,J$6,FALSE),3),"-") -> 41.247 | K19: =IFERROR(ROUND(VLOOKUP(CONCATENATE(K$5,$C19),'trend data'!$A$2:$O$11161,K$6,FALSE),3),"-") -> 48.459 | L19: =VLOOKUP(CONCATENATE(L$5,$C19),'trend data'!$A$2:$O$11161,L$6,FALSE) -> 1506284 | M19: =ROUND(VLOOKUP(CONCATENATE(M$5,$C19),'trend data'!$A$2:$O$11161,M$6,FALSE),2) -> 1349891.51 | R19: 202401 | S19: =CONCATENATE(V$7,R19,'ECOLI Data and Charts'!B$1) -> ECBHCAI202401Scotland | T19: 11 | U19: =U20-92 -> 2024-03-30 | V19: =ROUND(VLOOKUP($S19,'data for u-p-charts'!$A$2:$F$5000,V$5,FALSE),2) -> 35.52 | W19: =ROUND(VLOOKUP($S19,'data for u-p-charts'!$A$2:$F$5000,W$5,FALSE),2) -> 36.09 | X19: =ROUND(VLOOKUP($S19,'data for u-p-charts'!$A$2:$F$5000,X$5,FALSE),2) -> 39.1 | Y19: =ROUND(VLOOKUP($S19,'data for u-p-charts'!$A$2:$F$5000,Y$5,FALSE),2) -> 40.61 | Z19: =CONCATENATE(AA$7,$R19,'ECOLI Data and Charts'!$B$1) -> ECBCOM202401Scotland | AA19: =ROUND(VLOOKUP($Z19,'data for u-p-charts'!$A$2:$F$5000,AA$5,FALSE),2) -> 37.21 | AB19: =ROUND(VLOOKUP($Z19,'data for u-p-charts'!$A$2:$F$5000,AB$5,FALSE),2) -> 38.78 | AC19: =ROUND(VLOOKUP($Z19,'data for u-p-charts'!$A$2:$F$5000,AC$5,FALSE),2) -> 42.17 | AD19: =ROUND(VLOOKUP($Z19,'data for u-p-charts'!$A$2:$F$5000,AD$5,FALSE),2) -> 43.86
A20: 201903 | B20: 2019-09-01 | C20: =CONCATENATE(A20,'ECOLI Data and Charts'!B$1) -> 201903Scotland | D20: =IFERROR(VLOOKUP(CONCATENATE(D$5,$C20),'trend data'!$A$2:$O$11161,D$6,FALSE),"-") -> 608 | E20: =ROUND(VLOOKUP(CONCATENATE(E$5,$C20),'trend data'!$A$2:$O$11161,E$6,FALSE),3) -> 40.346 | F20: =ROUND(VLOOKUP(CONCATENATE(F$5,$C20),'trend data'!$A$2:$O$11161,F$6,FALSE),3) -> 37.202 | G20: =ROUND(VLOOKUP(CONCATENATE(G$5,$C20),'trend data'!$A$2:$O$11161,G$6,FALSE),3) -> 43.684 | H20: =IFERROR(VLOOKUP(CONCATENATE(H$5,$C20),'trend data'!$A$2:$O$11161,H$6,FALSE),"-") -> 606 | I20: =IFERROR(ROUND(VLOOKUP(CONCATENATE(I$5,$C20),'trend data'!$A$2:$O$11161,I$6,FALSE),3),"-") -> 44.405 | J20: =IFERROR(ROUND(VLOOKUP(CONCATENATE(J$5,$C20),'trend data'!$A$2:$O$11161,J$6,FALSE),3),"-") -> 40.939 | K20: =IFERROR(ROUND(VLOOKUP(CONCATENATE(K$5,$C20),'trend data'!$A$2:$O$11161,K$6,FALSE),3),"-") -> 48.085 | L20: =VLOOKUP(CONCATENATE(L$5,$C20),'trend data'!$A$2:$O$11161,L$6,FALSE) -> 1506970 | M20: =ROUND(VLOOKUP(CONCATENATE(M$5,$C20),'trend data'!$A$2:$O$11161,M$6,FALSE),2) -> 1364725.48 | R20: 202402 | S20: =CONCATENATE(V$7,R20,'ECOLI Data and Charts'!B$1) -> ECBHCAI202402Scotland | T20: 12 | U20: =U5 -> 2024-06-30 | V20: =ROUND(VLOOKUP($S20,'data for u-p-charts'!$A$2:$F$5000,V$5,FALSE),2) -> 39.43 | W20: =ROUND(VLOOKUP($S20,'data for u-p-charts'!$A$2:$F$5000,W$5,FALSE),2) -> 36.09 | X20: =ROUND(VLOOKUP($S20,'data for u-p-charts'!$A$2:$F$5000,X$5,FALSE),2) -> 39.14 | Y20: =ROUND(VLOOKUP($S20,'data for u-p-charts'!$A$2:$F$5000,Y$5,FALSE),2) -> 40.66 | Z20: =CONCATENATE(AA$7,$R20,'ECOLI Data and Charts'!$B$1) -> ECBCOM202402Scotland | AA20: =ROUND(VLOOKUP($Z20,'data for u-p-charts'!$A$2:$F$5000,AA$5,FALSE),2) -> 36.18 | AB20: =ROUND(VLOOKUP($Z20,'data for u-p-charts'!$A$2:$F$5000,AB$5,FALSE),2) -> 38.78 | AC20: =ROUND(VLOOKUP($Z20,'data for u-p-charts'!$A$2:$F$5000,AC$5,FALSE),2) -> 42.17 | AD20: =ROUND(VLOOKUP($Z20,'data for u-p-charts'!$A$2:$F$5000,AD$5,FALSE),2) -> 43.86
A21: 201904 | B21: 2019-12-01 | C21: =CONCATENATE(A21,'ECOLI Data and Charts'!B$1) -> 201904Scotland | D21: =IFERROR(VLOOKUP(CONCATENATE(D$5,$C21),'trend data'!$A$2:$O$11161,D$6,FALSE),"-") -> 626 | E21: =ROUND(VLOOKUP(CONCATENATE(E$5,$C21),'trend data'!$A$2:$O$11161,E$6,FALSE),3) -> 40.876 | F21: =ROUND(VLOOKUP(CONCATENATE(F$5,$C21),'trend data'!$A$2:$O$11161,F$6,FALSE),3) -> 37.736 | G21: =ROUND(VLOOKUP(CONCATENATE(G$5,$C21),'trend data'!$A$2:$O$11161,G$6,FALSE),3) -> 44.207 | H21: =IFERROR(VLOOKUP(CONCATENATE(H$5,$C21),'trend data'!$A$2:$O$11161,H$6,FALSE),"-") -> 568 | I21: =IFERROR(ROUND(VLOOKUP(CONCATENATE(I$5,$C21),'trend data'!$A$2:$O$11161,I$6,FALSE),3),"-") -> 41.62 | J21: =IFERROR(ROUND(VLOOKUP(CONCATENATE(J$5,$C21),'trend data'!$A$2:$O$11161,J$6,FALSE),3),"-") -> 38.267 | K21: =IFERROR(ROUND(VLOOKUP(CONCATENATE(K$5,$C21),'trend data'!$A$2:$O$11161,K$6,FALSE),3),"-") -> 45.188 | L21: =VLOOKUP(CONCATENATE(L$5,$C21),'trend data'!$A$2:$O$11161,L$6,FALSE) -> 1531462 | M21: =ROUND(VLOOKUP(CONCATENATE(M$5,$C21),'trend data'!$A$2:$O$11161,M$6,FALSE),2) -> 1364725.48
A22: 202001 | B22: 2020-03-01 | C22: =CONCATENATE(A22,'ECOLI Data and Charts'!B$1) -> 202001Scotland | D22: =IFERROR(VLOOKUP(CONCATENATE(D$5,$C22),'trend data'!$A$2:$O$11161,D$6,FALSE),"-") -> 538 | E22: =ROUND(VLOOKUP(CONCATENATE(E$5,$C22),'trend data'!$A$2:$O$11161,E$6,FALSE),3) -> 36.451 | F22: =ROUND(VLOOKUP(CONCATENATE(F$5,$C22),'trend data'!$A$2:$O$11161,F$6,FALSE),3) -> 33.436 | G22: =ROUND(VLOOKUP(CONCATENATE(G$5,$C22),'trend data'!$A$2:$O$11161,G$6,FALSE),3) -> 39.666 | H22: =IFERROR(VLOOKUP(CONCATENATE(H$5,$C22),'trend data'!$A$2:$O$11161,H$6,FALSE),"-") -> 515 | I22: =IFERROR(ROUND(VLOOKUP(CONCATENATE(I$5,$C22),'trend data'!$A$2:$O$11161,I$6,FALSE),3),"-") -> 38.265 | J22: =IFERROR(ROUND(VLOOKUP(CONCATENATE(J$5,$C22),'trend data'!$A$2:$O$11161,J$6,FALSE),3),"-") -> 35.031 | K22: =IFERROR(ROUND(VLOOKUP(CONCATENATE(K$5,$C22),'trend data'!$A$2:$O$11161,K$6,FALSE),3),"-") -> 41.717 | L22: =VLOOKUP(CONCATENATE(L$5,$C22),'trend data'!$A$2:$O$11161,L$6,FALSE) -> 1475950 | M22: =ROUND(VLOOKUP(CONCATENATE(M$5,$C22),'trend data'!$A$2:$O$11161,M$6,FALSE),2) -> 1345880.05
A23: 202002 | B23: 2020-06-01 | C23: =CONCATENATE(A23,'ECOLI Data and Charts'!B$1) -> 202002Scotland | D23: =IFERROR(VLOOKUP(CONCATENATE(D$5,$C23),'trend data'!$A$2:$O$11161,D$6,FALSE),"-") -> 429 | E23: =ROUND(VLOOKUP(CONCATENATE(E$5,$C23),'trend data'!$A$2:$O$11161,E$6,FALSE),3) -> 39.687 | F23: =ROUND(VLOOKUP(CONCATENATE(F$5,$C23),'trend data'!$A$2:$O$11161,F$6,FALSE),3) -> 36.02 | G23: =ROUND(VLOOKUP(CONCATENATE(G$5,$C23),'trend data'!$A$2:$O$11161,G$6,FALSE),3) -> 43.627 | H23: =IFERROR(VLOOKUP(CONCATENATE(H$5,$C23),'trend data'!$A$2:$O$11161,H$6,FALSE),"-") -> 488 | I23: =IFERROR(ROUND(VLOOKUP(CONCATENATE(I$5,$C23),'trend data'!$A$2:$O$11161,I$6,FALSE),3),"-") -> 36.259 | J23: =IFERROR(ROUND(VLOOKUP(CONCATENATE(J$5,$C23),'trend data'!$A$2:$O$11161,J$6,FALSE),3),"-") -> 33.113 | K23: =IFERROR(ROUND(VLOOKUP(CONCATENATE(K$5,$C23),'trend data'!$A$2:$O$11161,K$6,FALSE),3),"-") -> 39.623 | L23: =VLOOKUP(CONCATENATE(L$5,$C23),'trend data'!$A$2:$O$11161,L$6,FALSE) -> 1080949 | M23: =ROUND(VLOOKUP(CONCATENATE(M$5,$C23),'trend data'!$A$2:$O$11161,M$6,FALSE),2) -> 1345880.05
A24: 202003 | B24: 2020-09-01 | C24: =CONCATENATE(A24,'ECOLI Data and Charts'!B$1) -> 202003Scotland | D24: =IFERROR(VLOOKUP(CONCATENATE(D$5,$C24),'trend data'!$A$2:$O$11161,D$6,FALSE),"-") -> 547 | E24: =ROUND(VLOOKUP(CONCATENATE(E$5,$C24),'trend data'!$A$2:$O$11161,E$6,FALSE),4) -> 41.9484 | F24: =ROUND(VLOOKUP(CONCATENATE(F$5,$C24),'trend data'!$A$2:$O$11161,F$6,FALSE),4) -> 38.5061 | G24: =ROUND(VLOOKUP(CONCATENATE(G$5,$C24),'trend data'!$A$2:$O$11161,G$6,FALSE),4) -> 45.6158 | H24: =IFERROR(VLOOKUP(CONCATENATE(H$5,$C24),'trend data'!$A$2:$O$11161,H$6,FALSE),"-") -> 614 | I24: =IFERROR(ROUND(VLOOKUP(CONCATENATE(I$5,$C24),'trend data'!$A$2:$O$11161,I$6,FALSE),4),"-") -> 45.1248 | J24: =IFERROR(ROUND(VLOOKUP(CONCATENATE(J$5,$C24),'trend data'!$A$2:$O$11161,J$6,FALSE),4),"-") -> 41.6256 | K24: =IFERROR(ROUND(VLOOKUP(CONCATENATE(K$5,$C24),'trend data'!$A$2:$O$11161,K$6,FALSE),4),"-") -> 48.8397 | L24: =VLOOKUP(CONCATENATE(L$5,$C24),'trend data'!$A$2:$O$11161,L$6,FALSE) -> 1303983 | M24: =ROUND(VLOOKUP(CONCATENATE(M$5,$C24),'trend data'!$A$2:$O$11161,M$6,FALSE),2) -> 1360669.95
A25: 202004 | B25: 2020-12-31 | C25: =CONCATENATE(A25,'ECOLI Data and Charts'!B$1) -> 202004Scotland | D25: =IFERROR(VLOOKUP(CONCATENATE(D$5,$C25),'trend data'!$A$2:$O$11161,D$6,FALSE),"-") -> 555 | E25: =ROUND(VLOOKUP(CONCATENATE(E$5,$C25),'trend data'!$A$2:$O$11161,E$6,FALSE),4) -> 40.8752 | F25: =ROUND(VLOOKUP(CONCATENATE(F$5,$C25),'trend data'!$A$2:$O$11161,F$6,FALSE),4) -> 37.5447 | G25: =ROUND(VLOOKUP(CONCATENATE(G$5,$C25),'trend data'!$A$2:$O$11161,G$6,FALSE),4) -> 44.4218 | H25: =IFERROR(VLOOKUP(CONCATENATE(H$5,$C25),'trend data'!$A$2:$O$11161,H$6,FALSE),"-") -> 521 | I25: =IFERROR(ROUND(VLOOKUP(CONCATENATE(I$5,$C25),'trend data'!$A$2:$O$11161,I$6,FALSE),4),"-") -> 38.29 | J25: =IFERROR(ROUND(VLOOKUP(CONCATENATE(J$5,$C25),'trend data'!$A$2:$O$11161,J$6,FALSE),4),"-") -> 35.0721 | K25: =IFERROR(ROUND(VLOOKUP(CONCATENATE(K$5,$C25),'trend data'!$A$2:$O$11161,K$6,FALSE),4),"-") -> 41.7236 | L25: =VLOOKUP(CONCATENATE(L$5,$C25),'trend data'!$A$2:$O$11161,L$6,FALSE) -> 1357793 | M25: =ROUND(VLOOKUP(CONCATENATE(M$5,$C25),'trend data'!$A$2:$O$11161,M$6,FALSE),2) -> 1360669.95
A26: 202101 | B26: 2021-03-31 | C26: =CONCATENATE(A26,'ECOLI Data and Charts'!B$1) -> 202101Scotland | D26: =IFERROR(VLOOKUP(CONCATENATE(D$5,$C26),'trend data'!$A$2:$O$11161,D$6,FALSE),"-") -> 468 | E26: =ROUND(VLOOKUP(CONCATENATE(E$5,$C26),'trend data'!$A$2:$O$11161,E$6,FALSE),4) -> 34.6193 | F26: =ROUND(VLOOKUP(CONCATENATE(F$5,$C26),'trend data'!$A$2:$O$11161,F$6,FALSE),4) -> 31.5533 | G26: =ROUND(VLOOKUP(CONCATENATE(G$5,$C26),'trend data'!$A$2:$O$11161,G$6,FALSE),4) -> 37.9027 | H26: =IFERROR(VLOOKUP(CONCATENATE(H$5,$C26),'trend data'!$A$2:$O$11161,H$6,FALSE),"-") -> 493 | I26: =IFERROR(ROUND(VLOOKUP(CONCATENATE(I$5,$C26),'trend data'!$A$2:$O$11161,I$6,FALSE),4),"-") -> 36.9 | J26: =IFERROR(ROUND(VLOOKUP(CONCATENATE(J$5,$C26),'trend data'!$A$2:$O$11161,J$6,FALSE),4),"-") -> 33.7141 | K26: =IFERROR(ROUND(VLOOKUP(CONCATENATE(K$5,$C26),'trend data'!$A$2:$O$11161,K$6,FALSE),4),"-") -> 40.3058 | L26: =VLOOKUP(CONCATENATE(L$5,$C26),'trend data'!$A$2:$O$11161,L$6,FALSE) -> 1351847 | M26: =ROUND(VLOOKUP(CONCATENATE(M$5,$C26),'trend data'!$A$2:$O$11161,M$6,FALSE),2) -> 1336043.84
A27: 202102 | B27: 2021-06-30 | C27: =CONCATENATE(A27,'ECOLI Data and Charts'!B$1) -> 202102Scotland | D27: =IFERROR(VLOOKUP(CONCATENATE(D$5,$C27),'trend data'!$A$2:$O$11161,D$6,FALSE),"-") -> 532 | E27: =ROUND(VLOOKUP(CONCATENATE(E$5,$C27),'trend data'!$A$2:$O$11161,E$6,FALSE),4) -> 38.159 | F27: =ROUND(VLOOKUP(CONCATENATE(F$5,$C27),'trend data'!$A$2:$O$11161,F$6,FALSE),4) -> 34.9847 | G27: =ROUND(VLOOKUP(CONCATENATE(G$5,$C27),'trend data'!$A$2:$O$11161,G$6,FALSE),4) -> 41.5438 | H27: =IFERROR(VLOOKUP(CONCATENATE(H$5,$C27),'trend data'!$A$2:$O$11161,H$6,FALSE),"-") -> 570 | I27: =IFERROR(ROUND(VLOOKUP(CONCATENATE(I$5,$C27),'trend data'!$A$2:$O$11161,I$6,FALSE),4),"-") -> 42.1944 | J27: =IFERROR(ROUND(VLOOKUP(CONCATENATE(J$5,$C27),'trend data'!$A$2:$O$11161,J$6,FALSE),4),"-") -> 38.8011 | K27: =IFERROR(ROUND(VLOOKUP(CONCATENATE(K$5,$C27),'trend data'!$A$2:$O$11161,K$6,FALSE),4),"-") -> 45.8051 | L27: =VLOOKUP(CONCATENATE(L$5,$C27),'trend data'!$A$2:$O$11161,L$6,FALSE) -> 1394168 | M27: =ROUND(VLOOKUP(CONCATENATE(M$5,$C27),'trend data'!$A$2:$O$11161,M$6,FALSE),2) -> 1350888.77
A28: 202103 | B28: 2021-09-01 | C28: =CONCATENATE(A28,'ECOLI Data and Charts'!B$1) -> 202103Scotland | D28: =IFERROR(VLOOKUP(CONCATENATE(D$5,$C28),'trend data'!$A$2:$O$11161,D$6,FALSE),"-") -> 604 | E28: =ROUND(VLOOKUP(CONCATENATE(E$5,$C28),'trend data'!$A$2:$O$11161,E$6,FALSE),4) -> 41.4739 | F28: =ROUND(VLOOKUP(CONCATENATE(F$5,$C28),'trend data'!$A$2:$O$11161,F$6,FALSE),4) -> 38.2317 | G28: =ROUND(VLOOKUP(CONCATENATE(G$5,$C28),'trend data'!$A$2:$O$11161,G$6,FALSE),4) -> 44.9174 | H28: =IFERROR(VLOOKUP(CONCATENATE(H$5,$C28),'trend data'!$A$2:$O$11161,H$6,FALSE),"-") -> 566 | I28: =IFERROR(ROUND(VLOOKUP(CONCATENATE(I$5,$C28),'trend data'!$A$2:$O$11161,I$6,FALSE),4),"-") -> 41.4429 | J28: =IFERROR(ROUND(VLOOKUP(CONCATENATE(J$5,$C28),'trend data'!$A$2:$O$11161,J$6,FALSE),4),"-") -> 38.0985 | K28: =IFERROR(ROUND(VLOOKUP(CONCATENATE(K$5,$C28),'trend data'!$A$2:$O$11161,K$6,FALSE),4),"-") -> 45.0023 | L28: =VLOOKUP(CONCATENATE(L$5,$C28),'trend data'!$A$2:$O$11161,L$6,FALSE) -> 1456339 | M28: =ROUND(VLOOKUP(CONCATENATE(M$5,$C28),'trend data'!$A$2:$O$11161,M$6,FALSE),2) -> 1365733.7
A29: 202104 | B29: 2021-12-01 | C29: =CONCATENATE(A29,'ECOLI Data and Charts'!B$1) -> 202104Scotland | D29: =IFERROR(VLOOKUP(CONCATENATE(D$5,$C29),'trend data'!$A$2:$O$11161,D$6,FALSE),"-") -> 509 | E29: =ROUND(VLOOKUP(CONCATENATE(E$5,$C29),'trend data'!$A$2:$O$11161,E$6,FALSE),4) -> 34.074 | F29: =ROUND(VLOOKUP(CONCATENATE(F$5,$C29),'trend data'!$A$2:$O$11161,F$6,FALSE),4) -> 31.1777 | G29: =ROUND(VLOOKUP(CONCATENATE(G$5,$C29),'trend data'!$A$2:$O$11161,G$6,FALSE),4) -> 37.167 | H29: =IFERROR(VLOOKUP(CONCATENATE(H$5,$C29),'trend data'!$A$2:$O$11161,H$6,FALSE),"-") -> 549 | I29: =IFERROR(ROUND(VLOOKUP(CONCATENATE(I$5,$C29),'trend data'!$A$2:$O$11161,I$6,FALSE),4),"-") -> 40.1982 | J29: =IFERROR(ROUND(VLOOKUP(CONCATENATE(J$5,$C29),'trend data'!$A$2:$O$11161,J$6,FALSE),4),"-") -> 36.9054 | K29: =IFERROR(ROUND(VLOOKUP(CONCATENATE(K$5,$C29),'trend data'!$A$2:$O$11161,K$6,FALSE),4),"-") -> 43.7059 | L29: =VLOOKUP(CONCATENATE(L$5,$C29),'trend data'!$A$2:$O$11161,L$6,FALSE) -> 1493807 | M29: =ROUND(VLOOKUP(CONCATENATE(M$5,$C29),'trend data'!$A$2:$O$11161,M$6,FALSE),2) -> 1365733.7
A30: 202201 | B30: 2022-03-01 | C30: =CONCATENATE(A30,'ECOLI Data and Charts'!B$1) -> 202201Scotland | D30: =IFERROR(VLOOKUP(CONCATENATE(D$5,$C30),'trend data'!$A$2:$O$11161,D$6,FALSE),"-") -> 452 | E30: =ROUND(VLOOKUP(CONCATENATE(E$5,$C30),'trend data'!$A$2:$O$11161,E$6,FALSE),4) -> 30.5188 | F30: =ROUND(VLOOKUP(CONCATENATE(F$5,$C30),'trend data'!$A$2:$O$11161,F$6,FALSE),4) -> 27.7697 | G30: =ROUND(VLOOKUP(CONCATENATE(G$5,$C30),'trend data'!$A$2:$O$11161,G$6,FALSE),4) -> 33.4664 | H30: =IFERROR(VLOOKUP(CONCATENATE(H$5,$C30),'trend data'!$A$2:$O$11161,H$6,FALSE),"-") -> 528 | I30: =IFERROR(ROUND(VLOOKUP(CONCATENATE(I$5,$C30),'trend data'!$A$2:$O$11161,I$6,FALSE),4),"-") -> 39.3071 | J30: =IFERROR(ROUND(VLOOKUP(CONCATENATE(J$5,$C30),'trend data'!$A$2:$O$11161,J$6,FALSE),4),"-") -> 36.0253 | K30: =IFERROR(ROUND(VLOOKUP(CONCATENATE(K$5,$C30),'trend data'!$A$2:$O$11161,K$6,FALSE),4),"-") -> 42.8075 | L30: =VLOOKUP(CONCATENATE(L$5,$C30),'trend data'!$A$2:$O$11161,L$6,FALSE) -> 1481054 | M30: =ROUND(VLOOKUP(CONCATENATE(M$5,$C30),'trend data'!$A$2:$O$11161,M$6,FALSE),2) -> 1343268.49
A31: 202202 | B31: 2022-06-01 | C31: =CONCATENATE(A31,'ECOLI Data and Charts'!B$1) -> 202202Scotland | D31: =IFERROR(VLOOKUP(CONCATENATE(D$5,$C31),'trend data'!$A$2:$O$11161,D$6,FALSE),"-") -> 528 | E31: =ROUND(VLOOKUP(CONCATENATE(E$5,$C31),'trend data'!$A$2:$O$11161,E$6,FALSE),4) -> 34.8209 | F31: =ROUND(VLOOKUP(CONCATENATE(F$5,$C31),'trend data'!$A$2:$O$11161,F$6,FALSE),4) -> 31.9136 | G31: =ROUND(VLOOKUP(CONCATENATE(G$5,$C31),'trend data'!$A$2:$O$11161,G$6,FALSE),4) -> 37.9218 | H31: =IFERROR(VLOOKUP(CONCATENATE(H$5,$C31),'trend data'!$A$2:$O$11161,H$6,FALSE),"-") -> 529 | I31: =IFERROR(ROUND(VLOOKUP(CONCATENATE(I$5,$C31),'trend data'!$A$2:$O$11161,I$6,FALSE),4),"-") -> 38.9488 | J31: =IFERROR(ROUND(VLOOKUP(CONCATENATE(J$5,$C31),'trend data'!$A$2:$O$11161,J$6,FALSE),4),"-") -> 35.6999 | K31: =IFERROR(ROUND(VLOOKUP(CONCATENATE(K$5,$C31),'trend data'!$A$2:$O$11161,K$6,FALSE),4),"-") -> 42.4139 | L31: =VLOOKUP(CONCATENATE(L$5,$C31),'trend data'!$A$2:$O$11161,L$6,FALSE) -> 1516331 | M31: =ROUND(VLOOKUP(CONCATENATE(M$5,$C31),'trend data'!$A$2:$O$11161,M$6,FALSE),2) -> 1358193.7
A32: 202203 | B32: 2022-09-30 | C32: =CONCATENATE(A32,'ECOLI Data and Charts'!B$1) -> 202203Scotland | D32: =IFERROR(VLOOKUP(CONCATENATE(D$5,$C32),'trend data'!$A$2:$O$11161,D$6,FALSE),"-") -> 560 | E32: =ROUND(VLOOKUP(CONCATENATE(E$5,$C32),'trend data'!$A$2:$O$11161,E$6,FALSE),4) -> 36.2287 | F32: =ROUND(VLOOKUP(CONCATENATE(F$5,$C32),'trend data'!$A$2:$O$11161,F$6,FALSE),4) -> 33.2897 | G32: =ROUND(VLOOKUP(CONCATENATE(G$5,$C32),'trend data'!$A$2:$O$11161,G$6,FALSE),4) -> 39.3575 | H32: =IFERROR(VLOOKUP(CONCATENATE(H$5,$C32),'trend data'!$A$2:$O$11161,H$6,FALSE),"-") -> 577 | I32: =IFERROR(ROUND(VLOOKUP(CONCATENATE(I$5,$C32),'trend data'!$A$2:$O$11161,I$6,FALSE),4),"-") -> 42.0211 | J32: =IFERROR(ROUND(VLOOKUP(CONCATENATE(J$5,$C32),'trend data'!$A$2:$O$11161,J$6,FALSE),4),"-") -> 38.6618 | K32: =IFERROR(ROUND(VLOOKUP(CONCATENATE(K$5,$C32),'trend data'!$A$2:$O$11161,K$6,FALSE),4),"-") -> 45.5942 | L32: =VLOOKUP(CONCATENATE(L$5,$C32),'trend data'!$A$2:$O$11161,L$6,FALSE) -> 1545737 | M32: =ROUND(VLOOKUP(CONCATENATE(M$5,$C32),'trend data'!$A$2:$O$11161,M$6,FALSE),2) -> 1373118.9
A33: 202204 | B33: 2022-12-31 | C33: =CONCATENATE(A33,'ECOLI Data and Charts'!B$1) -> 202204Scotland | D33: =IFERROR(VLOOKUP(CONCATENATE(D$5,$C33),'trend data'!$A$2:$O$11161,D$6,FALSE),"-") -> 549 | E33: =ROUND(VLOOKUP(CONCATENATE(E$5,$C33),'trend data'!$A$2:$O$11161,E$6,FALSE),4) -> 34.9893 | F33: =ROUND(VLOOKUP(CONCATENATE(F$5,$C33),'trend data'!$A$2:$O$11161,F$6,FALSE),4) -> 32.1232 | G33: =ROUND(VLOOKUP(CONCATENATE(G$5,$C33),'trend data'!$A$2:$O$11161,G$6,FALSE),4) -> 38.0425 | H33: =IFERROR(VLOOKUP(CONCATENATE(H$5,$C33),'trend data'!$A$2:$O$11161,H$6,FALSE),"-") -> 495 | I33: =IFERROR(ROUND(VLOOKUP(CONCATENATE(I$5,$C33),'trend data'!$A$2:$O$11161,I$6,FALSE),4),"-") -> 36.0493 | J33: =IFERROR(ROUND(VLOOKUP(CONCATENATE(J$5,$C33),'trend data'!$A$2:$O$11161,J$6,FALSE),4),"-") -> 32.943 | K33: =IFERROR(ROUND(VLOOKUP(CONCATENATE(K$5,$C33),'trend data'!$A$2:$O$11161,K$6,FALSE),4),"-") -> 39.3696 | L33: =VLOOKUP(CONCATENATE(L$5,$C33),'trend data'!$A$2:$O$11161,L$6,FALSE) -> 1569052 | M33: =ROUND(VLOOKUP(CONCATENATE(M$5,$C33),'trend data'!$A$2:$O$11161,M$6,FALSE),2) -> 1373118.9
A34: 202301 | B34: 2023-03-31 | C34: =CONCATENATE(A34,'ECOLI Data and Charts'!B$1) -> 202301Scotland | D34: =IFERROR(VLOOKUP(CONCATENATE(D$5,$C34),'trend data'!$A$2:$O$11161,D$6,FALSE),"-") -> 588 | E34: =ROUND(VLOOKUP(CONCATENATE(E$5,$C34),'trend data'!$A$2:$O$11161,E$6,FALSE),4) -> 37.4781 | F34: =ROUND(VLOOKUP(CONCATENATE(F$5,$C34),'trend data'!$A$2:$O$11161,F$6,FALSE),4) -> 34.5096 | G34: =ROUND(VLOOKUP(CONCATENATE(G$5,$C34),'trend data'!$A$2:$O$11161,G$6,FALSE),4) -> 40.6337 | H34: =IFERROR(VLOOKUP(CONCATENATE(H$5,$C34),'trend data'!$A$2:$O$11161,H$6,FALSE),"-") -> 497 | I34: =IFERROR(ROUND(VLOOKUP(CONCATENATE(I$5,$C34),'trend data'!$A$2:$O$11161,I$6,FALSE),4),"-") -> 36.9993 | J34: =IFERROR(ROUND(VLOOKUP(CONCATENATE(J$5,$C34),'trend data'!$A$2:$O$11161,J$6,FALSE),4),"-") -> 33.8174 | K34: =IFERROR(ROUND(VLOOKUP(CONCATENATE(K$5,$C34),'trend data'!$A$2:$O$11161,K$6,FALSE),4),"-") -> 40.3999 | L34: =VLOOKUP(CONCATENATE(L$5,$C34),'trend data'!$A$2:$O$11161,L$6,FALSE) -> 1568916 | M34: =ROUND(VLOOKUP(CONCATENATE(M$5,$C34),'trend data'!$A$2:$O$11161,M$6,FALSE),2) -> 1343268.49
A35: 202302 | B35: 2023-06-30 | C35: =CONCATENATE(A35,'ECOLI Data and Charts'!B$1) -> 202302Scotland | D35: =IFERROR(VLOOKUP(CONCATENATE(D$5,$C35),'trend data'!$A$2:$O$11161,D$6,FALSE),"-") -> 581 | E35: =ROUND(VLOOKUP(CONCATENATE(E$5,$C35),'trend data'!$A$2:$O$11161,E$6,FALSE),4) -> 37.6134 | F35: =ROUND(VLOOKUP(CONCATENATE(F$5,$C35),'trend data'!$A$2:$O$11161,F$6,FALSE),4) -> 34.6166 | G35: =ROUND(VLOOKUP(CONCATENATE(G$5,$C35),'trend data'!$A$2:$O$11161,G$6,FALSE),4) -> 40.8002 | H35: =IFERROR(VLOOKUP(CONCATENATE(H$5,$C35),'trend data'!$A$2:$O$11161,H$6,FALSE),"-") -> 502 | I35: =IFERROR(ROUND(VLOOKUP(CONCATENATE(I$5,$C35),'trend data'!$A$2:$O$11161,I$6,FALSE),4),"-") -> 36.9609 | J35: =IFERROR(ROUND(VLOOKUP(CONCATENATE(J$5,$C35),'trend data'!$A$2:$O$11161,J$6,FALSE),4),"-") -> 33.7978 | K35: =IFERROR(ROUND(VLOOKUP(CONCATENATE(K$5,$C35),'trend data'!$A$2:$O$11161,K$6,FALSE),4),"-") -> 40.3402 | L35: =VLOOKUP(CONCATENATE(L$5,$C35),'trend data'!$A$2:$O$11161,L$6,FALSE) -> 1544662 | M35: =ROUND(VLOOKUP(CONCATENATE(M$5,$C35),'trend data'!$A$2:$O$11161,M$6,FALSE),2) -> 1358193.7
A36: 202303 | B36: 2023-09-30 | C36: =CONCATENATE(A36,'ECOLI Data and Charts'!B$1) -> 202303Scotland | D36: =IFERROR(VLOOKUP(CONCATENATE(D$5,$C36),'trend data'!$A$2:$O$11161,D$6,FALSE),"-") -> 580 | E36: =ROUND(VLOOKUP(CONCATENATE(E$5,$C36),'trend data'!$A$2:$O$11161,E$6,FALSE),4) -> 37.7171 | F36: =ROUND(VLOOKUP(CONCATENATE(F$5,$C36),'trend data'!$A$2:$O$11161,F$6,FALSE),4) -> 34.7095 | G36: =ROUND(VLOOKUP(CONCATENATE(G$5,$C36),'trend data'!$A$2:$O$11161,G$6,FALSE),4) -> 40.9155 | H36: =IFERROR(VLOOKUP(CONCATENATE(H$5,$C36),'trend data'!$A$2:$O$11161,H$6,FALSE),"-") -> 575 | I36: =IFERROR(ROUND(VLOOKUP(CONCATENATE(I$5,$C36),'trend data'!$A$2:$O$11161,I$6,FALSE),4),"-") -> 41.8755 | J36: =IFERROR(ROUND(VLOOKUP(CONCATENATE(J$5,$C36),'trend data'!$A$2:$O$11161,J$6,FALSE),4),"-") -> 38.5221 | K36: =IFERROR(ROUND(VLOOKUP(CONCATENATE(K$5,$C36),'trend data'!$A$2:$O$11161,K$6,FALSE),4),"-") -> 45.4426 | L36: =VLOOKUP(CONCATENATE(L$5,$C36),'trend data'!$A$2:$O$11161,L$6,FALSE) -> 1537764 | M36: =ROUND(VLOOKUP(CONCATENATE(M$5,$C36),'trend data'!$A$2:$O$11161,M$6,FALSE),2) -> 1373118.9
A37: 202304 | B37: 2023-12-31 | C37: =CONCATENATE(A37,'ECOLI Data and Charts'!B$1) -> 202304Scotland | D37: =IFERROR(VLOOKUP(CONCATENATE(D$5,$C37),'trend data'!$A$2:$O$11161,D$6,FALSE),"-") -> 544 | E37: =ROUND(VLOOKUP(CONCATENATE(E$5,$C37),'trend data'!$A$2:$O$11161,E$6,FALSE),4) -> 34.7345 | F37: =ROUND(VLOOKUP(CONCATENATE(F$5,$C37),'trend data'!$A$2:$O$11161,F$6,FALSE),4) -> 31.8765 | G37: =ROUND(VLOOKUP(CONCATENATE(G$5,$C37),'trend data'!$A$2:$O$11161,G$6,FALSE),4) -> 37.7799 | H37: =IFERROR(VLOOKUP(CONCATENATE(H$5,$C37),'trend data'!$A$2:$O$11161,H$6,FALSE),"-") -> 442 | I37: =IFERROR(ROUND(VLOOKUP(CONCATENATE(I$5,$C37),'trend data'!$A$2:$O$11161,I$6,FALSE),4),"-") -> 32.1895 | J37: =IFERROR(ROUND(VLOOKUP(CONCATENATE(J$5,$C37),'trend data'!$A$2:$O$11161,J$6,FALSE),4),"-") -> 29.258 | K37: =IFERROR(ROUND(VLOOKUP(CONCATENATE(K$5,$C37),'trend data'!$A$2:$O$11161,K$6,FALSE),4),"-") -> 35.3351 | L37: =VLOOKUP(CONCATENATE(L$5,$C37),'trend data'!$A$2:$O$11161,L$6,FALSE) -> 1566168 | M37: =ROUND(VLOOKUP(CONCATENATE(M$5,$C37),'trend data'!$A$2:$O$11161,M$6,FALSE),2) -> 1373118.9
A38: 202401 | B38: 2024-03-31 | C38: =CONCATENATE(A38,'ECOLI Data and Charts'!B$1) -> 202401Scotland | D38: =IFERROR(VLOOKUP(CONCATENATE(D$5,$C38),'trend data'!$A$2:$O$11161,D$6,FALSE),"-") -> 565 | E38: =ROUND(VLOOKUP(CONCATENATE(E$5,$C38),'trend data'!$A$2:$O$11161,E$6,FALSE),4) -> 35.5187 | F38: =ROUND(VLOOKUP(CONCATENATE(F$5,$C38),'trend data'!$A$2:$O$11161,F$6,FALSE),4) -> 32.6499 | G38: =ROUND(VLOOKUP(CONCATENATE(G$5,$C38),'trend data'!$A$2:$O$11161,G$6,FALSE),4) -> 38.5721 | H38: =IFERROR(VLOOKUP(CONCATENATE(H$5,$C38),'trend data'!$A$2:$O$11161,H$6,FALSE),"-") -> 504 | I38: =IFERROR(ROUND(VLOOKUP(CONCATENATE(I$5,$C38),'trend data'!$A$2:$O$11161,I$6,FALSE),4),"-") -> 37.2098 | J38: =IFERROR(ROUND(VLOOKUP(CONCATENATE(J$5,$C38),'trend data'!$A$2:$O$11161,J$6,FALSE),4),"-") -> 34.0316 | K38: =IFERROR(ROUND(VLOOKUP(CONCATENATE(K$5,$C38),'trend data'!$A$2:$O$11161,K$6,FALSE),4),"-") -> 40.6048 | L38: =VLOOKUP(CONCATENATE(L$5,$C38),'trend data'!$A$2:$O$11161,L$6,FALSE) -> 1590711 | M38: =ROUND(VLOOKUP(CONCATENATE(M$5,$C38),'trend data'!$A$2:$O$11161,M$6,FALSE),2) -> 1354482.79
A39: 202402 | B39: 2024-06-30 | C39: =CONCATENATE(A39,'ECOLI Data and Charts'!B$1) -> 202402Scotland | D39: =IFERROR(VLOOKUP(CONCATENATE(D$5,$C39),'trend data'!$A$2:$O$11161,D$6,FALSE),"-") -> 614 | E39: =ROUND(VLOOKUP(CONCATENATE(E$5,$C39),'trend data'!$A$2:$O$11161,E$6,FALSE),4) -> 39.4329 | F39: =ROUND(VLOOKUP(CONCATENATE(F$5,$C39),'trend data'!$A$2:$O$11161,F$6,FALSE),4) -> 36.375 | G39: =ROUND(VLOOKUP(CONCATENATE(G$5,$C39),'trend data'!$A$2:$O$11161,G$6,FALSE),4) -> 42.6792 | H39: =IFERROR(VLOOKUP(CONCATENATE(H$5,$C39),'trend data'!$A$2:$O$11161,H$6,FALSE),"-") -> 490 | I39: =IFERROR(ROUND(VLOOKUP(CONCATENATE(I$5,$C39),'trend data'!$A$2:$O$11161,I$6,FALSE),4),"-") -> 36.1762 | J39: =IFERROR(ROUND(VLOOKUP(CONCATENATE(J$5,$C39),'trend data'!$A$2:$O$11161,J$6,FALSE),4),"-") -> 33.0434 | K39: =IFERROR(ROUND(VLOOKUP(CONCATENATE(K$5,$C39),'trend data'!$A$2:$O$11161,K$6,FALSE),4),"-") -> 39.5258 | L39: =VLOOKUP(CONCATENATE(L$5,$C39),'trend data'!$A$2:$O$11161,L$6,FALSE) -> 1557075 | M39: =ROUND(VLOOKUP(CONCATENATE(M$5,$C39),'trend data'!$A$2:$O$11161,M$6,FALSE),2) -> 1354482.79

Sheet SSI data (hidden)
A1: Trend data | Q1: data for u-charts
A3: add a new line for current quarter
T4: change this
D5: SSICSEC | E5: SSICSEC | F5: SSICSEC | G5: SSICSEC | H5: SSIHIP | I5: SSIHIP | J5: SSIHIP | K5: SSIHIP | L5: SSICSEC | M5: SSIHIP | S5: current quarter end | T5: 2024-06-30 | U5: 3 | V5: 4 | W5: 5 | X5: 6 | Z5: 3 | AA5: 4 | AB5: 5 | AC5: 6
D6: 2 | E6: 4 | F6: 5 | G6: 6 | H6: 2 | I6: 4 | J6: 5 | K6: 6 | L6: 3 | M6: 3
C7: ref | D7: C SEC cases | E7: C SEC prop | F7: C SEC_lower_CI | G7: C SEC_upper_CI | H7: HIP cases | I7: HIP prop | J7: HIP_lower_CI | K7: HIP_upper_CI | L7: C SEC OPS | M7: HIP OPS | U7: SSICSEC | Z7: SSIHIP
A8: 201401 | B8: 2014-03-24 | C8: =CONCATENATE(A8,'SSI Data and Charts'!B$1) -> 201401Scotland | D8: =IFERROR(VLOOKUP(CONCATENATE(D$5,$C8),'trend data'!$A$2:$O$11161,D$6,FALSE),"-") -> 61 | E8: =IFERROR(ROUND(VLOOKUP(CONCATENATE(E$5,$C8),'trend data'!$A$2:$O$11161,E$6,FALSE),3),"-") -> 1.526 | F8: =IFERROR(ROUND(VLOOKUP(CONCATENATE(F$5,$C8),'trend data'!$A$2:$O$11161,F$6,FALSE),3),"-") -> 1.19 | G8: =IFERROR(ROUND(VLOOKUP(CONCATENATE(G$5,$C8),'trend data'!$A$2:$O$11161,G$6,FALSE),3),"-") -> 1.955 | H8: =IFERROR(VLOOKUP(CONCATENATE(H$5,$C8),'trend data'!$A$2:$O$11161,H$6,FALSE),"-") -> 16 | I8: =IFERROR(ROUND(VLOOKUP(CONCATENATE(I$5,$C8),'trend data'!$A$2:$O$11161,I$6,FALSE),3),"-") -> 0.76 | J8: =IFERROR(ROUND(VLOOKUP(CONCATENATE(J$5,$C8),'trend data'!$A$2:$O$11161,J$6,FALSE),3),"-") -> 0.468 | K8: =IFERROR(ROUND(VLOOKUP(CONCATENATE(K$5,$C8),'trend data'!$A$2:$O$11161,K$6,FALSE),3),"-") -> 1.231 | L8: =IFERROR(VLOOKUP(CONCATENATE(L$5,$C8),'trend data'!$A$2:$O$11161,L$6,FALSE),"-") -> 3998 | M8: =IFERROR(VLOOKUP(CONCATENATE(M$5,$C8),'trend data'!$A$2:$O$11161,M$6,FALSE),"-") -> 2106 | Q8: change to last 12 quarters | U8: C SEC prop | V8: C SEC av prop | W8: C SEC UWL 2sd | X8: C SEC UCL 3sd | Z8: HIP prop | AA8: HIP av prop | AB8: HIP UWL 2sd | AC8: HIP UCL 3 sd
A9: 201402 | B9: 2014-06-27 | C9: =CONCATENATE(A9,'SSI Data and Charts'!B$1) -> 201402Scotland | D9: =IFERROR(VLOOKUP(CONCATENATE(D$5,$C9),'trend data'!$A$2:$O$11161,D$6,FALSE),"-") -> 58 | E9: =IFERROR(ROUND(VLOOKUP(CONCATENATE(E$5,$C9),'trend data'!$A$2:$O$11161,E$6,FALSE),3),"-") -> 1.414 | F9: =IFERROR(ROUND(VLOOKUP(CONCATENATE(F$5,$C9),'trend data'!$A$2:$O$11161,F$6,FALSE),3),"-") -> 1.095 | G9: =IFERROR(ROUND(VLOOKUP(CONCATENATE(G$5,$C9),'trend data'!$A$2:$O$11161,G$6,FALSE),3),"-") -> 1.823 | H9: =IFERROR(VLOOKUP(CONCATENATE(H$5,$C9),'trend data'!$A$2:$O$11161,H$6,FALSE),"-") -> 13 | I9: =IFERROR(ROUND(VLOOKUP(CONCATENATE(I$5,$C9),'trend data'!$A$2:$O$11161,I$6,FALSE),3),"-") -> 0.62 | J9: =IFERROR(ROUND(VLOOKUP(CONCATENATE(J$5,$C9),'trend data'!$A$2:$O$11161,J$6,FALSE),3),"-") -> 0.362 | K9: =IFERROR(ROUND(VLOOKUP(CONCATENATE(K$5,$C9),'trend data'!$A$2:$O$11161,K$6,FALSE),3),"-") -> 1.057 | L9: =IFERROR(VLOOKUP(CONCATENATE(L$5,$C9),'trend data'!$A$2:$O$11161,L$6,FALSE),"-") -> 4103 | M9: =IFERROR(VLOOKUP(CONCATENATE(M$5,$C9),'trend data'!$A$2:$O$11161,M$6,FALSE),"-") -> 2098 | Q9: =YEAR(T9)&"0"&IF(MONTH(T9)<4,1,IF(MONTH(T9)<7,2,IF(MONTH(T9)<10,3,4))) -> 202103 | R9: =CONCATENATE(U$7,$Q9,'SSI Data and Charts'!B$1) -> SSICSEC202103Scotland | S9: 1 | T9: =T10-92 -> 2021-09-22 | U9: =ROUND(VLOOKUP($R9,'data for u-p-charts'!$A$2:$F$5000,U$5,FALSE),2) ->  | V9: =ROUND(VLOOKUP($R9,'data for u-p-charts'!$A$2:$F$5000,V$5,FALSE),2) ->  | W9: =ROUND(VLOOKUP($R9,'data for u-p-charts'!$A$2:$F$5000,W$5,FALSE),2) ->  | X9: =ROUND(VLOOKUP($R9,'data for u-p-charts'!$A$2:$F$5000,X$5,FALSE),2) ->  | Y9: =CONCATENATE(Z$7,$Q9,'SSI Data and Charts'!$B$1) -> SSIHIP202103Scotland | Z9: =ROUND(VLOOKUP($Y9,'data for u-p-charts'!$A$2:$F$5000,Z$5,FALSE),2) ->  | AA9: =ROUND(VLOOKUP($Y9,'data for u-p-charts'!$A$2:$F$5000,AA$5,FALSE),2) ->  | AB9: =ROUND(VLOOKUP($Y9,'data for u-p-charts'!$A$2:$F$5000,AB$5,FALSE),2) ->  | AC9: =ROUND(VLOOKUP($Y9,'data for u-p-charts'!$A$2:$F$5000,AC$5,FALSE),2) -> 
A10: 201403 | B10: 2014-09-30 | C10: =CONCATENATE(A10,'SSI Data and Charts'!B$1) -> 201403Scotland | D10: =IFERROR(VLOOKUP(CONCATENATE(D$5,$C10),'trend data'!$A$2:$O$11161,D$6,FALSE),"-") -> 58 | E10: =IFERROR(ROUND(VLOOKUP(CONCATENATE(E$5,$C10),'trend data'!$A$2:$O$11161,E$6,FALSE),3),"-") -> 1.271 | F10: =IFERROR(ROUND(VLOOKUP(CONCATENATE(F$5,$C10),'trend data'!$A$2:$O$11161,F$6,FALSE),3),"-") -> 0.985 | G10: =IFERROR(ROUND(VLOOKUP(CONCATENATE(G$5,$C10),'trend data'!$A$2:$O$11161,G$6,FALSE),3),"-") -> 1.64 | H10: =IFERROR(VLOOKUP(CONCATENATE(H$5,$C10),'trend data'!$A$2:$O$11161,H$6,FALSE),"-") -> 16 | I10: =IFERROR(ROUND(VLOOKUP(CONCATENATE(I$5,$C10),'trend data'!$A$2:$O$11161,I$6,FALSE),3),"-") -> 0.753 | J10: =IFERROR(ROUND(VLOOKUP(CONCATENATE(J$5,$C10),'trend data'!$A$2:$O$11161,J$6,FALSE),3),"-") -> 0.464 | K10: =IFERROR(ROUND(VLOOKUP(CONCATENATE(K$5,$C10),'trend data'!$A$2:$O$11161,K$6,FALSE),3),"-") -> 1.22 | L10: =IFERROR(VLOOKUP(CONCATENATE(L$5,$C10),'trend data'!$A$2:$O$11161,L$6,FALSE),"-") -> 4563 | M10: =IFERROR(VLOOKUP(CONCATENATE(M$5,$C10),'trend data'!$A$2:$O$11161,M$6,FALSE),"-") -> 2125 | Q10: =YEAR(T10)&"0"&IF(MONTH(T10)<4,1,IF(MONTH(T10)<7,2,IF(MONTH(T10)<10,3,4))) -> 202104 | R10: =CONCATENATE(U$7,$Q10,'SSI Data and Charts'!B$1) -> SSICSEC202104Scotland | S10: 2 | T10: 2021-12-23 | U10: =ROUND(VLOOKUP($R10,'data for u-p-charts'!$A$2:$F$5000,U$5,FALSE),2) ->  | V10: =ROUND(VLOOKUP($R10,'data for u-p-charts'!$A$2:$F$5000,V$5,FALSE),2) ->  | W10: =ROUND(VLOOKUP($R10,'data for u-p-charts'!$A$2:$F$5000,W$5,FALSE),2) ->  | X10: =ROUND(VLOOKUP($R10,'data for u-p-charts'!$A$2:$F$5000,X$5,FALSE),2) ->  | Y10: =CONCATENATE(Z$7,$Q10,'SSI Data and Charts'!$B$1) -> SSIHIP202104Scotland | Z10: =ROUND(VLOOKUP($Y10,'data for u-p-charts'!$A$2:$F$5000,Z$5,FALSE),2) ->  | AA10: =ROUND(VLOOKUP($Y10,'data for u-p-charts'!$A$2:$F$5000,AA$5,FALSE),2) ->  | AB10: =ROUND(VLOOKUP($Y10,'data for u-p-charts'!$A$2:$F$5000,AB$5,FALSE),2) ->  | AC10: =ROUND(VLOOKUP($Y10,'data for u-p-charts'!$A$2:$F$5000,AC$5,FALSE),2) -> 
A11: 201404 | B11: 2014-12-19 | C11: =CONCATENATE(A11,'SSI Data and Charts'!B$1) -> 201404Scotland | D11: =IFERROR(VLOOKUP(CONCATENATE(D$5,$C11),'trend data'!$A$2:$O$11161,D$6,FALSE),"-") -> 61 | E11: =IFERROR(ROUND(VLOOKUP(CONCATENATE(E$5,$C11),'trend data'!$A$2:$O$11161,E$6,FALSE),3),"-") -> 1.432 | F11: =IFERROR(ROUND(VLOOKUP(CONCATENATE(F$5,$C11),'trend data'!$A$2:$O$11161,F$6,FALSE),3),"-") -> 1.116 | G11: =IFERROR(ROUND(VLOOKUP(CONCATENATE(G$5,$C11),'trend data'!$A$2:$O$11161,G$6,FALSE),3),"-") -> 1.835 | H11: =IFERROR(VLOOKUP(CONCATENATE(H$5,$C11),'trend data'!$A$2:$O$11161,H$6,FALSE),"-") -> 12 | I11: =IFERROR(ROUND(VLOOKUP(CONCATENATE(I$5,$C11),'trend data'!$A$2:$O$11161,I$6,FALSE),3),"-") -> 0.608 | J11: =IFERROR(ROUND(VLOOKUP(CONCATENATE(J$5,$C11),'trend data'!$A$2:$O$11161,J$6,FALSE),3),"-") -> 0.348 | K11: =IFERROR(ROUND(VLOOKUP(CONCATENATE(K$5,$C11),'trend data'!$A$2:$O$11161,K$6,FALSE),3),"-") -> 1.06 | L11: =IFERROR(VLOOKUP(CONCATENATE(L$5,$C11),'trend data'!$A$2:$O$11161,L$6,FALSE),"-") -> 4261 | M11: =IFERROR(VLOOKUP(CONCATENATE(M$5,$C11),'trend data'!$A$2:$O$11161,M$6,FALSE),"-") -> 1974 | Q11: 202201 | R11: =CONCATENATE(U$7,$Q11,'SSI Data and Charts'!B$1) -> SSICSEC202201Scotland | S11: 3 | T11: 2022-03-25 | U11: =ROUND(VLOOKUP($R11,'data for u-p-charts'!$A$2:$F$5000,U$5,FALSE),2) ->  | V11: =ROUND(VLOOKUP($R11,'data for u-p-charts'!$A$2:$F$5000,V$5,FALSE),2) ->  | W11: =ROUND(VLOOKUP($R11,'data for u-p-charts'!$A$2:$F$5000,W$5,FALSE),2) ->  | X11: =ROUND(VLOOKUP($R11,'data for u-p-charts'!$A$2:$F$5000,X$5,FALSE),2) ->  | Y11: =CONCATENATE(Z$7,$Q11,'SSI Data and Charts'!$B$1) -> SSIHIP202201Scotland | Z11: =ROUND(VLOOKUP($Y11,'data for u-p-charts'!$A$2:$F$5000,Z$5,FALSE),2) ->  | AA11: =ROUND(VLOOKUP($Y11,'data for u-p-charts'!$A$2:$F$5000,AA$5,FALSE),2) ->  | AB11: =ROUND(VLOOKUP($Y11,'data for u-p-charts'!$A$2:$F$5000,AB$5,FALSE),2) ->  | AC11: =ROUND(VLOOKUP($Y11,'data for u-p-charts'!$A$2:$F$5000,AC$5,FALSE),2) -> 
A12: 201501 | B12: 2015-03-24 | C12: =CONCATENATE(A12,'SSI Data and Charts'!B$1) -> 201501Scotland | D12: =IFERROR(VLOOKUP(CONCATENATE(D$5,$C12),'trend data'!$A$2:$O$11161,D$6,FALSE),"-") -> 47 | E12: =IFERROR(ROUND(VLOOKUP(CONCATENATE(E$5,$C12),'trend data'!$A$2:$O$11161,E$6,FALSE),3),"-") -> 1.185 | F12: =IFERROR(ROUND(VLOOKUP(CONCATENATE(F$5,$C12),'trend data'!$A$2:$O$11161,F$6,FALSE),3),"-") -> 0.892 | G12: =IFERROR(ROUND(VLOOKUP(CONCATENATE(G$5,$C12),'trend data'!$A$2:$O$11161,G$6,FALSE),3),"-") -> 1.572 | H12: =IFERROR(VLOOKUP(CONCATENATE(H$5,$C12),'trend data'!$A$2:$O$11161,H$6,FALSE),"-") -> 18 | I12: =IFERROR(ROUND(VLOOKUP(CONCATENATE(I$5,$C12),'trend data'!$A$2:$O$11161,I$6,FALSE),3),"-") -> 0.919 | J12: =IFERROR(ROUND(VLOOKUP(CONCATENATE(J$5,$C12),'trend data'!$A$2:$O$11161,J$6,FALSE),3),"-") -> 0.582 | K12: =IFERROR(ROUND(VLOOKUP(CONCATENATE(K$5,$C12),'trend data'!$A$2:$O$11161,K$6,FALSE),3),"-") -> 1.448 | L12: =IFERROR(VLOOKUP(CONCATENATE(L$5,$C12),'trend data'!$A$2:$O$11161,L$6,FALSE),"-") -> 3966 | M12: =IFERROR(VLOOKUP(CONCATENATE(M$5,$C12),'trend data'!$A$2:$O$11161,M$6,FALSE),"-") -> 1959 | Q12: 202202 | R12: =CONCATENATE(U$7,$Q12,'SSI Data and Charts'!B$1) -> SSICSEC202202Scotland | S12: 4 | T12: 2022-06-25 | U12: =ROUND(VLOOKUP($R12,'data for u-p-charts'!$A$2:$F$5000,U$5,FALSE),2) ->  | V12: =ROUND(VLOOKUP($R12,'data for u-p-charts'!$A$2:$F$5000,V$5,FALSE),2) ->  | W12: =ROUND(VLOOKUP($R12,'data for u-p-charts'!$A$2:$F$5000,W$5,FALSE),2) ->  | X12: =ROUND(VLOOKUP($R12,'data for u-p-charts'!$A$2:$F$5000,X$5,FALSE),2) ->  | Y12: =CONCATENATE(Z$7,$Q12,'SSI Data and Charts'!$B$1) -> SSIHIP202202Scotland | Z12: =ROUND(VLOOKUP($Y12,'data for u-p-charts'!$A$2:$F$5000,Z$5,FALSE),2) ->  | AA12: =ROUND(VLOOKUP($Y12,'data for u-p-charts'!$A$2:$F$5000,AA$5,FALSE),2) ->  | AB12: =ROUND(VLOOKUP($Y12,'data for u-p-charts'!$A$2:$F$5000,AB$5,FALSE),2) ->  | AC12: =ROUND(VLOOKUP($Y12,'data for u-p-charts'!$A$2:$F$5000,AC$5,FALSE),2) -> 
A13: 201502 | B13: 2015-06-24 | C13: =CONCATENATE(A13,'SSI Data and Charts'!B$1) -> 201502Scotland | D13: =IFERROR(VLOOKUP(CONCATENATE(D$5,$C13),'trend data'!$A$2:$O$11161,D$6,FALSE),"-") -> 56 | E13: =IFERROR(ROUND(VLOOKUP(CONCATENATE(E$5,$C13),'trend data'!$A$2:$O$11161,E$6,FALSE),3),"-") -> 1.285 | F13: =IFERROR(ROUND(VLOOKUP(CONCATENATE(F$5,$C13),'trend data'!$A$2:$O$11161,F$6,FALSE),3),"-") -> 0.991 | G13: =IFERROR(ROUND(VLOOKUP(CONCATENATE(G$5,$C13),'trend data'!$A$2:$O$11161,G$6,FALSE),3),"-") -> 1.665 | H13: =IFERROR(VLOOKUP(CONCATENATE(H$5,$C13),'trend data'!$A$2:$O$11161,H$6,FALSE),"-") -> 18 | I13: =IFERROR(ROUND(VLOOKUP(CONCATENATE(I$5,$C13),'trend data'!$A$2:$O$11161,I$6,FALSE),3),"-") -> 0.834 | J13: =IFERROR(ROUND(VLOOKUP(CONCATENATE(J$5,$C13),'trend data'!$A$2:$O$11161,J$6,FALSE),3),"-") -> 0.528 | K13: =IFERROR(ROUND(VLOOKUP(CONCATENATE(K$5,$C13),'trend data'!$A$2:$O$11161,K$6,FALSE),3),"-") -> 1.314 | L13: =IFERROR(VLOOKUP(CONCATENATE(L$5,$C13),'trend data'!$A$2:$O$11161,L$6,FALSE),"-") -> 4358 | M13: =IFERROR(VLOOKUP(CONCATENATE(M$5,$C13),'trend data'!$A$2:$O$11161,M$6,FALSE),"-") -> 2159 | Q13: 202203 | R13: =CONCATENATE(U$7,$Q13,'SSI Data and Charts'!B$1) -> SSICSEC202203Scotland | S13: 5 | T13: 2022-09-25 | U13: =ROUND(VLOOKUP($R13,'data for u-p-charts'!$A$2:$F$5000,U$5,FALSE),2) ->  | V13: =ROUND(VLOOKUP($R13,'data for u-p-charts'!$A$2:$F$5000,V$5,FALSE),2) ->  | W13: =ROUND(VLOOKUP($R13,'data for u-p-charts'!$A$2:$F$5000,W$5,FALSE),2) ->  | X13: =ROUND(VLOOKUP($R13,'data for u-p-charts'!$A$2:$F$5000,X$5,FALSE),2) ->  | Y13: =CONCATENATE(Z$7,$Q13,'SSI Data and Charts'!$B$1) -> SSIHIP202203Scotland | Z13: =ROUND(VLOOKUP($Y13,'data for u-p-charts'!$A$2:$F$5000,Z$5,FALSE),2) ->  | AA13: =ROUND(VLOOKUP($Y13,'data for u-p-charts'!$A$2:$F$5000,AA$5,FALSE),2) ->  | AB13: =ROUND(VLOOKUP($Y13,'data for u-p-charts'!$A$2:$F$5000,AB$5,FALSE),2) ->  | AC13: =ROUND(VLOOKUP($Y13,'data for u-p-charts'!$A$2:$F$5000,AC$5,FALSE),2) -> 
A14: 201503 | B14: 2015-09-24 | C14: =CONCATENATE(A14,'SSI Data and Charts'!B$1) -> 201503Scotland | D14: =IFERROR(VLOOKUP(CONCATENATE(D$5,$C14),'trend data'!$A$2:$O$11161,D$6,FALSE),"-") -> 56 | E14: =IFERROR(ROUND(VLOOKUP(CONCATENATE(E$5,$C14),'trend data'!$A$2:$O$11161,E$6,FALSE),3),"-") -> 1.241 | F14: =IFERROR(ROUND(VLOOKUP(CONCATENATE(F$5,$C14),'trend data'!$A$2:$O$11161,F$6,FALSE),3),"-") -> 0.957 | G14: =IFERROR(ROUND(VLOOKUP(CONCATENATE(G$5,$C14),'trend data'!$A$2:$O$11161,G$6,FALSE),3),"-") -> 1.609 | H14: =IFERROR(VLOOKUP(CONCATENATE(H$5,$C14),'trend data'!$A$2:$O$11161,H$6,FALSE),"-") -> 10 | I14: =IFERROR(ROUND(VLOOKUP(CONCATENATE(I$5,$C14),'trend data'!$A$2:$O$11161,I$6,FALSE),3),"-") -> 0.468 | J14: =IFERROR(ROUND(VLOOKUP(CONCATENATE(J$5,$C14),'trend data'!$A$2:$O$11161,J$6,FALSE),3),"-") -> 0.255 | K14: =IFERROR(ROUND(VLOOKUP(CONCATENATE(K$5,$C14),'trend data'!$A$2:$O$11161,K$6,FALSE),3),"-") -> 0.86 | L14: =IFERROR(VLOOKUP(CONCATENATE(L$5,$C14),'trend data'!$A$2:$O$11161,L$6,FALSE),"-") -> 4511 | M14: =IFERROR(VLOOKUP(CONCATENATE(M$5,$C14),'trend data'!$A$2:$O$11161,M$6,FALSE),"-") -> 2135 | Q14: 202204 | R14: =CONCATENATE(U$7,$Q14,'SSI Data and Charts'!B$1) -> SSICSEC202204Scotland | S14: 6 | T14: 2022-12-26 | U14: =ROUND(VLOOKUP($R14,'data for u-p-charts'!$A$2:$F$5000,U$5,FALSE),2) ->  | V14: =ROUND(VLOOKUP($R14,'data for u-p-charts'!$A$2:$F$5000,V$5,FALSE),2) ->  | W14: =ROUND(VLOOKUP($R14,'data for u-p-charts'!$A$2:$F$5000,W$5,FALSE),2) ->  | X14: =ROUND(VLOOKUP($R14,'data for u-p-charts'!$A$2:$F$5000,X$5,FALSE),2) ->  | Y14: =CONCATENATE(Z$7,$Q14,'SSI Data and Charts'!$B$1) -> SSIHIP202204Scotland | Z14: =ROUND(VLOOKUP($Y14,'data for u-p-charts'!$A$2:$F$5000,Z$5,FALSE),2) ->  | AA14: =ROUND(VLOOKUP($Y14,'data for u-p-charts'!$A$2:$F$5000,AA$5,FALSE),2) ->  | AB14: =ROUND(VLOOKUP($Y14,'data for u-p-charts'!$A$2:$F$5000,AB$5,FALSE),2) ->  | AC14: =ROUND(VLOOKUP($Y14,'data for u-p-charts'!$A$2:$F$5000,AC$5,FALSE),2) -> 
A15: 201504 | B15: 2015-12-24 | C15: =CONCATENATE(A15,'SSI Data and Charts'!B$1) -> 201504Scotland | D15: =IFERROR(VLOOKUP(CONCATENATE(D$5,$C15),'trend data'!$A$2:$O$11161,D$6,FALSE),"-") -> 60 | E15: =IFERROR(ROUND(VLOOKUP(CONCATENATE(E$5,$C15),'trend data'!$A$2:$O$11161,E$6,FALSE),3),"-") -> 1.395 | F15: =IFERROR(ROUND(VLOOKUP(CONCATENATE(F$5,$C15),'trend data'!$A$2:$O$11161,F$6,FALSE),3),"-") -> 1.086 | G15: =IFERROR(ROUND(VLOOKUP(CONCATENATE(G$5,$C15),'trend data'!$A$2:$O$11161,G$6,FALSE),3),"-") -> 1.792 | H15: =IFERROR(VLOOKUP(CONCATENATE(H$5,$C15),'trend data'!$A$2:$O$11161,H$6,FALSE),"-") -> 15 | I15: =IFERROR(ROUND(VLOOKUP(CONCATENATE(I$5,$C15),'trend data'!$A$2:$O$11161,I$6,FALSE),3),"-") -> 0.685 | J15: =IFERROR(ROUND(VLOOKUP(CONCATENATE(J$5,$C15),'trend data'!$A$2:$O$11161,J$6,FALSE),3),"-") -> 0.415 | K15: =IFERROR(ROUND(VLOOKUP(CONCATENATE(K$5,$C15),'trend data'!$A$2:$O$11161,K$6,FALSE),3),"-") -> 1.127 | L15: =IFERROR(VLOOKUP(CONCATENATE(L$5,$C15),'trend data'!$A$2:$O$11161,L$6,FALSE),"-") -> 4300 | M15: =IFERROR(VLOOKUP(CONCATENATE(M$5,$C15),'trend data'!$A$2:$O$11161,M$6,FALSE),"-") -> 2191 | Q15: 202301 | R15: =CONCATENATE(U$7,$Q15,'SSI Data and Charts'!B$1) -> SSICSEC202301Scotland | S15: 7 | T15: 2023-03-28 | U15: =ROUND(VLOOKUP($R15,'data for u-p-charts'!$A$2:$F$5000,U$5,FALSE),2) ->  | V15: =ROUND(VLOOKUP($R15,'data for u-p-charts'!$A$2:$F$5000,V$5,FALSE),2) ->  | W15: =ROUND(VLOOKUP($R15,'data for u-p-charts'!$A$2:$F$5000,W$5,FALSE),2) ->  | X15: =ROUND(VLOOKUP($R15,'data for u-p-charts'!$A$2:$F$5000,X$5,FALSE),2) ->  | Y15: =CONCATENATE(Z$7,$Q15,'SSI Data and Charts'!$B$1) -> SSIHIP202301Scotland | Z15: =ROUND(VLOOKUP($Y15,'data for u-p-charts'!$A$2:$F$5000,Z$5,FALSE),2) ->  | AA15: =ROUND(VLOOKUP($Y15,'data for u-p-charts'!$A$2:$F$5000,AA$5,FALSE),2) ->  | AB15: =ROUND(VLOOKUP($Y15,'data for u-p-charts'!$A$2:$F$5000,AB$5,FALSE),2) ->  | AC15: =ROUND(VLOOKUP($Y15,'data for u-p-charts'!$A$2:$F$5000,AC$5,FALSE),2) -> 
A16: 201601 | B16: 2016-03-24 | C16: =CONCATENATE(A16,'SSI Data and Charts'!B$1) -> 201601Scotland | D16: =IFERROR(VLOOKUP(CONCATENATE(D$5,$C16),'trend data'!$A$2:$O$11161,D$6,FALSE),"-") -> 58 | E16: =IFERROR(ROUND(VLOOKUP(CONCATENATE(E$5,$C16),'trend data'!$A$2:$O$11161,E$6,FALSE),3),"-") -> 1.442 | F16: =IFERROR(ROUND(VLOOKUP(CONCATENATE(F$5,$C16),'trend data'!$A$2:$O$11161,F$6,FALSE),3),"-") -> 1.117 | G16: =IFERROR(ROUND(VLOOKUP(CONCATENATE(G$5,$C16),'trend data'!$A$2:$O$11161,G$6,FALSE),3),"-") -> 1.859 | H16: =IFERROR(VLOOKUP(CONCATENATE(H$5,$C16),'trend data'!$A$2:$O$11161,H$6,FALSE),"-") -> 7 | I16: =IFERROR(ROUND(VLOOKUP(CONCATENATE(I$5,$C16),'trend data'!$A$2:$O$11161,I$6,FALSE),3),"-") -> 0.322 | J16: =IFERROR(ROUND(VLOOKUP(CONCATENATE(J$5,$C16),'trend data'!$A$2:$O$11161,J$6,FALSE),3),"-") -> 0.156 | K16: =IFERROR(ROUND(VLOOKUP(CONCATENATE(K$5,$C16),'trend data'!$A$2:$O$11161,K$6,FALSE),3),"-") -> 0.663 | L16: =IFERROR(VLOOKUP(CONCATENATE(L$5,$C16),'trend data'!$A$2:$O$11161,L$6,FALSE),"-") -> 4023 | M16: =IFERROR(VLOOKUP(CONCATENATE(M$5,$C16),'trend data'!$A$2:$O$11161,M$6,FALSE),"-") -> 2173 | Q16: 202302 | R16: =CONCATENATE(U$7,$Q16,'SSI Data and Charts'!B$1) -> SSICSEC202302Scotland | S16: 8 | T16: 2023-06-28 | U16: =ROUND(VLOOKUP($R16,'data for u-p-charts'!$A$2:$F$5000,U$5,FALSE),2) ->  | V16: =ROUND(VLOOKUP($R16,'data for u-p-charts'!$A$2:$F$5000,V$5,FALSE),2) ->  | W16: =ROUND(VLOOKUP($R16,'data for u-p-charts'!$A$2:$F$5000,W$5,FALSE),2) ->  | X16: =ROUND(VLOOKUP($R16,'data for u-p-charts'!$A$2:$F$5000,X$5,FALSE),2) ->  | Y16: =CONCATENATE(Z$7,$Q16,'SSI Data and Charts'!$B$1) -> SSIHIP202302Scotland | Z16: =ROUND(VLOOKUP($Y16,'data for u-p-charts'!$A$2:$F$5000,Z$5,FALSE),2) ->  | AA16: =ROUND(VLOOKUP($Y16,'data for u-p-charts'!$A$2:$F$5000,AA$5,FALSE),2) ->  | AB16: =ROUND(VLOOKUP($Y16,'data for u-p-charts'!$A$2:$F$5000,AB$5,FALSE),2) ->  | AC16: =ROUND(VLOOKUP($Y16,'data for u-p-charts'!$A$2:$F$5000,AC$5,FALSE),2) -> 
A17: 201602 | B17: 2016-06-24 | C17: =CONCATENATE(A17,'SSI Data and Charts'!B$1) -> 201602Scotland | D17: =IFERROR(VLOOKUP(CONCATENATE(D$5,$C17),'trend data'!$A$2:$O$11161,D$6,FALSE),"-") -> 78 | E17: =IFERROR(ROUND(VLOOKUP(CONCATENATE(E$5,$C17),'trend data'!$A$2:$O$11161,E$6,FALSE),3),"-") -> 1.754 | F17: =IFERROR(ROUND(VLOOKUP(CONCATENATE(F$5,$C17),'trend data'!$A$2:$O$11161,F$6,FALSE),3),"-") -> 1.407 | G17: =IFERROR(ROUND(VLOOKUP(CONCATENATE(G$5,$C17),'trend data'!$A$2:$O$11161,G$6,FALSE),3),"-") -> 2.183 | H17: =IFERROR(VLOOKUP(CONCATENATE(H$5,$C17),'trend data'!$A$2:$O$11161,H$6,FALSE),"-") -> 17 | I17: =IFERROR(ROUND(VLOOKUP(CONCATENATE(I$5,$C17),'trend data'!$A$2:$O$11161,I$6,FALSE),3),"-") -> 0.733 | J17: =IFERROR(ROUND(VLOOKUP(CONCATENATE(J$5,$C17),'trend data'!$A$2:$O$11161,J$6,FALSE),3),"-") -> 0.458 | K17: =IFERROR(ROUND(VLOOKUP(CONCATENATE(K$5,$C17),'trend data'!$A$2:$O$11161,K$6,FALSE),3),"-") -> 1.171 | L17: =IFERROR(VLOOKUP(CONCATENATE(L$5,$C17),'trend data'!$A$2:$O$11161,L$6,FALSE),"-") -> 4448 | M17: =IFERROR(VLOOKUP(CONCATENATE(M$5,$C17),'trend data'!$A$2:$O$11161,M$6,FALSE),"-") -> 2318 | Q17: 202303 | R17: =CONCATENATE(U$7,$Q17,'SSI Data and Charts'!B$1) -> SSICSEC202303Scotland | S17: 9 | T17: 2023-09-28 | U17: =ROUND(VLOOKUP($R17,'data for u-p-charts'!$A$2:$F$5000,U$5,FALSE),2) ->  | V17: =ROUND(VLOOKUP($R17,'data for u-p-charts'!$A$2:$F$5000,V$5,FALSE),2) ->  | W17: =ROUND(VLOOKUP($R17,'data for u-p-charts'!$A$2:$F$5000,W$5,FALSE),2) ->  | X17: =ROUND(VLOOKUP($R17,'data for u-p-charts'!$A$2:$F$5000,X$5,FALSE),2) ->  | Y17: =CONCATENATE(Z$7,$Q17,'SSI Data and Charts'!$B$1) -> SSIHIP202303Scotland | Z17: =ROUND(VLOOKUP($Y17,'data for u-p-charts'!$A$2:$F$5000,Z$5,FALSE),2) ->  | AA17: =ROUND(VLOOKUP($Y17,'data for u-p-charts'!$A$2:$F$5000,AA$5,FALSE),2) ->  | AB17: =ROUND(VLOOKUP($Y17,'data for u-p-charts'!$A$2:$F$5000,AB$5,FALSE),2) ->  | AC17: =ROUND(VLOOKUP($Y17,'data for u-p-charts'!$A$2:$F$5000,AC$5,FALSE),2) -> 
A18: 201603 | B18: 2016-09-24 | C18: =CONCATENATE(A18,'SSI Data and Charts'!B$1) -> 201603Scotland | D18: =IFERROR(VLOOKUP(CONCATENATE(D$5,$C18),'trend data'!$A$2:$O$11161,D$6,FALSE),"-") -> 71 | E18: =IFERROR(ROUND(VLOOKUP(CONCATENATE(E$5,$C18),'trend data'!$A$2:$O$11161,E$6,FALSE),3),"-") -> 1.597 | F18: =IFERROR(ROUND(VLOOKUP(CONCATENATE(F$5,$C18),'trend data'!$A$2:$O$11161,F$6,FALSE),3),"-") -> 1.268 | G18: =IFERROR(ROUND(VLOOKUP(CONCATENATE(G$5,$C18),'trend data'!$A$2:$O$11161,G$6,FALSE),3),"-") -> 2.009 | H18: =IFERROR(VLOOKUP(CONCATENATE(H$5,$C18),'trend data'!$A$2:$O$11161,H$6,FALSE),"-") -> 14 | I18: =IFERROR(ROUND(VLOOKUP(CONCATENATE(I$5,$C18),'trend data'!$A$2:$O$11161,I$6,FALSE),3),"-") -> 0.65 | J18: =IFERROR(ROUND(VLOOKUP(CONCATENATE(J$5,$C18),'trend data'!$A$2:$O$11161,J$6,FALSE),3),"-") -> 0.388 | K18: =IFERROR(ROUND(VLOOKUP(CONCATENATE(K$5,$C18),'trend data'!$A$2:$O$11161,K$6,FALSE),3),"-") -> 1.089 | L18: =IFERROR(VLOOKUP(CONCATENATE(L$5,$C18),'trend data'!$A$2:$O$11161,L$6,FALSE),"-") -> 4446 | M18: =IFERROR(VLOOKUP(CONCATENATE(M$5,$C18),'trend data'!$A$2:$O$11161,M$6,FALSE),"-") -> 2153 | Q18: 202304 | R18: =CONCATENATE(U$7,$Q18,'SSI Data and Charts'!B$1) -> SSICSEC202304Scotland | S18: 10 | T18: 2023-12-29 | U18: =ROUND(VLOOKUP($R18,'data for u-p-charts'!$A$2:$F$5000,U$5,FALSE),2) ->  | V18: =ROUND(VLOOKUP($R18,'data for u-p-charts'!$A$2:$F$5000,V$5,FALSE),2) ->  | W18: =ROUND(VLOOKUP($R18,'data for u-p-charts'!$A$2:$F$5000,W$5,FALSE),2) ->  | X18: =ROUND(VLOOKUP($R18,'data for u-p-charts'!$A$2:$F$5000,X$5,FALSE),2) ->  | Y18: =CONCATENATE(Z$7,$Q18,'SSI Data and Charts'!$B$1) -> SSIHIP202304Scotland | Z18: =ROUND(VLOOKUP($Y18,'data for u-p-charts'!$A$2:$F$5000,Z$5,FALSE),2) ->  | AA18: =ROUND(VLOOKUP($Y18,'data for u-p-charts'!$A$2:$F$5000,AA$5,FALSE),2) ->  | AB18: =ROUND(VLOOKUP($Y18,'data for u-p-charts'!$A$2:$F$5000,AB$5,FALSE),2) ->  | AC18: =ROUND(VLOOKUP($Y18,'data for u-p-charts'!$A$2:$F$5000,AC$5,FALSE),2) -> 
A19: 201604 | B19: 2016-12-24 | C19: =CONCATENATE(A19,'SSI Data and Charts'!B$1) -> 201604Scotland | D19: =IFERROR(VLOOKUP(CONCATENATE(D$5,$C19),'trend data'!$A$2:$O$11161,D$6,FALSE),"-") -> 51 | E19: =IFERROR(ROUND(VLOOKUP(CONCATENATE(E$5,$C19),'trend data'!$A$2:$O$11161,E$6,FALSE),3),"-") -> 1.198 | F19: =IFERROR(ROUND(VLOOKUP(CONCATENATE(F$5,$C19),'trend data'!$A$2:$O$11161,F$6,FALSE),3),"-") -> 0.912 | G19: =IFERROR(ROUND(VLOOKUP(CONCATENATE(G$5,$C19),'trend data'!$A$2:$O$11161,G$6,FALSE),3),"-") -> 1.571 | H19: =IFERROR(VLOOKUP(CONCATENATE(H$5,$C19),'trend data'!$A$2:$O$11161,H$6,FALSE),"-") -> 17 | I19: =IFERROR(ROUND(VLOOKUP(CONCATENATE(I$5,$C19),'trend data'!$A$2:$O$11161,I$6,FALSE),3),"-") -> 0.764 | J19: =IFERROR(ROUND(VLOOKUP(CONCATENATE(J$5,$C19),'trend data'!$A$2:$O$11161,J$6,FALSE),3),"-") -> 0.477 | K19: =IFERROR(ROUND(VLOOKUP(CONCATENATE(K$5,$C19),'trend data'!$A$2:$O$11161,K$6,FALSE),3),"-") -> 1.22 | L19: =IFERROR(VLOOKUP(CONCATENATE(L$5,$C19),'trend data'!$A$2:$O$11161,L$6,FALSE),"-") -> 4258 | M19: =IFERROR(VLOOKUP(CONCATENATE(M$5,$C19),'trend data'!$A$2:$O$11161,M$6,FALSE),"-") -> 2226 | Q19: 202401 | R19: =CONCATENATE(U$7,$Q19,'SSI Data and Charts'!B$1) -> SSICSEC202401Scotland | S19: 11 | T19: =T20-92 -> 2024-03-30 | U19: =ROUND(VLOOKUP($R19,'data for u-p-charts'!$A$2:$F$5000,U$5,FALSE),2) ->  | V19: =ROUND(VLOOKUP($R19,'data for u-p-charts'!$A$2:$F$5000,V$5,FALSE),2) ->  | W19: =ROUND(VLOOKUP($R19,'data for u-p-charts'!$A$2:$F$5000,W$5,FALSE),2) ->  | X19: =ROUND(VLOOKUP($R19,'data for u-p-charts'!$A$2:$F$5000,X$5,FALSE),2) ->  | Y19: =CONCATENATE(Z$7,$Q19,'SSI Data and Charts'!$B$1) -> SSIHIP202401Scotland | Z19: =ROUND(VLOOKUP($Y19,'data for u-p-charts'!$A$2:$F$5000,Z$5,FALSE),2) ->  | AA19: =ROUND(VLOOKUP($Y19,'data for u-p-charts'!$A$2:$F$5000,AA$5,FALSE),2) ->  | AB19: =ROUND(VLOOKUP($Y19,'data for u-p-charts'!$A$2:$F$5000,AB$5,FALSE),2) ->  | AC19: =ROUND(VLOOKUP($Y19,'data for u-p-charts'!$A$2:$F$5000,AC$5,FALSE),2) -> 
A20: 201701 | B20: 2017-03-01 | C20: =CONCATENATE(A20,'SSI Data and Charts'!B$1) -> 201701Scotland | D20: =IFERROR(VLOOKUP(CONCATENATE(D$5,$C20),'trend data'!$A$2:$O$11161,D$6,FALSE),"-") -> 58 | E20: =IFERROR(ROUND(VLOOKUP(CONCATENATE(E$5,$C20),'trend data'!$A$2:$O$11161,E$6,FALSE),3),"-") -> 1.433 | F20: =IFERROR(ROUND(VLOOKUP(CONCATENATE(F$5,$C20),'trend data'!$A$2:$O$11161,F$6,FALSE),3),"-") -> 1.11 | G20: =IFERROR(ROUND(VLOOKUP(CONCATENATE(G$5,$C20),'trend data'!$A$2:$O$11161,G$6,FALSE),3),"-") -> 1.848 | H20: =IFERROR(VLOOKUP(CONCATENATE(H$5,$C20),'trend data'!$A$2:$O$11161,H$6,FALSE),"-") -> 12 | I20: =IFERROR(ROUND(VLOOKUP(CONCATENATE(I$5,$C20),'trend data'!$A$2:$O$11161,I$6,FALSE),3),"-") -> 0.555 | J20: =IFERROR(ROUND(VLOOKUP(CONCATENATE(J$5,$C20),'trend data'!$A$2:$O$11161,J$6,FALSE),3),"-") -> 0.317 | K20: =IFERROR(ROUND(VLOOKUP(CONCATENATE(K$5,$C20),'trend data'!$A$2:$O$11161,K$6,FALSE),3),"-") -> 0.967 | L20: =IFERROR(VLOOKUP(CONCATENATE(L$5,$C20),'trend data'!$A$2:$O$11161,L$6,FALSE),"-") -> 4047 | M20: =IFERROR(VLOOKUP(CONCATENATE(M$5,$C20),'trend data'!$A$2:$O$11161,M$6,FALSE),"-") -> 2164 | Q20: 202402 | R20: =CONCATENATE(U$7,$Q20,'SSI Data and Charts'!B$1) -> SSICSEC202402Scotland | S20: 12 | T20: =T5 -> 2024-06-30 | U20: =ROUND(VLOOKUP($R20,'data for u-p-charts'!$A$2:$F$5000,U$5,FALSE),2) ->  | V20: =ROUND(VLOOKUP($R20,'data for u-p-charts'!$A$2:$F$5000,V$5,FALSE),2) ->  | W20: =ROUND(VLOOKUP($R20,'data for u-p-charts'!$A$2:$F$5000,W$5,FALSE),2) ->  | X20: =ROUND(VLOOKUP($R20,'data for u-p-charts'!$A$2:$F$5000,X$5,FALSE),2) ->  | Y20: =CONCATENATE(Z$7,$Q20,'SSI Data and Charts'!$B$1) -> SSIHIP202402Scotland | Z20: =ROUND(VLOOKUP($Y20,'data for u-p-charts'!$A$2:$F$5000,Z$5,FALSE),2) ->  | AA20: =ROUND(VLOOKUP($Y20,'data for u-p-charts'!$A$2:$F$5000,AA$5,FALSE),2) ->  | AB20: =ROUND(VLOOKUP($Y20,'data for u-p-charts'!$A$2:$F$5000,AB$5,FALSE),2) ->  | AC20: =ROUND(VLOOKUP($Y20,'data for u-p-charts'!$A$2:$F$5000,AC$5,FALSE),2) -> 
A21: 201702 | B21: 2017-06-01 | C21: =CONCATENATE(A21,'SSI Data and Charts'!B$1) -> 201702Scotland | D21: =IFERROR(VLOOKUP(CONCATENATE(D$5,$C21),'trend data'!$A$2:$O$11161,D$6,FALSE),"-") -> 51 | E21: =IFERROR(ROUND(VLOOKUP(CONCATENATE(E$5,$C21),'trend data'!$A$2:$O$11161,E$6,FALSE),3),"-") -> 1.239 | F21: =IFERROR(ROUND(VLOOKUP(CONCATENATE(F$5,$C21),'trend data'!$A$2:$O$11161,F$6,FALSE),3),"-") -> 0.944 | G21: =IFERROR(ROUND(VLOOKUP(CONCATENATE(G$5,$C21),'trend data'!$A$2:$O$11161,G$6,FALSE),3),"-") -> 1.626 | H21: =IFERROR(VLOOKUP(CONCATENATE(H$5,$C21),'trend data'!$A$2:$O$11161,H$6,FALSE),"-") -> 19 | I21: =IFERROR(ROUND(VLOOKUP(CONCATENATE(I$5,$C21),'trend data'!$A$2:$O$11161,I$6,FALSE),3),"-") -> 0.826 | J21: =IFERROR(ROUND(VLOOKUP(CONCATENATE(J$5,$C21),'trend data'!$A$2:$O$11161,J$6,FALSE),3),"-") -> 0.529 | K21: =IFERROR(ROUND(VLOOKUP(CONCATENATE(K$5,$C21),'trend data'!$A$2:$O$11161,K$6,FALSE),3),"-") -> 1.286 | L21: =IFERROR(VLOOKUP(CONCATENATE(L$5,$C21),'trend data'!$A$2:$O$11161,L$6,FALSE),"-") -> 4115 | M21: =IFERROR(VLOOKUP(CONCATENATE(M$5,$C21),'trend data'!$A$2:$O$11161,M$6,FALSE),"-") -> 2301
A22: 201703 | B22: 2017-09-01 | C22: =CONCATENATE(A22,'SSI Data and Charts'!B$1) -> 201703Scotland | D22: =IFERROR(VLOOKUP(CONCATENATE(D$5,$C22),'trend data'!$A$2:$O$11161,D$6,FALSE),"-") -> 58 | E22: =IFERROR(ROUND(VLOOKUP(CONCATENATE(E$5,$C22),'trend data'!$A$2:$O$11161,E$6,FALSE),3),"-") -> 1.285 | F22: =IFERROR(ROUND(VLOOKUP(CONCATENATE(F$5,$C22),'trend data'!$A$2:$O$11161,F$6,FALSE),3),"-") -> 0.995 | G22: =IFERROR(ROUND(VLOOKUP(CONCATENATE(G$5,$C22),'trend data'!$A$2:$O$11161,G$6,FALSE),3),"-") -> 1.657 | H22: =IFERROR(VLOOKUP(CONCATENATE(H$5,$C22),'trend data'!$A$2:$O$11161,H$6,FALSE),"-") -> 9 | I22: =IFERROR(ROUND(VLOOKUP(CONCATENATE(I$5,$C22),'trend data'!$A$2:$O$11161,I$6,FALSE),3),"-") -> 0.433 | J22: =IFERROR(ROUND(VLOOKUP(CONCATENATE(J$5,$C22),'trend data'!$A$2:$O$11161,J$6,FALSE),3),"-") -> 0.228 | K22: =IFERROR(ROUND(VLOOKUP(CONCATENATE(K$5,$C22),'trend data'!$A$2:$O$11161,K$6,FALSE),3),"-") -> 0.822 | L22: =IFERROR(VLOOKUP(CONCATENATE(L$5,$C22),'trend data'!$A$2:$O$11161,L$6,FALSE),"-") -> 4514 | M22: =IFERROR(VLOOKUP(CONCATENATE(M$5,$C22),'trend data'!$A$2:$O$11161,M$6,FALSE),"-") -> 2077
A23: 201704 | B23: 2017-12-01 | C23: =CONCATENATE(A23,'SSI Data and Charts'!B$1) -> 201704Scotland | D23: =IFERROR(VLOOKUP(CONCATENATE(D$5,$C23),'trend data'!$A$2:$O$11161,D$6,FALSE),"-") -> 66 | E23: =IFERROR(ROUND(VLOOKUP(CONCATENATE(E$5,$C23),'trend data'!$A$2:$O$11161,E$6,FALSE),3),"-") -> 1.563 | F23: =IFERROR(ROUND(VLOOKUP(CONCATENATE(F$5,$C23),'trend data'!$A$2:$O$11161,F$6,FALSE),3),"-") -> 1.23 | G23: =IFERROR(ROUND(VLOOKUP(CONCATENATE(G$5,$C23),'trend data'!$A$2:$O$11161,G$6,FALSE),3),"-") -> 1.983 | H23: =IFERROR(VLOOKUP(CONCATENATE(H$5,$C23),'trend data'!$A$2:$O$11161,H$6,FALSE),"-") -> 16 | I23: =IFERROR(ROUND(VLOOKUP(CONCATENATE(I$5,$C23),'trend data'!$A$2:$O$11161,I$6,FALSE),3),"-") -> 0.773 | J23: =IFERROR(ROUND(VLOOKUP(CONCATENATE(J$5,$C23),'trend data'!$A$2:$O$11161,J$6,FALSE),3),"-") -> 0.476 | K23: =IFERROR(ROUND(VLOOKUP(CONCATENATE(K$5,$C23),'trend data'!$A$2:$O$11161,K$6,FALSE),3),"-") -> 1.251 | L23: =IFERROR(VLOOKUP(CONCATENATE(L$5,$C23),'trend data'!$A$2:$O$11161,L$6,FALSE),"-") -> 4224 | M23: =IFERROR(VLOOKUP(CONCATENATE(M$5,$C23),'trend data'!$A$2:$O$11161,M$6,FALSE),"-") -> 2071
A24: 201801 | B24: 2018-03-01 | C24: =CONCATENATE(A24,'SSI Data and Charts'!B$1) -> 201801Scotland | D24: =IFERROR(VLOOKUP(CONCATENATE(D$5,$C24),'trend data'!$A$2:$O$11161,D$6,FALSE),"-") -> 64 | E24: =IFERROR(ROUND(VLOOKUP(CONCATENATE(E$5,$C24),'trend data'!$A$2:$O$11161,E$6,FALSE),3),"-") -> 1.61 | F24: =IFERROR(ROUND(VLOOKUP(CONCATENATE(F$5,$C24),'trend data'!$A$2:$O$11161,F$6,FALSE),3),"-") -> 1.263 | G24: =IFERROR(ROUND(VLOOKUP(CONCATENATE(G$5,$C24),'trend data'!$A$2:$O$11161,G$6,FALSE),3),"-") -> 2.051 | H24: =IFERROR(VLOOKUP(CONCATENATE(H$5,$C24),'trend data'!$A$2:$O$11161,H$6,FALSE),"-") -> 17 | I24: =IFERROR(ROUND(VLOOKUP(CONCATENATE(I$5,$C24),'trend data'!$A$2:$O$11161,I$6,FALSE),3),"-") -> 0.847 | J24: =IFERROR(ROUND(VLOOKUP(CONCATENATE(J$5,$C24),'trend data'!$A$2:$O$11161,J$6,FALSE),3),"-") -> 0.529 | K24: =IFERROR(ROUND(VLOOKUP(CONCATENATE(K$5,$C24),'trend data'!$A$2:$O$11161,K$6,FALSE),3),"-") -> 1.352 | L24: =IFERROR(VLOOKUP(CONCATENATE(L$5,$C24),'trend data'!$A$2:$O$11161,L$6,FALSE),"-") -> 3975 | M24: =IFERROR(VLOOKUP(CONCATENATE(M$5,$C24),'trend data'!$A$2:$O$11161,M$6,FALSE),"-") -> 2008
A25: 201802 | B25: 2018-06-01 | C25: =CONCATENATE(A25,'SSI Data and Charts'!B$1) -> 201802Scotland | D25: =IFERROR(VLOOKUP(CONCATENATE(D$5,$C25),'trend data'!$A$2:$O$11161,D$6,FALSE),"-") -> 61 | E25: =IFERROR(ROUND(VLOOKUP(CONCATENATE(E$5,$C25),'trend data'!$A$2:$O$11161,E$6,FALSE),3),"-") -> 1.455 | F25: =IFERROR(ROUND(VLOOKUP(CONCATENATE(F$5,$C25),'trend data'!$A$2:$O$11161,F$6,FALSE),3),"-") -> 1.135 | G25: =IFERROR(ROUND(VLOOKUP(CONCATENATE(G$5,$C25),'trend data'!$A$2:$O$11161,G$6,FALSE),3),"-") -> 1.865 | H25: =IFERROR(VLOOKUP(CONCATENATE(H$5,$C25),'trend data'!$A$2:$O$11161,H$6,FALSE),"-") -> 18 | I25: =IFERROR(ROUND(VLOOKUP(CONCATENATE(I$5,$C25),'trend data'!$A$2:$O$11161,I$6,FALSE),3),"-") -> 0.793 | J25: =IFERROR(ROUND(VLOOKUP(CONCATENATE(J$5,$C25),'trend data'!$A$2:$O$11161,J$6,FALSE),3),"-") -> 0.502 | K25: =IFERROR(ROUND(VLOOKUP(CONCATENATE(K$5,$C25),'trend data'!$A$2:$O$11161,K$6,FALSE),3),"-") -> 1.25 | L25: =IFERROR(VLOOKUP(CONCATENATE(L$5,$C25),'trend data'!$A$2:$O$11161,L$6,FALSE),"-") -> 4191 | M25: =IFERROR(VLOOKUP(CONCATENATE(M$5,$C25),'trend data'!$A$2:$O$11161,M$6,FALSE),"-") -> 2270
A26: 201803 | B26: 2018-09-01 | C26: =CONCATENATE(A26,'SSI Data and Charts'!B$1) -> 201803Scotland | D26: =IFERROR(VLOOKUP(CONCATENATE(D$5,$C26),'trend data'!$A$2:$O$11161,D$6,FALSE),"-") -> 66 | E26: =IFERROR(ROUND(VLOOKUP(CONCATENATE(E$5,$C26),'trend data'!$A$2:$O$11161,E$6,FALSE),3),"-") -> 1.537 | F26: =IFERROR(ROUND(VLOOKUP(CONCATENATE(F$5,$C26),'trend data'!$A$2:$O$11161,F$6,FALSE),3),"-") -> 1.21 | G26: =IFERROR(ROUND(VLOOKUP(CONCATENATE(G$5,$C26),'trend data'!$A$2:$O$11161,G$6,FALSE),3),"-") -> 1.951 | H26: =IFERROR(VLOOKUP(CONCATENATE(H$5,$C26),'trend data'!$A$2:$O$11161,H$6,FALSE),"-") -> 13 | I26: =IFERROR(ROUND(VLOOKUP(CONCATENATE(I$5,$C26),'trend data'!$A$2:$O$11161,I$6,FALSE),3),"-") -> 0.603 | J26: =IFERROR(ROUND(VLOOKUP(CONCATENATE(J$5,$C26),'trend data'!$A$2:$O$11161,J$6,FALSE),3),"-") -> 0.353 | K26: =IFERROR(ROUND(VLOOKUP(CONCATENATE(K$5,$C26),'trend data'!$A$2:$O$11161,K$6,FALSE),3),"-") -> 1.029 | L26: =IFERROR(VLOOKUP(CONCATENATE(L$5,$C26),'trend data'!$A$2:$O$11161,L$6,FALSE),"-") -> 4293 | M26: =IFERROR(VLOOKUP(CONCATENATE(M$5,$C26),'trend data'!$A$2:$O$11161,M$6,FALSE),"-") -> 2155
A27: 201804 | B27: 2018-12-01 | C27: =CONCATENATE(A27,'SSI Data and Charts'!B$1) -> 201804Scotland | D27: =IFERROR(VLOOKUP(CONCATENATE(D$5,$C27),'trend data'!$A$2:$O$11161,D$6,FALSE),"-") -> 59 | E27: =IFERROR(ROUND(VLOOKUP(CONCATENATE(E$5,$C27),'trend data'!$A$2:$O$11161,E$6,FALSE),3),"-") -> 1.358 | F27: =IFERROR(ROUND(VLOOKUP(CONCATENATE(F$5,$C27),'trend data'!$A$2:$O$11161,F$6,FALSE),3),"-") -> 1.054 | G27: =IFERROR(ROUND(VLOOKUP(CONCATENATE(G$5,$C27),'trend data'!$A$2:$O$11161,G$6,FALSE),3),"-") -> 1.747 | H27: =IFERROR(VLOOKUP(CONCATENATE(H$5,$C27),'trend data'!$A$2:$O$11161,H$6,FALSE),"-") -> 16 | I27: =IFERROR(ROUND(VLOOKUP(CONCATENATE(I$5,$C27),'trend data'!$A$2:$O$11161,I$6,FALSE),3),"-") -> 0.703 | J27: =IFERROR(ROUND(VLOOKUP(CONCATENATE(J$5,$C27),'trend data'!$A$2:$O$11161,J$6,FALSE),3),"-") -> 0.433 | K27: =IFERROR(ROUND(VLOOKUP(CONCATENATE(K$5,$C27),'trend data'!$A$2:$O$11161,K$6,FALSE),3),"-") -> 1.139 | L27: =IFERROR(VLOOKUP(CONCATENATE(L$5,$C27),'trend data'!$A$2:$O$11161,L$6,FALSE),"-") -> 4346 | M27: =IFERROR(VLOOKUP(CONCATENATE(M$5,$C27),'trend data'!$A$2:$O$11161,M$6,FALSE),"-") -> 2276
A28: 201901 | B28: 2019-03-01 | C28: =CONCATENATE(A28,'SSI Data and Charts'!B$1) -> 201901Scotland | D28: =IFERROR(VLOOKUP(CONCATENATE(D$5,$C28),'trend data'!$A$2:$O$11161,D$6,FALSE),"-") -> 64 | E28: =IFERROR(ROUND(VLOOKUP(CONCATENATE(E$5,$C28),'trend data'!$A$2:$O$11161,E$6,FALSE),3),"-") -> 1.58 | F28: =IFERROR(ROUND(VLOOKUP(CONCATENATE(F$5,$C28),'trend data'!$A$2:$O$11161,F$6,FALSE),3),"-") -> 1.239 | G28: =IFERROR(ROUND(VLOOKUP(CONCATENATE(G$5,$C28),'trend data'!$A$2:$O$11161,G$6,FALSE),3),"-") -> 2.012 | H28: =IFERROR(VLOOKUP(CONCATENATE(H$5,$C28),'trend data'!$A$2:$O$11161,H$6,FALSE),"-") -> 8 | I28: =IFERROR(ROUND(VLOOKUP(CONCATENATE(I$5,$C28),'trend data'!$A$2:$O$11161,I$6,FALSE),3),"-") -> 0.373 | J28: =IFERROR(ROUND(VLOOKUP(CONCATENATE(J$5,$C28),'trend data'!$A$2:$O$11161,J$6,FALSE),3),"-") -> 0.189 | K28: =IFERROR(ROUND(VLOOKUP(CONCATENATE(K$5,$C28),'trend data'!$A$2:$O$11161,K$6,FALSE),3),"-") -> 0.734 | L28: =IFERROR(VLOOKUP(CONCATENATE(L$5,$C28),'trend data'!$A$2:$O$11161,L$6,FALSE),"-") -> 4051 | M28: =IFERROR(VLOOKUP(CONCATENATE(M$5,$C28),'trend data'!$A$2:$O$11161,M$6,FALSE),"-") -> 2146
A29: 201902 | B29: 2019-06-01 | C29: =CONCATENATE(A29,'SSI Data and Charts'!B$1) -> 201902Scotland | D29: =IFERROR(VLOOKUP(CONCATENATE(D$5,$C29),'trend data'!$A$2:$O$11161,D$6,FALSE),"-") -> 43 | E29: =IFERROR(ROUND(VLOOKUP(CONCATENATE(E$5,$C29),'trend data'!$A$2:$O$11161,E$6,FALSE),3),"-") -> 1.044 | F29: =IFERROR(ROUND(VLOOKUP(CONCATENATE(F$5,$C29),'trend data'!$A$2:$O$11161,F$6,FALSE),3),"-") -> 0.776 | G29: =IFERROR(ROUND(VLOOKUP(CONCATENATE(G$5,$C29),'trend data'!$A$2:$O$11161,G$6,FALSE),3),"-") -> 1.403 | H29: =IFERROR(VLOOKUP(CONCATENATE(H$5,$C29),'trend data'!$A$2:$O$11161,H$6,FALSE),"-") -> 10 | I29: =IFERROR(ROUND(VLOOKUP(CONCATENATE(I$5,$C29),'trend data'!$A$2:$O$11161,I$6,FALSE),3),"-") -> 0.443 | J29: =IFERROR(ROUND(VLOOKUP(CONCATENATE(J$5,$C29),'trend data'!$A$2:$O$11161,J$6,FALSE),3),"-") -> 0.241 | K29: =IFERROR(ROUND(VLOOKUP(CONCATENATE(K$5,$C29),'trend data'!$A$2:$O$11161,K$6,FALSE),3),"-") -> 0.814 | L29: =IFERROR(VLOOKUP(CONCATENATE(L$5,$C29),'trend data'!$A$2:$O$11161,L$6,FALSE),"-") -> 4118 | M29: =IFERROR(VLOOKUP(CONCATENATE(M$5,$C29),'trend data'!$A$2:$O$11161,M$6,FALSE),"-") -> 2257
A30: 201903 | B30: 2019-09-01 | C30: =CONCATENATE(A30,'SSI Data and Charts'!B$1) -> 201903Scotland | D30: =IFERROR(VLOOKUP(CONCATENATE(D$5,$C30),'trend data'!$A$2:$O$11161,D$6,FALSE),"-") -> 51 | E30: =IFERROR(ROUND(VLOOKUP(CONCATENATE(E$5,$C30),'trend data'!$A$2:$O$11161,E$6,FALSE),3),"-") -> 1.157 | F30: =IFERROR(ROUND(VLOOKUP(CONCATENATE(F$5,$C30),'trend data'!$A$2:$O$11161,F$6,FALSE),3),"-") -> 0.881 | G30: =IFERROR(ROUND(VLOOKUP(CONCATENATE(G$5,$C30),'trend data'!$A$2:$O$11161,G$6,FALSE),3),"-") -> 1.518 | H30: =IFERROR(VLOOKUP(CONCATENATE(H$5,$C30),'trend data'!$A$2:$O$11161,H$6,FALSE),"-") -> 17 | I30: =IFERROR(ROUND(VLOOKUP(CONCATENATE(I$5,$C30),'trend data'!$A$2:$O$11161,I$6,FALSE),3),"-") -> 0.802 | J30: =IFERROR(ROUND(VLOOKUP(CONCATENATE(J$5,$C30),'trend data'!$A$2:$O$11161,J$6,FALSE),3),"-") -> 0.501 | K30: =IFERROR(ROUND(VLOOKUP(CONCATENATE(K$5,$C30),'trend data'!$A$2:$O$11161,K$6,FALSE),3),"-") -> 1.28 | L30: =IFERROR(VLOOKUP(CONCATENATE(L$5,$C30),'trend data'!$A$2:$O$11161,L$6,FALSE),"-") -> 4408 | M30: =IFERROR(VLOOKUP(CONCATENATE(M$5,$C30),'trend data'!$A$2:$O$11161,M$6,FALSE),"-") -> 2121
A31: 201904 | B31: 2019-12-01 | C31: =CONCATENATE(A31,'SSI Data and Charts'!B$1) -> 201904Scotland | D31: =IFERROR(VLOOKUP(CONCATENATE(D$5,$C31),'trend data'!$A$2:$O$11161,D$6,FALSE),"-") -> 35 | E31: =IFERROR(ROUND(VLOOKUP(CONCATENATE(E$5,$C31),'trend data'!$A$2:$O$11161,E$6,FALSE),3),"-") -> 0.851 | F31: =IFERROR(ROUND(VLOOKUP(CONCATENATE(F$5,$C31),'trend data'!$A$2:$O$11161,F$6,FALSE),3),"-") -> 0.613 | G31: =IFERROR(ROUND(VLOOKUP(CONCATENATE(G$5,$C31),'trend data'!$A$2:$O$11161,G$6,FALSE),3),"-") -> 1.181 | H31: =IFERROR(VLOOKUP(CONCATENATE(H$5,$C31),'trend data'!$A$2:$O$11161,H$6,FALSE),"-") -> 17 | I31: =IFERROR(ROUND(VLOOKUP(CONCATENATE(I$5,$C31),'trend data'!$A$2:$O$11161,I$6,FALSE),3),"-") -> 0.793 | J31: =IFERROR(ROUND(VLOOKUP(CONCATENATE(J$5,$C31),'trend data'!$A$2:$O$11161,J$6,FALSE),3),"-") -> 0.495 | K31: =IFERROR(ROUND(VLOOKUP(CONCATENATE(K$5,$C31),'trend data'!$A$2:$O$11161,K$6,FALSE),3),"-") -> 1.266 | L31: =IFERROR(VLOOKUP(CONCATENATE(L$5,$C31),'trend data'!$A$2:$O$11161,L$6,FALSE),"-") -> 4112 | M31: =IFERROR(VLOOKUP(CONCATENATE(M$5,$C31),'trend data'!$A$2:$O$11161,M$6,FALSE),"-") -> 2145
A32: 202001 | B32: 2020-03-01 | C32: =CONCATENATE(A32,'SSI Data and Charts'!B$1) -> 202001Scotland | D32: =IFERROR(VLOOKUP(CONCATENATE(D$5,$C32),'trend data'!$A$2:$O$11161,D$6,FALSE),"-") -> - | E32: =IFERROR(ROUND(VLOOKUP(CONCATENATE(E$5,$C32),'trend data'!$A$2:$O$11161,E$6,FALSE),3),"-") -> - | F32: =IFERROR(ROUND(VLOOKUP(CONCATENATE(F$5,$C32),'trend data'!$A$2:$O$11161,F$6,FALSE),3),"-") -> - | G32: =IFERROR(ROUND(VLOOKUP(CONCATENATE(G$5,$C32),'trend data'!$A$2:$O$11161,G$6,FALSE),3),"-") -> - | H32: =IFERROR(VLOOKUP(CONCATENATE(H$5,$C32),'trend data'!$A$2:$O$11161,H$6,FALSE),"-") -> - | I32: =IFERROR(ROUND(VLOOKUP(CONCATENATE(I$5,$C32),'trend data'!$A$2:$O$11161,I$6,FALSE),3),"-") -> - | J32: =IFERROR(ROUND(VLOOKUP(CONCATENATE(J$5,$C32),'trend data'!$A$2:$O$11161,J$6,FALSE),3),"-") -> - | K32: =IFERROR(ROUND(VLOOKUP(CONCATENATE(K$5,$C32),'trend data'!$A$2:$O$11161,K$6,FALSE),3),"-") -> - | L32: =IFERROR(VLOOKUP(CONCATENATE(L$5,$C32),'trend data'!$A$2:$O$11161,L$6,FALSE),"-") -> - | M32: =IFERROR(VLOOKUP(CONCATENATE(M$5,$C32),'trend data'!$A$2:$O$11161,M$6,FALSE),"-") -> -
A33: 202002 | B33: 2020-06-01 | C33: =CONCATENATE(A33,'SSI Data and Charts'!B$1) -> 202002Scotland | D33: =IFERROR(VLOOKUP(CONCATENATE(D$5,$C33),'trend data'!$A$2:$O$11161,D$6,FALSE),"-") -> - | E33: =IFERROR(ROUND(VLOOKUP(CONCATENATE(E$5,$C33),'trend data'!$A$2:$O$11161,E$6,FALSE),3),"-") -> - | F33: =IFERROR(ROUND(VLOOKUP(CONCATENATE(F$5,$C33),'trend data'!$A$2:$O$11161,F$6,FALSE),3),"-") -> - | G33: =IFERROR(ROUND(VLOOKUP(CONCATENATE(G$5,$C33),'trend data'!$A$2:$O$11161,G$6,FALSE),3),"-") -> - | H33: =IFERROR(VLOOKUP(CONCATENATE(H$5,$C33),'trend data'!$A$2:$O$11161,H$6,FALSE),"-") -> - | I33: =IFERROR(ROUND(VLOOKUP(CONCATENATE(I$5,$C33),'trend data'!$A$2:$O$11161,I$6,FALSE),3),"-") -> - | J33: =IFERROR(ROUND(VLOOKUP(CONCATENATE(J$5,$C33),'trend data'!$A$2:$O$11161,J$6,FALSE),3),"-") -> - | K33: =IFERROR(ROUND(VLOOKUP(CONCATENATE(K$5,$C33),'trend data'!$A$2:$O$11161,K$6,FALSE),3),"-") -> - | L33: =IFERROR(VLOOKUP(CONCATENATE(L$5,$C33),'trend data'!$A$2:$O$11161,L$6,FALSE),"-") -> - | M33: =IFERROR(VLOOKUP(CONCATENATE(M$5,$C33),'trend data'!$A$2:$O$11161,M$6,FALSE),"-") -> -
A34: 202003 | B34: 2020-09-01 | C34: =CONCATENATE(A34,'SSI Data and Charts'!B$1) -> 202003Scotland | D34: =IFERROR(VLOOKUP(CONCATENATE(D$5,$C34),'trend data'!$A$2:$O$11161,D$6,FALSE),"-") -> - | E34: =IFERROR(ROUND(VLOOKUP(CONCATENATE(E$5,$C34),'trend data'!$A$2:$O$11161,E$6,FALSE),4),"-") -> - | F34: =IFERROR(ROUND(VLOOKUP(CONCATENATE(F$5,$C34),'trend data'!$A$2:$O$11161,F$6,FALSE),4),"-") -> - | G34: =IFERROR(ROUND(VLOOKUP(CONCATENATE(G$5,$C34),'trend data'!$A$2:$O$11161,G$6,FALSE),4),"-") -> - | H34: =IFERROR(VLOOKUP(CONCATENATE(H$5,$C34),'trend data'!$A$2:$O$11161,H$6,FALSE),"-") -> - | I34: =IFERROR(ROUND(VLOOKUP(CONCATENATE(I$5,$C34),'trend data'!$A$2:$O$11161,I$6,FALSE),4),"-") -> - | J34: =IFERROR(ROUND(VLOOKUP(CONCATENATE(J$5,$C34),'trend data'!$A$2:$O$11161,J$6,FALSE),4),"-") -> - | K34: =IFERROR(ROUND(VLOOKUP(CONCATENATE(K$5,$C34),'trend data'!$A$2:$O$11161,K$6,FALSE),4),"-") -> - | L34: =IFERROR(VLOOKUP(CONCATENATE(L$5,$C34),'trend data'!$A$2:$O$11161,L$6,FALSE),"-") -> - | M34: =IFERROR(VLOOKUP(CONCATENATE(M$5,$C34),'trend data'!$A$2:$O$11161,M$6,FALSE),"-") -> -
A35: 202004 | B35: 2020-12-31 | C35: =CONCATENATE(A35,'SSI Data and Charts'!B$1) -> 202004Scotland | D35: =IFERROR(VLOOKUP(CONCATENATE(D$5,$C35),'trend data'!$A$2:$O$11161,D$6,FALSE),"-") -> - | E35: =IFERROR(ROUND(VLOOKUP(CONCATENATE(E$5,$C35),'trend data'!$A$2:$O$11161,E$6,FALSE),4),"-") -> - | F35: =IFERROR(ROUND(VLOOKUP(CONCATENATE(F$5,$C35),'trend data'!$A$2:$O$11161,F$6,FALSE),4),"-") -> - | G35: =IFERROR(ROUND(VLOOKUP(CONCATENATE(G$5,$C35),'trend data'!$A$2:$O$11161,G$6,FALSE),4),"-") -> - | H35: =IFERROR(VLOOKUP(CONCATENATE(H$5,$C35),'trend data'!$A$2:$O$11161,H$6,FALSE),"-") -> - | I35: =IFERROR(ROUND(VLOOKUP(CONCATENATE(I$5,$C35),'trend data'!$A$2:$O$11161,I$6,FALSE),4),"-") -> - | J35: =IFERROR(ROUND(VLOOKUP(CONCATENATE(J$5,$C35),'trend data'!$A$2:$O$11161,J$6,FALSE),4),"-") -> - | K35: =IFERROR(ROUND(VLOOKUP(CONCATENATE(K$5,$C35),'trend data'!$A$2:$O$11161,K$6,FALSE),4),"-") -> - | L35: =IFERROR(VLOOKUP(CONCATENATE(L$5,$C35),'trend data'!$A$2:$O$11161,L$6,FALSE),"-") -> - | M35: =IFERROR(VLOOKUP(CONCATENATE(M$5,$C35),'trend data'!$A$2:$O$11161,M$6,FALSE),"-") -> -
A36: 202101 | B36: 2021-03-31 | C36: =CONCATENATE(A36,'SSI Data and Charts'!B$1) -> 202101Scotland | D36: =IFERROR(VLOOKUP(CONCATENATE(D$5,$C36),'trend data'!$A$2:$O$11161,D$6,FALSE),"-") -> - | E36: =IFERROR(ROUND(VLOOKUP(CONCATENATE(E$5,$C36),'trend data'!$A$2:$O$11161,E$6,FALSE),4),"-") -> - | F36: =IFERROR(ROUND(VLOOKUP(CONCATENATE(F$5,$C36),'trend data'!$A$2:$O$11161,F$6,FALSE),4),"-") -> - | G36: =IFERROR(ROUND(VLOOKUP(CONCATENATE(G$5,$C36),'trend data'!$A$2:$O$11161,G$6,FALSE),4),"-") -> - | H36: =IFERROR(VLOOKUP(CONCATENATE(H$5,$C36),'trend data'!$A$2:$O$11161,H$6,FALSE),"-") -> - | I36: =IFERROR(ROUND(VLOOKUP(CONCATENATE(I$5,$C36),'trend data'!$A$2:$O$11161,I$6,FALSE),4),"-") -> - | J36: =IFERROR(ROUND(VLOOKUP(CONCATENATE(J$5,$C36),'trend data'!$A$2:$O$11161,J$6,FALSE),4),"-") -> - | K36: =IFERROR(ROUND(VLOOKUP(CONCATENATE(K$5,$C36),'trend data'!$A$2:$O$11161,K$6,FALSE),4),"-") -> - | L36: =IFERROR(VLOOKUP(CONCATENATE(L$5,$C36),'trend data'!$A$2:$O$11161,L$6,FALSE),"-") -> - | M36: =IFERROR(VLOOKUP(CONCATENATE(M$5,$C36),'trend data'!$A$2:$O$11161,M$6,FALSE),"-") -> -
A37: 202102 | B37: 2021-06-30 | C37: =CONCATENATE(A37,'SSI Data and Charts'!B$1) -> 202102Scotland | D37: =IFERROR(VLOOKUP(CONCATENATE(D$5,$C37),'trend data'!$A$2:$O$11161,D$6,FALSE),"-") -> - | E37: =IFERROR(ROUND(VLOOKUP(CONCATENATE(E$5,$C37),'trend data'!$A$2:$O$11161,E$6,FALSE),4),"-") -> - | F37: =IFERROR(ROUND(VLOOKUP(CONCATENATE(F$5,$C37),'trend data'!$A$2:$O$11161,F$6,FALSE),4),"-") -> - | G37: =IFERROR(ROUND(VLOOKUP(CONCATENATE(G$5,$C37),'trend data'!$A$2:$O$11161,G$6,FALSE),4),"-") -> - | H37: =IFERROR(VLOOKUP(CONCATENATE(H$5,$C37),'trend data'!$A$2:$O$11161,H$6,FALSE),"-") -> - | I37: =IFERROR(ROUND(VLOOKUP(CONCATENATE(I$5,$C37),'trend data'!$A$2:$O$11161,I$6,FALSE),4),"-") -> - | J37: =IFERROR(ROUND(VLOOKUP(CONCATENATE(J$5,$C37),'trend data'!$A$2:$O$11161,J$6,FALSE),4),"-") -> - | K37: =IFERROR(ROUND(VLOOKUP(CONCATENATE(K$5,$C37),'trend data'!$A$2:$O$11161,K$6,FALSE),4),"-") -> - | L37: =IFERROR(VLOOKUP(CONCATENATE(L$5,$C37),'trend data'!$A$2:$O$11161,L$6,FALSE),"-") -> - | M37: =IFERROR(VLOOKUP(CONCATENATE(M$5,$C37),'trend data'!$A$2:$O$11161,M$6,FALSE),"-") -> -
A38: 202103 | B38: 2021-09-30 | C38: =CONCATENATE(A38,'SSI Data and Charts'!B$1) -> 202103Scotland | D38: =IFERROR(VLOOKUP(CONCATENATE(D$5,$C38),'trend data'!$A$2:$O$11161,D$6,FALSE),"-") -> - | E38: =IFERROR(ROUND(VLOOKUP(CONCATENATE(E$5,$C38),'trend data'!$A$2:$O$11161,E$6,FALSE),4),"-") -> - | F38: =IFERROR(ROUND(VLOOKUP(CONCATENATE(F$5,$C38),'trend data'!$A$2:$O$11161,F$6,FALSE),4),"-") -> - | G38: =IFERROR(ROUND(VLOOKUP(CONCATENATE(G$5,$C38),'trend data'!$A$2:$O$11161,G$6,FALSE),4),"-") -> - | H38: =IFERROR(VLOOKUP(CONCATENATE(H$5,$C38),'trend data'!$A$2:$O$11161,H$6,FALSE),"-") -> - | I38: =IFERROR(ROUND(VLOOKUP(CONCATENATE(I$5,$C38),'trend data'!$A$2:$O$11161,I$6,FALSE),4),"-") -> - | J38: =IFERROR(ROUND(VLOOKUP(CONCATENATE(J$5,$C38),'trend data'!$A$2:$O$11161,J$6,FALSE),4),"-") -> - | K38: =IFERROR(ROUND(VLOOKUP(CONCATENATE(K$5,$C38),'trend data'!$A$2:$O$11161,K$6,FALSE),4),"-") -> - | L38: =IFERROR(VLOOKUP(CONCATENATE(L$5,$C38),'trend data'!$A$2:$O$11161,L$6,FALSE),"-") -> - | M38: =IFERROR(VLOOKUP(CONCATENATE(M$5,$C38),'trend data'!$A$2:$O$11161,M$6,FALSE),"-") -> -
A39: 202104 | B39: 2021-12-31 | C39: =CONCATENATE(A39,'SSI Data and Charts'!B$1) -> 202104Scotland | D39: =IFERROR(VLOOKUP(CONCATENATE(D$5,$C39),'trend data'!$A$2:$O$11161,D$6,FALSE),"-") -> - | E39: =IFERROR(ROUND(VLOOKUP(CONCATENATE(E$5,$C39),'trend data'!$A$2:$O$11161,E$6,FALSE),4),"-") -> - | F39: =IFERROR(ROUND(VLOOKUP(CONCATENATE(F$5,$C39),'trend data'!$A$2:$O$11161,F$6,FALSE),4),"-") -> - | G39: =IFERROR(ROUND(VLOOKUP(CONCATENATE(G$5,$C39),'trend data'!$A$2:$O$11161,G$6,FALSE),4),"-") -> - | H39: =IFERROR(VLOOKUP(CONCATENATE(H$5,$C39),'trend data'!$A$2:$O$11161,H$6,FALSE),"-") -> - | I39: =IFERROR(ROUND(VLOOKUP(CONCATENATE(I$5,$C39),'trend data'!$A$2:$O$11161,I$6,FALSE),4),"-") -> - | J39: =IFERROR(ROUND(VLOOKUP(CONCATENATE(J$5,$C39),'trend data'!$A$2:$O$11161,J$6,FALSE),4),"-") -> - | K39: =IFERROR(ROUND(VLOOKUP(CONCATENATE(K$5,$C39),'trend data'!$A$2:$O$11161,K$6,FALSE),4),"-") -> - | L39: =IFERROR(VLOOKUP(CONCATENATE(L$5,$C39),'trend data'!$A$2:$O$11161,L$6,FALSE),"-") -> - | M39: =IFERROR(VLOOKUP(CONCATENATE(M$5,$C39),'trend data'!$A$2:$O$11161,M$6,FALSE),"-") -> -
A40: 202201 | B40: 2022-03-31 | C40: =CONCATENATE(A40,'SSI Data and Charts'!B$1) -> 202201Scotland | D40: =IFERROR(VLOOKUP(CONCATENATE(D$5,$C40),'trend data'!$A$2:$O$11161,D$6,FALSE),"-") -> - | E40: =IFERROR(ROUND(VLOOKUP(CONCATENATE(E$5,$C40),'trend data'!$A$2:$O$11161,E$6,FALSE),4),"-") -> - | F40: =IFERROR(ROUND(VLOOKUP(CONCATENATE(F$5,$C40),'trend data'!$A$2:$O$11161,F$6,FALSE),4),"-") -> - | G40: =IFERROR(ROUND(VLOOKUP(CONCATENATE(G$5,$C40),'trend data'!$A$2:$O$11161,G$6,FALSE),4),"-") -> - | H40: =IFERROR(VLOOKUP(CONCATENATE(H$5,$C40),'trend data'!$A$2:$O$11161,H$6,FALSE),"-") -> - | I40: =IFERROR(ROUND(VLOOKUP(CONCATENATE(I$5,$C40),'trend data'!$A$2:$O$11161,I$6,FALSE),4),"-") -> - | J40: =IFERROR(ROUND(VLOOKUP(CONCATENATE(J$5,$C40),'trend data'!$A$2:$O$11161,J$6,FALSE),4),"-") -> - | K40: =IFERROR(ROUND(VLOOKUP(CONCATENATE(K$5,$C40),'trend data'!$A$2:$O$11161,K$6,FALSE),4),"-") -> - | L40: =IFERROR(VLOOKUP(CONCATENATE(L$5,$C40),'trend data'!$A$2:$O$11161,L$6,FALSE),"-") -> - | M40: =IFERROR(VLOOKUP(CONCATENATE(M$5,$C40),'trend data'!$A$2:$O$11161,M$6,FALSE),"-") -> -
A41: 202202 | B41: 2022-06-30 | C41: =CONCATENATE(A41,'SSI Data and Charts'!B$1) -> 202202Scotland | D41: =IFERROR(VLOOKUP(CONCATENATE(D$5,$C41),'trend data'!$A$2:$O$11161,D$6,FALSE),"-") -> - | E41: =IFERROR(ROUND(VLOOKUP(CONCATENATE(E$5,$C41),'trend data'!$A$2:$O$11161,E$6,FALSE),4),"-") -> - | F41: =IFERROR(ROUND(VLOOKUP(CONCATENATE(F$5,$C41),'trend data'!$A$2:$O$11161,F$6,FALSE),4),"-") -> - | G41: =IFERROR(ROUND(VLOOKUP(CONCATENATE(G$5,$C41),'trend data'!$A$2:$O$11161,G$6,FALSE),4),"-") -> - | H41: =IFERROR(VLOOKUP(CONCATENATE(H$5,$C41),'trend data'!$A$2:$O$11161,H$6,FALSE),"-") -> - | I41: =IFERROR(ROUND(VLOOKUP(CONCATENATE(I$5,$C41),'trend data'!$A$2:$O$11161,I$6,FALSE),4),"-") -> - | J41: =IFERROR(ROUND(VLOOKUP(CONCATENATE(J$5,$C41),'trend data'!$A$2:$O$11161,J$6,FALSE),4),"-") -> - | K41: =IFERROR(ROUND(VLOOKUP(CONCATENATE(K$5,$C41),'trend data'!$A$2:$O$11161,K$6,FALSE),4),"-") -> - | L41: =IFERROR(VLOOKUP(CONCATENATE(L$5,$C41),'trend data'!$A$2:$O$11161,L$6,FALSE),"-") -> - | M41: =IFERROR(VLOOKUP(CONCATENATE(M$5,$C41),'trend data'!$A$2:$O$11161,M$6,FALSE),"-") -> -
A42: 202203 | B42: 2022-09-30 | C42: =CONCATENATE(A42,'SSI Data and Charts'!B$1) -> 202203Scotland | D42: =IFERROR(VLOOKUP(CONCATENATE(D$5,$C42),'trend data'!$A$2:$O$11161,D$6,FALSE),"-") -> - | E42: =IFERROR(ROUND(VLOOKUP(CONCATENATE(E$5,$C42),'trend data'!$A$2:$O$11161,E$6,FALSE),4),"-") -> - | F42: =IFERROR(ROUND(VLOOKUP(CONCATENATE(F$5,$C42),'trend data'!$A$2:$O$11161,F$6,FALSE),4),"-") -> - | G42: =IFERROR(ROUND(VLOOKUP(CONCATENATE(G$5,$C42),'trend data'!$A$2:$O$11161,G$6,FALSE),4),"-") -> - | H42: =IFERROR(VLOOKUP(CONCATENATE(H$5,$C42),'trend data'!$A$2:$O$11161,H$6,FALSE),"-") -> - | I42: =IFERROR(ROUND(VLOOKUP(CONCATENATE(I$5,$C42),'trend data'!$A$2:$O$11161,I$6,FALSE),4),"-") -> - | J42: =IFERROR(ROUND(VLOOKUP(CONCATENATE(J$5,$C42),'trend data'!$A$2:$O$11161,J$6,FALSE),4),"-") -> - | K42: =IFERROR(ROUND(VLOOKUP(CONCATENATE(K$5,$C42),'trend data'!$A$2:$O$11161,K$6,FALSE),4),"-") -> - | L42: =IFERROR(VLOOKUP(CONCATENATE(L$5,$C42),'trend data'!$A$2:$O$11161,L$6,FALSE),"-") -> - | M42: =IFERROR(VLOOKUP(CONCATENATE(M$5,$C42),'trend data'!$A$2:$O$11161,M$6,FALSE),"-") -> -
A43: 202204 | B43: 2022-12-31 | C43: =CONCATENATE(A43,'SSI Data and Charts'!B$1) -> 202204Scotland | D43: =IFERROR(VLOOKUP(CONCATENATE(D$5,$C43),'trend data'!$A$2:$O$11161,D$6,FALSE),"-") -> - | E43: =IFERROR(ROUND(VLOOKUP(CONCATENATE(E$5,$C43),'trend data'!$A$2:$O$11161,E$6,FALSE),4),"-") -> - | F43: =IFERROR(ROUND(VLOOKUP(CONCATENATE(F$5,$C43),'trend data'!$A$2:$O$11161,F$6,FALSE),4),"-") -> - | G43: =IFERROR(ROUND(VLOOKUP(CONCATENATE(G$5,$C43),'trend data'!$A$2:$O$11161,G$6,FALSE),4),"-") -> - | H43: =IFERROR(VLOOKUP(CONCATENATE(H$5,$C43),'trend data'!$A$2:$O$11161,H$6,FALSE),"-") -> - | I43: =IFERROR(ROUND(VLOOKUP(CONCATENATE(I$5,$C43),'trend data'!$A$2:$O$11161,I$6,FALSE),4),"-") -> - | J43: =IFERROR(ROUND(VLOOKUP(CONCATENATE(J$5,$C43),'trend data'!$A$2:$O$11161,J$6,FALSE),4),"-") -> - | K43: =IFERROR(ROUND(VLOOKUP(CONCATENATE(K$5,$C43),'trend data'!$A$2:$O$11161,K$6,FALSE),4),"-") -> - | L43: =IFERROR(VLOOKUP(CONCATENATE(L$5,$C43),'trend data'!$A$2:$O$11161,L$6,FALSE),"-") -> - | M43: =IFERROR(VLOOKUP(CONCATENATE(M$5,$C43),'trend data'!$A$2:$O$11161,M$6,FALSE),"-") -> -
A44: 202301 | B44: 2023-03-31 | C44: =CONCATENATE(A44,'SSI Data and Charts'!B$1) -> 202301Scotland | D44: =IFERROR(VLOOKUP(CONCATENATE(D$5,$C44),'trend data'!$A$2:$O$11161,D$6,FALSE),"-") -> - | E44: =IFERROR(ROUND(VLOOKUP(CONCATENATE(E$5,$C44),'trend data'!$A$2:$O$11161,E$6,FALSE),4),"-") -> - | F44: =IFERROR(ROUND(VLOOKUP(CONCATENATE(F$5,$C44),'trend data'!$A$2:$O$11161,F$6,FALSE),4),"-") -> - | G44: =IFERROR(ROUND(VLOOKUP(CONCATENATE(G$5,$C44),'trend data'!$A$2:$O$11161,G$6,FALSE),4),"-") -> - | H44: =IFERROR(VLOOKUP(CONCATENATE(H$5,$C44),'trend data'!$A$2:$O$11161,H$6,FALSE),"-") -> - | I44: =IFERROR(ROUND(VLOOKUP(CONCATENATE(I$5,$C44),'trend data'!$A$2:$O$11161,I$6,FALSE),4),"-") -> - | J44: =IFERROR(ROUND(VLOOKUP(CONCATENATE(J$5,$C44),'trend data'!$A$2:$O$11161,J$6,FALSE),4),"-") -> - | K44: =IFERROR(ROUND(VLOOKUP(CONCATENATE(K$5,$C44),'trend data'!$A$2:$O$11161,K$6,FALSE),4),"-") -> - | L44: =IFERROR(VLOOKUP(CONCATENATE(L$5,$C44),'trend data'!$A$2:$O$11161,L$6,FALSE),"-") -> - | M44: =IFERROR(VLOOKUP(CONCATENATE(M$5,$C44),'trend data'!$A$2:$O$11161,M$6,FALSE),"-") -> -
A45: 202302 | B45: 2023-06-30 | C45: =CONCATENATE(A45,'SSI Data and Charts'!B$1) -> 202302Scotland | D45: =IFERROR(VLOOKUP(CONCATENATE(D$5,$C45),'trend data'!$A$2:$O$11161,D$6,FALSE),"-") -> - | E45: =IFERROR(ROUND(VLOOKUP(CONCATENATE(E$5,$C45),'trend data'!$A$2:$O$11161,E$6,FALSE),4),"-") -> - | F45: =IFERROR(ROUND(VLOOKUP(CONCATENATE(F$5,$C45),'trend data'!$A$2:$O$11161,F$6,FALSE),4),"-") -> - | G45: =IFERROR(ROUND(VLOOKUP(CONCATENATE(G$5,$C45),'trend data'!$A$2:$O$11161,G$6,FALSE),4),"-") -> - | H45: =IFERROR(VLOOKUP(CONCATENATE(H$5,$C45),'trend data'!$A$2:$O$11161,H$6,FALSE),"-") -> - | I45: =IFERROR(ROUND(VLOOKUP(CONCATENATE(I$5,$C45),'trend data'!$A$2:$O$11161,I$6,FALSE),4),"-") -> - | J45: =IFERROR(ROUND(VLOOKUP(CONCATENATE(J$5,$C45),'trend data'!$A$2:$O$11161,J$6,FALSE),4),"-") -> - | K45: =IFERROR(ROUND(VLOOKUP(CONCATENATE(K$5,$C45),'trend data'!$A$2:$O$11161,K$6,FALSE),4),"-") -> - | L45: =IFERROR(VLOOKUP(CONCATENATE(L$5,$C45),'trend data'!$A$2:$O$11161,L$6,FALSE),"-") -> - | M45: =IFERROR(VLOOKUP(CONCATENATE(M$5,$C45),'trend data'!$A$2:$O$11161,M$6,FALSE),"-") -> -
A46: 202303 | B46: 2023-09-30 | C46: =CONCATENATE(A46,'SSI Data and Charts'!B$1) -> 202303Scotland | D46: =IFERROR(VLOOKUP(CONCATENATE(D$5,$C46),'trend data'!$A$2:$O$11161,D$6,FALSE),"-") -> - | E46: =IFERROR(ROUND(VLOOKUP(CONCATENATE(E$5,$C46),'trend data'!$A$2:$O$11161,E$6,FALSE),4),"-") -> - | F46: =IFERROR(ROUND(VLOOKUP(CONCATENATE(F$5,$C46),'trend data'!$A$2:$O$11161,F$6,FALSE),4),"-") -> - | G46: =IFERROR(ROUND(VLOOKUP(CONCATENATE(G$5,$C46),'trend data'!$A$2:$O$11161,G$6,FALSE),4),"-") -> - | H46: =IFERROR(VLOOKUP(CONCATENATE(H$5,$C46),'trend data'!$A$2:$O$11161,H$6,FALSE),"-") -> - | I46: =IFERROR(ROUND(VLOOKUP(CONCATENATE(I$5,$C46),'trend data'!$A$2:$O$11161,I$6,FALSE),4),"-") -> - | J46: =IFERROR(ROUND(VLOOKUP(CONCATENATE(J$5,$C46),'trend data'!$A$2:$O$11161,J$6,FALSE),4),"-") -> - | K46: =IFERROR(ROUND(VLOOKUP(CONCATENATE(K$5,$C46),'trend data'!$A$2:$O$11161,K$6,FALSE),4),"-") -> - | L46: =IFERROR(VLOOKUP(CONCATENATE(L$5,$C46),'trend data'!$A$2:$O$11161,L$6,FALSE),"-") -> - | M46: =IFERROR(VLOOKUP(CONCATENATE(M$5,$C46),'trend data'!$A$2:$O$11161,M$6,FALSE),"-") -> -
A47: 202304 | B47: 2023-12-31 | C47: =CONCATENATE(A47,'SSI Data and Charts'!B$1) -> 202304Scotland | D47: =IFERROR(VLOOKUP(CONCATENATE(D$5,$C47),'trend data'!$A$2:$O$11161,D$6,FALSE),"-") -> - | E47: =IFERROR(ROUND(VLOOKUP(CONCATENATE(E$5,$C47),'trend data'!$A$2:$O$11161,E$6,FALSE),4),"-") -> - | F47: =IFERROR(ROUND(VLOOKUP(CONCATENATE(F$5,$C47),'trend data'!$A$2:$O$11161,F$6,FALSE),4),"-") -> - | G47: =IFERROR(ROUND(VLOOKUP(CONCATENATE(G$5,$C47),'trend data'!$A$2:$O$11161,G$6,FALSE),4),"-") -> - | H47: =IFERROR(VLOOKUP(CONCATENATE(H$5,$C47),'trend data'!$A$2:$O$11161,H$6,FALSE),"-") -> - | I47: =IFERROR(ROUND(VLOOKUP(CONCATENATE(I$5,$C47),'trend data'!$A$2:$O$11161,I$6,FALSE),4),"-") -> - | J47: =IFERROR(ROUND(VLOOKUP(CONCATENATE(J$5,$C47),'trend data'!$A$2:$O$11161,J$6,FALSE),4),"-") -> - | K47: =IFERROR(ROUND(VLOOKUP(CONCATENATE(K$5,$C47),'trend data'!$A$2:$O$11161,K$6,FALSE),4),"-") -> - | L47: =IFERROR(VLOOKUP(CONCATENATE(L$5,$C47),'trend data'!$A$2:$O$11161,L$6,FALSE),"-") -> - | M47: =IFERROR(VLOOKUP(CONCATENATE(M$5,$C47),'trend data'!$A$2:$O$11161,M$6,FALSE),"-") -> -
A48: 202401 | B48: 2024-03-31 | C48: =CONCATENATE(A48,'SSI Data and Charts'!B$1) -> 202401Scotland | D48: =IFERROR(VLOOKUP(CONCATENATE(D$5,$C48),'trend data'!$A$2:$O$11161,D$6,FALSE),"-") -> - | E48: =IFERROR(ROUND(VLOOKUP(CONCATENATE(E$5,$C48),'trend data'!$A$2:$O$11161,E$6,FALSE),4),"-") -> - | F48: =IFERROR(ROUND(VLOOKUP(CONCATENATE(F$5,$C48),'trend data'!$A$2:$O$11161,F$6,FALSE),4),"-") -> - | G48: =IFERROR(ROUND(VLOOKUP(CONCATENATE(G$5,$C48),'trend data'!$A$2:$O$11161,G$6,FALSE),4),"-") -> - | H48: =IFERROR(VLOOKUP(CONCATENATE(H$5,$C48),'trend data'!$A$2:$O$11161,H$6,FALSE),"-") -> - | I48: =IFERROR(ROUND(VLOOKUP(CONCATENATE(I$5,$C48),'trend data'!$A$2:$O$11161,I$6,FALSE),4),"-") -> - | J48: =IFERROR(ROUND(VLOOKUP(CONCATENATE(J$5,$C48),'trend data'!$A$2:$O$11161,J$6,FALSE),4),"-") -> - | K48: =IFERROR(ROUND(VLOOKUP(CONCATENATE(K$5,$C48),'trend data'!$A$2:$O$11161,K$6,FALSE),4),"-") -> - | L48: =IFERROR(VLOOKUP(CONCATENATE(L$5,$C48),'trend data'!$A$2:$O$11161,L$6,FALSE),"-") -> - | M48: =IFERROR(VLOOKUP(CONCATENATE(M$5,$C48),'trend data'!$A$2:$O$11161,M$6,FALSE),"-") -> -
A49: 202402 | B49: 2024-06-30 | C49: =CONCATENATE(A49,'SSI Data and Charts'!B$1) -> 202402Scotland | D49: =IFERROR(VLOOKUP(CONCATENATE(D$5,$C49),'trend data'!$A$2:$O$11161,D$6,FALSE),"-") -> - | E49: =IFERROR(ROUND(VLOOKUP(CONCATENATE(E$5,$C49),'trend data'!$A$2:$O$11161,E$6,FALSE),4),"-") -> - | F49: =IFERROR(ROUND(VLOOKUP(CONCATENATE(F$5,$C49),'trend data'!$A$2:$O$11161,F$6,FALSE),4),"-") -> - | G49: =IFERROR(ROUND(VLOOKUP(CONCATENATE(G$5,$C49),'trend data'!$A$2:$O$11161,G$6,FALSE),4),"-") -> - | H49: =IFERROR(VLOOKUP(CONCATENATE(H$5,$C49),'trend data'!$A$2:$O$11161,H$6,FALSE),"-") -> - | I49: =IFERROR(ROUND(VLOOKUP(CONCATENATE(I$5,$C49),'trend data'!$A$2:$O$11161,I$6,FALSE),4),"-") -> - | J49: =IFERROR(ROUND(VLOOKUP(CONCATENATE(J$5,$C49),'trend data'!$A$2:$O$11161,J$6,FALSE),4),"-") -> - | K49: =IFERROR(ROUND(VLOOKUP(CONCATENATE(K$5,$C49),'trend data'!$A$2:$O$11161,K$6,FALSE),4),"-") -> - | L49: =IFERROR(VLOOKUP(CONCATENATE(L$5,$C49),'trend data'!$A$2:$O$11161,L$6,FALSE),"-") -> - | M49: =IFERROR(VLOOKUP(CONCATENATE(M$5,$C49),'trend data'!$A$2:$O$11161,M$6,FALSE),"-") -> -

Sheet SAB data (hidden)
A1: Trend data | T1: data for u-charts
A3: always last 3 years
W4: change this
D5: SABHCAI | E5: SABHCAI | F5: SABHCAI | G5: SABHCAI | H5: SABCAUN | I5: SABCAUN | J5: SABCAUN | K5: SABCAUN | L5: SAB | M5: SAB | N5: SAB | O5: SAB | P5: SAB | V5: current quarter end | W5: 2024-06-30 | X5: 3 | Y5: 4 | Z5: 5 | AA5: 6 | AC5: 3 | AD5: 4 | AE5: 5 | AF5: 6 | AH5: 3 | AI5: 4 | AJ5: 5 | AK5: 6
D6: 2 | E6: 4 | F6: 5 | G6: 6 | H6: 2 | I6: 4 | J6: 5 | K6: 6 | L6: 2 | M6: 4 | N6: 5 | O6: 6 | P6: 3
C7: ref | D7: HCAI Cases | E7: Healthcare associated rate | F7: Healthcare associated lower CI | G7: Healthcare associated upper CI | H7: Community associatedCases | I7: Community associated rate | J7: Community associated lower CI | K7: Community associated upper CI | L7: CASES | M7: RATE | N7: LOWER | O7: UPPER | P7: beds | X7: SABHCAI | AC7: SABCAUN | AH7: SAB
A8: 201404 | B8: 2014-12-19 | C8: =CONCATENATE(A8,'SAB Data and Charts'!B$1) -> 201404Scotland | D8: =VLOOKUP(CONCATENATE(D$5,$C8),'trend data'!$A$2:$O$11161,D$6,FALSE) -> 275 | E8: =ROUND(VLOOKUP(CONCATENATE(E$5,$C8),'trend data'!$A$2:$O$11161,E$6,FALSE),3) -> 16.065 | F8: =ROUND(VLOOKUP(CONCATENATE(F$5,$C8),'trend data'!$A$2:$O$11161,F$6,FALSE),3) -> 14.222 | G8: =ROUND(VLOOKUP(CONCATENATE(G$5,$C8),'trend data'!$A$2:$O$11161,G$6,FALSE),3) -> 18.08 | H8: =IFERROR(VLOOKUP(CONCATENATE(H$5,$C8),'trend data'!$A$2:$O$11161,H$6,FALSE),"-") -> 119 | I8: =IFERROR(ROUND(VLOOKUP(CONCATENATE(I$5,$C8),'trend data'!$A$2:$O$11161,I$6,FALSE),3),"-") -> 8.854 | J8: =IFERROR(ROUND(VLOOKUP(CONCATENATE(J$5,$C8),'trend data'!$A$2:$O$11161,J$6,FALSE),3),"-") -> 7.335 | K8: =IFERROR(ROUND(VLOOKUP(CONCATENATE(K$5,$C8),'trend data'!$A$2:$O$11161,K$6,FALSE),3),"-") -> 10.595 | L8: =IFERROR(VLOOKUP(CONCATENATE(L$5,$C8),'trend data'!$A$2:$O$11161,L$6,FALSE),"-") -> - | M8: =IFERROR(VLOOKUP(CONCATENATE(M$5,$C8),'trend data'!$A$2:$O$11161,M$6,FALSE),"-") -> - | N8: =IFERROR(VLOOKUP(CONCATENATE(N$5,$C8),'trend data'!$A$2:$O$11161,N$6,FALSE),"-") -> - | O8: =IFERROR(VLOOKUP(CONCATENATE(O$5,$C8),'trend data'!$A$2:$O$11161,O$6,FALSE),"-") -> - | P8: =IFERROR(VLOOKUP(CONCATENATE(P$5,$C8),'trend data'!$A$2:$O$11161,P$6,FALSE),"-") -> - | T8: change to last 12 quarters | X8: Healthcare associated rate | Y8: Healthcare associated av rate | Z8: Healthcare associated UWL 2sd | AA8: Healthcare associated UCL 3sd | AC8: Community associated rate | AD8: Community associated av rate | AE8: Community associated UWL 2sd | AF8: Community associated UCL 3 sd | AH8: sa rate | AI8: sa av rate | AJ8: sa UWL 2 sd | AK8: sa UCL 3 sd
A9: 201501 | B9: 2015-03-24 | C9: =CONCATENATE(A9,'SAB Data and Charts'!B$1) -> 201501Scotland | D9: =VLOOKUP(CONCATENATE(D$5,$C9),'trend data'!$A$2:$O$11161,D$6,FALSE) -> 263 | E9: =ROUND(VLOOKUP(CONCATENATE(E$5,$C9),'trend data'!$A$2:$O$11161,E$6,FALSE),3) -> 15.258 | F9: =ROUND(VLOOKUP(CONCATENATE(F$5,$C9),'trend data'!$A$2:$O$11161,F$6,FALSE),3) -> 13.469 | G9: =ROUND(VLOOKUP(CONCATENATE(G$5,$C9),'trend data'!$A$2:$O$11161,G$6,FALSE),3) -> 17.218 | H9: =IFERROR(VLOOKUP(CONCATENATE(H$5,$C9),'trend data'!$A$2:$O$11161,H$6,FALSE),"-") -> 126 | I9: =IFERROR(ROUND(VLOOKUP(CONCATENATE(I$5,$C9),'trend data'!$A$2:$O$11161,I$6,FALSE),3),"-") -> 9.548 | J9: =IFERROR(ROUND(VLOOKUP(CONCATENATE(J$5,$C9),'trend data'!$A$2:$O$11161,J$6,FALSE),3),"-") -> 7.954 | K9: =IFERROR(ROUND(VLOOKUP(CONCATENATE(K$5,$C9),'trend data'!$A$2:$O$11161,K$6,FALSE),3),"-") -> 11.369 | L9: =IFERROR(VLOOKUP(CONCATENATE(L$5,$C9),'trend data'!$A$2:$O$11161,L$6,FALSE),"-") -> - | M9: =IFERROR(VLOOKUP(CONCATENATE(M$5,$C9),'trend data'!$A$2:$O$11161,M$6,FALSE),"-") -> - | N9: =IFERROR(VLOOKUP(CONCATENATE(N$5,$C9),'trend data'!$A$2:$O$11161,N$6,FALSE),"-") -> - | O9: =IFERROR(VLOOKUP(CONCATENATE(O$5,$C9),'trend data'!$A$2:$O$11161,O$6,FALSE),"-") -> - | P9: =IFERROR(VLOOKUP(CONCATENATE(P$5,$C9),'trend data'!$A$2:$O$11161,P$6,FALSE),"-") -> - | T9: =YEAR(W9)&"0"&IF(MONTH(W9)<4,1,IF(MONTH(W9)<7,2,IF(MONTH(W9)<10,3,4))) -> 202103 | U9: =CONCATENATE(X$7,$T9,'SAB Data and Charts'!B$1) -> SABHCAI202103Scotland | V9: 1 | W9: =W10-92 -> 2021-09-22 | X9: =ROUND(VLOOKUP($U9,'data for u-p-charts'!$A$2:$F$5000,X$5,FALSE),2) -> 18.4 | Y9: =ROUND(VLOOKUP($U9,'data for u-p-charts'!$A$2:$F$5000,Y$5,FALSE),2) -> 18.01 | Z9: =ROUND(VLOOKUP($U9,'data for u-p-charts'!$A$2:$F$5000,Z$5,FALSE),2) -> 20.23 | AA9: =ROUND(VLOOKUP($U9,'data for u-p-charts'!$A$2:$F$5000,AA$5,FALSE),2) -> 21.34 | AB9: =CONCATENATE(AC$7,$T9,'SAB Data and Charts'!$B$1) -> SABCAUN202103Scotland | AC9: =ROUND(VLOOKUP($AB9,'data for u-p-charts'!$A$2:$F$5000,AC$5,FALSE),2) -> 9.67 | AD9: =ROUND(VLOOKUP($AB9,'data for u-p-charts'!$A$2:$F$5000,AD$5,FALSE),2) -> 10.01 | AE9: =ROUND(VLOOKUP($AB9,'data for u-p-charts'!$A$2:$F$5000,AE$5,FALSE),2) -> 11.72 | AF9: =ROUND(VLOOKUP($AB9,'data for u-p-charts'!$A$2:$F$5000,AF$5,FALSE),2) -> 12.58 | AG9: =CONCATENATE(AH$7,$T9,'SAB Data and Charts'!$B$1) -> SAB 202103Scotland | AH9: =VLOOKUP($AG9,'data for u-p-charts'!$A$2:$F$5000,AH$5,FALSE) ->  | AI9: =VLOOKUP($AG9,'data for u-p-charts'!$A$2:$F$5000,AI$5,FALSE) ->  | AJ9: =VLOOKUP($AG9,'data for u-p-charts'!$A$2:$F$5000,AJ$5,FALSE) ->  | AK9: =VLOOKUP($AG9,'data for u-p-charts'!$A$2:$F$5000,AK$5,FALSE) -> 
A10: 201502 | B10: 2015-06-24 | C10: =CONCATENATE(A10,'SAB Data and Charts'!B$1) -> 201502Scotland | D10: =VLOOKUP(CONCATENATE(D$5,$C10),'trend data'!$A$2:$O$11161,D$6,FALSE) -> 284 | E10: =ROUND(VLOOKUP(CONCATENATE(E$5,$C10),'trend data'!$A$2:$O$11161,E$6,FALSE),3) -> 17.094 | F10: =ROUND(VLOOKUP(CONCATENATE(F$5,$C10),'trend data'!$A$2:$O$11161,F$6,FALSE),3) -> 15.163 | G10: =ROUND(VLOOKUP(CONCATENATE(G$5,$C10),'trend data'!$A$2:$O$11161,G$6,FALSE),3) -> 19.202 | H10: =IFERROR(VLOOKUP(CONCATENATE(H$5,$C10),'trend data'!$A$2:$O$11161,H$6,FALSE),"-") -> 131 | I10: =IFERROR(ROUND(VLOOKUP(CONCATENATE(I$5,$C10),'trend data'!$A$2:$O$11161,I$6,FALSE),3),"-") -> 9.818 | J10: =IFERROR(ROUND(VLOOKUP(CONCATENATE(J$5,$C10),'trend data'!$A$2:$O$11161,J$6,FALSE),3),"-") -> 8.209 | K10: =IFERROR(ROUND(VLOOKUP(CONCATENATE(K$5,$C10),'trend data'!$A$2:$O$11161,K$6,FALSE),3),"-") -> 11.651 | L10: =IFERROR(VLOOKUP(CONCATENATE(L$5,$C10),'trend data'!$A$2:$O$11161,L$6,FALSE),"-") -> - | M10: =IFERROR(VLOOKUP(CONCATENATE(M$5,$C10),'trend data'!$A$2:$O$11161,M$6,FALSE),"-") -> - | N10: =IFERROR(VLOOKUP(CONCATENATE(N$5,$C10),'trend data'!$A$2:$O$11161,N$6,FALSE),"-") -> - | O10: =IFERROR(VLOOKUP(CONCATENATE(O$5,$C10),'trend data'!$A$2:$O$11161,O$6,FALSE),"-") -> - | P10: =IFERROR(VLOOKUP(CONCATENATE(P$5,$C10),'trend data'!$A$2:$O$11161,P$6,FALSE),"-") -> - | T10: =YEAR(W10)&"0"&IF(MONTH(W10)<4,1,IF(MONTH(W10)<7,2,IF(MONTH(W10)<10,3,4))) -> 202104 | U10: =CONCATENATE(X$7,T10,'SAB Data and Charts'!B$1) -> SABHCAI202104Scotland | V10: 2 | W10: 2021-12-23 | X10: =ROUND(VLOOKUP($U10,'data for u-p-charts'!$A$2:$F$5000,X$5,FALSE),2) -> 17.34 | Y10: =ROUND(VLOOKUP($U10,'data for u-p-charts'!$A$2:$F$5000,Y$5,FALSE),2) -> 18.01 | Z10: =ROUND(VLOOKUP($U10,'data for u-p-charts'!$A$2:$F$5000,Z$5,FALSE),2) -> 20.2 | AA10: =ROUND(VLOOKUP($U10,'data for u-p-charts'!$A$2:$F$5000,AA$5,FALSE),2) -> 21.3 | AB10: =CONCATENATE(AC$7,$T10,'SAB Data and Charts'!$B$1) -> SABCAUN202104Scotland | AC10: =ROUND(VLOOKUP($AB10,'data for u-p-charts'!$A$2:$F$5000,AC$5,FALSE),2) -> 9.96 | AD10: =ROUND(VLOOKUP($AB10,'data for u-p-charts'!$A$2:$F$5000,AD$5,FALSE),2) -> 10.01 | AE10: =ROUND(VLOOKUP($AB10,'data for u-p-charts'!$A$2:$F$5000,AE$5,FALSE),2) -> 11.72 | AF10: =ROUND(VLOOKUP($AB10,'data for u-p-charts'!$A$2:$F$5000,AF$5,FALSE),2) -> 12.58 | AG10: =CONCATENATE(AH$7,$T10,'SAB Data and Charts'!$B$1) -> SAB 202104Scotland | AH10: =VLOOKUP($AG10,'data for u-p-charts'!$A$2:$F$5000,AH$5,FALSE) ->  | AI10: =VLOOKUP($AG10,'data for u-p-charts'!$A$2:$F$5000,AI$5,FALSE) ->  | AJ10: =VLOOKUP($AG10,'data for u-p-charts'!$A$2:$F$5000,AJ$5,FALSE) ->  | AK10: =VLOOKUP($AG10,'data for u-p-charts'!$A$2:$F$5000,AK$5,FALSE) -> 
A11: 201503 | B11: 2015-09-24 | C11: =CONCATENATE(A11,'SAB Data and Charts'!B$1) -> 201503Scotland | D11: =VLOOKUP(CONCATENATE(D$5,$C11),'trend data'!$A$2:$O$11161,D$6,FALSE) -> 275 | E11: =ROUND(VLOOKUP(CONCATENATE(E$5,$C11),'trend data'!$A$2:$O$11161,E$6,FALSE),3) -> 16.966 | F11: =ROUND(VLOOKUP(CONCATENATE(F$5,$C11),'trend data'!$A$2:$O$11161,F$6,FALSE),3) -> 15.02 | G11: =ROUND(VLOOKUP(CONCATENATE(G$5,$C11),'trend data'!$A$2:$O$11161,G$6,FALSE),3) -> 19.094 | H11: =IFERROR(VLOOKUP(CONCATENATE(H$5,$C11),'trend data'!$A$2:$O$11161,H$6,FALSE),"-") -> 113 | I11: =IFERROR(ROUND(VLOOKUP(CONCATENATE(I$5,$C11),'trend data'!$A$2:$O$11161,I$6,FALSE),3),"-") -> 8.377 | J11: =IFERROR(ROUND(VLOOKUP(CONCATENATE(J$5,$C11),'trend data'!$A$2:$O$11161,J$6,FALSE),3),"-") -> 6.904 | K11: =IFERROR(ROUND(VLOOKUP(CONCATENATE(K$5,$C11),'trend data'!$A$2:$O$11161,K$6,FALSE),3),"-") -> 10.072 | L11: =IFERROR(VLOOKUP(CONCATENATE(L$5,$C11),'trend data'!$A$2:$O$11161,L$6,FALSE),"-") -> - | M11: =IFERROR(VLOOKUP(CONCATENATE(M$5,$C11),'trend data'!$A$2:$O$11161,M$6,FALSE),"-") -> - | N11: =IFERROR(VLOOKUP(CONCATENATE(N$5,$C11),'trend data'!$A$2:$O$11161,N$6,FALSE),"-") -> - | O11: =IFERROR(VLOOKUP(CONCATENATE(O$5,$C11),'trend data'!$A$2:$O$11161,O$6,FALSE),"-") -> - | P11: =IFERROR(VLOOKUP(CONCATENATE(P$5,$C11),'trend data'!$A$2:$O$11161,P$6,FALSE),"-") -> - | T11: =YEAR(W11)&"0"&IF(MONTH(W11)<4,1,IF(MONTH(W11)<7,2,IF(MONTH(W11)<10,3,4))) -> 202201 | U11: =CONCATENATE(X$7,T11,'SAB Data and Charts'!B$1) -> SABHCAI202201Scotland | V11: 3 | W11: 2022-03-25 | X11: =ROUND(VLOOKUP($U11,'data for u-p-charts'!$A$2:$F$5000,X$5,FALSE),2) -> 16.27 | Y11: =ROUND(VLOOKUP($U11,'data for u-p-charts'!$A$2:$F$5000,Y$5,FALSE),2) -> 18.01 | Z11: =ROUND(VLOOKUP($U11,'data for u-p-charts'!$A$2:$F$5000,Z$5,FALSE),2) -> 20.21 | AA11: =ROUND(VLOOKUP($U11,'data for u-p-charts'!$A$2:$F$5000,AA$5,FALSE),2) -> 21.32 | AB11: =CONCATENATE(AC$7,$T11,'SAB Data and Charts'!$B$1) -> SABCAUN202201Scotland | AC11: =ROUND(VLOOKUP($AB11,'data for u-p-charts'!$A$2:$F$5000,AC$5,FALSE),2) -> 9.68 | AD11: =ROUND(VLOOKUP($AB11,'data for u-p-charts'!$A$2:$F$5000,AD$5,FALSE),2) -> 10.01 | AE11: =ROUND(VLOOKUP($AB11,'data for u-p-charts'!$A$2:$F$5000,AE$5,FALSE),2) -> 11.74 | AF11: =ROUND(VLOOKUP($AB11,'data for u-p-charts'!$A$2:$F$5000,AF$5,FALSE),2) -> 12.6 | AG11: =CONCATENATE(AH$7,$T11,'SAB Data and Charts'!$B$1) -> SAB 202201Scotland | AH11: =VLOOKUP($AG11,'data for u-p-charts'!$A$2:$F$5000,AH$5,FALSE) ->  | AI11: =VLOOKUP($AG11,'data for u-p-charts'!$A$2:$F$5000,AI$5,FALSE) ->  | AJ11: =VLOOKUP($AG11,'data for u-p-charts'!$A$2:$F$5000,AJ$5,FALSE) ->  | AK11: =VLOOKUP($AG11,'data for u-p-charts'!$A$2:$F$5000,AK$5,FALSE) -> 
A12: 201504 | B12: 2015-12-24 | C12: =CONCATENATE(A12,'SAB Data and Charts'!B$1) -> 201504Scotland | D12: =VLOOKUP(CONCATENATE(D$5,$C12),'trend data'!$A$2:$O$11161,D$6,FALSE) -> 303 | E12: =ROUND(VLOOKUP(CONCATENATE(E$5,$C12),'trend data'!$A$2:$O$11161,E$6,FALSE),3) -> 18.451 | F12: =ROUND(VLOOKUP(CONCATENATE(F$5,$C12),'trend data'!$A$2:$O$11161,F$6,FALSE),3) -> 16.432 | G12: =ROUND(VLOOKUP(CONCATENATE(G$5,$C12),'trend data'!$A$2:$O$11161,G$6,FALSE),3) -> 20.65 | H12: =IFERROR(VLOOKUP(CONCATENATE(H$5,$C12),'trend data'!$A$2:$O$11161,H$6,FALSE),"-") -> 104 | I12: =IFERROR(ROUND(VLOOKUP(CONCATENATE(I$5,$C12),'trend data'!$A$2:$O$11161,I$6,FALSE),3),"-") -> 7.71 | J12: =IFERROR(ROUND(VLOOKUP(CONCATENATE(J$5,$C12),'trend data'!$A$2:$O$11161,J$6,FALSE),3),"-") -> 6.299 | K12: =IFERROR(ROUND(VLOOKUP(CONCATENATE(K$5,$C12),'trend data'!$A$2:$O$11161,K$6,FALSE),3),"-") -> 9.342 | L12: =IFERROR(VLOOKUP(CONCATENATE(L$5,$C12),'trend data'!$A$2:$O$11161,L$6,FALSE),"-") -> - | M12: =IFERROR(VLOOKUP(CONCATENATE(M$5,$C12),'trend data'!$A$2:$O$11161,M$6,FALSE),"-") -> - | N12: =IFERROR(VLOOKUP(CONCATENATE(N$5,$C12),'trend data'!$A$2:$O$11161,N$6,FALSE),"-") -> - | O12: =IFERROR(VLOOKUP(CONCATENATE(O$5,$C12),'trend data'!$A$2:$O$11161,O$6,FALSE),"-") -> - | P12: =IFERROR(VLOOKUP(CONCATENATE(P$5,$C12),'trend data'!$A$2:$O$11161,P$6,FALSE),"-") -> - | T12: 202202 | U12: =CONCATENATE(X$7,T12,'SAB Data and Charts'!B$1) -> SABHCAI202202Scotland | V12: 4 | W12: 2022-06-25 | X12: =ROUND(VLOOKUP($U12,'data for u-p-charts'!$A$2:$F$5000,X$5,FALSE),2) -> 17.28 | Y12: =ROUND(VLOOKUP($U12,'data for u-p-charts'!$A$2:$F$5000,Y$5,FALSE),2) -> 18.01 | Z12: =ROUND(VLOOKUP($U12,'data for u-p-charts'!$A$2:$F$5000,Z$5,FALSE),2) -> 20.19 | AA12: =ROUND(VLOOKUP($U12,'data for u-p-charts'!$A$2:$F$5000,AA$5,FALSE),2) -> 21.28 | AB12: =CONCATENATE(AC$7,$T12,'SAB Data and Charts'!$B$1) -> SABCAUN202202Scotland | AC12: =ROUND(VLOOKUP($AB12,'data for u-p-charts'!$A$2:$F$5000,AC$5,FALSE),2) -> 10.23 | AD12: =ROUND(VLOOKUP($AB12,'data for u-p-charts'!$A$2:$F$5000,AD$5,FALSE),2) -> 10.01 | AE12: =ROUND(VLOOKUP($AB12,'data for u-p-charts'!$A$2:$F$5000,AE$5,FALSE),2) -> 11.73 | AF12: =ROUND(VLOOKUP($AB12,'data for u-p-charts'!$A$2:$F$5000,AF$5,FALSE),2) -> 12.59 | AG12: =CONCATENATE(AH$7,$T12,'SAB Data and Charts'!$B$1) -> SAB 202202Scotland | AH12: =VLOOKUP($AG12,'data for u-p-charts'!$A$2:$F$5000,AH$5,FALSE) ->  | AI12: =VLOOKUP($AG12,'data for u-p-charts'!$A$2:$F$5000,AI$5,FALSE) ->  | AJ12: =VLOOKUP($AG12,'data for u-p-charts'!$A$2:$F$5000,AJ$5,FALSE) ->  | AK12: =VLOOKUP($AG12,'data for u-p-charts'!$A$2:$F$5000,AK$5,FALSE) -> 
A13: 201601 | B13: 2016-03-24 | C13: =CONCATENATE(A13,'SAB Data and Charts'!B$1) -> 201601Scotland | D13: =VLOOKUP(CONCATENATE(D$5,$C13),'trend data'!$A$2:$O$11161,D$6,FALSE) -> 279 | E13: =ROUND(VLOOKUP(CONCATENATE(E$5,$C13),'trend data'!$A$2:$O$11161,E$6,FALSE),3) -> 16.662 | F13: =ROUND(VLOOKUP(CONCATENATE(F$5,$C13),'trend data'!$A$2:$O$11161,F$6,FALSE),3) -> 14.764 | G13: =ROUND(VLOOKUP(CONCATENATE(G$5,$C13),'trend data'!$A$2:$O$11161,G$6,FALSE),3) -> 18.737 | H13: =IFERROR(VLOOKUP(CONCATENATE(H$5,$C13),'trend data'!$A$2:$O$11161,H$6,FALSE),"-") -> 139 | I13: =IFERROR(ROUND(VLOOKUP(CONCATENATE(I$5,$C13),'trend data'!$A$2:$O$11161,I$6,FALSE),3),"-") -> 10.401 | J13: =IFERROR(ROUND(VLOOKUP(CONCATENATE(J$5,$C13),'trend data'!$A$2:$O$11161,J$6,FALSE),3),"-") -> 8.744 | K13: =IFERROR(ROUND(VLOOKUP(CONCATENATE(K$5,$C13),'trend data'!$A$2:$O$11161,K$6,FALSE),3),"-") -> 12.281 | L13: =IFERROR(VLOOKUP(CONCATENATE(L$5,$C13),'trend data'!$A$2:$O$11161,L$6,FALSE),"-") -> - | M13: =IFERROR(VLOOKUP(CONCATENATE(M$5,$C13),'trend data'!$A$2:$O$11161,M$6,FALSE),"-") -> - | N13: =IFERROR(VLOOKUP(CONCATENATE(N$5,$C13),'trend data'!$A$2:$O$11161,N$6,FALSE),"-") -> - | O13: =IFERROR(VLOOKUP(CONCATENATE(O$5,$C13),'trend data'!$A$2:$O$11161,O$6,FALSE),"-") -> - | P13: =IFERROR(VLOOKUP(CONCATENATE(P$5,$C13),'trend data'!$A$2:$O$11161,P$6,FALSE),"-") -> - | T13: 202203 | U13: =CONCATENATE(X$7,T13,'SAB Data and Charts'!B$1) -> SABHCAI202203Scotland | V13: 5 | W13: 2022-09-25 | X13: =ROUND(VLOOKUP($U13,'data for u-p-charts'!$A$2:$F$5000,X$5,FALSE),2) -> 17.08 | Y13: =ROUND(VLOOKUP($U13,'data for u-p-charts'!$A$2:$F$5000,Y$5,FALSE),2) -> 18.01 | Z13: =ROUND(VLOOKUP($U13,'data for u-p-charts'!$A$2:$F$5000,Z$5,FALSE),2) -> 20.17 | AA13: =ROUND(VLOOKUP($U13,'data for u-p-charts'!$A$2:$F$5000,AA$5,FALSE),2) -> 21.25 | AB13: =CONCATENATE(AC$7,$T13,'SAB Data and Charts'!$B$1) -> SABCAUN202203Scotland | AC13: =ROUND(VLOOKUP($AB13,'data for u-p-charts'!$A$2:$F$5000,AC$5,FALSE),2) -> 8.81 | AD13: =ROUND(VLOOKUP($AB13,'data for u-p-charts'!$A$2:$F$5000,AD$5,FALSE),2) -> 10.01 | AE13: =ROUND(VLOOKUP($AB13,'data for u-p-charts'!$A$2:$F$5000,AE$5,FALSE),2) -> 11.72 | AF13: =ROUND(VLOOKUP($AB13,'data for u-p-charts'!$A$2:$F$5000,AF$5,FALSE),2) -> 12.57 | AG13: =CONCATENATE(AH$7,$T13,'SAB Data and Charts'!$B$1) -> SAB 202203Scotland | AH13: =VLOOKUP($AG13,'data for u-p-charts'!$A$2:$F$5000,AH$5,FALSE) ->  | AI13: =VLOOKUP($AG13,'data for u-p-charts'!$A$2:$F$5000,AI$5,FALSE) ->  | AJ13: =VLOOKUP($AG13,'data for u-p-charts'!$A$2:$F$5000,AJ$5,FALSE) ->  | AK13: =VLOOKUP($AG13,'data for u-p-charts'!$A$2:$F$5000,AK$5,FALSE) -> 
A14: 201602 | B14: 2016-06-24 | C14: =CONCATENATE(A14,'SAB Data and Charts'!B$1) -> 201602Scotland | D14: =VLOOKUP(CONCATENATE(D$5,$C14),'trend data'!$A$2:$O$11161,D$6,FALSE) -> 260 | E14: =ROUND(VLOOKUP(CONCATENATE(E$5,$C14),'trend data'!$A$2:$O$11161,E$6,FALSE),3) -> 16.198 | F14: =ROUND(VLOOKUP(CONCATENATE(F$5,$C14),'trend data'!$A$2:$O$11161,F$6,FALSE),3) -> 14.289 | G14: =ROUND(VLOOKUP(CONCATENATE(G$5,$C14),'trend data'!$A$2:$O$11161,G$6,FALSE),3) -> 18.292 | H14: =IFERROR(VLOOKUP(CONCATENATE(H$5,$C14),'trend data'!$A$2:$O$11161,H$6,FALSE),"-") -> 121 | I14: =IFERROR(ROUND(VLOOKUP(CONCATENATE(I$5,$C14),'trend data'!$A$2:$O$11161,I$6,FALSE),3),"-") -> 9.054 | J14: =IFERROR(ROUND(VLOOKUP(CONCATENATE(J$5,$C14),'trend data'!$A$2:$O$11161,J$6,FALSE),3),"-") -> 7.513 | K14: =IFERROR(ROUND(VLOOKUP(CONCATENATE(K$5,$C14),'trend data'!$A$2:$O$11161,K$6,FALSE),3),"-") -> 10.819 | L14: =IFERROR(VLOOKUP(CONCATENATE(L$5,$C14),'trend data'!$A$2:$O$11161,L$6,FALSE),"-") -> - | M14: =IFERROR(VLOOKUP(CONCATENATE(M$5,$C14),'trend data'!$A$2:$O$11161,M$6,FALSE),"-") -> - | N14: =IFERROR(VLOOKUP(CONCATENATE(N$5,$C14),'trend data'!$A$2:$O$11161,N$6,FALSE),"-") -> - | O14: =IFERROR(VLOOKUP(CONCATENATE(O$5,$C14),'trend data'!$A$2:$O$11161,O$6,FALSE),"-") -> - | P14: =IFERROR(VLOOKUP(CONCATENATE(P$5,$C14),'trend data'!$A$2:$O$11161,P$6,FALSE),"-") -> - | T14: 202204 | U14: =CONCATENATE(X$7,T14,'SAB Data and Charts'!B$1) -> SABHCAI202204Scotland | V14: 6 | W14: 2022-12-26 | X14: =ROUND(VLOOKUP($U14,'data for u-p-charts'!$A$2:$F$5000,X$5,FALSE),2) -> 19.25 | Y14: =ROUND(VLOOKUP($U14,'data for u-p-charts'!$A$2:$F$5000,Y$5,FALSE),2) -> 18.01 | Z14: =ROUND(VLOOKUP($U14,'data for u-p-charts'!$A$2:$F$5000,Z$5,FALSE),2) -> 20.15 | AA14: =ROUND(VLOOKUP($U14,'data for u-p-charts'!$A$2:$F$5000,AA$5,FALSE),2) -> 21.22 | AB14: =CONCATENATE(AC$7,$T14,'SAB Data and Charts'!$B$1) -> SABCAUN202204Scotland | AC14: =ROUND(VLOOKUP($AB14,'data for u-p-charts'!$A$2:$F$5000,AC$5,FALSE),2) -> 9.54 | AD14: =ROUND(VLOOKUP($AB14,'data for u-p-charts'!$A$2:$F$5000,AD$5,FALSE),2) -> 10.01 | AE14: =ROUND(VLOOKUP($AB14,'data for u-p-charts'!$A$2:$F$5000,AE$5,FALSE),2) -> 11.72 | AF14: =ROUND(VLOOKUP($AB14,'data for u-p-charts'!$A$2:$F$5000,AF$5,FALSE),2) -> 12.57 | AG14: =CONCATENATE(AH$7,$T14,'SAB Data and Charts'!$B$1) -> SAB 202204Scotland | AH14: =VLOOKUP($AG14,'data for u-p-charts'!$A$2:$F$5000,AH$5,FALSE) ->  | AI14: =VLOOKUP($AG14,'data for u-p-charts'!$A$2:$F$5000,AI$5,FALSE) ->  | AJ14: =VLOOKUP($AG14,'data for u-p-charts'!$A$2:$F$5000,AJ$5,FALSE) ->  | AK14: =VLOOKUP($AG14,'data for u-p-charts'!$A$2:$F$5000,AK$5,FALSE) -> 
A15: 201603 | B15: 2016-09-24 | C15: =CONCATENATE(A15,'SAB Data and Charts'!B$1) -> 201603Scotland | D15: =VLOOKUP(CONCATENATE(D$5,$C15),'trend data'!$A$2:$O$11161,D$6,FALSE) -> 273 | E15: =ROUND(VLOOKUP(CONCATENATE(E$5,$C15),'trend data'!$A$2:$O$11161,E$6,FALSE),3) -> 17.193 | F15: =ROUND(VLOOKUP(CONCATENATE(F$5,$C15),'trend data'!$A$2:$O$11161,F$6,FALSE),3) -> 15.213 | G15: =ROUND(VLOOKUP(CONCATENATE(G$5,$C15),'trend data'!$A$2:$O$11161,G$6,FALSE),3) -> 19.358 | H15: =IFERROR(VLOOKUP(CONCATENATE(H$5,$C15),'trend data'!$A$2:$O$11161,H$6,FALSE),"-") -> 127 | I15: =IFERROR(ROUND(VLOOKUP(CONCATENATE(I$5,$C15),'trend data'!$A$2:$O$11161,I$6,FALSE),3),"-") -> 9.4 | J15: =IFERROR(ROUND(VLOOKUP(CONCATENATE(J$5,$C15),'trend data'!$A$2:$O$11161,J$6,FALSE),3),"-") -> 7.836 | K15: =IFERROR(ROUND(VLOOKUP(CONCATENATE(K$5,$C15),'trend data'!$A$2:$O$11161,K$6,FALSE),3),"-") -> 11.184 | L15: =IFERROR(VLOOKUP(CONCATENATE(L$5,$C15),'trend data'!$A$2:$O$11161,L$6,FALSE),"-") -> - | M15: =IFERROR(VLOOKUP(CONCATENATE(M$5,$C15),'trend data'!$A$2:$O$11161,M$6,FALSE),"-") -> - | N15: =IFERROR(VLOOKUP(CONCATENATE(N$5,$C15),'trend data'!$A$2:$O$11161,N$6,FALSE),"-") -> - | O15: =IFERROR(VLOOKUP(CONCATENATE(O$5,$C15),'trend data'!$A$2:$O$11161,O$6,FALSE),"-") -> - | P15: =IFERROR(VLOOKUP(CONCATENATE(P$5,$C15),'trend data'!$A$2:$O$11161,P$6,FALSE),"-") -> - | T15: 202301 | U15: =CONCATENATE(X$7,T15,'SAB Data and Charts'!B$1) -> SABHCAI202301Scotland | V15: 7 | W15: 2023-03-28 | X15: =ROUND(VLOOKUP($U15,'data for u-p-charts'!$A$2:$F$5000,X$5,FALSE),2) -> 19.12 | Y15: =ROUND(VLOOKUP($U15,'data for u-p-charts'!$A$2:$F$5000,Y$5,FALSE),2) -> 18.01 | Z15: =ROUND(VLOOKUP($U15,'data for u-p-charts'!$A$2:$F$5000,Z$5,FALSE),2) -> 20.15 | AA15: =ROUND(VLOOKUP($U15,'data for u-p-charts'!$A$2:$F$5000,AA$5,FALSE),2) -> 21.22 | AB15: =CONCATENATE(AC$7,$T15,'SAB Data and Charts'!$B$1) -> SABCAUN202301Scotland | AC15: =ROUND(VLOOKUP($AB15,'data for u-p-charts'!$A$2:$F$5000,AC$5,FALSE),2) -> 9.9 | AD15: =ROUND(VLOOKUP($AB15,'data for u-p-charts'!$A$2:$F$5000,AD$5,FALSE),2) -> 10.01 | AE15: =ROUND(VLOOKUP($AB15,'data for u-p-charts'!$A$2:$F$5000,AE$5,FALSE),2) -> 11.74 | AF15: =ROUND(VLOOKUP($AB15,'data for u-p-charts'!$A$2:$F$5000,AF$5,FALSE),2) -> 12.6 | AG15: =CONCATENATE(AH$7,$T15,'SAB Data and Charts'!$B$1) -> SAB 202301Scotland | AH15: =VLOOKUP($AG15,'data for u-p-charts'!$A$2:$F$5000,AH$5,FALSE) ->  | AI15: =VLOOKUP($AG15,'data for u-p-charts'!$A$2:$F$5000,AI$5,FALSE) ->  | AJ15: =VLOOKUP($AG15,'data for u-p-charts'!$A$2:$F$5000,AJ$5,FALSE) ->  | AK15: =VLOOKUP($AG15,'data for u-p-charts'!$A$2:$F$5000,AK$5,FALSE) -> 
A16: 201604 | B16: 2016-12-24 | C16: =CONCATENATE(A16,'SAB Data and Charts'!B$1) -> 201604Scotland | D16: =VLOOKUP(CONCATENATE(D$5,$C16),'trend data'!$A$2:$O$11161,D$6,FALSE) -> 265 | E16: =ROUND(VLOOKUP(CONCATENATE(E$5,$C16),'trend data'!$A$2:$O$11161,E$6,FALSE),3) -> 16.649 | F16: =ROUND(VLOOKUP(CONCATENATE(F$5,$C16),'trend data'!$A$2:$O$11161,F$6,FALSE),3) -> 14.705 | G16: =ROUND(VLOOKUP(CONCATENATE(G$5,$C16),'trend data'!$A$2:$O$11161,G$6,FALSE),3) -> 18.779 | H16: =IFERROR(VLOOKUP(CONCATENATE(H$5,$C16),'trend data'!$A$2:$O$11161,H$6,FALSE),"-") -> 135 | I16: =IFERROR(ROUND(VLOOKUP(CONCATENATE(I$5,$C16),'trend data'!$A$2:$O$11161,I$6,FALSE),3),"-") -> 9.992 | J16: =IFERROR(ROUND(VLOOKUP(CONCATENATE(J$5,$C16),'trend data'!$A$2:$O$11161,J$6,FALSE),3),"-") -> 8.378 | K16: =IFERROR(ROUND(VLOOKUP(CONCATENATE(K$5,$C16),'trend data'!$A$2:$O$11161,K$6,FALSE),3),"-") -> 11.827 | L16: =IFERROR(VLOOKUP(CONCATENATE(L$5,$C16),'trend data'!$A$2:$O$11161,L$6,FALSE),"-") -> - | M16: =IFERROR(VLOOKUP(CONCATENATE(M$5,$C16),'trend data'!$A$2:$O$11161,M$6,FALSE),"-") -> - | N16: =IFERROR(VLOOKUP(CONCATENATE(N$5,$C16),'trend data'!$A$2:$O$11161,N$6,FALSE),"-") -> - | O16: =IFERROR(VLOOKUP(CONCATENATE(O$5,$C16),'trend data'!$A$2:$O$11161,O$6,FALSE),"-") -> - | P16: =IFERROR(VLOOKUP(CONCATENATE(P$5,$C16),'trend data'!$A$2:$O$11161,P$6,FALSE),"-") -> - | T16: 202302 | U16: =CONCATENATE(X$7,T16,'SAB Data and Charts'!B$1) -> SABHCAI202302Scotland | V16: 8 | W16: 2023-06-28 | X16: =ROUND(VLOOKUP($U16,'data for u-p-charts'!$A$2:$F$5000,X$5,FALSE),2) -> 18.32 | Y16: =ROUND(VLOOKUP($U16,'data for u-p-charts'!$A$2:$F$5000,Y$5,FALSE),2) -> 18.01 | Z16: =ROUND(VLOOKUP($U16,'data for u-p-charts'!$A$2:$F$5000,Z$5,FALSE),2) -> 20.17 | AA16: =ROUND(VLOOKUP($U16,'data for u-p-charts'!$A$2:$F$5000,AA$5,FALSE),2) -> 21.25 | AB16: =CONCATENATE(AC$7,$T16,'SAB Data and Charts'!$B$1) -> SABCAUN202302Scotland | AC16: =ROUND(VLOOKUP($AB16,'data for u-p-charts'!$A$2:$F$5000,AC$5,FALSE),2) -> 10.31 | AD16: =ROUND(VLOOKUP($AB16,'data for u-p-charts'!$A$2:$F$5000,AD$5,FALSE),2) -> 10.01 | AE16: =ROUND(VLOOKUP($AB16,'data for u-p-charts'!$A$2:$F$5000,AE$5,FALSE),2) -> 11.73 | AF16: =ROUND(VLOOKUP($AB16,'data for u-p-charts'!$A$2:$F$5000,AF$5,FALSE),2) -> 12.59 | AG16: =CONCATENATE(AH$7,$T16,'SAB Data and Charts'!$B$1) -> SAB 202302Scotland | AH16: =VLOOKUP($AG16,'data for u-p-charts'!$A$2:$F$5000,AH$5,FALSE) ->  | AI16: =VLOOKUP($AG16,'data for u-p-charts'!$A$2:$F$5000,AI$5,FALSE) ->  | AJ16: =VLOOKUP($AG16,'data for u-p-charts'!$A$2:$F$5000,AJ$5,FALSE) ->  | AK16: =VLOOKUP($AG16,'data for u-p-charts'!$A$2:$F$5000,AK$5,FALSE) -> 
A17: 201701 | B17: 2017-03-01 | C17: =CONCATENATE(A17,'SAB Data and Charts'!B$1) -> 201701Scotland | D17: =VLOOKUP(CONCATENATE(D$5,$C17),'trend data'!$A$2:$O$11161,D$6,FALSE) -> 259 | E17: =ROUND(VLOOKUP(CONCATENATE(E$5,$C17),'trend data'!$A$2:$O$11161,E$6,FALSE),3) -> 16.379 | F17: =ROUND(VLOOKUP(CONCATENATE(F$5,$C17),'trend data'!$A$2:$O$11161,F$6,FALSE),3) -> 14.444 | G17: =ROUND(VLOOKUP(CONCATENATE(G$5,$C17),'trend data'!$A$2:$O$11161,G$6,FALSE),3) -> 18.5 | H17: =IFERROR(VLOOKUP(CONCATENATE(H$5,$C17),'trend data'!$A$2:$O$11161,H$6,FALSE),"-") -> 142 | I17: =IFERROR(ROUND(VLOOKUP(CONCATENATE(I$5,$C17),'trend data'!$A$2:$O$11161,I$6,FALSE),3),"-") -> 10.685 | J17: =IFERROR(ROUND(VLOOKUP(CONCATENATE(J$5,$C17),'trend data'!$A$2:$O$11161,J$6,FALSE),3),"-") -> 8.999 | K17: =IFERROR(ROUND(VLOOKUP(CONCATENATE(K$5,$C17),'trend data'!$A$2:$O$11161,K$6,FALSE),3),"-") -> 12.594 | L17: =IFERROR(VLOOKUP(CONCATENATE(L$5,$C17),'trend data'!$A$2:$O$11161,L$6,FALSE),"-") -> - | M17: =IFERROR(VLOOKUP(CONCATENATE(M$5,$C17),'trend data'!$A$2:$O$11161,M$6,FALSE),"-") -> - | N17: =IFERROR(VLOOKUP(CONCATENATE(N$5,$C17),'trend data'!$A$2:$O$11161,N$6,FALSE),"-") -> - | O17: =IFERROR(VLOOKUP(CONCATENATE(O$5,$C17),'trend data'!$A$2:$O$11161,O$6,FALSE),"-") -> - | P17: =IFERROR(VLOOKUP(CONCATENATE(P$5,$C17),'trend data'!$A$2:$O$11161,P$6,FALSE),"-") -> - | T17: 202303 | U17: =CONCATENATE(X$7,T17,'SAB Data and Charts'!B$1) -> SABHCAI202303Scotland | V17: 9 | W17: 2023-09-28 | X17: =ROUND(VLOOKUP($U17,'data for u-p-charts'!$A$2:$F$5000,X$5,FALSE),2) -> 18.08 | Y17: =ROUND(VLOOKUP($U17,'data for u-p-charts'!$A$2:$F$5000,Y$5,FALSE),2) -> 18.01 | Z17: =ROUND(VLOOKUP($U17,'data for u-p-charts'!$A$2:$F$5000,Z$5,FALSE),2) -> 20.17 | AA17: =ROUND(VLOOKUP($U17,'data for u-p-charts'!$A$2:$F$5000,AA$5,FALSE),2) -> 21.25 | AB17: =CONCATENATE(AC$7,$T17,'SAB Data and Charts'!$B$1) -> SABCAUN202303Scotland | AC17: =ROUND(VLOOKUP($AB17,'data for u-p-charts'!$A$2:$F$5000,AC$5,FALSE),2) -> 10.2 | AD17: =ROUND(VLOOKUP($AB17,'data for u-p-charts'!$A$2:$F$5000,AD$5,FALSE),2) -> 10.01 | AE17: =ROUND(VLOOKUP($AB17,'data for u-p-charts'!$A$2:$F$5000,AE$5,FALSE),2) -> 11.72 | AF17: =ROUND(VLOOKUP($AB17,'data for u-p-charts'!$A$2:$F$5000,AF$5,FALSE),2) -> 12.57 | AG17: =CONCATENATE(AH$7,$T17,'SAB Data and Charts'!$B$1) -> SAB 202303Scotland | AH17: =VLOOKUP($AG17,'data for u-p-charts'!$A$2:$F$5000,AH$5,FALSE) ->  | AI17: =VLOOKUP($AG17,'data for u-p-charts'!$A$2:$F$5000,AI$5,FALSE) ->  | AJ17: =VLOOKUP($AG17,'data for u-p-charts'!$A$2:$F$5000,AJ$5,FALSE) ->  | AK17: =VLOOKUP($AG17,'data for u-p-charts'!$A$2:$F$5000,AK$5,FALSE) -> 
A18: 201702 | B18: 2017-06-01 | C18: =CONCATENATE(A18,'SAB Data and Charts'!B$1) -> 201702Scotland | D18: =VLOOKUP(CONCATENATE(D$5,$C18),'trend data'!$A$2:$O$11161,D$6,FALSE) -> 248 | E18: =ROUND(VLOOKUP(CONCATENATE(E$5,$C18),'trend data'!$A$2:$O$11161,E$6,FALSE),3) -> 15.994 | F18: =ROUND(VLOOKUP(CONCATENATE(F$5,$C18),'trend data'!$A$2:$O$11161,F$6,FALSE),3) -> 14.065 | G18: =ROUND(VLOOKUP(CONCATENATE(G$5,$C18),'trend data'!$A$2:$O$11161,G$6,FALSE),3) -> 18.114 | H18: =IFERROR(VLOOKUP(CONCATENATE(H$5,$C18),'trend data'!$A$2:$O$11161,H$6,FALSE),"-") -> 126 | I18: =IFERROR(ROUND(VLOOKUP(CONCATENATE(I$5,$C18),'trend data'!$A$2:$O$11161,I$6,FALSE),3),"-") -> 9.377 | J18: =IFERROR(ROUND(VLOOKUP(CONCATENATE(J$5,$C18),'trend data'!$A$2:$O$11161,J$6,FALSE),3),"-") -> 7.811 | K18: =IFERROR(ROUND(VLOOKUP(CONCATENATE(K$5,$C18),'trend data'!$A$2:$O$11161,K$6,FALSE),3),"-") -> 11.164 | L18: =IFERROR(VLOOKUP(CONCATENATE(L$5,$C18),'trend data'!$A$2:$O$11161,L$6,FALSE),"-") -> - | M18: =IFERROR(VLOOKUP(CONCATENATE(M$5,$C18),'trend data'!$A$2:$O$11161,M$6,FALSE),"-") -> - | N18: =IFERROR(VLOOKUP(CONCATENATE(N$5,$C18),'trend data'!$A$2:$O$11161,N$6,FALSE),"-") -> - | O18: =IFERROR(VLOOKUP(CONCATENATE(O$5,$C18),'trend data'!$A$2:$O$11161,O$6,FALSE),"-") -> - | P18: =IFERROR(VLOOKUP(CONCATENATE(P$5,$C18),'trend data'!$A$2:$O$11161,P$6,FALSE),"-") -> - | T18: 202304 | U18: =CONCATENATE(X$7,T18,'SAB Data and Charts'!B$1) -> SABHCAI202304Scotland | V18: 10 | W18: 2023-12-29 | X18: =ROUND(VLOOKUP($U18,'data for u-p-charts'!$A$2:$F$5000,X$5,FALSE),2) -> 19.22 | Y18: =ROUND(VLOOKUP($U18,'data for u-p-charts'!$A$2:$F$5000,Y$5,FALSE),2) -> 18.01 | Z18: =ROUND(VLOOKUP($U18,'data for u-p-charts'!$A$2:$F$5000,Z$5,FALSE),2) -> 20.15 | AA18: =ROUND(VLOOKUP($U18,'data for u-p-charts'!$A$2:$F$5000,AA$5,FALSE),2) -> 21.22 | AB18: =CONCATENATE(AC$7,$T18,'SAB Data and Charts'!$B$1) -> SABCAUN202304Scotland | AC18: =ROUND(VLOOKUP($AB18,'data for u-p-charts'!$A$2:$F$5000,AC$5,FALSE),2) -> 9.98 | AD18: =ROUND(VLOOKUP($AB18,'data for u-p-charts'!$A$2:$F$5000,AD$5,FALSE),2) -> 10.01 | AE18: =ROUND(VLOOKUP($AB18,'data for u-p-charts'!$A$2:$F$5000,AE$5,FALSE),2) -> 11.72 | AF18: =ROUND(VLOOKUP($AB18,'data for u-p-charts'!$A$2:$F$5000,AF$5,FALSE),2) -> 12.57 | AG18: =CONCATENATE(AH$7,$T18,'SAB Data and Charts'!$B$1) -> SAB 202304Scotland | AH18: =VLOOKUP($AG18,'data for u-p-charts'!$A$2:$F$5000,AH$5,FALSE) ->  | AI18: =VLOOKUP($AG18,'data for u-p-charts'!$A$2:$F$5000,AI$5,FALSE) ->  | AJ18: =VLOOKUP($AG18,'data for u-p-charts'!$A$2:$F$5000,AJ$5,FALSE) ->  | AK18: =VLOOKUP($AG18,'data for u-p-charts'!$A$2:$F$5000,AK$5,FALSE) -> 
A19: 201703 | B19: 2017-09-01 | C19: =CONCATENATE(A19,'SAB Data and Charts'!B$1) -> 201703Scotland | D19: =VLOOKUP(CONCATENATE(D$5,$C19),'trend data'!$A$2:$O$11161,D$6,FALSE) -> 278 | E19: =ROUND(VLOOKUP(CONCATENATE(E$5,$C19),'trend data'!$A$2:$O$11161,E$6,FALSE),3) -> 18.066 | F19: =ROUND(VLOOKUP(CONCATENATE(F$5,$C19),'trend data'!$A$2:$O$11161,F$6,FALSE),3) -> 16.004 | G19: =ROUND(VLOOKUP(CONCATENATE(G$5,$C19),'trend data'!$A$2:$O$11161,G$6,FALSE),3) -> 20.319 | H19: =IFERROR(VLOOKUP(CONCATENATE(H$5,$C19),'trend data'!$A$2:$O$11161,H$6,FALSE),"-") -> 127 | I19: =IFERROR(ROUND(VLOOKUP(CONCATENATE(I$5,$C19),'trend data'!$A$2:$O$11161,I$6,FALSE),3),"-") -> 9.348 | J19: =IFERROR(ROUND(VLOOKUP(CONCATENATE(J$5,$C19),'trend data'!$A$2:$O$11161,J$6,FALSE),3),"-") -> 7.793 | K19: =IFERROR(ROUND(VLOOKUP(CONCATENATE(K$5,$C19),'trend data'!$A$2:$O$11161,K$6,FALSE),3),"-") -> 11.123 | L19: =IFERROR(VLOOKUP(CONCATENATE(L$5,$C19),'trend data'!$A$2:$O$11161,L$6,FALSE),"-") -> - | M19: =IFERROR(VLOOKUP(CONCATENATE(M$5,$C19),'trend data'!$A$2:$O$11161,M$6,FALSE),"-") -> - | N19: =IFERROR(VLOOKUP(CONCATENATE(N$5,$C19),'trend data'!$A$2:$O$11161,N$6,FALSE),"-") -> - | O19: =IFERROR(VLOOKUP(CONCATENATE(O$5,$C19),'trend data'!$A$2:$O$11161,O$6,FALSE),"-") -> - | P19: =IFERROR(VLOOKUP(CONCATENATE(P$5,$C19),'trend data'!$A$2:$O$11161,P$6,FALSE),"-") -> - | T19: 202401 | U19: =CONCATENATE(X$7,T19,'SAB Data and Charts'!B$1) -> SABHCAI202401Scotland | V19: 11 | W19: =W20-92 -> 2024-03-30 | X19: =ROUND(VLOOKUP($U19,'data for u-p-charts'!$A$2:$F$5000,X$5,FALSE),2) -> 17.04 | Y19: =ROUND(VLOOKUP($U19,'data for u-p-charts'!$A$2:$F$5000,Y$5,FALSE),2) -> 18.01 | Z19: =ROUND(VLOOKUP($U19,'data for u-p-charts'!$A$2:$F$5000,Z$5,FALSE),2) -> 20.14 | AA19: =ROUND(VLOOKUP($U19,'data for u-p-charts'!$A$2:$F$5000,AA$5,FALSE),2) -> 21.2 | AB19: =CONCATENATE(AC$7,$T19,'SAB Data and Charts'!$B$1) -> SABCAUN202401Scotland | AC19: =ROUND(VLOOKUP($AB19,'data for u-p-charts'!$A$2:$F$5000,AC$5,FALSE),2) -> 10.93 | AD19: =ROUND(VLOOKUP($AB19,'data for u-p-charts'!$A$2:$F$5000,AD$5,FALSE),2) -> 10.01 | AE19: =ROUND(VLOOKUP($AB19,'data for u-p-charts'!$A$2:$F$5000,AE$5,FALSE),2) -> 11.73 | AF19: =ROUND(VLOOKUP($AB19,'data for u-p-charts'!$A$2:$F$5000,AF$5,FALSE),2) -> 12.59 | AG19: =CONCATENATE(AH$7,$T19,'SAB Data and Charts'!$B$1) -> SAB 202401Scotland | AH19: =VLOOKUP($AG19,'data for u-p-charts'!$A$2:$F$5000,AH$5,FALSE) ->  | AI19: =VLOOKUP($AG19,'data for u-p-charts'!$A$2:$F$5000,AI$5,FALSE) ->  | AJ19: =VLOOKUP($AG19,'data for u-p-charts'!$A$2:$F$5000,AJ$5,FALSE) ->  | AK19: =VLOOKUP($AG19,'data for u-p-charts'!$A$2:$F$5000,AK$5,FALSE) -> 
A20: 201704 | B20: 2017-12-01 | C20: =CONCATENATE(A20,'SAB Data and Charts'!B$1) -> 201704Scotland | D20: =VLOOKUP(CONCATENATE(D$5,$C20),'trend data'!$A$2:$O$11161,D$6,FALSE) -> 262 | E20: =ROUND(VLOOKUP(CONCATENATE(E$5,$C20),'trend data'!$A$2:$O$11161,E$6,FALSE),3) -> 16.635 | F20: =ROUND(VLOOKUP(CONCATENATE(F$5,$C20),'trend data'!$A$2:$O$11161,F$6,FALSE),3) -> 14.682 | G20: =ROUND(VLOOKUP(CONCATENATE(G$5,$C20),'trend data'!$A$2:$O$11161,G$6,FALSE),3) -> 18.776 | H20: =IFERROR(VLOOKUP(CONCATENATE(H$5,$C20),'trend data'!$A$2:$O$11161,H$6,FALSE),"-") -> 132 | I20: =IFERROR(ROUND(VLOOKUP(CONCATENATE(I$5,$C20),'trend data'!$A$2:$O$11161,I$6,FALSE),3),"-") -> 9.716 | J20: =IFERROR(ROUND(VLOOKUP(CONCATENATE(J$5,$C20),'trend data'!$A$2:$O$11161,J$6,FALSE),3),"-") -> 8.129 | K20: =IFERROR(ROUND(VLOOKUP(CONCATENATE(K$5,$C20),'trend data'!$A$2:$O$11161,K$6,FALSE),3),"-") -> 11.522 | L20: =IFERROR(VLOOKUP(CONCATENATE(L$5,$C20),'trend data'!$A$2:$O$11161,L$6,FALSE),"-") -> - | M20: =IFERROR(VLOOKUP(CONCATENATE(M$5,$C20),'trend data'!$A$2:$O$11161,M$6,FALSE),"-") -> - | N20: =IFERROR(VLOOKUP(CONCATENATE(N$5,$C20),'trend data'!$A$2:$O$11161,N$6,FALSE),"-") -> - | O20: =IFERROR(VLOOKUP(CONCATENATE(O$5,$C20),'trend data'!$A$2:$O$11161,O$6,FALSE),"-") -> - | P20: =IFERROR(VLOOKUP(CONCATENATE(P$5,$C20),'trend data'!$A$2:$O$11161,P$6,FALSE),"-") -> - | T20: 202402 | U20: =CONCATENATE(X$7,T20,'SAB Data and Charts'!B$1) -> SABHCAI202402Scotland | V20: 12 | W20: =W5 -> 2024-06-30 | X20: =ROUND(VLOOKUP($U20,'data for u-p-charts'!$A$2:$F$5000,X$5,FALSE),2) -> 17.34 | Y20: =ROUND(VLOOKUP($U20,'data for u-p-charts'!$A$2:$F$5000,Y$5,FALSE),2) -> 18.01 | Z20: =ROUND(VLOOKUP($U20,'data for u-p-charts'!$A$2:$F$5000,Z$5,FALSE),2) -> 20.16 | AA20: =ROUND(VLOOKUP($U20,'data for u-p-charts'!$A$2:$F$5000,AA$5,FALSE),2) -> 21.23 | AB20: =CONCATENATE(AC$7,$T20,'SAB Data and Charts'!$B$1) -> SABCAUN202402Scotland | AC20: =ROUND(VLOOKUP($AB20,'data for u-p-charts'!$A$2:$F$5000,AC$5,FALSE),2) -> 10.04 | AD20: =ROUND(VLOOKUP($AB20,'data for u-p-charts'!$A$2:$F$5000,AD$5,FALSE),2) -> 10.01 | AE20: =ROUND(VLOOKUP($AB20,'data for u-p-charts'!$A$2:$F$5000,AE$5,FALSE),2) -> 11.73 | AF20: =ROUND(VLOOKUP($AB20,'data for u-p-charts'!$A$2:$F$5000,AF$5,FALSE),2) -> 12.59 | AG20: =CONCATENATE(AH$7,$T20,'SAB Data and Charts'!$B$1) -> SAB 202402Scotland | AH20: =VLOOKUP($AG20,'data for u-p-charts'!$A$2:$F$5000,AH$5,FALSE) ->  | AI20: =VLOOKUP($AG20,'data for u-p-charts'!$A$2:$F$5000,AI$5,FALSE) ->  | AJ20: =VLOOKUP($AG20,'data for u-p-charts'!$A$2:$F$5000,AJ$5,FALSE) ->  | AK20: =VLOOKUP($AG20,'data for u-p-charts'!$A$2:$F$5000,AK$5,FALSE) -> 
A21: 201801 | B21: 2018-03-01 | C21: =CONCATENATE(A21,'SAB Data and Charts'!B$1) -> 201801Scotland | D21: =IFERROR(VLOOKUP(CONCATENATE(D$5,$C21),'trend data'!$A$2:$O$11161,D$6,FALSE),"-") -> 296 | E21: =ROUND(VLOOKUP(CONCATENATE(E$5,$C21),'trend data'!$A$2:$O$11161,E$6,FALSE),3) -> 18.672 | F21: =ROUND(VLOOKUP(CONCATENATE(F$5,$C21),'trend data'!$A$2:$O$11161,F$6,FALSE),3) -> 16.605 | G21: =ROUND(VLOOKUP(CONCATENATE(G$5,$C21),'trend data'!$A$2:$O$11161,G$6,FALSE),3) -> 20.925 | H21: =IFERROR(VLOOKUP(CONCATENATE(H$5,$C21),'trend data'!$A$2:$O$11161,H$6,FALSE),"-") -> 135 | I21: =IFERROR(ROUND(VLOOKUP(CONCATENATE(I$5,$C21),'trend data'!$A$2:$O$11161,I$6,FALSE), 4),"-") -> 10.1496 | J21: =IFERROR(ROUND(VLOOKUP(CONCATENATE(J$5,$C21),'trend data'!$A$2:$O$11161,J$6,FALSE),3),"-") -> 8.51 | K21: =IFERROR(ROUND(VLOOKUP(CONCATENATE(K$5,$C21),'trend data'!$A$2:$O$11161,K$6,FALSE),3),"-") -> 12.013 | L21: =IFERROR(VLOOKUP(CONCATENATE(L$5,$C21),'trend data'!$A$2:$O$11161,L$6,FALSE),"-") -> - | M21: =IFERROR(VLOOKUP(CONCATENATE(M$5,$C21),'trend data'!$A$2:$O$11161,M$6,FALSE),"-") -> - | N21: =IFERROR(VLOOKUP(CONCATENATE(N$5,$C21),'trend data'!$A$2:$O$11161,N$6,FALSE),"-") -> - | O21: =IFERROR(VLOOKUP(CONCATENATE(O$5,$C21),'trend data'!$A$2:$O$11161,O$6,FALSE),"-") -> - | P21: =IFERROR(VLOOKUP(CONCATENATE(P$5,$C21),'trend data'!$A$2:$O$11161,P$6,FALSE),"-") -> -
A22: 201802 | B22: 2018-06-01 | C22: =CONCATENATE(A22,'SAB Data and Charts'!B$1) -> 201802Scotland | D22: =IFERROR(VLOOKUP(CONCATENATE(D$5,$C22),'trend data'!$A$2:$O$11161,D$6,FALSE),"-") -> 264 | E22: =ROUND(VLOOKUP(CONCATENATE(E$5,$C22),'trend data'!$A$2:$O$11161,E$6,FALSE),3) -> 17.308 | F22: =ROUND(VLOOKUP(CONCATENATE(F$5,$C22),'trend data'!$A$2:$O$11161,F$6,FALSE),3) -> 15.282 | G22: =ROUND(VLOOKUP(CONCATENATE(G$5,$C22),'trend data'!$A$2:$O$11161,G$6,FALSE),3) -> 19.526 | H22: =IFERROR(VLOOKUP(CONCATENATE(H$5,$C22),'trend data'!$A$2:$O$11161,H$6,FALSE),"-") -> 123 | I22: =IFERROR(ROUND(VLOOKUP(CONCATENATE(I$5,$C22),'trend data'!$A$2:$O$11161,I$6,FALSE),4),"-") -> 9.1458 | J22: =IFERROR(ROUND(VLOOKUP(CONCATENATE(J$5,$C22),'trend data'!$A$2:$O$11161,J$6,FALSE),3),"-") -> 7.601 | K22: =IFERROR(ROUND(VLOOKUP(CONCATENATE(K$5,$C22),'trend data'!$A$2:$O$11161,K$6,FALSE),3),"-") -> 10.912 | L22: =IFERROR(VLOOKUP(CONCATENATE(L$5,$C22),'trend data'!$A$2:$O$11161,L$6,FALSE),"-") -> - | M22: =IFERROR(VLOOKUP(CONCATENATE(M$5,$C22),'trend data'!$A$2:$O$11161,M$6,FALSE),"-") -> - | N22: =IFERROR(VLOOKUP(CONCATENATE(N$5,$C22),'trend data'!$A$2:$O$11161,N$6,FALSE),"-") -> - | O22: =IFERROR(VLOOKUP(CONCATENATE(O$5,$C22),'trend data'!$A$2:$O$11161,O$6,FALSE),"-") -> - | P22: =IFERROR(VLOOKUP(CONCATENATE(P$5,$C22),'trend data'!$A$2:$O$11161,P$6,FALSE),"-") -> -
A23: 201803 | B23: 2018-09-01 | C23: =CONCATENATE(A23,'SAB Data and Charts'!B$1) -> 201803Scotland | D23: =IFERROR(VLOOKUP(CONCATENATE(D$5,$C23),'trend data'!$A$2:$O$11161,D$6,FALSE),"-") -> 253 | E23: =ROUND(VLOOKUP(CONCATENATE(E$5,$C23),'trend data'!$A$2:$O$11161,E$6,FALSE),3) -> 16.737 | F23: =ROUND(VLOOKUP(CONCATENATE(F$5,$C23),'trend data'!$A$2:$O$11161,F$6,FALSE),3) -> 14.738 | G23: =ROUND(VLOOKUP(CONCATENATE(G$5,$C23),'trend data'!$A$2:$O$11161,G$6,FALSE),3) -> 18.932 | H23: =IFERROR(VLOOKUP(CONCATENATE(H$5,$C23),'trend data'!$A$2:$O$11161,H$6,FALSE),"-") -> 132 | I23: =IFERROR(ROUND(VLOOKUP(CONCATENATE(I$5,$C23),'trend data'!$A$2:$O$11161,I$6,FALSE),3),"-") -> 9.708 | J23: =IFERROR(ROUND(VLOOKUP(CONCATENATE(J$5,$C23),'trend data'!$A$2:$O$11161,J$6,FALSE),3),"-") -> 8.123 | K23: =IFERROR(ROUND(VLOOKUP(CONCATENATE(K$5,$C23),'trend data'!$A$2:$O$11161,K$6,FALSE),3),"-") -> 11.513 | L23: =IFERROR(VLOOKUP(CONCATENATE(L$5,$C23),'trend data'!$A$2:$O$11161,L$6,FALSE),"-") -> - | M23: =IFERROR(VLOOKUP(CONCATENATE(M$5,$C23),'trend data'!$A$2:$O$11161,M$6,FALSE),"-") -> - | N23: =IFERROR(VLOOKUP(CONCATENATE(N$5,$C23),'trend data'!$A$2:$O$11161,N$6,FALSE),"-") -> - | O23: =IFERROR(VLOOKUP(CONCATENATE(O$5,$C23),'trend data'!$A$2:$O$11161,O$6,FALSE),"-") -> - | P23: =IFERROR(VLOOKUP(CONCATENATE(P$5,$C23),'trend data'!$A$2:$O$11161,P$6,FALSE),"-") -> -
A24: 201804 | B24: 2018-12-01 | C24: =CONCATENATE(A24,'SAB Data and Charts'!B$1) -> 201804Scotland | D24: =IFERROR(VLOOKUP(CONCATENATE(D$5,$C24),'trend data'!$A$2:$O$11161,D$6,FALSE),"-") -> 269 | E24: =ROUND(VLOOKUP(CONCATENATE(E$5,$C24),'trend data'!$A$2:$O$11161,E$6,FALSE),3) -> 17.672 | F24: =ROUND(VLOOKUP(CONCATENATE(F$5,$C24),'trend data'!$A$2:$O$11161,F$6,FALSE),3) -> 15.623 | G24: =ROUND(VLOOKUP(CONCATENATE(G$5,$C24),'trend data'!$A$2:$O$11161,G$6,FALSE),3) -> 19.915 | H24: =IFERROR(VLOOKUP(CONCATENATE(H$5,$C24),'trend data'!$A$2:$O$11161,H$6,FALSE),"-") -> 113 | I24: =IFERROR(ROUND(VLOOKUP(CONCATENATE(I$5,$C24),'trend data'!$A$2:$O$11161,I$6,FALSE),3),"-") -> 8.311 | J24: =IFERROR(ROUND(VLOOKUP(CONCATENATE(J$5,$C24),'trend data'!$A$2:$O$11161,J$6,FALSE),3),"-") -> 6.849 | K24: =IFERROR(ROUND(VLOOKUP(CONCATENATE(K$5,$C24),'trend data'!$A$2:$O$11161,K$6,FALSE),3),"-") -> 9.992 | L24: =IFERROR(VLOOKUP(CONCATENATE(L$5,$C24),'trend data'!$A$2:$O$11161,L$6,FALSE),"-") -> - | M24: =IFERROR(VLOOKUP(CONCATENATE(M$5,$C24),'trend data'!$A$2:$O$11161,M$6,FALSE),"-") -> - | N24: =IFERROR(VLOOKUP(CONCATENATE(N$5,$C24),'trend data'!$A$2:$O$11161,N$6,FALSE),"-") -> - | O24: =IFERROR(VLOOKUP(CONCATENATE(O$5,$C24),'trend data'!$A$2:$O$11161,O$6,FALSE),"-") -> - | P24: =IFERROR(VLOOKUP(CONCATENATE(P$5,$C24),'trend data'!$A$2:$O$11161,P$6,FALSE),"-") -> -
A25: 201901 | B25: 2019-03-01 | C25: =CONCATENATE(A25,'SAB Data and Charts'!B$1) -> 201901Scotland | D25: =IFERROR(VLOOKUP(CONCATENATE(D$5,$C25),'trend data'!$A$2:$O$11161,D$6,FALSE),"-") -> 240 | E25: =ROUND(VLOOKUP(CONCATENATE(E$5,$C25),'trend data'!$A$2:$O$11161,E$6,FALSE),3) -> 15.6 | F25: =ROUND(VLOOKUP(CONCATENATE(F$5,$C25),'trend data'!$A$2:$O$11161,F$6,FALSE),3) -> 13.688 | G25: =ROUND(VLOOKUP(CONCATENATE(G$5,$C25),'trend data'!$A$2:$O$11161,G$6,FALSE),3) -> 17.703 | H25: =IFERROR(VLOOKUP(CONCATENATE(H$5,$C25),'trend data'!$A$2:$O$11161,H$6,FALSE),"-") -> 144 | I25: =IFERROR(ROUND(VLOOKUP(CONCATENATE(I$5,$C25),'trend data'!$A$2:$O$11161,I$6,FALSE),3),"-") -> 10.786 | J25: =IFERROR(ROUND(VLOOKUP(CONCATENATE(J$5,$C25),'trend data'!$A$2:$O$11161,J$6,FALSE),3),"-") -> 9.096 | K25: =IFERROR(ROUND(VLOOKUP(CONCATENATE(K$5,$C25),'trend data'!$A$2:$O$11161,K$6,FALSE),3),"-") -> 12.699 | L25: =IFERROR(VLOOKUP(CONCATENATE(L$5,$C25),'trend data'!$A$2:$O$11161,L$6,FALSE),"-") -> - | M25: =IFERROR(VLOOKUP(CONCATENATE(M$5,$C25),'trend data'!$A$2:$O$11161,M$6,FALSE),"-") -> - | N25: =IFERROR(VLOOKUP(CONCATENATE(N$5,$C25),'trend data'!$A$2:$O$11161,N$6,FALSE),"-") -> - | O25: =IFERROR(VLOOKUP(CONCATENATE(O$5,$C25),'trend data'!$A$2:$O$11161,O$6,FALSE),"-") -> - | P25: =IFERROR(VLOOKUP(CONCATENATE(P$5,$C25),'trend data'!$A$2:$O$11161,P$6,FALSE),"-") -> -
A26: 201902 | B26: 2019-06-01 | C26: =CONCATENATE(A26,'SAB Data and Charts'!B$1) -> 201902Scotland | D26: =IFERROR(VLOOKUP(CONCATENATE(D$5,$C26),'trend data'!$A$2:$O$11161,D$6,FALSE),"-") -> 251 | E26: =ROUND(VLOOKUP(CONCATENATE(E$5,$C26),'trend data'!$A$2:$O$11161,E$6,FALSE),3) -> 16.664 | F26: =ROUND(VLOOKUP(CONCATENATE(F$5,$C26),'trend data'!$A$2:$O$11161,F$6,FALSE),3) -> 14.666 | G26: =ROUND(VLOOKUP(CONCATENATE(G$5,$C26),'trend data'!$A$2:$O$11161,G$6,FALSE),3) -> 18.858 | H26: =IFERROR(VLOOKUP(CONCATENATE(H$5,$C26),'trend data'!$A$2:$O$11161,H$6,FALSE),"-") -> 133 | I26: =IFERROR(ROUND(VLOOKUP(CONCATENATE(I$5,$C26),'trend data'!$A$2:$O$11161,I$6,FALSE),3),"-") -> 9.853 | J26: =IFERROR(ROUND(VLOOKUP(CONCATENATE(J$5,$C26),'trend data'!$A$2:$O$11161,J$6,FALSE),3),"-") -> 8.249 | K26: =IFERROR(ROUND(VLOOKUP(CONCATENATE(K$5,$C26),'trend data'!$A$2:$O$11161,K$6,FALSE),3),"-") -> 11.677 | L26: =IFERROR(VLOOKUP(CONCATENATE(L$5,$C26),'trend data'!$A$2:$O$11161,L$6,FALSE),"-") -> - | M26: =IFERROR(VLOOKUP(CONCATENATE(M$5,$C26),'trend data'!$A$2:$O$11161,M$6,FALSE),"-") -> - | N26: =IFERROR(VLOOKUP(CONCATENATE(N$5,$C26),'trend data'!$A$2:$O$11161,N$6,FALSE),"-") -> - | O26: =IFERROR(VLOOKUP(CONCATENATE(O$5,$C26),'trend data'!$A$2:$O$11161,O$6,FALSE),"-") -> - | P26: =IFERROR(VLOOKUP(CONCATENATE(P$5,$C26),'trend data'!$A$2:$O$11161,P$6,FALSE),"-") -> -
A27: 201903 | B27: 2019-09-01 | C27: =CONCATENATE(A27,'SAB Data and Charts'!B$1) -> 201903Scotland | D27: =IFERROR(VLOOKUP(CONCATENATE(D$5,$C27),'trend data'!$A$2:$O$11161,D$6,FALSE),"-") -> 264 | E27: =ROUND(VLOOKUP(CONCATENATE(E$5,$C27),'trend data'!$A$2:$O$11161,E$6,FALSE),3) -> 17.519 | F27: =ROUND(VLOOKUP(CONCATENATE(F$5,$C27),'trend data'!$A$2:$O$11161,F$6,FALSE),3) -> 15.469 | G27: =ROUND(VLOOKUP(CONCATENATE(G$5,$C27),'trend data'!$A$2:$O$11161,G$6,FALSE),3) -> 19.764 | H27: =IFERROR(VLOOKUP(CONCATENATE(H$5,$C27),'trend data'!$A$2:$O$11161,H$6,FALSE),"-") -> 102 | I27: =IFERROR(ROUND(VLOOKUP(CONCATENATE(I$5,$C27),'trend data'!$A$2:$O$11161,I$6,FALSE),3),"-") -> 7.474 | J27: =IFERROR(ROUND(VLOOKUP(CONCATENATE(J$5,$C27),'trend data'!$A$2:$O$11161,J$6,FALSE),3),"-") -> 6.094 | K27: =IFERROR(ROUND(VLOOKUP(CONCATENATE(K$5,$C27),'trend data'!$A$2:$O$11161,K$6,FALSE),3),"-") -> 9.073 | L27: =IFERROR(VLOOKUP(CONCATENATE(L$5,$C27),'trend data'!$A$2:$O$11161,L$6,FALSE),"-") -> - | M27: =IFERROR(VLOOKUP(CONCATENATE(M$5,$C27),'trend data'!$A$2:$O$11161,M$6,FALSE),"-") -> - | N27: =IFERROR(VLOOKUP(CONCATENATE(N$5,$C27),'trend data'!$A$2:$O$11161,N$6,FALSE),"-") -> - | O27: =IFERROR(VLOOKUP(CONCATENATE(O$5,$C27),'trend data'!$A$2:$O$11161,O$6,FALSE),"-") -> - | P27: =IFERROR(VLOOKUP(CONCATENATE(P$5,$C27),'trend data'!$A$2:$O$11161,P$6,FALSE),"-") -> -
A28: 201904 | B28: 2019-12-01 | C28: =CONCATENATE(A28,'SAB Data and Charts'!B$1) -> 201904Scotland | D28: =IFERROR(VLOOKUP(CONCATENATE(D$5,$C28),'trend data'!$A$2:$O$11161,D$6,FALSE),"-") -> 233 | E28: =ROUND(VLOOKUP(CONCATENATE(E$5,$C28),'trend data'!$A$2:$O$11161,E$6,FALSE),3) -> 15.214 | F28: =ROUND(VLOOKUP(CONCATENATE(F$5,$C28),'trend data'!$A$2:$O$11161,F$6,FALSE),3) -> 13.323 | G28: =ROUND(VLOOKUP(CONCATENATE(G$5,$C28),'trend data'!$A$2:$O$11161,G$6,FALSE),3) -> 17.298 | H28: =IFERROR(VLOOKUP(CONCATENATE(H$5,$C28),'trend data'!$A$2:$O$11161,H$6,FALSE),"-") -> 132 | I28: =IFERROR(ROUND(VLOOKUP(CONCATENATE(I$5,$C28),'trend data'!$A$2:$O$11161,I$6,FALSE),3),"-") -> 9.672 | J28: =IFERROR(ROUND(VLOOKUP(CONCATENATE(J$5,$C28),'trend data'!$A$2:$O$11161,J$6,FALSE),3),"-") -> 8.093 | K28: =IFERROR(ROUND(VLOOKUP(CONCATENATE(K$5,$C28),'trend data'!$A$2:$O$11161,K$6,FALSE),3),"-") -> 11.47 | L28: =IFERROR(VLOOKUP(CONCATENATE(L$5,$C28),'trend data'!$A$2:$O$11161,L$6,FALSE),"-") -> - | M28: =IFERROR(VLOOKUP(CONCATENATE(M$5,$C28),'trend data'!$A$2:$O$11161,M$6,FALSE),"-") -> - | N28: =IFERROR(VLOOKUP(CONCATENATE(N$5,$C28),'trend data'!$A$2:$O$11161,N$6,FALSE),"-") -> - | O28: =IFERROR(VLOOKUP(CONCATENATE(O$5,$C28),'trend data'!$A$2:$O$11161,O$6,FALSE),"-") -> - | P28: =IFERROR(VLOOKUP(CONCATENATE(P$5,$C28),'trend data'!$A$2:$O$11161,P$6,FALSE),"-") -> -
A29: 202001 | B29: 2020-03-01 | C29: =CONCATENATE(A29,'SAB Data and Charts'!B$1) -> 202001Scotland | D29: =IFERROR(VLOOKUP(CONCATENATE(D$5,$C29),'trend data'!$A$2:$O$11161,D$6,FALSE),"-") -> 241 | E29: =ROUND(VLOOKUP(CONCATENATE(E$5,$C29),'trend data'!$A$2:$O$11161,E$6,FALSE),3) -> 16.328 | F29: =ROUND(VLOOKUP(CONCATENATE(F$5,$C29),'trend data'!$A$2:$O$11161,F$6,FALSE),3) -> 14.332 | G29: =ROUND(VLOOKUP(CONCATENATE(G$5,$C29),'trend data'!$A$2:$O$11161,G$6,FALSE),3) -> 18.526 | H29: =IFERROR(VLOOKUP(CONCATENATE(H$5,$C29),'trend data'!$A$2:$O$11161,H$6,FALSE),"-") -> 149 | I29: =IFERROR(ROUND(VLOOKUP(CONCATENATE(I$5,$C29),'trend data'!$A$2:$O$11161,I$6,FALSE),3),"-") -> 11.071 | J29: =IFERROR(ROUND(VLOOKUP(CONCATENATE(J$5,$C29),'trend data'!$A$2:$O$11161,J$6,FALSE),3),"-") -> 9.364 | K29: =IFERROR(ROUND(VLOOKUP(CONCATENATE(K$5,$C29),'trend data'!$A$2:$O$11161,K$6,FALSE),3),"-") -> 12.998 | L29: =IFERROR(VLOOKUP(CONCATENATE(L$5,$C29),'trend data'!$A$2:$O$11161,L$6,FALSE),"-") -> - | M29: =IFERROR(VLOOKUP(CONCATENATE(M$5,$C29),'trend data'!$A$2:$O$11161,M$6,FALSE),"-") -> - | N29: =IFERROR(VLOOKUP(CONCATENATE(N$5,$C29),'trend data'!$A$2:$O$11161,N$6,FALSE),"-") -> - | O29: =IFERROR(VLOOKUP(CONCATENATE(O$5,$C29),'trend data'!$A$2:$O$11161,O$6,FALSE),"-") -> - | P29: =IFERROR(VLOOKUP(CONCATENATE(P$5,$C29),'trend data'!$A$2:$O$11161,P$6,FALSE),"-") -> -
A30: 202002 | B30: 2020-06-01 | C30: =CONCATENATE(A30,'SAB Data and Charts'!B$1) -> 202002Scotland | D30: =IFERROR(VLOOKUP(CONCATENATE(D$5,$C30),'trend data'!$A$2:$O$11161,D$6,FALSE),"-") -> 219 | E30: =ROUND(VLOOKUP(CONCATENATE(E$5,$C30),'trend data'!$A$2:$O$11161,E$6,FALSE),3) -> 20.26 | F30: =ROUND(VLOOKUP(CONCATENATE(F$5,$C30),'trend data'!$A$2:$O$11161,F$6,FALSE),3) -> 17.665 | G30: =ROUND(VLOOKUP(CONCATENATE(G$5,$C30),'trend data'!$A$2:$O$11161,G$6,FALSE),3) -> 23.129 | H30: =IFERROR(VLOOKUP(CONCATENATE(H$5,$C30),'trend data'!$A$2:$O$11161,H$6,FALSE),"-") -> 132 | I30: =IFERROR(ROUND(VLOOKUP(CONCATENATE(I$5,$C30),'trend data'!$A$2:$O$11161,I$6,FALSE),3),"-") -> 9.808 | J30: =IFERROR(ROUND(VLOOKUP(CONCATENATE(J$5,$C30),'trend data'!$A$2:$O$11161,J$6,FALSE),3),"-") -> 8.206 | K30: =IFERROR(ROUND(VLOOKUP(CONCATENATE(K$5,$C30),'trend data'!$A$2:$O$11161,K$6,FALSE),3),"-") -> 11.631 | L30: =IFERROR(VLOOKUP(CONCATENATE(L$5,$C30),'trend data'!$A$2:$O$11161,L$6,FALSE),"-") -> - | M30: =IFERROR(VLOOKUP(CONCATENATE(M$5,$C30),'trend data'!$A$2:$O$11161,M$6,FALSE),"-") -> - | N30: =IFERROR(VLOOKUP(CONCATENATE(N$5,$C30),'trend data'!$A$2:$O$11161,N$6,FALSE),"-") -> - | O30: =IFERROR(VLOOKUP(CONCATENATE(O$5,$C30),'trend data'!$A$2:$O$11161,O$6,FALSE),"-") -> - | P30: =IFERROR(VLOOKUP(CONCATENATE(P$5,$C30),'trend data'!$A$2:$O$11161,P$6,FALSE),"-") -> -
A31: 202003 | B31: 2020-09-01 | C31: =CONCATENATE(A31,'SAB Data and Charts'!B$1) -> 202003Scotland | D31: =IFERROR(VLOOKUP(CONCATENATE(D$5,$C31),'trend data'!$A$2:$O$11161,D$6,FALSE),"-") -> 224 | E31: =ROUND(VLOOKUP(CONCATENATE(E$5,$C31),'trend data'!$A$2:$O$11161,E$6,FALSE),4) -> 17.1781 | F31: =ROUND(VLOOKUP(CONCATENATE(F$5,$C31),'trend data'!$A$2:$O$11161,F$6,FALSE),4) -> 15.0019 | G31: =ROUND(VLOOKUP(CONCATENATE(G$5,$C31),'trend data'!$A$2:$O$11161,G$6,FALSE),4) -> 19.5813 | H31: =IFERROR(VLOOKUP(CONCATENATE(H$5,$C31),'trend data'!$A$2:$O$11161,H$6,FALSE),"-") -> 149 | I31: =IFERROR(ROUND(VLOOKUP(CONCATENATE(I$5,$C31),'trend data'!$A$2:$O$11161,I$6,FALSE),4),"-") -> 10.9505 | J31: =IFERROR(ROUND(VLOOKUP(CONCATENATE(J$5,$C31),'trend data'!$A$2:$O$11161,J$6,FALSE),4),"-") -> 9.2627 | K31: =IFERROR(ROUND(VLOOKUP(CONCATENATE(K$5,$C31),'trend data'!$A$2:$O$11161,K$6,FALSE),4),"-") -> 12.8568 | L31: =IFERROR(VLOOKUP(CONCATENATE(L$5,$C31),'trend data'!$A$2:$O$11161,L$6,FALSE),"-") -> - | M31: =IFERROR(VLOOKUP(CONCATENATE(M$5,$C31),'trend data'!$A$2:$O$11161,M$6,FALSE),"-") -> - | N31: =IFERROR(VLOOKUP(CONCATENATE(N$5,$C31),'trend data'!$A$2:$O$11161,N$6,FALSE),"-") -> - | O31: =IFERROR(VLOOKUP(CONCATENATE(O$5,$C31),'trend data'!$A$2:$O$11161,O$6,FALSE),"-") -> -
A32: 202004 | B32: 2020-12-01 | C32: =CONCATENATE(A32,'SAB Data and Charts'!B$1) -> 202004Scotland | D32: =IFERROR(VLOOKUP(CONCATENATE(D$5,$C32),'trend data'!$A$2:$O$11161,D$6,FALSE),"-") -> 256 | E32: =ROUND(VLOOKUP(CONCATENATE(E$5,$C32),'trend data'!$A$2:$O$11161,E$6,FALSE),4) -> 18.8541 | F32: =ROUND(VLOOKUP(CONCATENATE(F$5,$C32),'trend data'!$A$2:$O$11161,F$6,FALSE),4) -> 16.6149 | G32: =ROUND(VLOOKUP(CONCATENATE(G$5,$C32),'trend data'!$A$2:$O$11161,G$6,FALSE),4) -> 21.3109 | H32: =IFERROR(VLOOKUP(CONCATENATE(H$5,$C32),'trend data'!$A$2:$O$11161,H$6,FALSE),"-") -> 131 | I32: =IFERROR(ROUND(VLOOKUP(CONCATENATE(I$5,$C32),'trend data'!$A$2:$O$11161,I$6,FALSE),4),"-") -> 9.6276 | J32: =IFERROR(ROUND(VLOOKUP(CONCATENATE(J$5,$C32),'trend data'!$A$2:$O$11161,J$6,FALSE),4),"-") -> 8.0495 | K32: =IFERROR(ROUND(VLOOKUP(CONCATENATE(K$5,$C32),'trend data'!$A$2:$O$11161,K$6,FALSE),4),"-") -> 11.4246 | L32: =IFERROR(VLOOKUP(CONCATENATE(L$5,$C32),'trend data'!$A$2:$O$11161,L$6,FALSE),"-") -> - | M32: =IFERROR(VLOOKUP(CONCATENATE(M$5,$C32),'trend data'!$A$2:$O$11161,M$6,FALSE),"-") -> - | N32: =IFERROR(VLOOKUP(CONCATENATE(N$5,$C32),'trend data'!$A$2:$O$11161,N$6,FALSE),"-") -> - | O32: =IFERROR(VLOOKUP(CONCATENATE(O$5,$C32),'trend data'!$A$2:$O$11161,O$6,FALSE),"-") -> -
A33: 202101 | B33: 2021-03-31 | C33: =CONCATENATE(A33,'SAB Data and Charts'!B$1) -> 202101Scotland | D33: =IFERROR(VLOOKUP(CONCATENATE(D$5,$C33),'trend data'!$A$2:$O$11161,D$6,FALSE),"-") -> 248 | E33: =ROUND(VLOOKUP(CONCATENATE(E$5,$C33),'trend data'!$A$2:$O$11161,E$6,FALSE),4) -> 18.3453 | F33: =ROUND(VLOOKUP(CONCATENATE(F$5,$C33),'trend data'!$A$2:$O$11161,F$6,FALSE),4) -> 16.1328 | G33: =ROUND(VLOOKUP(CONCATENATE(G$5,$C33),'trend data'!$A$2:$O$11161,G$6,FALSE),4) -> 20.7764 | H33: =IFERROR(VLOOKUP(CONCATENATE(H$5,$C33),'trend data'!$A$2:$O$11161,H$6,FALSE),"-") -> 140 | I33: =IFERROR(ROUND(VLOOKUP(CONCATENATE(I$5,$C33),'trend data'!$A$2:$O$11161,I$6,FALSE),4),"-") -> 10.4787 | J33: =IFERROR(ROUND(VLOOKUP(CONCATENATE(J$5,$C33),'trend data'!$A$2:$O$11161,J$6,FALSE),4),"-") -> 8.8147 | K33: =IFERROR(ROUND(VLOOKUP(CONCATENATE(K$5,$C33),'trend data'!$A$2:$O$11161,K$6,FALSE),4),"-") -> 12.3654 | L33: =IFERROR(VLOOKUP(CONCATENATE(L$5,$C33),'trend data'!$A$2:$O$11161,L$6,FALSE),"-") -> - | M33: =IFERROR(VLOOKUP(CONCATENATE(M$5,$C33),'trend data'!$A$2:$O$11161,M$6,FALSE),"-") -> - | N33: =IFERROR(VLOOKUP(CONCATENATE(N$5,$C33),'trend data'!$A$2:$O$11161,N$6,FALSE),"-") -> - | O33: =IFERROR(VLOOKUP(CONCATENATE(O$5,$C33),'trend data'!$A$2:$O$11161,O$6,FALSE),"-") -> -
A34: 202102 | B34: 2021-06-30 | C34: =CONCATENATE(A34,'SAB Data and Charts'!B$1) -> 202102Scotland | D34: =IFERROR(VLOOKUP(CONCATENATE(D$5,$C34),'trend data'!$A$2:$O$11161,D$6,FALSE),"-") -> 260 | E34: =ROUND(VLOOKUP(CONCATENATE(E$5,$C34),'trend data'!$A$2:$O$11161,E$6,FALSE),4) -> 18.6491 | F34: =ROUND(VLOOKUP(CONCATENATE(F$5,$C34),'trend data'!$A$2:$O$11161,F$6,FALSE),4) -> 16.4508 | G34: =ROUND(VLOOKUP(CONCATENATE(G$5,$C34),'trend data'!$A$2:$O$11161,G$6,FALSE),4) -> 21.0593 | H34: =IFERROR(VLOOKUP(CONCATENATE(H$5,$C34),'trend data'!$A$2:$O$11161,H$6,FALSE),"-") -> 148 | I34: =IFERROR(ROUND(VLOOKUP(CONCATENATE(I$5,$C34),'trend data'!$A$2:$O$11161,I$6,FALSE),4),"-") -> 10.9558 | J34: =IFERROR(ROUND(VLOOKUP(CONCATENATE(J$5,$C34),'trend data'!$A$2:$O$11161,J$6,FALSE),4),"-") -> 9.2617 | K34: =IFERROR(ROUND(VLOOKUP(CONCATENATE(K$5,$C34),'trend data'!$A$2:$O$11161,K$6,FALSE),4),"-") -> 12.8699 | L34: =IFERROR(VLOOKUP(CONCATENATE(L$5,$C34),'trend data'!$A$2:$O$11161,L$6,FALSE),"-") -> - | M34: =IFERROR(VLOOKUP(CONCATENATE(M$5,$C34),'trend data'!$A$2:$O$11161,M$6,FALSE),"-") -> - | N34: =IFERROR(VLOOKUP(CONCATENATE(N$5,$C34),'trend data'!$A$2:$O$11161,N$6,FALSE),"-") -> - | O34: =IFERROR(VLOOKUP(CONCATENATE(O$5,$C34),'trend data'!$A$2:$O$11161,O$6,FALSE),"-") -> -
A35: 202103 | B35: 2021-09-30 | C35: =CONCATENATE(A35,'SAB Data and Charts'!B$1) -> 202103Scotland | D35: =IFERROR(VLOOKUP(CONCATENATE(D$5,$C35),'trend data'!$A$2:$O$11161,D$6,FALSE),"-") -> 268 | E35: =ROUND(VLOOKUP(CONCATENATE(E$5,$C35),'trend data'!$A$2:$O$11161,E$6,FALSE),4) -> 18.4023 | F35: =ROUND(VLOOKUP(CONCATENATE(F$5,$C35),'trend data'!$A$2:$O$11161,F$6,FALSE),4) -> 16.2647 | G35: =ROUND(VLOOKUP(CONCATENATE(G$5,$C35),'trend data'!$A$2:$O$11161,G$6,FALSE),4) -> 20.7427 | H35: =IFERROR(VLOOKUP(CONCATENATE(H$5,$C35),'trend data'!$A$2:$O$11161,H$6,FALSE),"-") -> 132 | I35: =IFERROR(ROUND(VLOOKUP(CONCATENATE(I$5,$C35),'trend data'!$A$2:$O$11161,I$6,FALSE),4),"-") -> 9.6651 | J35: =IFERROR(ROUND(VLOOKUP(CONCATENATE(J$5,$C35),'trend data'!$A$2:$O$11161,J$6,FALSE),4),"-") -> 8.0866 | K35: =IFERROR(ROUND(VLOOKUP(CONCATENATE(K$5,$C35),'trend data'!$A$2:$O$11161,K$6,FALSE),4),"-") -> 11.4617 | L35: =IFERROR(VLOOKUP(CONCATENATE(L$5,$C35),'trend data'!$A$2:$O$11161,L$6,FALSE),"-") -> - | M35: =IFERROR(VLOOKUP(CONCATENATE(M$5,$C35),'trend data'!$A$2:$O$11161,M$6,FALSE),"-") -> - | N35: =IFERROR(VLOOKUP(CONCATENATE(N$5,$C35),'trend data'!$A$2:$O$11161,N$6,FALSE),"-") -> - | O35: =IFERROR(VLOOKUP(CONCATENATE(O$5,$C35),'trend data'!$A$2:$O$11161,O$6,FALSE),"-") -> -
A36: 202104 | B36: 2021-12-31 | C36: =CONCATENATE(A36,'SAB Data and Charts'!B$1) -> 202104Scotland | D36: =IFERROR(VLOOKUP(CONCATENATE(D$5,$C36),'trend data'!$A$2:$O$11161,D$6,FALSE),"-") -> 259 | E36: =ROUND(VLOOKUP(CONCATENATE(E$5,$C36),'trend data'!$A$2:$O$11161,E$6,FALSE),4) -> 17.3383 | F36: =ROUND(VLOOKUP(CONCATENATE(F$5,$C36),'trend data'!$A$2:$O$11161,F$6,FALSE),4) -> 15.2907 | G36: =ROUND(VLOOKUP(CONCATENATE(G$5,$C36),'trend data'!$A$2:$O$11161,G$6,FALSE),4) -> 19.5836 | H36: =IFERROR(VLOOKUP(CONCATENATE(H$5,$C36),'trend data'!$A$2:$O$11161,H$6,FALSE),"-") -> 136 | I36: =IFERROR(ROUND(VLOOKUP(CONCATENATE(I$5,$C36),'trend data'!$A$2:$O$11161,I$6,FALSE),4),"-") -> 9.958 | J36: =IFERROR(ROUND(VLOOKUP(CONCATENATE(J$5,$C36),'trend data'!$A$2:$O$11161,J$6,FALSE),4),"-") -> 8.3547 | K36: =IFERROR(ROUND(VLOOKUP(CONCATENATE(K$5,$C36),'trend data'!$A$2:$O$11161,K$6,FALSE),4),"-") -> 11.7793 | L36: =IFERROR(VLOOKUP(CONCATENATE(L$5,$C36),'trend data'!$A$2:$O$11161,L$6,FALSE),"-") -> - | M36: =IFERROR(VLOOKUP(CONCATENATE(M$5,$C36),'trend data'!$A$2:$O$11161,M$6,FALSE),"-") -> - | N36: =IFERROR(VLOOKUP(CONCATENATE(N$5,$C36),'trend data'!$A$2:$O$11161,N$6,FALSE),"-") -> - | O36: =IFERROR(VLOOKUP(CONCATENATE(O$5,$C36),'trend data'!$A$2:$O$11161,O$6,FALSE),"-") -> -
A37: 202201 | B37: 2022-03-31 | C37: =CONCATENATE(A37,'SAB Data and Charts'!B$1) -> 202201Scotland | D37: =IFERROR(VLOOKUP(CONCATENATE(D$5,$C37),'trend data'!$A$2:$O$11161,D$6,FALSE),"-") -> 241 | E37: =ROUND(VLOOKUP(CONCATENATE(E$5,$C37),'trend data'!$A$2:$O$11161,E$6,FALSE),4) -> 16.2722 | F37: =ROUND(VLOOKUP(CONCATENATE(F$5,$C37),'trend data'!$A$2:$O$11161,F$6,FALSE),4) -> 14.2824 | G37: =ROUND(VLOOKUP(CONCATENATE(G$5,$C37),'trend data'!$A$2:$O$11161,G$6,FALSE),4) -> 18.4617 | H37: =IFERROR(VLOOKUP(CONCATENATE(H$5,$C37),'trend data'!$A$2:$O$11161,H$6,FALSE),"-") -> 130 | I37: =IFERROR(ROUND(VLOOKUP(CONCATENATE(I$5,$C37),'trend data'!$A$2:$O$11161,I$6,FALSE),4),"-") -> 9.6779 | J37: =IFERROR(ROUND(VLOOKUP(CONCATENATE(J$5,$C37),'trend data'!$A$2:$O$11161,J$6,FALSE),4),"-") -> 8.0857 | K37: =IFERROR(ROUND(VLOOKUP(CONCATENATE(K$5,$C37),'trend data'!$A$2:$O$11161,K$6,FALSE),4),"-") -> 11.4918 | L37: =IFERROR(VLOOKUP(CONCATENATE(L$5,$C37),'trend data'!$A$2:$O$11161,L$6,FALSE),"-") -> - | M37: =IFERROR(VLOOKUP(CONCATENATE(M$5,$C37),'trend data'!$A$2:$O$11161,M$6,FALSE),"-") -> - | N37: =IFERROR(VLOOKUP(CONCATENATE(N$5,$C37),'trend data'!$A$2:$O$11161,N$6,FALSE),"-") -> - | O37: =IFERROR(VLOOKUP(CONCATENATE(O$5,$C37),'trend data'!$A$2:$O$11161,O$6,FALSE),"-") -> -
A38: 202202 | B38: 2022-06-30 | C38: =CONCATENATE(A38,'SAB Data and Charts'!B$1) -> 202202Scotland | D38: =IFERROR(VLOOKUP(CONCATENATE(D$5,$C38),'trend data'!$A$2:$O$11161,D$6,FALSE),"-") -> 262 | E38: =ROUND(VLOOKUP(CONCATENATE(E$5,$C38),'trend data'!$A$2:$O$11161,E$6,FALSE),4) -> 17.2785 | F38: =ROUND(VLOOKUP(CONCATENATE(F$5,$C38),'trend data'!$A$2:$O$11161,F$6,FALSE),4) -> 15.2494 | G38: =ROUND(VLOOKUP(CONCATENATE(G$5,$C38),'trend data'!$A$2:$O$11161,G$6,FALSE),4) -> 19.5025 | H38: =IFERROR(VLOOKUP(CONCATENATE(H$5,$C38),'trend data'!$A$2:$O$11161,H$6,FALSE),"-") -> 139 | I38: =IFERROR(ROUND(VLOOKUP(CONCATENATE(I$5,$C38),'trend data'!$A$2:$O$11161,I$6,FALSE),4),"-") -> 10.2342 | J38: =IFERROR(ROUND(VLOOKUP(CONCATENATE(J$5,$C38),'trend data'!$A$2:$O$11161,J$6,FALSE),4),"-") -> 8.6035 | K38: =IFERROR(ROUND(VLOOKUP(CONCATENATE(K$5,$C38),'trend data'!$A$2:$O$11161,K$6,FALSE),4),"-") -> 12.084 | L38: =IFERROR(VLOOKUP(CONCATENATE(L$5,$C38),'trend data'!$A$2:$O$11161,L$6,FALSE),"-") -> - | M38: =IFERROR(VLOOKUP(CONCATENATE(M$5,$C38),'trend data'!$A$2:$O$11161,M$6,FALSE),"-") -> - | N38: =IFERROR(VLOOKUP(CONCATENATE(N$5,$C38),'trend data'!$A$2:$O$11161,N$6,FALSE),"-") -> - | O38: =IFERROR(VLOOKUP(CONCATENATE(O$5,$C38),'trend data'!$A$2:$O$11161,O$6,FALSE),"-") -> -
A39: 202203 | B39: 2022-09-30 | C39: =CONCATENATE(A39,'SAB Data and Charts'!B$1) -> 202203Scotland | D39: =IFERROR(VLOOKUP(CONCATENATE(D$5,$C39),'trend data'!$A$2:$O$11161,D$6,FALSE),"-") -> 264 | E39: =ROUND(VLOOKUP(CONCATENATE(E$5,$C39),'trend data'!$A$2:$O$11161,E$6,FALSE),4) -> 17.0792 | F39: =ROUND(VLOOKUP(CONCATENATE(F$5,$C39),'trend data'!$A$2:$O$11161,F$6,FALSE),4) -> 15.0808 | G39: =ROUND(VLOOKUP(CONCATENATE(G$5,$C39),'trend data'!$A$2:$O$11161,G$6,FALSE),4) -> 19.2687 | H39: =IFERROR(VLOOKUP(CONCATENATE(H$5,$C39),'trend data'!$A$2:$O$11161,H$6,FALSE),"-") -> 121 | I39: =IFERROR(ROUND(VLOOKUP(CONCATENATE(I$5,$C39),'trend data'!$A$2:$O$11161,I$6,FALSE),4),"-") -> 8.8121 | J39: =IFERROR(ROUND(VLOOKUP(CONCATENATE(J$5,$C39),'trend data'!$A$2:$O$11161,J$6,FALSE),4),"-") -> 7.3119 | K39: =IFERROR(ROUND(VLOOKUP(CONCATENATE(K$5,$C39),'trend data'!$A$2:$O$11161,K$6,FALSE),4),"-") -> 10.5294 | L39: =IFERROR(VLOOKUP(CONCATENATE(L$5,$C39),'trend data'!$A$2:$O$11161,L$6,FALSE),"-") -> - | M39: =IFERROR(VLOOKUP(CONCATENATE(M$5,$C39),'trend data'!$A$2:$O$11161,M$6,FALSE),"-") -> - | N39: =IFERROR(VLOOKUP(CONCATENATE(N$5,$C39),'trend data'!$A$2:$O$11161,N$6,FALSE),"-") -> - | O39: =IFERROR(VLOOKUP(CONCATENATE(O$5,$C39),'trend data'!$A$2:$O$11161,O$6,FALSE),"-") -> -
A40: 202204 | B40: 2022-12-31 | C40: =CONCATENATE(A40,'SAB Data and Charts'!B$1) -> 202204Scotland | D40: =IFERROR(VLOOKUP(CONCATENATE(D$5,$C40),'trend data'!$A$2:$O$11161,D$6,FALSE),"-") -> 302 | E40: =ROUND(VLOOKUP(CONCATENATE(E$5,$C40),'trend data'!$A$2:$O$11161,E$6,FALSE),4) -> 19.2473 | F40: =ROUND(VLOOKUP(CONCATENATE(F$5,$C40),'trend data'!$A$2:$O$11161,F$6,FALSE),4) -> 17.1374 | G40: =ROUND(VLOOKUP(CONCATENATE(G$5,$C40),'trend data'!$A$2:$O$11161,G$6,FALSE),4) -> 21.5452 | H40: =IFERROR(VLOOKUP(CONCATENATE(H$5,$C40),'trend data'!$A$2:$O$11161,H$6,FALSE),"-") -> 131 | I40: =IFERROR(ROUND(VLOOKUP(CONCATENATE(I$5,$C40),'trend data'!$A$2:$O$11161,I$6,FALSE),4),"-") -> 9.5403 | J40: =IFERROR(ROUND(VLOOKUP(CONCATENATE(J$5,$C40),'trend data'!$A$2:$O$11161,J$6,FALSE),4),"-") -> 7.9765 | K40: =IFERROR(ROUND(VLOOKUP(CONCATENATE(K$5,$C40),'trend data'!$A$2:$O$11161,K$6,FALSE),4),"-") -> 11.321 | L40: =IFERROR(VLOOKUP(CONCATENATE(L$5,$C40),'trend data'!$A$2:$O$11161,L$6,FALSE),"-") -> - | M40: =IFERROR(VLOOKUP(CONCATENATE(M$5,$C40),'trend data'!$A$2:$O$11161,M$6,FALSE),"-") -> - | N40: =IFERROR(VLOOKUP(CONCATENATE(N$5,$C40),'trend data'!$A$2:$O$11161,N$6,FALSE),"-") -> - | O40: =IFERROR(VLOOKUP(CONCATENATE(O$5,$C40),'trend data'!$A$2:$O$11161,O$6,FALSE),"-") -> -
A41: 202301 | B41: 2023-03-31 | C41: =CONCATENATE(A41,'SAB Data and Charts'!B$1) -> 202301Scotland | D41: =IFERROR(VLOOKUP(CONCATENATE(D$5,$C41),'trend data'!$A$2:$O$11161,D$6,FALSE),"-") -> 300 | E41: =ROUND(VLOOKUP(CONCATENATE(E$5,$C41),'trend data'!$A$2:$O$11161,E$6,FALSE),4) -> 19.1215 | F41: =ROUND(VLOOKUP(CONCATENATE(F$5,$C41),'trend data'!$A$2:$O$11161,F$6,FALSE),4) -> 17.0186 | G41: =ROUND(VLOOKUP(CONCATENATE(G$5,$C41),'trend data'!$A$2:$O$11161,G$6,FALSE),4) -> 21.4124 | H41: =IFERROR(VLOOKUP(CONCATENATE(H$5,$C41),'trend data'!$A$2:$O$11161,H$6,FALSE),"-") -> 133 | I41: =IFERROR(ROUND(VLOOKUP(CONCATENATE(I$5,$C41),'trend data'!$A$2:$O$11161,I$6,FALSE),4),"-") -> 9.9012 | J41: =IFERROR(ROUND(VLOOKUP(CONCATENATE(J$5,$C41),'trend data'!$A$2:$O$11161,J$6,FALSE),4),"-") -> 8.2899 | K41: =IFERROR(ROUND(VLOOKUP(CONCATENATE(K$5,$C41),'trend data'!$A$2:$O$11161,K$6,FALSE),4),"-") -> 11.7342 | L41: =IFERROR(VLOOKUP(CONCATENATE(L$5,$C41),'trend data'!$A$2:$O$11161,L$6,FALSE),"-") -> - | M41: =IFERROR(VLOOKUP(CONCATENATE(M$5,$C41),'trend data'!$A$2:$O$11161,M$6,FALSE),"-") -> - | N41: =IFERROR(VLOOKUP(CONCATENATE(N$5,$C41),'trend data'!$A$2:$O$11161,N$6,FALSE),"-") -> - | O41: =IFERROR(VLOOKUP(CONCATENATE(O$5,$C41),'trend data'!$A$2:$O$11161,O$6,FALSE),"-") -> -
A42: 202302 | B42: 2023-06-30 | C42: =CONCATENATE(A42,'SAB Data and Charts'!B$1) -> 202302Scotland | D42: =IFERROR(VLOOKUP(CONCATENATE(D$5,$C42),'trend data'!$A$2:$O$11161,D$6,FALSE),"-") -> 283 | E42: =ROUND(VLOOKUP(CONCATENATE(E$5,$C42),'trend data'!$A$2:$O$11161,E$6,FALSE),4) -> 18.3212 | F42: =ROUND(VLOOKUP(CONCATENATE(F$5,$C42),'trend data'!$A$2:$O$11161,F$6,FALSE),4) -> 16.2485 | G42: =ROUND(VLOOKUP(CONCATENATE(G$5,$C42),'trend data'!$A$2:$O$11161,G$6,FALSE),4) -> 20.585 | H42: =IFERROR(VLOOKUP(CONCATENATE(H$5,$C42),'trend data'!$A$2:$O$11161,H$6,FALSE),"-") -> 140 | I42: =IFERROR(ROUND(VLOOKUP(CONCATENATE(I$5,$C42),'trend data'!$A$2:$O$11161,I$6,FALSE),4),"-") -> 10.3078 | J42: =IFERROR(ROUND(VLOOKUP(CONCATENATE(J$5,$C42),'trend data'!$A$2:$O$11161,J$6,FALSE),4),"-") -> 8.671 | K42: =IFERROR(ROUND(VLOOKUP(CONCATENATE(K$5,$C42),'trend data'!$A$2:$O$11161,K$6,FALSE),4),"-") -> 12.1637 | L42: =IFERROR(VLOOKUP(CONCATENATE(L$5,$C42),'trend data'!$A$2:$O$11161,L$6,FALSE),"-") -> - | M42: =IFERROR(VLOOKUP(CONCATENATE(M$5,$C42),'trend data'!$A$2:$O$11161,M$6,FALSE),"-") -> - | N42: =IFERROR(VLOOKUP(CONCATENATE(N$5,$C42),'trend data'!$A$2:$O$11161,N$6,FALSE),"-") -> - | O42: =IFERROR(VLOOKUP(CONCATENATE(O$5,$C42),'trend data'!$A$2:$O$11161,O$6,FALSE),"-") -> -
A43: 202303 | B43: 2023-09-30 | C43: =CONCATENATE(A43,'SAB Data and Charts'!B$1) -> 202303Scotland | D43: =IFERROR(VLOOKUP(CONCATENATE(D$5,$C43),'trend data'!$A$2:$O$11161,D$6,FALSE),"-") -> 278 | E43: =ROUND(VLOOKUP(CONCATENATE(E$5,$C43),'trend data'!$A$2:$O$11161,E$6,FALSE),4) -> 18.0782 | F43: =ROUND(VLOOKUP(CONCATENATE(F$5,$C43),'trend data'!$A$2:$O$11161,F$6,FALSE),4) -> 16.0152 | G43: =ROUND(VLOOKUP(CONCATENATE(G$5,$C43),'trend data'!$A$2:$O$11161,G$6,FALSE),4) -> 20.3332 | H43: =IFERROR(VLOOKUP(CONCATENATE(H$5,$C43),'trend data'!$A$2:$O$11161,H$6,FALSE),"-") -> 140 | I43: =IFERROR(ROUND(VLOOKUP(CONCATENATE(I$5,$C43),'trend data'!$A$2:$O$11161,I$6,FALSE),4),"-") -> 10.1958 | J43: =IFERROR(ROUND(VLOOKUP(CONCATENATE(J$5,$C43),'trend data'!$A$2:$O$11161,J$6,FALSE),4),"-") -> 8.5767 | K43: =IFERROR(ROUND(VLOOKUP(CONCATENATE(K$5,$C43),'trend data'!$A$2:$O$11161,K$6,FALSE),4),"-") -> 12.0315 | L43: =IFERROR(VLOOKUP(CONCATENATE(L$5,$C43),'trend data'!$A$2:$O$11161,L$6,FALSE),"-") -> - | M43: =IFERROR(VLOOKUP(CONCATENATE(M$5,$C43),'trend data'!$A$2:$O$11161,M$6,FALSE),"-") -> - | N43: =IFERROR(VLOOKUP(CONCATENATE(N$5,$C43),'trend data'!$A$2:$O$11161,N$6,FALSE),"-") -> - | O43: =IFERROR(VLOOKUP(CONCATENATE(O$5,$C43),'trend data'!$A$2:$O$11161,O$6,FALSE),"-") -> -
A44: 202304 | B44: 2023-12-31 | C44: =CONCATENATE(A44,'SAB Data and Charts'!B$1) -> 202304Scotland | D44: =IFERROR(VLOOKUP(CONCATENATE(D$5,$C44),'trend data'!$A$2:$O$11161,D$6,FALSE),"-") -> 301 | E44: =ROUND(VLOOKUP(CONCATENATE(E$5,$C44),'trend data'!$A$2:$O$11161,E$6,FALSE),4) -> 19.2189 | F44: =ROUND(VLOOKUP(CONCATENATE(F$5,$C44),'trend data'!$A$2:$O$11161,F$6,FALSE),4) -> 17.1087 | G44: =ROUND(VLOOKUP(CONCATENATE(G$5,$C44),'trend data'!$A$2:$O$11161,G$6,FALSE),4) -> 21.5174 | H44: =IFERROR(VLOOKUP(CONCATENATE(H$5,$C44),'trend data'!$A$2:$O$11161,H$6,FALSE),"-") -> 137 | I44: =IFERROR(ROUND(VLOOKUP(CONCATENATE(I$5,$C44),'trend data'!$A$2:$O$11161,I$6,FALSE),4),"-") -> 9.9773 | J44: =IFERROR(ROUND(VLOOKUP(CONCATENATE(J$5,$C44),'trend data'!$A$2:$O$11161,J$6,FALSE),4),"-") -> 8.3764 | K44: =IFERROR(ROUND(VLOOKUP(CONCATENATE(K$5,$C44),'trend data'!$A$2:$O$11161,K$6,FALSE),4),"-") -> 11.7949 | L44: =IFERROR(VLOOKUP(CONCATENATE(L$5,$C44),'trend data'!$A$2:$O$11161,L$6,FALSE),"-") -> - | M44: =IFERROR(VLOOKUP(CONCATENATE(M$5,$C44),'trend data'!$A$2:$O$11161,M$6,FALSE),"-") -> - | N44: =IFERROR(VLOOKUP(CONCATENATE(N$5,$C44),'trend data'!$A$2:$O$11161,N$6,FALSE),"-") -> - | O44: =IFERROR(VLOOKUP(CONCATENATE(O$5,$C44),'trend data'!$A$2:$O$11161,O$6,FALSE),"-") -> -
A45: 202401 | B45: 2024-03-31 | C45: =CONCATENATE(A45,'SAB Data and Charts'!B$1) -> 202401Scotland | D45: =IFERROR(VLOOKUP(CONCATENATE(D$5,$C45),'trend data'!$A$2:$O$11161,D$6,FALSE),"-") -> 271 | E45: =ROUND(VLOOKUP(CONCATENATE(E$5,$C45),'trend data'!$A$2:$O$11161,E$6,FALSE),4) -> 17.0364 | F45: =ROUND(VLOOKUP(CONCATENATE(F$5,$C45),'trend data'!$A$2:$O$11161,F$6,FALSE),4) -> 15.0681 | G45: =ROUND(VLOOKUP(CONCATENATE(G$5,$C45),'trend data'!$A$2:$O$11161,G$6,FALSE),4) -> 19.1903 | H45: =IFERROR(VLOOKUP(CONCATENATE(H$5,$C45),'trend data'!$A$2:$O$11161,H$6,FALSE),"-") -> 148 | I45: =IFERROR(ROUND(VLOOKUP(CONCATENATE(I$5,$C45),'trend data'!$A$2:$O$11161,I$6,FALSE),4),"-") -> 10.9267 | J45: =IFERROR(ROUND(VLOOKUP(CONCATENATE(J$5,$C45),'trend data'!$A$2:$O$11161,J$6,FALSE),4),"-") -> 9.2371 | K45: =IFERROR(ROUND(VLOOKUP(CONCATENATE(K$5,$C45),'trend data'!$A$2:$O$11161,K$6,FALSE),4),"-") -> 12.8358 | L45: =IFERROR(VLOOKUP(CONCATENATE(L$5,$C45),'trend data'!$A$2:$O$11161,L$6,FALSE),"-") -> - | M45: =IFERROR(VLOOKUP(CONCATENATE(M$5,$C45),'trend data'!$A$2:$O$11161,M$6,FALSE),"-") -> - | N45: =IFERROR(VLOOKUP(CONCATENATE(N$5,$C45),'trend data'!$A$2:$O$11161,N$6,FALSE),"-") -> - | O45: =IFERROR(VLOOKUP(CONCATENATE(O$5,$C45),'trend data'!$A$2:$O$11161,O$6,FALSE),"-") -> -
A46: 202402 | B46: 2024-06-30 | C46: =CONCATENATE(A46,'SAB Data and Charts'!B$1) -> 202402Scotland | D46: =IFERROR(VLOOKUP(CONCATENATE(D$5,$C46),'trend data'!$A$2:$O$11161,D$6,FALSE),"-") -> 270 | E46: =ROUND(VLOOKUP(CONCATENATE(E$5,$C46),'trend data'!$A$2:$O$11161,E$6,FALSE),4) -> 17.3402 | F46: =ROUND(VLOOKUP(CONCATENATE(F$5,$C46),'trend data'!$A$2:$O$11161,F$6,FALSE),4) -> 15.3333 | G46: =ROUND(VLOOKUP(CONCATENATE(G$5,$C46),'trend data'!$A$2:$O$11161,G$6,FALSE),4) -> 19.5368 | H46: =IFERROR(VLOOKUP(CONCATENATE(H$5,$C46),'trend data'!$A$2:$O$11161,H$6,FALSE),"-") -> 136 | I46: =IFERROR(ROUND(VLOOKUP(CONCATENATE(I$5,$C46),'trend data'!$A$2:$O$11161,I$6,FALSE),4),"-") -> 10.0407 | J46: =IFERROR(ROUND(VLOOKUP(CONCATENATE(J$5,$C46),'trend data'!$A$2:$O$11161,J$6,FALSE),4),"-") -> 8.4241 | K46: =IFERROR(ROUND(VLOOKUP(CONCATENATE(K$5,$C46),'trend data'!$A$2:$O$11161,K$6,FALSE),4),"-") -> 11.8772 | L46: =IFERROR(VLOOKUP(CONCATENATE(L$5,$C46),'trend data'!$A$2:$O$11161,L$6,FALSE),"-") -> - | M46: =IFERROR(VLOOKUP(CONCATENATE(M$5,$C46),'trend data'!$A$2:$O$11161,M$6,FALSE),"-") -> - | N46: =IFERROR(VLOOKUP(CONCATENATE(N$5,$C46),'trend data'!$A$2:$O$11161,N$6,FALSE),"-") -> - | O46: =IFERROR(VLOOKUP(CONCATENATE(O$5,$C46),'trend data'!$A$2:$O$11161,O$6,FALSE),"-") -> -

Sheet CDI data (hidden)
A1: Trend data | O1: u-chart data
A3: always last 3 years
Q4: change this
D5: CDIHCAI | E5: CDIHCAI | F5: CDIHCAI | G5: CDIHCAI | H5: CDICA | I5: CDICA | J5: CDICA | K5: CDICA | P5: current quarter end | Q5: 2024-06-30 | S5: 3 | T5: 4 | U5: 5 | V5: 6 | X5: 3 | Y5: 4 | Z5: 5 | AA5: 6
D6: 2 | E6: 4 | F6: 5 | G6: 6 | H6: 2 | I6: 4 | J6: 5 | K6: 6
C7: ref | D7: Healthcare associated Cases | E7: Healthcare associated rate | F7: Healthcare associated lower CI | G7: Healthcare associated upper CI | H7: Community associated Cases | I7: Community associated rate | J7: Community associated lower CI | K7: Community associated upper CI | S7: CDIHCAI | X7: CDICA
A8: 201404 | B8: 2014-12-19 | C8: =CONCATENATE(A8,'CDI Data and Charts'!B$1) -> 201404Scotland | D8: =VLOOKUP(CONCATENATE(D$5,$C8),'trend data'!$A$2:$O$11161,D$6,FALSE) -> 321 | E8: =ROUND(VLOOKUP(CONCATENATE(E$5,$C8),'trend data'!$A$2:$O$11161,E$6,FALSE),3) -> 18.752 | F8: =ROUND(VLOOKUP(CONCATENATE(F$5,$C8),'trend data'!$A$2:$O$11161,F$6,FALSE),3) -> 16.756 | G8: =ROUND(VLOOKUP(CONCATENATE(G$5,$C8),'trend data'!$A$2:$O$11161,G$6,FALSE),3) -> 20.92 | H8: =IFERROR(VLOOKUP(CONCATENATE(H$5,$C8),'trend data'!$A$2:$O$11161,H$6,FALSE),"-") -> 121 | I8: =IFERROR(ROUND(VLOOKUP(CONCATENATE(I$5,$C8),'trend data'!$A$2:$O$11161,I$6,FALSE),3),"-") -> 9.003 | J8: =IFERROR(ROUND(VLOOKUP(CONCATENATE(J$5,$C8),'trend data'!$A$2:$O$11161,J$6,FALSE),3),"-") -> 7.47 | K8: =IFERROR(ROUND(VLOOKUP(CONCATENATE(K$5,$C8),'trend data'!$A$2:$O$11161,K$6,FALSE),3),"-") -> 10.757 | S8: Healthcare associated rate | T8: Healthcare associated av rate | U8: Healthcare associated UWL 2sd | V8: Healthcare associated UCL 3sd | X8: Community associatedrate | Y8: Community associatedav rate | Z8: Community associatedUWL 2sd | AA8: Community associatedUCL 3 sd
A9: 201501 | B9: 2015-03-24 | C9: =CONCATENATE(A9,'CDI Data and Charts'!B$1) -> 201501Scotland | D9: =VLOOKUP(CONCATENATE(D$5,$C9),'trend data'!$A$2:$O$11161,D$6,FALSE) -> 251 | E9: =ROUND(VLOOKUP(CONCATENATE(E$5,$C9),'trend data'!$A$2:$O$11161,E$6,FALSE),3) -> 14.562 | F9: =ROUND(VLOOKUP(CONCATENATE(F$5,$C9),'trend data'!$A$2:$O$11161,F$6,FALSE),3) -> 12.816 | G9: =ROUND(VLOOKUP(CONCATENATE(G$5,$C9),'trend data'!$A$2:$O$11161,G$6,FALSE),3) -> 16.479 | H9: =IFERROR(VLOOKUP(CONCATENATE(H$5,$C9),'trend data'!$A$2:$O$11161,H$6,FALSE),"-") -> 92 | I9: =IFERROR(ROUND(VLOOKUP(CONCATENATE(I$5,$C9),'trend data'!$A$2:$O$11161,I$6,FALSE),3),"-") -> 6.972 | J9: =IFERROR(ROUND(VLOOKUP(CONCATENATE(J$5,$C9),'trend data'!$A$2:$O$11161,J$6,FALSE),3),"-") -> 5.62 | K9: =IFERROR(ROUND(VLOOKUP(CONCATENATE(K$5,$C9),'trend data'!$A$2:$O$11161,K$6,FALSE),3),"-") -> 8.55 | O9: =YEAR(Q9)&"0"&IF(MONTH(Q9)<4,1,IF(MONTH(Q9)<7,2,IF(MONTH(Q9)<10,3,4))) -> 202103 | P9: 1 | Q9: =Q10-92 -> 2021-09-22 | R9: =CONCATENATE(S$7,$O9,'CDI Data and Charts'!B$1) -> CDIHCAI202103Scotland | S9: =ROUND(VLOOKUP($R9,'data for u-p-charts'!$A$2:$F$5000,S$5,FALSE),2) -> 16.82 | T9: =ROUND(VLOOKUP($R9,'data for u-p-charts'!$A$2:$F$5000,T$5,FALSE),2) -> 14.13 | U9: =ROUND(VLOOKUP($R9,'data for u-p-charts'!$A$2:$F$5000,U$5,FALSE),2) -> 16.1 | V9: =ROUND(VLOOKUP($R9,'data for u-p-charts'!$A$2:$F$5000,V$5,FALSE),2) -> 17.09 | W9: =CONCATENATE(X$7,$O9,'CDI Data and Charts'!B$1) -> CDICA202103Scotland | X9: =ROUND(VLOOKUP($W9,'data for u-p-charts'!$A$2:$F$5000,X$5,FALSE),2) -> 6.37 | Y9: =ROUND(VLOOKUP($W9,'data for u-p-charts'!$A$2:$F$5000,Y$5,FALSE),2) -> 5.2 | Z9: =ROUND(VLOOKUP($W9,'data for u-p-charts'!$A$2:$F$5000,Z$5,FALSE),2) -> 6.43 | AA9: =ROUND(VLOOKUP($W9,'data for u-p-charts'!$A$2:$F$5000,AA$5,FALSE),2) -> 7.05
A10: 201502 | B10: 2015-06-24 | C10: =CONCATENATE(A10,'CDI Data and Charts'!B$1) -> 201502Scotland | D10: =VLOOKUP(CONCATENATE(D$5,$C10),'trend data'!$A$2:$O$11161,D$6,FALSE) -> 308 | E10: =ROUND(VLOOKUP(CONCATENATE(E$5,$C10),'trend data'!$A$2:$O$11161,E$6,FALSE),3) -> 18.538 | F10: =ROUND(VLOOKUP(CONCATENATE(F$5,$C10),'trend data'!$A$2:$O$11161,F$6,FALSE),3) -> 16.526 | G10: =ROUND(VLOOKUP(CONCATENATE(G$5,$C10),'trend data'!$A$2:$O$11161,G$6,FALSE),3) -> 20.729 | H10: =IFERROR(VLOOKUP(CONCATENATE(H$5,$C10),'trend data'!$A$2:$O$11161,H$6,FALSE),"-") -> 98 | I10: =IFERROR(ROUND(VLOOKUP(CONCATENATE(I$5,$C10),'trend data'!$A$2:$O$11161,I$6,FALSE),3),"-") -> 7.345 | J10: =IFERROR(ROUND(VLOOKUP(CONCATENATE(J$5,$C10),'trend data'!$A$2:$O$11161,J$6,FALSE),3),"-") -> 5.963 | K10: =IFERROR(ROUND(VLOOKUP(CONCATENATE(K$5,$C10),'trend data'!$A$2:$O$11161,K$6,FALSE),3),"-") -> 8.951 | O10: =YEAR(Q10)&"0"&IF(MONTH(Q10)<4,1,IF(MONTH(Q10)<7,2,IF(MONTH(Q10)<10,3,4))) -> 202104 | P10: 2 | Q10: 2021-12-23 | R10: =CONCATENATE(S$7,$O10,'CDI Data and Charts'!B$1) -> CDIHCAI202104Scotland | S10: =ROUND(VLOOKUP($R10,'data for u-p-charts'!$A$2:$F$5000,S$5,FALSE),2) -> 13.19 | T10: =ROUND(VLOOKUP($R10,'data for u-p-charts'!$A$2:$F$5000,T$5,FALSE),2) -> 14.13 | U10: =ROUND(VLOOKUP($R10,'data for u-p-charts'!$A$2:$F$5000,U$5,FALSE),2) -> 16.08 | V10: =ROUND(VLOOKUP($R10,'data for u-p-charts'!$A$2:$F$5000,V$5,FALSE),2) -> 17.05 | W10: =CONCATENATE(X$7,$O10,'CDI Data and Charts'!B$1) -> CDICA202104Scotland | X10: =ROUND(VLOOKUP($W10,'data for u-p-charts'!$A$2:$F$5000,X$5,FALSE),2) -> 4.91 | Y10: =ROUND(VLOOKUP($W10,'data for u-p-charts'!$A$2:$F$5000,Y$5,FALSE),2) -> 5.2 | Z10: =ROUND(VLOOKUP($W10,'data for u-p-charts'!$A$2:$F$5000,Z$5,FALSE),2) -> 6.43 | AA10: =ROUND(VLOOKUP($W10,'data for u-p-charts'!$A$2:$F$5000,AA$5,FALSE),2) -> 7.05
A11: 201503 | B11: 2015-09-24 | C11: =CONCATENATE(A11,'CDI Data and Charts'!B$1) -> 201503Scotland | D11: =VLOOKUP(CONCATENATE(D$5,$C11),'trend data'!$A$2:$O$11161,D$6,FALSE) -> 313 | E11: =ROUND(VLOOKUP(CONCATENATE(E$5,$C11),'trend data'!$A$2:$O$11161,E$6,FALSE),3) -> 19.31 | F11: =ROUND(VLOOKUP(CONCATENATE(F$5,$C11),'trend data'!$A$2:$O$11161,F$6,FALSE),3) -> 17.23 | G11: =ROUND(VLOOKUP(CONCATENATE(G$5,$C11),'trend data'!$A$2:$O$11161,G$6,FALSE),3) -> 21.573 | H11: =IFERROR(VLOOKUP(CONCATENATE(H$5,$C11),'trend data'!$A$2:$O$11161,H$6,FALSE),"-") -> 131 | I11: =IFERROR(ROUND(VLOOKUP(CONCATENATE(I$5,$C11),'trend data'!$A$2:$O$11161,I$6,FALSE),3),"-") -> 9.711 | J11: =IFERROR(ROUND(VLOOKUP(CONCATENATE(J$5,$C11),'trend data'!$A$2:$O$11161,J$6,FALSE),3),"-") -> 8.12 | K11: =IFERROR(ROUND(VLOOKUP(CONCATENATE(K$5,$C11),'trend data'!$A$2:$O$11161,K$6,FALSE),3),"-") -> 11.524 | O11: 202201 | P11: 3 | Q11: 2022-03-25 | R11: =CONCATENATE(S$7,$O11,'CDI Data and Charts'!B$1) -> CDIHCAI202201Scotland | S11: =ROUND(VLOOKUP($R11,'data for u-p-charts'!$A$2:$F$5000,S$5,FALSE),2) -> 12.63 | T11: =ROUND(VLOOKUP($R11,'data for u-p-charts'!$A$2:$F$5000,T$5,FALSE),2) -> 14.13 | U11: =ROUND(VLOOKUP($R11,'data for u-p-charts'!$A$2:$F$5000,U$5,FALSE),2) -> 16.08 | V11: =ROUND(VLOOKUP($R11,'data for u-p-charts'!$A$2:$F$5000,V$5,FALSE),2) -> 17.06 | W11: =CONCATENATE(X$7,$O11,'CDI Data and Charts'!B$1) -> CDICA202201Scotland | X11: =ROUND(VLOOKUP($W11,'data for u-p-charts'!$A$2:$F$5000,X$5,FALSE),2) -> 3.2 | Y11: =ROUND(VLOOKUP($W11,'data for u-p-charts'!$A$2:$F$5000,Y$5,FALSE),2) -> 5.2 | Z11: =ROUND(VLOOKUP($W11,'data for u-p-charts'!$A$2:$F$5000,Z$5,FALSE),2) -> 6.44 | AA11: =ROUND(VLOOKUP($W11,'data for u-p-charts'!$A$2:$F$5000,AA$5,FALSE),2) -> 7.06
A12: 201504 | B12: 2015-12-24 | C12: =CONCATENATE(A12,'CDI Data and Charts'!B$1) -> 201504Scotland | D12: =VLOOKUP(CONCATENATE(D$5,$C12),'trend data'!$A$2:$O$11161,D$6,FALSE) -> 367 | E12: =ROUND(VLOOKUP(CONCATENATE(E$5,$C12),'trend data'!$A$2:$O$11161,E$6,FALSE),3) -> 22.349 | F12: =ROUND(VLOOKUP(CONCATENATE(F$5,$C12),'trend data'!$A$2:$O$11161,F$6,FALSE),3) -> 20.12 | G12: =ROUND(VLOOKUP(CONCATENATE(G$5,$C12),'trend data'!$A$2:$O$11161,G$6,FALSE),3) -> 24.756 | H12: =IFERROR(VLOOKUP(CONCATENATE(H$5,$C12),'trend data'!$A$2:$O$11161,H$6,FALSE),"-") -> 116 | I12: =IFERROR(ROUND(VLOOKUP(CONCATENATE(I$5,$C12),'trend data'!$A$2:$O$11161,I$6,FALSE),3),"-") -> 8.599 | J12: =IFERROR(ROUND(VLOOKUP(CONCATENATE(J$5,$C12),'trend data'!$A$2:$O$11161,J$6,FALSE),3),"-") -> 7.106 | K12: =IFERROR(ROUND(VLOOKUP(CONCATENATE(K$5,$C12),'trend data'!$A$2:$O$11161,K$6,FALSE),3),"-") -> 10.314 | O12: 202202 | P12: 4 | Q12: 2022-06-25 | R12: =CONCATENATE(S$7,$O12,'CDI Data and Charts'!B$1) -> CDIHCAI202202Scotland | S12: =ROUND(VLOOKUP($R12,'data for u-p-charts'!$A$2:$F$5000,S$5,FALSE),2) -> 14.31 | T12: =ROUND(VLOOKUP($R12,'data for u-p-charts'!$A$2:$F$5000,T$5,FALSE),2) -> 14.13 | U12: =ROUND(VLOOKUP($R12,'data for u-p-charts'!$A$2:$F$5000,U$5,FALSE),2) -> 16.06 | V12: =ROUND(VLOOKUP($R12,'data for u-p-charts'!$A$2:$F$5000,V$5,FALSE),2) -> 17.03 | W12: =CONCATENATE(X$7,$O12,'CDI Data and Charts'!B$1) -> CDICA202202Scotland | X12: =ROUND(VLOOKUP($W12,'data for u-p-charts'!$A$2:$F$5000,X$5,FALSE),2) -> 4.86 | Y12: =ROUND(VLOOKUP($W12,'data for u-p-charts'!$A$2:$F$5000,Y$5,FALSE),2) -> 5.2 | Z12: =ROUND(VLOOKUP($W12,'data for u-p-charts'!$A$2:$F$5000,Z$5,FALSE),2) -> 6.44 | AA12: =ROUND(VLOOKUP($W12,'data for u-p-charts'!$A$2:$F$5000,AA$5,FALSE),2) -> 7.05
A13: 201601 | B13: 2016-03-24 | C13: =CONCATENATE(A13,'CDI Data and Charts'!B$1) -> 201601Scotland | D13: =VLOOKUP(CONCATENATE(D$5,$C13),'trend data'!$A$2:$O$11161,D$6,FALSE) -> 252 | E13: =ROUND(VLOOKUP(CONCATENATE(E$5,$C13),'trend data'!$A$2:$O$11161,E$6,FALSE),3) -> 15.05 | F13: =ROUND(VLOOKUP(CONCATENATE(F$5,$C13),'trend data'!$A$2:$O$11161,F$6,FALSE),3) -> 13.249 | G13: =ROUND(VLOOKUP(CONCATENATE(G$5,$C13),'trend data'!$A$2:$O$11161,G$6,FALSE),3) -> 17.027 | H13: =IFERROR(VLOOKUP(CONCATENATE(H$5,$C13),'trend data'!$A$2:$O$11161,H$6,FALSE),"-") -> 97 | I13: =IFERROR(ROUND(VLOOKUP(CONCATENATE(I$5,$C13),'trend data'!$A$2:$O$11161,I$6,FALSE),3),"-") -> 7.258 | J13: =IFERROR(ROUND(VLOOKUP(CONCATENATE(J$5,$C13),'trend data'!$A$2:$O$11161,J$6,FALSE),3),"-") -> 5.886 | K13: =IFERROR(ROUND(VLOOKUP(CONCATENATE(K$5,$C13),'trend data'!$A$2:$O$11161,K$6,FALSE),3),"-") -> 8.855 | O13: 202203 | P13: 5 | Q13: 2022-09-25 | R13: =CONCATENATE(S$7,$O13,'CDI Data and Charts'!B$1) -> CDIHCAI202203Scotland | S13: =ROUND(VLOOKUP($R13,'data for u-p-charts'!$A$2:$F$5000,S$5,FALSE),2) -> 13.07 | T13: =ROUND(VLOOKUP($R13,'data for u-p-charts'!$A$2:$F$5000,T$5,FALSE),2) -> 14.13 | U13: =ROUND(VLOOKUP($R13,'data for u-p-charts'!$A$2:$F$5000,U$5,FALSE),2) -> 16.04 | V13: =ROUND(VLOOKUP($R13,'data for u-p-charts'!$A$2:$F$5000,V$5,FALSE),2) -> 17 | W13: =CONCATENATE(X$7,$O13,'CDI Data and Charts'!B$1) -> CDICA202203Scotland | X13: =ROUND(VLOOKUP($W13,'data for u-p-charts'!$A$2:$F$5000,X$5,FALSE),2) -> 5.97 | Y13: =ROUND(VLOOKUP($W13,'data for u-p-charts'!$A$2:$F$5000,Y$5,FALSE),2) -> 5.2 | Z13: =ROUND(VLOOKUP($W13,'data for u-p-charts'!$A$2:$F$5000,Z$5,FALSE),2) -> 6.43 | AA13: =ROUND(VLOOKUP($W13,'data for u-p-charts'!$A$2:$F$5000,AA$5,FALSE),2) -> 7.04
A14: 201602 | B14: 2016-06-24 | C14: =CONCATENATE(A14,'CDI Data and Charts'!B$1) -> 201602Scotland | D14: =VLOOKUP(CONCATENATE(D$5,$C14),'trend data'!$A$2:$O$11161,D$6,FALSE) -> 250 | E14: =ROUND(VLOOKUP(CONCATENATE(E$5,$C14),'trend data'!$A$2:$O$11161,E$6,FALSE),3) -> 15.575 | F14: =ROUND(VLOOKUP(CONCATENATE(F$5,$C14),'trend data'!$A$2:$O$11161,F$6,FALSE),3) -> 13.704 | G14: =ROUND(VLOOKUP(CONCATENATE(G$5,$C14),'trend data'!$A$2:$O$11161,G$6,FALSE),3) -> 17.631 | H14: =IFERROR(VLOOKUP(CONCATENATE(H$5,$C14),'trend data'!$A$2:$O$11161,H$6,FALSE),"-") -> 91 | I14: =IFERROR(ROUND(VLOOKUP(CONCATENATE(I$5,$C14),'trend data'!$A$2:$O$11161,I$6,FALSE),3),"-") -> 6.809 | J14: =IFERROR(ROUND(VLOOKUP(CONCATENATE(J$5,$C14),'trend data'!$A$2:$O$11161,J$6,FALSE),3),"-") -> 5.482 | K14: =IFERROR(ROUND(VLOOKUP(CONCATENATE(K$5,$C14),'trend data'!$A$2:$O$11161,K$6,FALSE),3),"-") -> 8.361 | O14: 202204 | P14: 6 | Q14: 2022-12-26 | R14: =CONCATENATE(S$7,$O14,'CDI Data and Charts'!B$1) -> CDIHCAI202204Scotland | S14: =ROUND(VLOOKUP($R14,'data for u-p-charts'!$A$2:$F$5000,S$5,FALSE),2) -> 13.51 | T14: =ROUND(VLOOKUP($R14,'data for u-p-charts'!$A$2:$F$5000,T$5,FALSE),2) -> 14.13 | U14: =ROUND(VLOOKUP($R14,'data for u-p-charts'!$A$2:$F$5000,U$5,FALSE),2) -> 16.03 | V14: =ROUND(VLOOKUP($R14,'data for u-p-charts'!$A$2:$F$5000,V$5,FALSE),2) -> 16.98 | W14: =CONCATENATE(X$7,$O14,'CDI Data and Charts'!B$1) -> CDICA202204Scotland | X14: =ROUND(VLOOKUP($W14,'data for u-p-charts'!$A$2:$F$5000,X$5,FALSE),2) -> 3.2 | Y14: =ROUND(VLOOKUP($W14,'data for u-p-charts'!$A$2:$F$5000,Y$5,FALSE),2) -> 5.2 | Z14: =ROUND(VLOOKUP($W14,'data for u-p-charts'!$A$2:$F$5000,Z$5,FALSE),2) -> 6.43 | AA14: =ROUND(VLOOKUP($W14,'data for u-p-charts'!$A$2:$F$5000,AA$5,FALSE),2) -> 7.04
A15: 201603 | B15: 2016-09-24 | C15: =CONCATENATE(A15,'CDI Data and Charts'!B$1) -> 201603Scotland | D15: =VLOOKUP(CONCATENATE(D$5,$C15),'trend data'!$A$2:$O$11161,D$6,FALSE) -> 263 | E15: =ROUND(VLOOKUP(CONCATENATE(E$5,$C15),'trend data'!$A$2:$O$11161,E$6,FALSE),3) -> 16.563 | F15: =ROUND(VLOOKUP(CONCATENATE(F$5,$C15),'trend data'!$A$2:$O$11161,F$6,FALSE),3) -> 14.621 | G15: =ROUND(VLOOKUP(CONCATENATE(G$5,$C15),'trend data'!$A$2:$O$11161,G$6,FALSE),3) -> 18.69 | H15: =IFERROR(VLOOKUP(CONCATENATE(H$5,$C15),'trend data'!$A$2:$O$11161,H$6,FALSE),"-") -> 119 | I15: =IFERROR(ROUND(VLOOKUP(CONCATENATE(I$5,$C15),'trend data'!$A$2:$O$11161,I$6,FALSE),3),"-") -> 8.808 | J15: =IFERROR(ROUND(VLOOKUP(CONCATENATE(J$5,$C15),'trend data'!$A$2:$O$11161,J$6,FALSE),3),"-") -> 7.296 | K15: =IFERROR(ROUND(VLOOKUP(CONCATENATE(K$5,$C15),'trend data'!$A$2:$O$11161,K$6,FALSE),3),"-") -> 10.54 | O15: 202301 | P15: 7 | Q15: 2023-03-28 | R15: =CONCATENATE(S$7,$O15,'CDI Data and Charts'!B$1) -> CDIHCAI202301Scotland | S15: =ROUND(VLOOKUP($R15,'data for u-p-charts'!$A$2:$F$5000,S$5,FALSE),2) -> 13.45 | T15: =ROUND(VLOOKUP($R15,'data for u-p-charts'!$A$2:$F$5000,T$5,FALSE),2) -> 14.13 | U15: =ROUND(VLOOKUP($R15,'data for u-p-charts'!$A$2:$F$5000,U$5,FALSE),2) -> 16.03 | V15: =ROUND(VLOOKUP($R15,'data for u-p-charts'!$A$2:$F$5000,V$5,FALSE),2) -> 16.98 | W15: =CONCATENATE(X$7,$O15,'CDI Data and Charts'!B$1) -> CDICA202301Scotland | X15: =ROUND(VLOOKUP($W15,'data for u-p-charts'!$A$2:$F$5000,X$5,FALSE),2) -> 4.24 | Y15: =ROUND(VLOOKUP($W15,'data for u-p-charts'!$A$2:$F$5000,Y$5,FALSE),2) -> 5.2 | Z15: =ROUND(VLOOKUP($W15,'data for u-p-charts'!$A$2:$F$5000,Z$5,FALSE),2) -> 6.44 | AA15: =ROUND(VLOOKUP($W15,'data for u-p-charts'!$A$2:$F$5000,AA$5,FALSE),2) -> 7.06
A16: 201604 | B16: 2016-12-24 | C16: =CONCATENATE(A16,'CDI Data and Charts'!B$1) -> 201604Scotland | D16: =VLOOKUP(CONCATENATE(D$5,$C16),'trend data'!$A$2:$O$11161,D$6,FALSE) -> 233 | E16: =ROUND(VLOOKUP(CONCATENATE(E$5,$C16),'trend data'!$A$2:$O$11161,E$6,FALSE),3) -> 14.639 | F16: =ROUND(VLOOKUP(CONCATENATE(F$5,$C16),'trend data'!$A$2:$O$11161,F$6,FALSE),3) -> 12.819 | G16: =ROUND(VLOOKUP(CONCATENATE(G$5,$C16),'trend data'!$A$2:$O$11161,G$6,FALSE),3) -> 16.644 | H16: =IFERROR(VLOOKUP(CONCATENATE(H$5,$C16),'trend data'!$A$2:$O$11161,H$6,FALSE),"-") -> 94 | I16: =IFERROR(ROUND(VLOOKUP(CONCATENATE(I$5,$C16),'trend data'!$A$2:$O$11161,I$6,FALSE),3),"-") -> 6.957 | J16: =IFERROR(ROUND(VLOOKUP(CONCATENATE(J$5,$C16),'trend data'!$A$2:$O$11161,J$6,FALSE),3),"-") -> 5.622 | K16: =IFERROR(ROUND(VLOOKUP(CONCATENATE(K$5,$C16),'trend data'!$A$2:$O$11161,K$6,FALSE),3),"-") -> 8.514 | O16: 202302 | P16: 8 | Q16: 2023-06-28 | R16: =CONCATENATE(S$7,$O16,'CDI Data and Charts'!B$1) -> CDIHCAI202302Scotland | S16: =ROUND(VLOOKUP($R16,'data for u-p-charts'!$A$2:$F$5000,S$5,FALSE),2) -> 15.8 | T16: =ROUND(VLOOKUP($R16,'data for u-p-charts'!$A$2:$F$5000,T$5,FALSE),2) -> 14.13 | U16: =ROUND(VLOOKUP($R16,'data for u-p-charts'!$A$2:$F$5000,U$5,FALSE),2) -> 16.04 | V16: =ROUND(VLOOKUP($R16,'data for u-p-charts'!$A$2:$F$5000,V$5,FALSE),2) -> 17 | W16: =CONCATENATE(X$7,$O16,'CDI Data and Charts'!B$1) -> CDICA202302Scotland | X16: =ROUND(VLOOKUP($W16,'data for u-p-charts'!$A$2:$F$5000,X$5,FALSE),2) -> 5.15 | Y16: =ROUND(VLOOKUP($W16,'data for u-p-charts'!$A$2:$F$5000,Y$5,FALSE),2) -> 5.2 | Z16: =ROUND(VLOOKUP($W16,'data for u-p-charts'!$A$2:$F$5000,Z$5,FALSE),2) -> 6.44 | AA16: =ROUND(VLOOKUP($W16,'data for u-p-charts'!$A$2:$F$5000,AA$5,FALSE),2) -> 7.05
A17: 201701 | B17: 2017-03-01 | C17: =CONCATENATE(A17,'CDI Data and Charts'!B$1) -> 201701Scotland | D17: =VLOOKUP(CONCATENATE(D$5,$C17),'trend data'!$A$2:$O$11161,D$6,FALSE) -> 257 | E17: =ROUND(VLOOKUP(CONCATENATE(E$5,$C17),'trend data'!$A$2:$O$11161,E$6,FALSE),3) -> 16.252 | F17: =ROUND(VLOOKUP(CONCATENATE(F$5,$C17),'trend data'!$A$2:$O$11161,F$6,FALSE),3) -> 14.326 | G17: =ROUND(VLOOKUP(CONCATENATE(G$5,$C17),'trend data'!$A$2:$O$11161,G$6,FALSE),3) -> 18.365 | H17: =IFERROR(VLOOKUP(CONCATENATE(H$5,$C17),'trend data'!$A$2:$O$11161,H$6,FALSE),"-") -> 74 | I17: =IFERROR(ROUND(VLOOKUP(CONCATENATE(I$5,$C17),'trend data'!$A$2:$O$11161,I$6,FALSE),3),"-") -> 5.568 | J17: =IFERROR(ROUND(VLOOKUP(CONCATENATE(J$5,$C17),'trend data'!$A$2:$O$11161,J$6,FALSE),3),"-") -> 4.372 | K17: =IFERROR(ROUND(VLOOKUP(CONCATENATE(K$5,$C17),'trend data'!$A$2:$O$11161,K$6,FALSE),3),"-") -> 6.99 | O17: 202303 | P17: 9 | Q17: 2023-09-28 | R17: =CONCATENATE(S$7,$O17,'CDI Data and Charts'!B$1) -> CDIHCAI202303Scotland | S17: =ROUND(VLOOKUP($R17,'data for u-p-charts'!$A$2:$F$5000,S$5,FALSE),2) -> 15.54 | T17: =ROUND(VLOOKUP($R17,'data for u-p-charts'!$A$2:$F$5000,T$5,FALSE),2) -> 14.13 | U17: =ROUND(VLOOKUP($R17,'data for u-p-charts'!$A$2:$F$5000,U$5,FALSE),2) -> 16.05 | V17: =ROUND(VLOOKUP($R17,'data for u-p-charts'!$A$2:$F$5000,V$5,FALSE),2) -> 17.01 | W17: =CONCATENATE(X$7,$O17,'CDI Data and Charts'!B$1) -> CDICA202303Scotland | X17: =ROUND(VLOOKUP($W17,'data for u-p-charts'!$A$2:$F$5000,X$5,FALSE),2) -> 6.26 | Y17: =ROUND(VLOOKUP($W17,'data for u-p-charts'!$A$2:$F$5000,Y$5,FALSE),2) -> 5.2 | Z17: =ROUND(VLOOKUP($W17,'data for u-p-charts'!$A$2:$F$5000,Z$5,FALSE),2) -> 6.43 | AA17: =ROUND(VLOOKUP($W17,'data for u-p-charts'!$A$2:$F$5000,AA$5,FALSE),2) -> 7.04
A18: 201702 | B18: 2017-06-01 | C18: =CONCATENATE(A18,'CDI Data and Charts'!B$1) -> 201702Scotland | D18: =VLOOKUP(CONCATENATE(D$5,$C18),'trend data'!$A$2:$O$11161,D$6,FALSE) -> 237 | E18: =ROUND(VLOOKUP(CONCATENATE(E$5,$C18),'trend data'!$A$2:$O$11161,E$6,FALSE),3) -> 15.285 | F18: =ROUND(VLOOKUP(CONCATENATE(F$5,$C18),'trend data'!$A$2:$O$11161,F$6,FALSE),3) -> 13.4 | G18: =ROUND(VLOOKUP(CONCATENATE(G$5,$C18),'trend data'!$A$2:$O$11161,G$6,FALSE),3) -> 17.36 | H18: =IFERROR(VLOOKUP(CONCATENATE(H$5,$C18),'trend data'!$A$2:$O$11161,H$6,FALSE),"-") -> 101 | I18: =IFERROR(ROUND(VLOOKUP(CONCATENATE(I$5,$C18),'trend data'!$A$2:$O$11161,I$6,FALSE),3),"-") -> 7.516 | J18: =IFERROR(ROUND(VLOOKUP(CONCATENATE(J$5,$C18),'trend data'!$A$2:$O$11161,J$6,FALSE),3),"-") -> 6.122 | K18: =IFERROR(ROUND(VLOOKUP(CONCATENATE(K$5,$C18),'trend data'!$A$2:$O$11161,K$6,FALSE),3),"-") -> 9.133 | O18: 202304 | P18: 10 | Q18: 2023-12-29 | R18: =CONCATENATE(S$7,$O18,'CDI Data and Charts'!B$1) -> CDIHCAI202304Scotland | S18: =ROUND(VLOOKUP($R18,'data for u-p-charts'!$A$2:$F$5000,S$5,FALSE),2) -> 14.24 | T18: =ROUND(VLOOKUP($R18,'data for u-p-charts'!$A$2:$F$5000,T$5,FALSE),2) -> 14.13 | U18: =ROUND(VLOOKUP($R18,'data for u-p-charts'!$A$2:$F$5000,U$5,FALSE),2) -> 16.03 | V18: =ROUND(VLOOKUP($R18,'data for u-p-charts'!$A$2:$F$5000,V$5,FALSE),2) -> 16.98 | W18: =CONCATENATE(X$7,$O18,'CDI Data and Charts'!B$1) -> CDICA202304Scotland | X18: =ROUND(VLOOKUP($W18,'data for u-p-charts'!$A$2:$F$5000,X$5,FALSE),2) -> 5.75 | Y18: =ROUND(VLOOKUP($W18,'data for u-p-charts'!$A$2:$F$5000,Y$5,FALSE),2) -> 5.2 | Z18: =ROUND(VLOOKUP($W18,'data for u-p-charts'!$A$2:$F$5000,Z$5,FALSE),2) -> 6.43 | AA18: =ROUND(VLOOKUP($W18,'data for u-p-charts'!$A$2:$F$5000,AA$5,FALSE),2) -> 7.04
A19: 201703 | B19: 2017-09-01 | C19: =CONCATENATE(A19,'CDI Data and Charts'!B$1) -> 201703Scotland | D19: =VLOOKUP(CONCATENATE(D$5,$C19),'trend data'!$A$2:$O$11161,D$6,FALSE) -> 284 | E19: =ROUND(VLOOKUP(CONCATENATE(E$5,$C19),'trend data'!$A$2:$O$11161,E$6,FALSE),3) -> 18.456 | F19: =ROUND(VLOOKUP(CONCATENATE(F$5,$C19),'trend data'!$A$2:$O$11161,F$6,FALSE),3) -> 16.371 | G19: =ROUND(VLOOKUP(CONCATENATE(G$5,$C19),'trend data'!$A$2:$O$11161,G$6,FALSE),3) -> 20.732 | H19: =IFERROR(VLOOKUP(CONCATENATE(H$5,$C19),'trend data'!$A$2:$O$11161,H$6,FALSE),"-") -> 107 | I19: =IFERROR(ROUND(VLOOKUP(CONCATENATE(I$5,$C19),'trend data'!$A$2:$O$11161,I$6,FALSE),3),"-") -> 7.876 | J19: =IFERROR(ROUND(VLOOKUP(CONCATENATE(J$5,$C19),'trend data'!$A$2:$O$11161,J$6,FALSE),3),"-") -> 6.454 | K19: =IFERROR(ROUND(VLOOKUP(CONCATENATE(K$5,$C19),'trend data'!$A$2:$O$11161,K$6,FALSE),3),"-") -> 9.518 | O19: 202401 | P19: 11 | Q19: =Q20-92 -> 2024-03-30 | R19: =CONCATENATE(S$7,$O19,'CDI Data and Charts'!B$1) -> CDIHCAI202401Scotland | S19: =ROUND(VLOOKUP($R19,'data for u-p-charts'!$A$2:$F$5000,S$5,FALSE),2) -> 12.64 | T19: =ROUND(VLOOKUP($R19,'data for u-p-charts'!$A$2:$F$5000,T$5,FALSE),2) -> 14.13 | U19: =ROUND(VLOOKUP($R19,'data for u-p-charts'!$A$2:$F$5000,U$5,FALSE),2) -> 16.02 | V19: =ROUND(VLOOKUP($R19,'data for u-p-charts'!$A$2:$F$5000,V$5,FALSE),2) -> 16.96 | W19: =CONCATENATE(X$7,$O19,'CDI Data and Charts'!B$1) -> CDICA202401Scotland | X19: =ROUND(VLOOKUP($W19,'data for u-p-charts'!$A$2:$F$5000,X$5,FALSE),2) -> 6.94 | Y19: =ROUND(VLOOKUP($W19,'data for u-p-charts'!$A$2:$F$5000,Y$5,FALSE),2) -> 5.2 | Z19: =ROUND(VLOOKUP($W19,'data for u-p-charts'!$A$2:$F$5000,Z$5,FALSE),2) -> 6.44 | AA19: =ROUND(VLOOKUP($W19,'data for u-p-charts'!$A$2:$F$5000,AA$5,FALSE),2) -> 7.06
A20: 201704 | B20: 2017-12-01 | C20: =CONCATENATE(A20,'CDI Data and Charts'!B$1) -> 201704Scotland | D20: =VLOOKUP(CONCATENATE(D$5,$C20),'trend data'!$A$2:$O$11161,D$6,FALSE) -> 234 | E20: =ROUND(VLOOKUP(CONCATENATE(E$5,$C20),'trend data'!$A$2:$O$11161,E$6,FALSE),3) -> 14.857 | F20: =ROUND(VLOOKUP(CONCATENATE(F$5,$C20),'trend data'!$A$2:$O$11161,F$6,FALSE),3) -> 13.015 | G20: =ROUND(VLOOKUP(CONCATENATE(G$5,$C20),'trend data'!$A$2:$O$11161,G$6,FALSE),3) -> 16.888 | H20: =IFERROR(VLOOKUP(CONCATENATE(H$5,$C20),'trend data'!$A$2:$O$11161,H$6,FALSE),"-") -> 75 | I20: =IFERROR(ROUND(VLOOKUP(CONCATENATE(I$5,$C20),'trend data'!$A$2:$O$11161,I$6,FALSE),3),"-") -> 5.521 | J20: =IFERROR(ROUND(VLOOKUP(CONCATENATE(J$5,$C20),'trend data'!$A$2:$O$11161,J$6,FALSE),3),"-") -> 4.342 | K20: =IFERROR(ROUND(VLOOKUP(CONCATENATE(K$5,$C20),'trend data'!$A$2:$O$11161,K$6,FALSE),3),"-") -> 6.92 | O20: 202402 | P20: 12 | Q20: =Q5 -> 2024-06-30 | R20: =CONCATENATE(S$7,$O20,'CDI Data and Charts'!B$1) -> CDIHCAI202402Scotland | S20: =ROUND(VLOOKUP($R20,'data for u-p-charts'!$A$2:$F$5000,S$5,FALSE),2) -> 16.95 | T20: =ROUND(VLOOKUP($R20,'data for u-p-charts'!$A$2:$F$5000,T$5,FALSE),2) -> 14.13 | U20: =ROUND(VLOOKUP($R20,'data for u-p-charts'!$A$2:$F$5000,U$5,FALSE),2) -> 16.04 | V20: =ROUND(VLOOKUP($R20,'data for u-p-charts'!$A$2:$F$5000,V$5,FALSE),2) -> 16.99 | W20: =CONCATENATE(X$7,$O20,'CDI Data and Charts'!B$1) -> CDICA202402Scotland | X20: =ROUND(VLOOKUP($W20,'data for u-p-charts'!$A$2:$F$5000,X$5,FALSE),2) -> 7.09 | Y20: =ROUND(VLOOKUP($W20,'data for u-p-charts'!$A$2:$F$5000,Y$5,FALSE),2) -> 5.2 | Z20: =ROUND(VLOOKUP($W20,'data for u-p-charts'!$A$2:$F$5000,Z$5,FALSE),2) -> 6.44 | AA20: =ROUND(VLOOKUP($W20,'data for u-p-charts'!$A$2:$F$5000,AA$5,FALSE),2) -> 7.06
A21: 201801 | B21: 2018-03-01 | C21: =CONCATENATE(A21,'CDI Data and Charts'!B$1) -> 201801Scotland | D21: =IFERROR(VLOOKUP(CONCATENATE(D$5,$C21),'trend data'!$A$2:$O$11161,D$6,FALSE),"-") -> 228 | E21: =ROUND(VLOOKUP(CONCATENATE(E$5,$C21),'trend data'!$A$2:$O$11161,E$6,FALSE),3) -> 14.383 | F21: =ROUND(VLOOKUP(CONCATENATE(F$5,$C21),'trend data'!$A$2:$O$11161,F$6,FALSE),3) -> 12.576 | G21: =ROUND(VLOOKUP(CONCATENATE(G$5,$C21),'trend data'!$A$2:$O$11161,G$6,FALSE),3) -> 16.376 | H21: =IFERROR(VLOOKUP(CONCATENATE(H$5,$C21),'trend data'!$A$2:$O$11161,H$6,FALSE),"-") -> 86 | I21: =IFERROR(ROUND(VLOOKUP(CONCATENATE(I$5,$C21),'trend data'!$A$2:$O$11161,I$6,FALSE),3),"-") -> 6.466 | J21: =IFERROR(ROUND(VLOOKUP(CONCATENATE(J$5,$C21),'trend data'!$A$2:$O$11161,J$6,FALSE),3),"-") -> 5.172 | K21: =IFERROR(ROUND(VLOOKUP(CONCATENATE(K$5,$C21),'trend data'!$A$2:$O$11161,K$6,FALSE),3),"-") -> 7.985
A22: 201802 | B22: 2018-06-01 | C22: =CONCATENATE(A22,'CDI Data and Charts'!B$1) -> 201802Scotland | D22: =IFERROR(VLOOKUP(CONCATENATE(D$5,$C22),'trend data'!$A$2:$O$11161,D$6,FALSE),"-") -> 244 | E22: =ROUND(VLOOKUP(CONCATENATE(E$5,$C22),'trend data'!$A$2:$O$11161,E$6,FALSE),3) -> 15.996 | F22: =ROUND(VLOOKUP(CONCATENATE(F$5,$C22),'trend data'!$A$2:$O$11161,F$6,FALSE),3) -> 14.052 | G22: =ROUND(VLOOKUP(CONCATENATE(G$5,$C22),'trend data'!$A$2:$O$11161,G$6,FALSE),3) -> 18.135 | H22: =IFERROR(VLOOKUP(CONCATENATE(H$5,$C22),'trend data'!$A$2:$O$11161,H$6,FALSE),"-") -> 102 | I22: =IFERROR(ROUND(VLOOKUP(CONCATENATE(I$5,$C22),'trend data'!$A$2:$O$11161,I$6,FALSE),3),"-") -> 7.584 | J22: =IFERROR(ROUND(VLOOKUP(CONCATENATE(J$5,$C22),'trend data'!$A$2:$O$11161,J$6,FALSE),3),"-") -> 6.184 | K22: =IFERROR(ROUND(VLOOKUP(CONCATENATE(K$5,$C22),'trend data'!$A$2:$O$11161,K$6,FALSE),3),"-") -> 9.207
A23: 201803 | B23: 2018-09-01 | C23: =CONCATENATE(A23,'CDI Data and Charts'!B$1) -> 201803Scotland | D23: =IFERROR(VLOOKUP(CONCATENATE(D$5,$C23),'trend data'!$A$2:$O$11161,D$6,FALSE),"-") -> 255 | E23: =ROUND(VLOOKUP(CONCATENATE(E$5,$C23),'trend data'!$A$2:$O$11161,E$6,FALSE),3) -> 16.869 | F23: =ROUND(VLOOKUP(CONCATENATE(F$5,$C23),'trend data'!$A$2:$O$11161,F$6,FALSE),3) -> 14.862 | G23: =ROUND(VLOOKUP(CONCATENATE(G$5,$C23),'trend data'!$A$2:$O$11161,G$6,FALSE),3) -> 19.072 | H23: =IFERROR(VLOOKUP(CONCATENATE(H$5,$C23),'trend data'!$A$2:$O$11161,H$6,FALSE),"-") -> 92 | I23: =IFERROR(ROUND(VLOOKUP(CONCATENATE(I$5,$C23),'trend data'!$A$2:$O$11161,I$6,FALSE),3),"-") -> 6.766 | J23: =IFERROR(ROUND(VLOOKUP(CONCATENATE(J$5,$C23),'trend data'!$A$2:$O$11161,J$6,FALSE),3),"-") -> 5.455 | K23: =IFERROR(ROUND(VLOOKUP(CONCATENATE(K$5,$C23),'trend data'!$A$2:$O$11161,K$6,FALSE),3),"-") -> 8.299
A24: 201804 | B24: 2018-12-01 | C24: =CONCATENATE(A24,'CDI Data and Charts'!B$1) -> 201804Scotland | D24: =IFERROR(VLOOKUP(CONCATENATE(D$5,$C24),'trend data'!$A$2:$O$11161,D$6,FALSE),"-") -> 220 | E24: =ROUND(VLOOKUP(CONCATENATE(E$5,$C24),'trend data'!$A$2:$O$11161,E$6,FALSE),3) -> 14.453 | F24: =ROUND(VLOOKUP(CONCATENATE(F$5,$C24),'trend data'!$A$2:$O$11161,F$6,FALSE),3) -> 12.606 | G24: =ROUND(VLOOKUP(CONCATENATE(G$5,$C24),'trend data'!$A$2:$O$11161,G$6,FALSE),3) -> 16.494 | H24: =IFERROR(VLOOKUP(CONCATENATE(H$5,$C24),'trend data'!$A$2:$O$11161,H$6,FALSE),"-") -> 86 | I24: =IFERROR(ROUND(VLOOKUP(CONCATENATE(I$5,$C24),'trend data'!$A$2:$O$11161,I$6,FALSE),3),"-") -> 6.325 | J24: =IFERROR(ROUND(VLOOKUP(CONCATENATE(J$5,$C24),'trend data'!$A$2:$O$11161,J$6,FALSE),3),"-") -> 5.059 | K24: =IFERROR(ROUND(VLOOKUP(CONCATENATE(K$5,$C24),'trend data'!$A$2:$O$11161,K$6,FALSE),3),"-") -> 7.812
A25: 201901 | B25: 2019-03-01 | C25: =CONCATENATE(A25,'CDI Data and Charts'!B$1) -> 201901Scotland | D25: =IFERROR(VLOOKUP(CONCATENATE(D$5,$C25),'trend data'!$A$2:$O$11161,D$6,FALSE),"-") -> 186 | E25: =ROUND(VLOOKUP(CONCATENATE(E$5,$C25),'trend data'!$A$2:$O$11161,E$6,FALSE),3) -> 12.09 | F25: =ROUND(VLOOKUP(CONCATENATE(F$5,$C25),'trend data'!$A$2:$O$11161,F$6,FALSE),3) -> 10.414 | G25: =ROUND(VLOOKUP(CONCATENATE(G$5,$C25),'trend data'!$A$2:$O$11161,G$6,FALSE),3) -> 13.958 | H25: =IFERROR(VLOOKUP(CONCATENATE(H$5,$C25),'trend data'!$A$2:$O$11161,H$6,FALSE),"-") -> 50 | I25: =IFERROR(ROUND(VLOOKUP(CONCATENATE(I$5,$C25),'trend data'!$A$2:$O$11161,I$6,FALSE),3),"-") -> 3.745 | J25: =IFERROR(ROUND(VLOOKUP(CONCATENATE(J$5,$C25),'trend data'!$A$2:$O$11161,J$6,FALSE),3),"-") -> 2.779 | K25: =IFERROR(ROUND(VLOOKUP(CONCATENATE(K$5,$C25),'trend data'!$A$2:$O$11161,K$6,FALSE),3),"-") -> 4.938
A26: 201902 | B26: 2019-06-01 | C26: =CONCATENATE(A26,'CDI Data and Charts'!B$1) -> 201902Scotland | D26: =IFERROR(VLOOKUP(CONCATENATE(D$5,$C26),'trend data'!$A$2:$O$11161,D$6,FALSE),"-") -> 184 | E26: =ROUND(VLOOKUP(CONCATENATE(E$5,$C26),'trend data'!$A$2:$O$11161,E$6,FALSE),3) -> 12.215 | F26: =ROUND(VLOOKUP(CONCATENATE(F$5,$C26),'trend data'!$A$2:$O$11161,F$6,FALSE),3) -> 10.514 | G26: =ROUND(VLOOKUP(CONCATENATE(G$5,$C26),'trend data'!$A$2:$O$11161,G$6,FALSE),3) -> 14.114 | H26: =IFERROR(VLOOKUP(CONCATENATE(H$5,$C26),'trend data'!$A$2:$O$11161,H$6,FALSE),"-") -> 66 | I26: =IFERROR(ROUND(VLOOKUP(CONCATENATE(I$5,$C26),'trend data'!$A$2:$O$11161,I$6,FALSE),3),"-") -> 4.889 | J26: =IFERROR(ROUND(VLOOKUP(CONCATENATE(J$5,$C26),'trend data'!$A$2:$O$11161,J$6,FALSE),3),"-") -> 3.781 | K26: =IFERROR(ROUND(VLOOKUP(CONCATENATE(K$5,$C26),'trend data'!$A$2:$O$11161,K$6,FALSE),3),"-") -> 6.22
A27: 201903 | B27: 2019-09-01 | C27: =CONCATENATE(A27,'CDI Data and Charts'!B$1) -> 201903Scotland | D27: =IFERROR(VLOOKUP(CONCATENATE(D$5,$C27),'trend data'!$A$2:$O$11161,D$6,FALSE),"-") -> 207 | E27: =ROUND(VLOOKUP(CONCATENATE(E$5,$C27),'trend data'!$A$2:$O$11161,E$6,FALSE),3) -> 13.736 | F27: =ROUND(VLOOKUP(CONCATENATE(F$5,$C27),'trend data'!$A$2:$O$11161,F$6,FALSE),3) -> 11.928 | G27: =ROUND(VLOOKUP(CONCATENATE(G$5,$C27),'trend data'!$A$2:$O$11161,G$6,FALSE),3) -> 15.74 | H27: =IFERROR(VLOOKUP(CONCATENATE(H$5,$C27),'trend data'!$A$2:$O$11161,H$6,FALSE),"-") -> 72 | I27: =IFERROR(ROUND(VLOOKUP(CONCATENATE(I$5,$C27),'trend data'!$A$2:$O$11161,I$6,FALSE),3),"-") -> 5.276 | J27: =IFERROR(ROUND(VLOOKUP(CONCATENATE(J$5,$C27),'trend data'!$A$2:$O$11161,J$6,FALSE),3),"-") -> 4.128 | K27: =IFERROR(ROUND(VLOOKUP(CONCATENATE(K$5,$C27),'trend data'!$A$2:$O$11161,K$6,FALSE),3),"-") -> 6.644
A28: 201904 | B28: 2019-12-01 | C28: =CONCATENATE(A28,'CDI Data and Charts'!B$1) -> 201904Scotland | D28: =IFERROR(VLOOKUP(CONCATENATE(D$5,$C28),'trend data'!$A$2:$O$11161,D$6,FALSE),"-") -> 231 | E28: =ROUND(VLOOKUP(CONCATENATE(E$5,$C28),'trend data'!$A$2:$O$11161,E$6,FALSE),3) -> 15.084 | F28: =ROUND(VLOOKUP(CONCATENATE(F$5,$C28),'trend data'!$A$2:$O$11161,F$6,FALSE),3) -> 13.201 | G28: =ROUND(VLOOKUP(CONCATENATE(G$5,$C28),'trend data'!$A$2:$O$11161,G$6,FALSE),3) -> 17.159 | H28: =IFERROR(VLOOKUP(CONCATENATE(H$5,$C28),'trend data'!$A$2:$O$11161,H$6,FALSE),"-") -> 63 | I28: =IFERROR(ROUND(VLOOKUP(CONCATENATE(I$5,$C28),'trend data'!$A$2:$O$11161,I$6,FALSE),3),"-") -> 4.616 | J28: =IFERROR(ROUND(VLOOKUP(CONCATENATE(J$5,$C28),'trend data'!$A$2:$O$11161,J$6,FALSE),3),"-") -> 3.547 | K28: =IFERROR(ROUND(VLOOKUP(CONCATENATE(K$5,$C28),'trend data'!$A$2:$O$11161,K$6,FALSE),3),"-") -> 5.906
A29: 202001 | B29: 2020-03-01 | C29: =CONCATENATE(A29,'CDI Data and Charts'!B$1) -> 202001Scotland | D29: =IFERROR(VLOOKUP(CONCATENATE(D$5,$C29),'trend data'!$A$2:$O$11161,D$6,FALSE),"-") -> 201 | E29: =ROUND(VLOOKUP(CONCATENATE(E$5,$C29),'trend data'!$A$2:$O$11161,E$6,FALSE),3) -> 13.618 | F29: =ROUND(VLOOKUP(CONCATENATE(F$5,$C29),'trend data'!$A$2:$O$11161,F$6,FALSE),3) -> 11.801 | G29: =ROUND(VLOOKUP(CONCATENATE(G$5,$C29),'trend data'!$A$2:$O$11161,G$6,FALSE),3) -> 15.637 | H29: =IFERROR(VLOOKUP(CONCATENATE(H$5,$C29),'trend data'!$A$2:$O$11161,H$6,FALSE),"-") -> 46 | I29: =IFERROR(ROUND(VLOOKUP(CONCATENATE(I$5,$C29),'trend data'!$A$2:$O$11161,I$6,FALSE),3),"-") -> 3.418 | J29: =IFERROR(ROUND(VLOOKUP(CONCATENATE(J$5,$C29),'trend data'!$A$2:$O$11161,J$6,FALSE),3),"-") -> 2.502 | K29: =IFERROR(ROUND(VLOOKUP(CONCATENATE(K$5,$C29),'trend data'!$A$2:$O$11161,K$6,FALSE),3),"-") -> 4.559
A30: 202002 | B30: 2020-06-01 | C30: =CONCATENATE(A30,'CDI Data and Charts'!B$1) -> 202002Scotland | D30: =IFERROR(VLOOKUP(CONCATENATE(D$5,$C30),'trend data'!$A$2:$O$11161,D$6,FALSE),"-") -> 166 | E30: =ROUND(VLOOKUP(CONCATENATE(E$5,$C30),'trend data'!$A$2:$O$11161,E$6,FALSE),3) -> 15.357 | F30: =ROUND(VLOOKUP(CONCATENATE(F$5,$C30),'trend data'!$A$2:$O$11161,F$6,FALSE),3) -> 13.109 | G30: =ROUND(VLOOKUP(CONCATENATE(G$5,$C30),'trend data'!$A$2:$O$11161,G$6,FALSE),3) -> 17.879 | H30: =IFERROR(VLOOKUP(CONCATENATE(H$5,$C30),'trend data'!$A$2:$O$11161,H$6,FALSE),"-") -> 80 | I30: =IFERROR(ROUND(VLOOKUP(CONCATENATE(I$5,$C30),'trend data'!$A$2:$O$11161,I$6,FALSE),3),"-") -> 5.944 | J30: =IFERROR(ROUND(VLOOKUP(CONCATENATE(J$5,$C30),'trend data'!$A$2:$O$11161,J$6,FALSE),3),"-") -> 4.713 | K30: =IFERROR(ROUND(VLOOKUP(CONCATENATE(K$5,$C30),'trend data'!$A$2:$O$11161,K$6,FALSE),3),"-") -> 7.398
A31: 202003 | B31: 2020-09-01 | C31: =CONCATENATE(A31,'CDI Data and Charts'!B$1) -> 202003Scotland | D31: =IFERROR(VLOOKUP(CONCATENATE(D$5,$C31),'trend data'!$A$2:$O$11161,D$6,FALSE),"-") -> 227 | E31: =ROUND(VLOOKUP(CONCATENATE(E$5,$C31),'trend data'!$A$2:$O$11161,E$6,FALSE),4) -> 17.4082 | F31: =ROUND(VLOOKUP(CONCATENATE(F$5,$C31),'trend data'!$A$2:$O$11161,F$6,FALSE),4) -> 15.217 | G31: =ROUND(VLOOKUP(CONCATENATE(G$5,$C31),'trend data'!$A$2:$O$11161,G$6,FALSE),4) -> 19.8263 | H31: =IFERROR(VLOOKUP(CONCATENATE(H$5,$C31),'trend data'!$A$2:$O$11161,H$6,FALSE),"-") -> 90 | I31: =IFERROR(ROUND(VLOOKUP(CONCATENATE(I$5,$C31),'trend data'!$A$2:$O$11161,I$6,FALSE),4),"-") -> 6.6144 | J31: =IFERROR(ROUND(VLOOKUP(CONCATENATE(J$5,$C31),'trend data'!$A$2:$O$11161,J$6,FALSE),4),"-") -> 5.3186 | K31: =IFERROR(ROUND(VLOOKUP(CONCATENATE(K$5,$C31),'trend data'!$A$2:$O$11161,K$6,FALSE),4),"-") -> 8.1303
A32: 202004 | B32: 2020-12-31 | C32: =CONCATENATE(A32,'CDI Data and Charts'!B$1) -> 202004Scotland | D32: =IFERROR(VLOOKUP(CONCATENATE(D$5,$C32),'trend data'!$A$2:$O$11161,D$6,FALSE),"-") -> 222 | E32: =ROUND(VLOOKUP(CONCATENATE(E$5,$C32),'trend data'!$A$2:$O$11161,E$6,FALSE),4) -> 16.3501 | F32: =ROUND(VLOOKUP(CONCATENATE(F$5,$C32),'trend data'!$A$2:$O$11161,F$6,FALSE),4) -> 14.2698 | G32: =ROUND(VLOOKUP(CONCATENATE(G$5,$C32),'trend data'!$A$2:$O$11161,G$6,FALSE),4) -> 18.6483 | H32: =IFERROR(VLOOKUP(CONCATENATE(H$5,$C32),'trend data'!$A$2:$O$11161,H$6,FALSE),"-") -> 56 | I32: =IFERROR(ROUND(VLOOKUP(CONCATENATE(I$5,$C32),'trend data'!$A$2:$O$11161,I$6,FALSE),4),"-") -> 4.1156 | J32: =IFERROR(ROUND(VLOOKUP(CONCATENATE(J$5,$C32),'trend data'!$A$2:$O$11161,J$6,FALSE),4),"-") -> 3.1087 | K32: =IFERROR(ROUND(VLOOKUP(CONCATENATE(K$5,$C32),'trend data'!$A$2:$O$11161,K$6,FALSE),4),"-") -> 5.3446
A33: 202101 | B33: 2021-03-31 | C33: =CONCATENATE(A33,'CDI Data and Charts'!B$1) -> 202101Scotland | D33: =IFERROR(VLOOKUP(CONCATENATE(D$5,$C33),'trend data'!$A$2:$O$11161,D$6,FALSE),"-") -> 213 | E33: =ROUND(VLOOKUP(CONCATENATE(E$5,$C33),'trend data'!$A$2:$O$11161,E$6,FALSE),4) -> 15.7562 | F33: =ROUND(VLOOKUP(CONCATENATE(F$5,$C33),'trend data'!$A$2:$O$11161,F$6,FALSE),4) -> 13.711 | G33: =ROUND(VLOOKUP(CONCATENATE(G$5,$C33),'trend data'!$A$2:$O$11161,G$6,FALSE),4) -> 18.0204 | H33: =IFERROR(VLOOKUP(CONCATENATE(H$5,$C33),'trend data'!$A$2:$O$11161,H$6,FALSE),"-") -> 49 | I33: =IFERROR(ROUND(VLOOKUP(CONCATENATE(I$5,$C33),'trend data'!$A$2:$O$11161,I$6,FALSE),4),"-") -> 3.6675 | J33: =IFERROR(ROUND(VLOOKUP(CONCATENATE(J$5,$C33),'trend data'!$A$2:$O$11161,J$6,FALSE),4),"-") -> 2.713 | K33: =IFERROR(ROUND(VLOOKUP(CONCATENATE(K$5,$C33),'trend data'!$A$2:$O$11161,K$6,FALSE),4),"-") -> 4.8488
A34: 202102 | B34: 2021-06-30 | C34: =CONCATENATE(A34,'CDI Data and Charts'!B$1) -> 202102Scotland | D34: =IFERROR(VLOOKUP(CONCATENATE(D$5,$C34),'trend data'!$A$2:$O$11161,D$6,FALSE),"-") -> 203 | E34: =ROUND(VLOOKUP(CONCATENATE(E$5,$C34),'trend data'!$A$2:$O$11161,E$6,FALSE),4) -> 14.5607 | F34: =ROUND(VLOOKUP(CONCATENATE(F$5,$C34),'trend data'!$A$2:$O$11161,F$6,FALSE),4) -> 12.6263 | G34: =ROUND(VLOOKUP(CONCATENATE(G$5,$C34),'trend data'!$A$2:$O$11161,G$6,FALSE),4) -> 16.7075 | H34: =IFERROR(VLOOKUP(CONCATENATE(H$5,$C34),'trend data'!$A$2:$O$11161,H$6,FALSE),"-") -> 74 | I34: =IFERROR(ROUND(VLOOKUP(CONCATENATE(I$5,$C34),'trend data'!$A$2:$O$11161,I$6,FALSE),4),"-") -> 5.4779 | J34: =IFERROR(ROUND(VLOOKUP(CONCATENATE(J$5,$C34),'trend data'!$A$2:$O$11161,J$6,FALSE),4),"-") -> 4.3011 | K34: =IFERROR(ROUND(VLOOKUP(CONCATENATE(K$5,$C34),'trend data'!$A$2:$O$11161,K$6,FALSE),4),"-") -> 6.8771
A35: 202103 | B35: 2021-09-01 | C35: =CONCATENATE(A35,'CDI Data and Charts'!B$1) -> 202103Scotland | D35: =IFERROR(VLOOKUP(CONCATENATE(D$5,$C35),'trend data'!$A$2:$O$11161,D$6,FALSE),"-") -> 245 | E35: =ROUND(VLOOKUP(CONCATENATE(E$5,$C35),'trend data'!$A$2:$O$11161,E$6,FALSE),4) -> 16.823 | F35: =ROUND(VLOOKUP(CONCATENATE(F$5,$C35),'trend data'!$A$2:$O$11161,F$6,FALSE),4) -> 14.7821 | G35: =ROUND(VLOOKUP(CONCATENATE(G$5,$C35),'trend data'!$A$2:$O$11161,G$6,FALSE),4) -> 19.0669 | H35: =IFERROR(VLOOKUP(CONCATENATE(H$5,$C35),'trend data'!$A$2:$O$11161,H$6,FALSE),"-") -> 87 | I35: =IFERROR(ROUND(VLOOKUP(CONCATENATE(I$5,$C35),'trend data'!$A$2:$O$11161,I$6,FALSE),4),"-") -> 6.3702 | J35: =IFERROR(ROUND(VLOOKUP(CONCATENATE(J$5,$C35),'trend data'!$A$2:$O$11161,J$6,FALSE),4),"-") -> 5.1021 | K35: =IFERROR(ROUND(VLOOKUP(CONCATENATE(K$5,$C35),'trend data'!$A$2:$O$11161,K$6,FALSE),4),"-") -> 7.8577
A36: 202104 | B36: 2021-12-31 | C36: =CONCATENATE(A36,'CDI Data and Charts'!B$1) -> 202104Scotland | D36: =IFERROR(VLOOKUP(CONCATENATE(D$5,$C36),'trend data'!$A$2:$O$11161,D$6,FALSE),"-") -> 197 | E36: =ROUND(VLOOKUP(CONCATENATE(E$5,$C36),'trend data'!$A$2:$O$11161,E$6,FALSE),4) -> 13.1878 | F36: =ROUND(VLOOKUP(CONCATENATE(F$5,$C36),'trend data'!$A$2:$O$11161,F$6,FALSE),4) -> 11.4103 | G36: =ROUND(VLOOKUP(CONCATENATE(G$5,$C36),'trend data'!$A$2:$O$11161,G$6,FALSE),4) -> 15.1636 | H36: =IFERROR(VLOOKUP(CONCATENATE(H$5,$C36),'trend data'!$A$2:$O$11161,H$6,FALSE),"-") -> 67 | I36: =IFERROR(ROUND(VLOOKUP(CONCATENATE(I$5,$C36),'trend data'!$A$2:$O$11161,I$6,FALSE),4),"-") -> 4.9058 | J36: =IFERROR(ROUND(VLOOKUP(CONCATENATE(J$5,$C36),'trend data'!$A$2:$O$11161,J$6,FALSE),4),"-") -> 3.8017 | K36: =IFERROR(ROUND(VLOOKUP(CONCATENATE(K$5,$C36),'trend data'!$A$2:$O$11161,K$6,FALSE),4),"-") -> 6.2303
A37: 202201 | B37: 2022-03-31 | C37: =CONCATENATE(A37,'CDI Data and Charts'!B$1) -> 202201Scotland | D37: =IFERROR(VLOOKUP(CONCATENATE(D$5,$C37),'trend data'!$A$2:$O$11161,D$6,FALSE),"-") -> 187 | E37: =ROUND(VLOOKUP(CONCATENATE(E$5,$C37),'trend data'!$A$2:$O$11161,E$6,FALSE),4) -> 12.6261 | F37: =ROUND(VLOOKUP(CONCATENATE(F$5,$C37),'trend data'!$A$2:$O$11161,F$6,FALSE),4) -> 10.8811 | G37: =ROUND(VLOOKUP(CONCATENATE(G$5,$C37),'trend data'!$A$2:$O$11161,G$6,FALSE),4) -> 14.5713 | H37: =IFERROR(VLOOKUP(CONCATENATE(H$5,$C37),'trend data'!$A$2:$O$11161,H$6,FALSE),"-") -> 43 | I37: =IFERROR(ROUND(VLOOKUP(CONCATENATE(I$5,$C37),'trend data'!$A$2:$O$11161,I$6,FALSE),4),"-") -> 3.2011 | J37: =IFERROR(ROUND(VLOOKUP(CONCATENATE(J$5,$C37),'trend data'!$A$2:$O$11161,J$6,FALSE),4),"-") -> 2.3164 | K37: =IFERROR(ROUND(VLOOKUP(CONCATENATE(K$5,$C37),'trend data'!$A$2:$O$11161,K$6,FALSE),4),"-") -> 4.3121
A38: 202202 | B38: 2022-06-30 | C38: =CONCATENATE(A38,'CDI Data and Charts'!B$1) -> 202202Scotland | D38: =IFERROR(VLOOKUP(CONCATENATE(D$5,$C38),'trend data'!$A$2:$O$11161,D$6,FALSE),"-") -> 217 | E38: =ROUND(VLOOKUP(CONCATENATE(E$5,$C38),'trend data'!$A$2:$O$11161,E$6,FALSE),4) -> 14.3109 | F38: =ROUND(VLOOKUP(CONCATENATE(F$5,$C38),'trend data'!$A$2:$O$11161,F$6,FALSE),4) -> 12.4699 | G38: =ROUND(VLOOKUP(CONCATENATE(G$5,$C38),'trend data'!$A$2:$O$11161,G$6,FALSE),4) -> 16.347 | H38: =IFERROR(VLOOKUP(CONCATENATE(H$5,$C38),'trend data'!$A$2:$O$11161,H$6,FALSE),"-") -> 66 | I38: =IFERROR(ROUND(VLOOKUP(CONCATENATE(I$5,$C38),'trend data'!$A$2:$O$11161,I$6,FALSE),4),"-") -> 4.8594 | J38: =IFERROR(ROUND(VLOOKUP(CONCATENATE(J$5,$C38),'trend data'!$A$2:$O$11161,J$6,FALSE),4),"-") -> 3.7581 | K38: =IFERROR(ROUND(VLOOKUP(CONCATENATE(K$5,$C38),'trend data'!$A$2:$O$11161,K$6,FALSE),4),"-") -> 6.1825
A39: 202203 | B39: 2022-09-30 | C39: =CONCATENATE(A39,'CDI Data and Charts'!B$1) -> 202203Scotland | D39: =IFERROR(VLOOKUP(CONCATENATE(D$5,$C39),'trend data'!$A$2:$O$11161,D$6,FALSE),"-") -> 202 | E39: =ROUND(VLOOKUP(CONCATENATE(E$5,$C39),'trend data'!$A$2:$O$11161,E$6,FALSE),4) -> 13.0682 | F39: =ROUND(VLOOKUP(CONCATENATE(F$5,$C39),'trend data'!$A$2:$O$11161,F$6,FALSE),4) -> 11.328 | G39: =ROUND(VLOOKUP(CONCATENATE(G$5,$C39),'trend data'!$A$2:$O$11161,G$6,FALSE),4) -> 15.0001 | H39: =IFERROR(VLOOKUP(CONCATENATE(H$5,$C39),'trend data'!$A$2:$O$11161,H$6,FALSE),"-") -> 82 | I39: =IFERROR(ROUND(VLOOKUP(CONCATENATE(I$5,$C39),'trend data'!$A$2:$O$11161,I$6,FALSE),4),"-") -> 5.9718 | J39: =IFERROR(ROUND(VLOOKUP(CONCATENATE(J$5,$C39),'trend data'!$A$2:$O$11161,J$6,FALSE),4),"-") -> 4.7494 | K39: =IFERROR(ROUND(VLOOKUP(CONCATENATE(K$5,$C39),'trend data'!$A$2:$O$11161,K$6,FALSE),4),"-") -> 7.4127
A40: 202204 | B40: 2022-12-31 | C40: =CONCATENATE(A40,'CDI Data and Charts'!B$1) -> 202204Scotland | D40: =IFERROR(VLOOKUP(CONCATENATE(D$5,$C40),'trend data'!$A$2:$O$11161,D$6,FALSE),"-") -> 212 | E40: =ROUND(VLOOKUP(CONCATENATE(E$5,$C40),'trend data'!$A$2:$O$11161,E$6,FALSE),4) -> 13.5113 | F40: =ROUND(VLOOKUP(CONCATENATE(F$5,$C40),'trend data'!$A$2:$O$11161,F$6,FALSE),4) -> 11.7536 | G40: =ROUND(VLOOKUP(CONCATENATE(G$5,$C40),'trend data'!$A$2:$O$11161,G$6,FALSE),4) -> 15.4578 | H40: =IFERROR(VLOOKUP(CONCATENATE(H$5,$C40),'trend data'!$A$2:$O$11161,H$6,FALSE),"-") -> 44 | I40: =IFERROR(ROUND(VLOOKUP(CONCATENATE(I$5,$C40),'trend data'!$A$2:$O$11161,I$6,FALSE),4),"-") -> 3.2044 | J40: =IFERROR(ROUND(VLOOKUP(CONCATENATE(J$5,$C40),'trend data'!$A$2:$O$11161,J$6,FALSE),4),"-") -> 2.3281 | K40: =IFERROR(ROUND(VLOOKUP(CONCATENATE(K$5,$C40),'trend data'!$A$2:$O$11161,K$6,FALSE),4),"-") -> 4.3019
A41: 202301 | B41: 2023-03-31 | C41: =CONCATENATE(A41,'CDI Data and Charts'!B$1) -> 202301Scotland | D41: =IFERROR(VLOOKUP(CONCATENATE(D$5,$C41),'trend data'!$A$2:$O$11161,D$6,FALSE),"-") -> 211 | E41: =ROUND(VLOOKUP(CONCATENATE(E$5,$C41),'trend data'!$A$2:$O$11161,E$6,FALSE),4) -> 13.4488 | F41: =ROUND(VLOOKUP(CONCATENATE(F$5,$C41),'trend data'!$A$2:$O$11161,F$6,FALSE),4) -> 11.6951 | G41: =ROUND(VLOOKUP(CONCATENATE(G$5,$C41),'trend data'!$A$2:$O$11161,G$6,FALSE),4) -> 15.3911 | H41: =IFERROR(VLOOKUP(CONCATENATE(H$5,$C41),'trend data'!$A$2:$O$11161,H$6,FALSE),"-") -> 57 | I41: =IFERROR(ROUND(VLOOKUP(CONCATENATE(I$5,$C41),'trend data'!$A$2:$O$11161,I$6,FALSE),4),"-") -> 4.2434 | J41: =IFERROR(ROUND(VLOOKUP(CONCATENATE(J$5,$C41),'trend data'!$A$2:$O$11161,J$6,FALSE),4),"-") -> 3.2137 | K41: =IFERROR(ROUND(VLOOKUP(CONCATENATE(K$5,$C41),'trend data'!$A$2:$O$11161,K$6,FALSE),4),"-") -> 5.4979
A42: 202302 | B42: 2023-06-30 | C42: =CONCATENATE(A42,'CDI Data and Charts'!B$1) -> 202302Scotland | D42: =IFERROR(VLOOKUP(CONCATENATE(D$5,$C42),'trend data'!$A$2:$O$11161,D$6,FALSE),"-") -> 244 | E42: =ROUND(VLOOKUP(CONCATENATE(E$5,$C42),'trend data'!$A$2:$O$11161,E$6,FALSE),4) -> 15.7963 | F42: =ROUND(VLOOKUP(CONCATENATE(F$5,$C42),'trend data'!$A$2:$O$11161,F$6,FALSE),4) -> 13.8762 | G42: =ROUND(VLOOKUP(CONCATENATE(G$5,$C42),'trend data'!$A$2:$O$11161,G$6,FALSE),4) -> 17.9078 | H42: =IFERROR(VLOOKUP(CONCATENATE(H$5,$C42),'trend data'!$A$2:$O$11161,H$6,FALSE),"-") -> 70 | I42: =IFERROR(ROUND(VLOOKUP(CONCATENATE(I$5,$C42),'trend data'!$A$2:$O$11161,I$6,FALSE),4),"-") -> 5.1539 | J42: =IFERROR(ROUND(VLOOKUP(CONCATENATE(J$5,$C42),'trend data'!$A$2:$O$11161,J$6,FALSE),4),"-") -> 4.0175 | K42: =IFERROR(ROUND(VLOOKUP(CONCATENATE(K$5,$C42),'trend data'!$A$2:$O$11161,K$6,FALSE),4),"-") -> 6.5118
A43: 202303 | B43: 2023-09-30 | C43: =CONCATENATE(A43,'CDI Data and Charts'!B$1) -> 202303Scotland | D43: =IFERROR(VLOOKUP(CONCATENATE(D$5,$C43),'trend data'!$A$2:$O$11161,D$6,FALSE),"-") -> 239 | E43: =ROUND(VLOOKUP(CONCATENATE(E$5,$C43),'trend data'!$A$2:$O$11161,E$6,FALSE),4) -> 15.542 | F43: =ROUND(VLOOKUP(CONCATENATE(F$5,$C43),'trend data'!$A$2:$O$11161,F$6,FALSE),4) -> 13.6338 | G43: =ROUND(VLOOKUP(CONCATENATE(G$5,$C43),'trend data'!$A$2:$O$11161,G$6,FALSE),4) -> 17.6426 | H43: =IFERROR(VLOOKUP(CONCATENATE(H$5,$C43),'trend data'!$A$2:$O$11161,H$6,FALSE),"-") -> 86 | I43: =IFERROR(ROUND(VLOOKUP(CONCATENATE(I$5,$C43),'trend data'!$A$2:$O$11161,I$6,FALSE),4),"-") -> 6.2631 | J43: =IFERROR(ROUND(VLOOKUP(CONCATENATE(J$5,$C43),'trend data'!$A$2:$O$11161,J$6,FALSE),4),"-") -> 5.0095 | K43: =IFERROR(ROUND(VLOOKUP(CONCATENATE(K$5,$C43),'trend data'!$A$2:$O$11161,K$6,FALSE),4),"-") -> 7.735
A44: 202304 | B44: 2023-12-31 | C44: =CONCATENATE(A44,'CDI Data and Charts'!B$1) -> 202304Scotland | D44: =IFERROR(VLOOKUP(CONCATENATE(D$5,$C44),'trend data'!$A$2:$O$11161,D$6,FALSE),"-") -> 223 | E44: =ROUND(VLOOKUP(CONCATENATE(E$5,$C44),'trend data'!$A$2:$O$11161,E$6,FALSE),4) -> 14.2386 | F44: =ROUND(VLOOKUP(CONCATENATE(F$5,$C44),'trend data'!$A$2:$O$11161,F$6,FALSE),4) -> 12.4309 | G44: =ROUND(VLOOKUP(CONCATENATE(G$5,$C44),'trend data'!$A$2:$O$11161,G$6,FALSE),4) -> 16.2352 | H44: =IFERROR(VLOOKUP(CONCATENATE(H$5,$C44),'trend data'!$A$2:$O$11161,H$6,FALSE),"-") -> 79 | I44: =IFERROR(ROUND(VLOOKUP(CONCATENATE(I$5,$C44),'trend data'!$A$2:$O$11161,I$6,FALSE),4),"-") -> 5.7533 | J44: =IFERROR(ROUND(VLOOKUP(CONCATENATE(J$5,$C44),'trend data'!$A$2:$O$11161,J$6,FALSE),4),"-") -> 4.5548 | K44: =IFERROR(ROUND(VLOOKUP(CONCATENATE(K$5,$C44),'trend data'!$A$2:$O$11161,K$6,FALSE),4),"-") -> 7.1705
A45: 202401 | B45: 2024-03-31 | C45: =CONCATENATE(A45,'CDI Data and Charts'!B$1) -> 202401Scotland | D45: =IFERROR(VLOOKUP(CONCATENATE(D$5,$C45),'trend data'!$A$2:$O$11161,D$6,FALSE),"-") -> 201 | E45: =ROUND(VLOOKUP(CONCATENATE(E$5,$C45),'trend data'!$A$2:$O$11161,E$6,FALSE),4) -> 12.6359 | F45: =ROUND(VLOOKUP(CONCATENATE(F$5,$C45),'trend data'!$A$2:$O$11161,F$6,FALSE),4) -> 10.9492 | G45: =ROUND(VLOOKUP(CONCATENATE(G$5,$C45),'trend data'!$A$2:$O$11161,G$6,FALSE),4) -> 14.5088 | H45: =IFERROR(VLOOKUP(CONCATENATE(H$5,$C45),'trend data'!$A$2:$O$11161,H$6,FALSE),"-") -> 94 | I45: =IFERROR(ROUND(VLOOKUP(CONCATENATE(I$5,$C45),'trend data'!$A$2:$O$11161,I$6,FALSE),4),"-") -> 6.9399 | J45: =IFERROR(ROUND(VLOOKUP(CONCATENATE(J$5,$C45),'trend data'!$A$2:$O$11161,J$6,FALSE),4),"-") -> 5.608 | K45: =IFERROR(ROUND(VLOOKUP(CONCATENATE(K$5,$C45),'trend data'!$A$2:$O$11161,K$6,FALSE),4),"-") -> 8.4928
A46: 202402 | B46: 2024-06-30 | C46: =CONCATENATE(A46,'CDI Data and Charts'!B$1) -> 202402Scotland | D46: =IFERROR(VLOOKUP(CONCATENATE(D$5,$C46),'trend data'!$A$2:$O$11161,D$6,FALSE),"-") -> 264 | E46: =ROUND(VLOOKUP(CONCATENATE(E$5,$C46),'trend data'!$A$2:$O$11161,E$6,FALSE),4) -> 16.9549 | F46: =ROUND(VLOOKUP(CONCATENATE(F$5,$C46),'trend data'!$A$2:$O$11161,F$6,FALSE),4) -> 14.971 | G46: =ROUND(VLOOKUP(CONCATENATE(G$5,$C46),'trend data'!$A$2:$O$11161,G$6,FALSE),4) -> 19.1284 | H46: =IFERROR(VLOOKUP(CONCATENATE(H$5,$C46),'trend data'!$A$2:$O$11161,H$6,FALSE),"-") -> 96 | I46: =IFERROR(ROUND(VLOOKUP(CONCATENATE(I$5,$C46),'trend data'!$A$2:$O$11161,I$6,FALSE),4),"-") -> 7.0876 | J46: =IFERROR(ROUND(VLOOKUP(CONCATENATE(J$5,$C46),'trend data'!$A$2:$O$11161,J$6,FALSE),4),"-") -> 5.7408 | K46: =IFERROR(ROUND(VLOOKUP(CONCATENATE(K$5,$C46),'trend data'!$A$2:$O$11161,K$6,FALSE),4),"-") -> 8.6553

Sheet year end comp (hidden)
A1: ref | B1: p | C1: lp | D1: pc | E1: r | F1: rl | G1: ru | H1: s | I1: direction
A2: CDICA Ayrshire & Arran | B2: 8.209281961 | C2: 7.114711033 | D2: 15.38461538 | E2: 1.153846154 | F2: 0.682445484 | G2: 1.950867839 | H2: Non Significant | I2: -
A3: CDIHCAI Ayrshire & Arran | B3: 16.93726481 | C3: 14.90757305 | D3: 13.61517231 | E3: 1.136151723 | F3: 0.822796052 | G3: 1.568846538 | H3: Non Significant | I3: -
A4: ECBCOM Ayrshire & Arran | B4: 54.72854641 | C4: 48.43476357 | D4: 12.99435028 | E4: 1.129943503 | F4: 0.9230245891 | G4: 1.383248436 | H4: Non Significant | I4: -
A5: ECBHCAI Ayrshire & Arran | B5: 46.25176158 | C5: 36.4170713 | D5: 27.00571444 | E5: 1.270057144 | F5: 1.038536853 | G5: 1.553190091 | H5: Significant | I5: Increase
A6: SABCAUN Ayrshire & Arran | B6: 14.5030648 | C6: 16.69220665 | D6: -13.1147541 | E6: 0.868852459 | F6: 0.6013182486 | G6: 1.255416075 | H6: Non Significant | I6: -
A7: SABHCAI Ayrshire & Arran | B7: 17.58869807 | C7: 19.80577562 | D7: -11.19409608 | E7: 0.8880590392 | F7: 0.6592840974 | G7: 1.196220052 | H7: Non Significant | I7: -
A8: CDICA Borders | B8: 2.568053416 | C8: 4.280089026 | D8: -40 | E8: 0.6 | F8: 0.1433871104 | G8: 2.510685926 | H8: Non Significant | I8: -
A9: CDIHCAI Borders | B9: 11.55588426 | C9: 7.843444841 | D9: 47.33174633 | E9: 1.473317463 | F9: 0.6618938962 | G9: 3.279474792 | H9: Non Significant | I9: -
A10: ECBCOM Borders | B10: 39.37681904 | C10: 47.93699709 | D10: -17.85714286 | E10: 0.8214285714 | F10: 0.5561445612 | G10: 1.213254511 | H10: Non Significant | I10: -
A11: ECBHCAI Borders | B11: 46.99392931 | C11: 40.78591317 | D11: 15.2209811 | E11: 1.152209811 | F11: 0.7959203812 | G11: 1.667990266 | H11: Non Significant | I11: -
A12: SABCAUN Borders | B12: 15.40832049 | C12: 11.98424927 | D12: 28.57142857 | E12: 1.285714286 | F12: 0.6394618703 | G12: 2.585081771 | H12: Non Significant | I12: -
A13: SABHCAI Borders | B13: 13.09666882 | C13: 14.9025452 | D13: -12.1179057 | E13: 0.878820943 | F13: 0.4567961673 | G13: 1.690745906 | H13: Non Significant | I13: -
A14: CDICA Dumfries & Galloway | B14: 11.66220759 | C14: 8.918158743 | D14: 30.76923077 | E14: 1.307692308 | F14: 0.6351623668 | G14: 2.692318155 | H14: Non Significant | I14: -
A15: CDIHCAI Dumfries & Galloway | B15: 19.3528618 | C15: 12.99481832 | D15: 48.92752891 | E15: 1.489275289 | F15: 0.8885043525 | G15: 2.49626339 | H15: Non Significant | I15: -
A16: ECBCOM Dumfries & Galloway | B16: 51.45091583 | C16: 63.79913562 | D16: -19.35483871 | E16: 0.8064516129 | F16: 0.5949386736 | G16: 1.093161754 | H16: Non Significant | I16: -
A17: ECBHCAI Dumfries & Galloway | B17: 38.16814411 | C17: 42.23315953 | D17: -9.625174765 | E17: 0.9037482523 | F17: 0.6552762779 | G17: 1.246437466 | H17: Non Significant | I17: -
A18: SABCAUN Dumfries & Galloway | B18: 10.29018317 | C18: 13.72024422 | D18: -25 | E18: 0.75 | F18: 0.3839858706 | G18: 1.464897652 | H18: Non Significant | I18: -
A19: SABHCAI Dumfries & Galloway | B19: 19.8904413 | C19: 16.2435229 | D19: 22.45152377 | E19: 1.224515238 | F19: 0.7565440402 | G19: 1.98195675 | H19: Non Significant | I19: -
A20: CDICA Fife | B20: 6.463079657 | C20: 2.692949857 | D20: 140 | E20: 2.4 | F20: 1.147690357 | G20: 5.018775286 | H20: Significant | I20: Increase
A21: CDIHCAI Fife | B21: 5.055498135 | C21: 12.23275598 | D21: -58.67245172 | E21: 0.4132754828 | F21: 0.2388234685 | G21: 0.715158463 | H21: Significant | I21: Decrease
A22: ECBCOM Fife | B22: 37.16270803 | C22: 39.31706792 | D22: -5.479452055 | E22: 0.9452054795 | F22: 0.7489713977 | G22: 1.192853827 | H22: Non Significant | I22: -
A23: ECBHCAI Fife | B23: 40.72484609 | C23: 31.13792432 | D23: 30.78857044 | E23: 1.307885704 | F23: 1.022088306 | G23: 1.673598069 | H23: Significant | I23: Increase
A24: SABCAUN Fife | B24: 11.04109441 | C24: 14.00333926 | D24: -21.15384615 | E24: 0.7884615385 | F24: 0.5235984124 | G24: 1.187306117 | H24: Non Significant | I24: -
A25: SABHCAI Fife | B25: 13.48132836 | C25: 14.73491062 | D25: -8.507566078 | E25: 0.9149243392 | F25: 0.6191254715 | G25: 1.352046693 | H25: Non Significant | I25: -
A26: CDICA Forth Valley | B26: 2.312291481 | C26: 0.6606547088 | D26: 250 | E26: 3.5 | F26: 0.7270695536 | G26: 16.84845685 | H26: Non Significant | I26: -
A27: CDIHCAI Forth Valley | B27: 14.77408497 | C27: 17.7180447 | D27: -16.61560167 | E27: 0.8338439833 | F27: 0.5636502065 | G27: 1.233559006 | H27: Non Significant | I27: -
A28: ECBCOM Forth Valley | B28: 38.64830047 | C28: 32.70240809 | D28: 18.18181818 | E28: 1.181818182 | F28: 0.9042954903 | G28: 1.54451087 | H28: Non Significant | I28: -
A29: ECBHCAI Forth Valley | B29: 44.64343067 | C29: 53.47628037 | D29: -16.51732252 | E29: 0.8348267748 | F29: 0.6663939429 | G29: 1.045831451 | H29: Non Significant | I29: -
A30: SABCAUN Forth Valley | B30: 10.24014799 | C30: 9.249165923 | D30: 10.71428571 | E30: 1.107142857 | F30: 0.6641688615 | G30: 1.845562743 | H30: Non Significant | I30: -
A31: SABHCAI Forth Valley | B31: 16.37996377 | C31: 15.14087456 | D31: 8.183736042 | E31: 1.08183736 | F31: 0.7278580758 | G31: 1.607967423 | H31: Non Significant | I31: -
A32: CDIHCAI Golden Jubilee | B32: 5.473553613 | C32: 7.674449838 | D32: -28.67822803 | E32: 0.7132177197 | F32: 0.1596225561 | G32: 3.186764629 | H32: Non Significant | I32: -
A33: ECBHCAI Golden Jubilee | B33: 20.06969658 | C33: 19.18612459 | D33: 4.605265559 | E33: 1.046052656 | F33: 0.4442526107 | G33: 2.463071982 | H33: Non Significant | I33: -
A34: SABHCAI Golden Jubilee | B34: 16.42066084 | C34: 23.02334951 | D34: -28.67822803 | E34: 0.7132177197 | F34: 0.3005180953 | G34: 1.692675162 | H34: Non Significant | I34: -
A35: CDICA Grampian | B35: 5.667960565 | C35: 4.293909519 | D35: 32 | E35: 1.32 | F35: 0.7850116283 | G35: 2.219584955 | H35: Non Significant | I35: -
A36: CDIHCAI Grampian | B36: 10.4692617 | C36: 9.018606513 | D36: 16.08513668 | E36: 1.160851367 | F36: 0.7907192987 | G36: 1.704240554 | H36: Non Significant | I36: -
A37: ECBCOM Grampian | B37: 29.19858473 | C37: 30.91614853 | D37: -5.555555556 | E37: 0.9444444444 | F37: 0.7658439861 | G37: 1.164695845 | H37: Non Significant | I37: -
A38: ECBHCAI Grampian | B38: 34.34652522 | C38: 36.63808896 | D38: -6.254594077 | E38: 0.9374540592 | F38: 0.7670554615 | G38: 1.145706089 | H38: Non Significant | I38: -
A39: SABCAUN Grampian | B39: 12.53821579 | C39: 10.30538284 | D39: 21.66666667 | E39: 1.216666667 | F39: 0.8646524136 | G39: 1.711991726 | H39: Non Significant | I39: -
A40: SABHCAI Grampian | B40: 19.10181081 | C40: 18.22510066 | D40: 4.810454386 | E40: 1.048104544 | F40: 0.7947879177 | G40: 1.382158826 | H40: Non Significant | I40: -
A41: CDICA Greater Glasgow & Clyde | B41: 5.424142519 | C41: 3.898602436 | D41: 39.13043478 | E41: 1.391304348 | F41: 0.9525406819 | G41: 2.03217335 | H41: Non Significant | I41: -
A42: CDIHCAI Greater Glasgow & Clyde | B42: 14.70805349 | C42: 13.40342159 | D42: 9.733573602 | E42: 1.097335736 | F42: 0.9209881455 | G42: 1.307449747 | H42: Non Significant | I42: -
A43: ECBCOM Greater Glasgow & Clyde | B43: 33.05336848 | C43: 36.78246646 | D43: -10.13824885 | E43: 0.8986175115 | F43: 0.7837598863 | G43: 1.030307172 | H43: Non Significant | I43: -
A44: ECBHCAI Greater Glasgow & Clyde | B44: 34.43021614 | C44: 34.52225813 | D44: -0.2666163699 | E44: 0.9973338363 | F44: 0.8919034754 | G44: 1.115226937 | H44: Non Significant | I44: -
A45: SABCAUN Greater Glasgow & Clyde | B45: 7.03443483 | C45: 6.356417015 | D45: 10.66666667 | E45: 1.106666667 | F45: 0.8098497957 | G45: 1.512269457 | H45: Non Significant | I45: -
A46: SABHCAI Greater Glasgow & Clyde | B46: 17.0479711 | C46: 19.09142823 | D46: -10.70353202 | E46: 0.8929646798 | F46: 0.7650909882 | G46: 1.042210576 | H46: Non Significant | I46: -
A47: CDICA Highland | B47: 8.651855514 | C47: 8.960850354 | D47: -3.448275862 | E47: 0.9655172414 | F47: 0.5744237433 | G47: 1.622884768 | H47: Non Significant | I47: -
A48: CDIHCAI Highland | B48: 25.61661728 | C48: 22.38918997 | D48: 14.41511421 | E48: 1.144151142 | F48: 0.8288589921 | G48: 1.579378216 | H48: Non Significant | I48: -
A49: ECBCOM Highland | B49: 41.71430337 | C49: 37.07938077 | D49: 12.5 | E49: 1.125 | F49: 0.8797454299 | G49: 1.438626399 | H49: Non Significant | I49: -
A50: ECBHCAI Highland | B50: 25.30036274 | C50: 21.0721788 | D50: 20.06524331 | E50: 1.200652433 | F50: 0.864298668 | G50: 1.667902912 | H50: Non Significant | I50: -
A51: SABCAUN Highland | B51: 8.651855514 | C51: 9.269845194 | D51: -6.666666667 | E51: 0.9333333333 | F51: 0.5576518819 | G51: 1.56210557 | H51: Non Significant | I51: -
A52: SABHCAI Highland | B52: 13.59894497 | C52: 15.8041341 | D52: -13.95324229 | E52: 0.8604675771 | F52: 0.5701654517 | G52: 1.298578244 | H52: Non Significant | I52: -
A53: CDICA Lanarkshire | B53: 5.984798612 | C53: 3.740499132 | D53: 60 | E53: 1.6 | F53: 0.9707364361 | G53: 2.637173083 | H53: Non Significant | I53: -
A54: CDIHCAI Lanarkshire | B54: 19.68042887 | C54: 20.26968652 | D54: -2.907088111 | E54: 0.9709291189 | F54: 0.7550494328 | G54: 1.248531968 | H54: Non Significant | I54: -
A55: ECBCOM Lanarkshire | B55: 40.54701059 | C55: 48.77610868 | D55: -16.87116564 | E55: 0.8312883436 | F55: 0.7075841717 | G55: 0.9766192317 | H55: Significant | I55: Decrease
A56: ECBHCAI Lanarkshire | B56: 35.78259795 | C56: 41.37009789 | D56: -13.5061318 | E56: 0.864938682 | F56: 0.7214786628 | G56: 1.036924531 | H56: Non Significant | I56: -
A57: SABCAUN Lanarkshire | B57: 11.2214974 | C57: 7.63061823 | D57: 47.05882353 | E57: 1.470588235 | F57: 1.03038063 | G57: 2.09886492 | H57: Significant | I57: Increase
A58: SABHCAI Lanarkshire | B58: 23.09604049 | C58: 17.11293206 | D58: 34.96249744 | E58: 1.349624974 | F58: 1.047234144 | G58: 1.739331727 | H58: Significant | I58: Increase
A59: CDICA Lothian | B59: 8.717818559 | C59: 5.296902416 | D59: 64.58333333 | E59: 1.645833333 | F59: 1.149759886 | G59: 2.355941787 | H59: Significant | I59: Increase
A60: CDIHCAI Lothian | B60: 14.88013169 | C60: 12.24136295 | D60: 21.55616781 | E60: 1.215561678 | F60: 0.9536667812 | G60: 1.549377857 | H60: Non Significant | I60: -
A61: ECBCOM Lothian | B61: 30.01578036 | C61: 31.22965383 | D61: -3.886925795 | E61: 0.961130742 | F61: 0.813774274 | G61: 1.135170197 | H61: Non Significant | I61: -
A62: ECBHCAI Lothian | B62: 30.38460458 | C62: 30.19536195 | D62: 0.626727467 | E62: 1.006267275 | F62: 0.8560606102 | G62: 1.182829599 | H62: Non Significant | I62: -
A63: SABCAUN Lothian | B63: 9.710987762 | C63: 9.269579227 | D63: 4.761904762 | E63: 1.047619048 | F63: 0.7768888091 | G63: 1.412693369 | H63: Non Significant | I63: -
A64: SABHCAI Lothian | B64: 16.23287094 | C64: 16.42382863 | D64: -1.162686814 | E64: 0.9883731319 | F64: 0.79303215 | G64: 1.231830825 | H64: Non Significant | I64: -
A65: CDICA Orkney | B65: 4.541326067 | C65: 0 | D65: Inf | E65: Inf | F65: 0 | G65: Inf
A66: CDIHCAI Orkney | B66: 7.760360081 | C66: 22.53605769 | D66: -65.56469554 | E66: 0.3443530446 | F66: 0.0358181364 | G66: 3.310585957 | H66: Non Significant | I66: -
A67: ECBCOM Orkney | B67: 45.41326067 | C67: 63.57856494 | D67: -28.57142857 | E67: 0.7142857143 | F67: 0.3172740605 | G67: 1.608086336 | H67: Non Significant | I67: -
A68: ECBHCAI Orkney | B68: 54.32252056 | C68: 60.09615385 | D68: -9.60732578 | E68: 0.9039267422 | F68: 0.327783047 | G68: 2.492757215 | H68: Non Significant | I68: -
A69: SABCAUN Orkney | B69: 4.541326067 | C69: 13.6239782 | D69: -66.66666667 | E69: 0.3333333333 | F69: 0.03467191298 | G69: 3.204643227 | H69: Non Significant | I69: -
A70: SABHCAI Orkney | B70: 0 | C70: 15.02403846 | D70: -100 | E70: 0 | F70: 0 | G70: 0
A71: CDICA Scotland | B71: 6.516511555 | C71: 4.644161756 | D71: 40.31620553 | E71: 1.403162055 | F71: 1.194187201 | G71: 1.648706126 | H71: Significant | I71: Increase
A72: CDIHCAI Scotland | B72: 14.8279241 | C72: 13.95229279 | D72: 6.275895448 | E72: 1.062758954 | F72: 0.9688184179 | G72: 1.165808344 | H72: Non Significant | I72: -
A73: ECBCOM Scotland | B73: 36.91466123 | C73: 38.01604347 | D73: -2.897151135 | E73: 0.9710284887 | F73: 0.9132359071 | G73: 1.032478375 | H73: Non Significant | I73: -
A74: ECBHCAI Scotland | B74: 36.83787401 | C74: 36.57459491 | D74: 0.7198414417 | E74: 1.007198414 | F74: 0.9505208184 | G74: 1.067255579 | H74: Non Significant | I74: -
A75: SABCAUN Scotland | B75: 10.29792389 | C75: 9.637094554 | D75: 6.857142857 | E75: 1.068571429 | F75: 0.9486696878 | G75: 1.203627472 | H75: Non Significant | I75: -
A76: SABHCAI Scotland | B76: 17.9150755 | C76: 18.44785319 | D76: -2.888019955 | E76: 0.9711198005 | F76: 0.8943963257 | G76: 1.0544248 | H76: Non Significant | I76: -
A77: CDICA Shetland | B77: 4.344048653 | C77: 8.688097307 | D77: -50 | E77: 0.5 | F77: 0.04533630519 | G77: 5.514344386 | H77: Non Significant | I77: -
A78: CDIHCAI Shetland | B78: 93.53564747 | C78: 9.838646202 | D78: 850.6963209 | E78: 9.506963209 | F78: 1.204425988 | G78: 75.04184597 | H78: Significant | I78: Increase
A79: ECBCOM Shetland | B79: 13.03214596 | C79: 26.06429192 | D79: -50 | E79: 0.5 | F79: 0.1250456421 | G79: 1.999269993 | H79: Non Significant | I79: -
A80: ECBHCAI Shetland | B80: 93.53564747 | C80: 78.70916962 | D80: 18.83704012 | E80: 1.188370401 | F80: 0.4584950187 | G80: 3.080129887 | H80: Non Significant | I80: -
A81: SABCAUN Shetland | B81: 39.09643788 | C81: 17.37619461 | D81: 125 | E81: 2.25 | F81: 0.6928905696 | G81: 7.306348537 | H81: Non Significant | I81: -
